Workbook

Sheet DOE - FIPStoPayeeCodeConvTable
B1: Manually edit this file | F1: FY= | G1: 2019
A2: FIPS | B2: FIPS DESC | C2: PAYEE | D2: PAYEE DESC | E2: Pool Rate
A3: 1 | B3: Accomack Co | C3: 00001 | D3: Accomack County | E3: 0.2332
A4: 3 | B4: Albemarle Co | C4: 00002 | D4: Albemarle County | E4: 0.4474
A5: 5 | B5: Alleghany Co | C5: 00003 | D5: Alleghany County | E5: 0.1924
A6: 7 | B6: Amelia Co | C6: 00004 | D6: Amelia County | E6: 0.3268
A7: 9 | B7: Amherst Co | C7: 00005 | D7: Amherst County | E7: 0.2722
A8: 11 | B8: Appomattox Co | C8: 00006 | D8: Appomattox County | E8: 0.2639
A9: 13 | B9: Arlington Co | C9: 00007 | D9: Arlington County | E9: 0.4602
A10: 15 | B10: Augusta Co | C10: 00008 | D10: Augusta County | E10: 0.3302
A11: 17 | B11: Bath Co | C11: 00009 | D11: Bath County | E11: 0.4278
A12: 19 | B12: Bedford Co | C12: 00010 | D12: Bedford County | E12: 0.31112
A13: 21 | B13: Bland Co | C13: 00011 | D13: Bland County | E13: 0.2109
A14: 23 | B14: Botetourt Co | C14: 00012 | D14: Botetourt County | E14: 0.3602
A15: 25 | B15: Brunswick Co | C15: 00013 | D15: Brunswick County | E15: 0.2439
A16: 27 | B16: Buchanan Co | C16: 00014 | D16: Buchanan County | E16: 0.3156
A17: 29 | B17: Buckingham Co | C17: 00015 | D17: Buckingham County | E17: 0.2023
A18: 31 | B18: Campbell Co | C18: 00016 | D18: Campbell County | E18: 0.3107
A19: 33 | B19: Caroline Co | C19: 00017 | D19: Caroline County | E19: 0.3308
A20: 35 | B20: Carroll Co | C20: 00018 | D20: Carroll County | E20: 0.291
A21: 36 | B21: Charles City Co | C21: 00019 | D21: Charles City | E21: 0.3131
A22: 37 | B22: Charlotte Co | C22: 00020 | D22: Charlotte County | E22: 0.2204
A23: 41 | B23: Chesterfield Co | C23: 00021 | D23: Chesterfield County | E23: 0.3853
A24: 43 | B24: Clarke Co | C24: 00022 | D24: Clarke County | E24: 0.4797
A25: 45 | B25: Craig Co | C25: 00023 | D25: Craig County | E25: 0.2901
A26: 47 | B26: Culpeper Co | C26: 00024 | D26: Culpeper County | E26: 0.3767
A27: 49 | B27: Cumberland Co | C27: 00025 | D27: Cumberland County | E27: 0.304
A28: 51 | B28: Dickenson Co | C28: 00026 | D28: Dickenson County | E28: 0.3042
A29: 53 | B29: Dinwiddie Co | C29: 00027 | D29: Dinwiddie County | E29: 0.3358
A30: 57 | B30: Essex Co | C30: 00028 | D30: Essex County | E30: 0.3853
A31: 59 | B31: Fairfax Co | C31: 00029 | D31: Fairfax County | E31: 0.4611
A32: 61 | B32: Fauquier Co | C32: 00030 | D32: Fauquier County | E32: 0.4584
A33: 63 | B33: Floyd Co | C33: 00031 | D33: Floyd County | E33: 0.2324
A34: 65 | B34: Fluvanna Co | C34: 00032 | D34: Fluvanna County | E34: 0.3811
A35: 67 | B35: Franklin Co | C35: 00033 | D35: Franklin County | E35: 0.283
A36: 69 | B36: Frederick Co | C36: 00034 | D36: Frederick County | E36: 0.4348
A37: 71 | B37: Giles Co | C37: 00035 | D37: Giles County | E37: 0.2898
A38: 73 | B38: Gloucester Co | C38: 00036 | D38: Gloucester County | E38: 0.3687
A39: 75 | B39: Goochland Co | C39: 00037 | D39: Goochland County | E39: 0.4871
A40: 77 | B40: Grayson Co | C40: 00038 | D40: Grayson County | E40: 0.2109
A41: 79 | B41: Greene Co | C41: 00039 | D41: Greene County | E41: 0.3471
A42: 81 | B42: Greensville Co | C42: 00040 | D42: Greensville County | E42: 0.2266
A43: 83 | B43: Halifax Co | C43: 00041 | D43: Halifax County | E43: 0.2335
A44: 85 | B44: Hanover Co | C44: 00042 | D44: Hanover County | E44: 0.4444
A45: 87 | B45: Henrico Co | C45: 00043 | D45: Henrico County | E45: 0.3755
A46: 89 | B46: Henry Co | C46: 00044 | D46: Henry County | E46: 0.2786
A47: 91 | B47: Highland Co | C47: 00045 | D47: Highland County | E47: 0.3822
A48: 93 | B48: Isle Of Wight Co | C48: 00046 | D48: Isle of Wight | E48: 0.3613
A49: 95 | B49: James City Co | C49: 00047 | D49: James City County | E49: 0.4483
A50: 97 | B50: King And Queen Co | C50: 00049 | D50: King and Queen County | E50: 0.3144
A51: 99 | B51: King George Co | C51: 00048 | D51: King George County | E51: 0.3627
A52: 101 | B52: King William Co | C52: 00050 | D52: King William County | E52: 0.3853
A53: 103 | B53: Lancaster Co | C53: 00051 | D53: Lancaster County | E53: 0.4391
A54: 105 | B54: Lee Co | C54: 00052 | D54: Lee County | E54: 0.2245
A55: 107 | B55: Loudoun Co | C55: 00053 | D55: Loudoun County | E55: 0.4764
A56: 109 | B56: Louisa Co | C56: 00054 | D56: Louisa County | E56: 0.4401
A57: 111 | B57: Lunenburg Co | C57: 00055 | D57: Lunenburg County | E57: 0.1698
A58: 113 | B58: Madison Co | C58: 00056 | D58: Madison County | E58: 0.3355
A59: 115 | B59: Mathews Co | C59: 00057 | D59: Mathews County | E59: 0.4271
A60: 117 | B60: Mecklenburg Co | C60: 00058 | D60: Mecklenburg County | E60: 0.2286
A61: 119 | B61: Middlesex Co | C61: 00059 | D61: Middlesex County | E61: 0.4333
A62: 121 | B62: Montgomery Co | C62: 00060 | D62: Montgomery County | E62: 0.2834
A63: 125 | B63: Nelson Co | C63: 00062 | D63: Nelson County | E63: 0.3132
A64: 127 | B64: New Kent Co | C64: 00063 | D64: New Kent County | E64: 0.4329
A65: 131 | B65: Northampton Co | C65: 00001 | D65: Accomack County | E65: 0.1971
A66: 133 | B66: Northumberland Co | C66: 00066 | D66: Northumberland County | E66: 0.3304
A67: 135 | B67: Nottoway Co | C67: 00067 | D67: Nottoway County | E67: 0.2686
A68: 137 | B68: Orange Co | C68: 00068 | D68: Orange County | E68: 0.4083
A69: 139 | B69: Page Co | C69: 00069 | D69: Page County | E69: 0.2865
A70: 141 | B70: Patrick Co | C70: 00070 | D70: Patrick County | E70: 0.2539
A71: 143 | B71: Pittsylvania Co | C71: 00071 | D71: Pittsylvania County | E71: 0.2355
A72: 145 | B72: Powhatan Co | C72: 00072 | D72: Powhatan County | E72: 0.4342
A73: 147 | B73: Prince Edward Co | C73: 00073 | D73: Prince Edward County | E73: 0.2232
A74: 149 | B74: Prince George Co | C74: 00074 | D74: Prince George County | E74: 0.3716
A75: 153 | B75: Prince William Co | C75: 00075 | D75: Prince William County | E75: 0.3414
A76: 155 | B76: Pulaski Co | C76: 00077 | D76: Pulaski County | E76: 0.2923
A77: 157 | B77: Rappahannock Co | C77: 00078 | D77: Rappahannock County | E77: 0.4199
A78: 159 | B78: Richmond Co | C78: 00079 | D78: Richmond County | E78: 0.3227
A79: 161 | B79: Roanoke Co | C79: 00080 | D79: Roanoke County | E79: 0.4397
A80: 163 | B80: Rockbridge Co | C80: 00081 | D80: Rockbridge County | E80: 0.2336
A81: 165 | B81: Rockingham Co | C81: 00082 | D81: Rockingham County | E81: 0.3445
A82: 167 | B82: Russell Co | C82: 00083 | D82: Russell County | E82: 0.1894
A83: 169 | B83: Scott Co | C83: 00084 | D83: Scott County | E83: 0.3154
A84: 171 | B84: Shenandoah Co | C84: 00085 | D84: Shenandoah County | E84: 0.3517
A85: 173 | B85: Smyth Co | C85: 00086 | D85: Smyth County | E85: 0.2337
A86: 175 | B86: Southampton Co | C86: 00087 | D86: Southampton County | E86: 0.323
A87: 177 | B87: Spotsylvania Co | C87: 00088 | D87: Spotsylvania County | E87: 0.4588
A88: 179 | B88: Stafford Co | C88: 00089 | D88: Stafford County | E88: 0.4439
A89: 181 | B89: Surry Co | C89: 00090 | D89: Surry County | E89: 0.3979
A90: 183 | B90: Sussex Co | C90: 00091 | D90: Sussex County | E90: 0.2387
A91: 185 | B91: Tazewell Co | C91: 00092 | D91: Tazewell County | E91: 0.2455
A92: 187 | B92: Warren Co | C92: 00093 | D92: Warren County | E92: 0.3853
A93: 191 | B93: Washington Co | C93: 00094 | D93: Washington County | E93: 0.276
A94: 193 | B94: Westmoreland Co | C94: 00095 | D94: Westmoreland County | E94: 0.3025
A95: 195 | B95: Wise Co | C95: 00096 | D95: Wise County | E95: 0.2755
A96: 197 | B96: Wythe Co | C96: 00097 | D96: Wythe County | E96: 0.2708
A97: 199 | B97: York Co | C97: 00098 | D97: York County | E97: 0.3888
A98: 510 | B98: Alexandria City | C98: 00101 | D98: Alexandria City | E98: 0.5309
A99: 520 | B99: Bristol City | C99: 00094 | D99: Washington County | E99: 0.2547
A100: 530 | B100: Buena Vista City | C100: 00103 | D100: Buena Vista City | E100: 0.2329
A101: 540 | B101: Charlottesville City | C101: 00104 | D101: Charlottesville City | E101: 0.3068
A102: 550 | B102: Chesapeake City | C102: 00136 | D102: Chesapeake City | E102: 0.3715
A103: 570 | B103: Colonial Heights City | C103: 00021 | D103: Chesterfield County | E103: 0.4027
A104: 580 | B104: Covington City | C104: 00107 | D104: Covington City | E104: 0.2496
A105: 590 | B105: Danville City | C105: 00108 | D105: Danville City | E105: 0.2223
A106: 620 | B106: Franklin City | C106: 00135 | D106: Franklin City | E106: 0.371
A107: 630 | B107: Fredericksburg City | C107: 00110 | D107: Fredericksburg City | E107: 0.3441
A108: 640 | B108: Galax City | C108: 00111 | D108: Galax City | E108: 0.3146
A109: 650 | B109: Hampton City | C109: 00112 | D109: Hampton City | E109: 0.3223
A110: 660 | B110: Harrisonburg City | C110: 00082 | D110: Rockingham County | E110: 0.3808
A111: 670 | B111: Hopewell City | C111: 00114 | D111: Hopewell City | E111: 0.2667
A112: 678 | B112: Lexington City | C112: 00137 | D112: Lexington City | E112: 0.3302
A113: 680 | B113: Lynchburg City | C113: 00115 | D113: Lynchburg City | E113: 0.2736
A114: 683 | B114: Manassas City | C114: 00143 | D114: Manassas City | E114: 0.4168
A115: 685 | B115: Manassas Park City | C115: 00144 | D115: Manassas Park City | E115: 0.4273
A116: 690 | B116: Martinsville City | C116: 00116 | D116: Martinsville City | E116: 0.3321
A117: 700 | B117: Newport News City | C117: 00117 | D117: Newport News City | E117: 0.2773
A118: 710 | B118: Norfolk City | C118: 00118 | D118: Norfolk City | E118: 0.2455
A119: 720 | B119: Norton City | C119: 00119 | D119: Norton City | E119: 0.3254
A120: 730 | B120: Petersburg City | C120: 00120 | D120: Petersburg City | E120: 0.3535
A121: 735 | B121: Poquoson City | C121: 00142 | D121: Poquoson City | E121: 0.2787
A122: 740 | B122: Portsmouth City | C122: 00121 | D122: Portsmouth City | E122: 0.2605
A123: 750 | B123: Radford City | C123: 00122 | D123: Radford City | E123: 0.2035
A124: 760 | B124: Richmond City | C124: 00123 | D124: Richmond City | E124: 0.3691
A125: 770 | B125: Roanoke City | C125: 00124 | D125: Roanoke City | E125: 0.3072
A126: 775 | B126: Salem City | C126: 00139 | D126: Salem City | E126: 0.3513
A127: 790 | B127: Staunton City | C127: 00126 | D127: Staunton City | E127: 0.2699
A128: 800 | B128: Suffolk City | C128: 00127 | D128: Suffolk City | E128: 0.2432
A129: 810 | B129: Virginia Beach City | C129: 00128 | D129: Virginia Beach City | E129: 0.3569
A130: 820 | B130: Waynesboro City | C130: 00130 | D130: Waynesboro City | E130: 0.3843
A131: 830 | B131: Williamsburg City | C131: 00850 | D131: Williamsburg City | E131: 0.4553
A132: 840 | B132: Winchester City | C132: 00132 | D132: Winchester City | E132: 0.4587

Sheet Extended (hidden)
A1: FY | B1: ='DOE - FIPStoPayeeCodeConvTable'!G1 -> 2019 | C1: MEDICAID ADJUSTMENTS--EXTENDED PAYMENTS TO PROVIDERS | O1: ="Extended to be paided in this SFY = " & B1 -> Extended to be paided in this SFY = 2019 | T1: xx | U1: 0.88 | V1: 0.12 | W1: (POOL) | X1: 1.25
U2: FEDERAL | V2: STATE/ | W2: (RATE) | X2: Factor
A3: FIPS | S3: Grand | U3: MEDICAID | V3: LOCAL | W3: LOCAL | Y3: LOCAL | Z3: STATE
A4: CODE | B4: LOCALITY | C4: =TEXT("7/1/" & $B$1-1,"mmm-yyyy") -> Jul-2018 | D4: =TEXT("8/1/" & $B$1-1,"mmm-yyyy") -> Aug-2018 | E4: =TEXT("9/1/" & $B$1-1,"mmm-yyyy") -> Sep-2018 | F4: =TEXT("10/1/" & $B$1-1,"mmm-yyyy") -> Oct-2018 | G4: =TEXT("11/1/" & $B$1-1,"mmm-yyyy") -> Nov-2018 | H4: =TEXT("12/1/" & $B$1-1,"mmm-yyyy") -> Dec-2018 | I4: =TEXT("1/1/" & $B$1,"mmm-yyyy") -> Jan-2019 | J4: =TEXT("2/1/" & $B$1,"mmm-yyyy") -> Feb-2019 | K4: =TEXT("3/1/" & $B$1,"mmm-yyyy") -> Mar-2019 | L4: =TEXT("4/1/" & $B$1,"mmm-yyyy") -> Apr-2019 | M4: =TEXT("5/1/" & $B$1,"mmm-yyyy") -> May-2019 | N4: =TEXT("6/1/" & $B$1,"mmm-yyyy") -> Jun-2019 | O4: =TEXT("7/1/" & $B$1,"mmm-yyyy") -> Jul-2019 | P4: =TEXT("8/1/" & $B$1,"mmm-yyyy") -> Aug-2019 | Q4: =TEXT("9/1/" & $B$1,"mmm-yyyy") -> Sep-2019 | R4: =TEXT("10/1/" & $B$1,"mmm-yyyy") -> Oct-2019 | S4: Total | U4: RATE/Share | V4: SHARE | W4: MATCH Rate | Y4: MATCH | Z4: SHARE
A5: Totals | C5: =SUM(C6:C1200) -> 153239.46 | D5: 119604.72 | E5: =SUM(E6:E1200) -> 156090.62 | F5: =SUM(F6:F1200) -> 215657.48 | G5: =SUM(G6:G1200) -> 203697.42 | H5: =SUM(H6:H1200) -> 139301.56 | I5: 186749.2 | J5: 170613.5 | K5: 154107.98 | L5: 263771.94 | M5: 76369.28 | N5: =SUM(N6:N1200) -> 155854.34 | O5: 0 | P5: =SUM(P6:P1200) -> 0 | Q5: 0 | R5: 0 | S5: =SUM(C5:R5) -> 1995057.5 | T5: = | U5: =SUM(U6:U399) -> 1755650.6 | V5: =SUM(V6:V399) -> 239406.9 | W5: = | Y5: =SUM(Y6:Y399) -> 107187.2 | Z5: =SUM(Z6:Z399) -> 132219.7
A6: 1 | B6: =LOOKUP(A6,'DOE - FIPStoPayeeCodeConvTable'!$A$3:$A$213,'DOE - FIPStoPayeeCodeConvTable'!$B$3:$B$213) -> Accomack Co | C6: 0 | D6: 0 | E6: 0 | F6: 0 | G6: 0 | H6: 0 | I6: 0 | J6: 0 | K6: 0 | L6: 0 | M6: 0 | N6: 0 | S6: =SUM(C6:R6) -> 0 | U6: =ROUND($U$1*S6,2) -> 0 | V6: =SUM(S6)-SUM(U6) -> 0 | W6: =LOOKUP(A6,'DOE - FIPStoPayeeCodeConvTable'!$A$3:$A$213,'DOE - FIPStoPayeeCodeConvTable'!$E$3:$E$213) -> 0.2332 | X6: =$X$1*W6 -> 0.2915 | Y6: =ROUND(X6*V6,2) -> 0 | Z6: =SUM(V6)-SUM(Y6) -> 0
A7: 3 | B7: =LOOKUP(A7,'DOE - FIPStoPayeeCodeConvTable'!$A$3:$A$213,'DOE - FIPStoPayeeCodeConvTable'!$B$3:$B$213) -> Albemarle Co | C7: 0 | D7: 0 | E7: 0 | F7: 6689.5 | G7: 10286.54 | H7: 11749.46 | I7: 8263.5 | J7: 3541.5 | K7: 0 | L7: 0 | M7: 0 | N7: 0 | S7: =SUM(C7:R7) -> 40530.5 | U7: =ROUND($U$1*S7,2) -> 35666.84 | V7: 4863.66 | W7: =LOOKUP(A7,'DOE - FIPStoPayeeCodeConvTable'!$A$3:$A$213,'DOE - FIPStoPayeeCodeConvTable'!$E$3:$E$213) -> 0.4474 | X7: =$X$1*W7 -> 0.55925 | Y7: =ROUND(X7*V7,2) -> 2720 | Z7: =SUM(V7)-SUM(Y7) -> 2143.66
A8: 5 | B8: =LOOKUP(A8,'DOE - FIPStoPayeeCodeConvTable'!$A$3:$A$213,'DOE - FIPStoPayeeCodeConvTable'!$B$3:$B$213) -> Alleghany Co | C8: 0 | D8: 0 | E8: 0 | F8: 0 | G8: 0 | H8: 0 | I8: 0 | J8: 0 | K8: 0 | L8: 0 | M8: 0 | N8: 0 | S8: 0 | U8: 0 | V8: 0 | W8: =LOOKUP(A8,'DOE - FIPStoPayeeCodeConvTable'!$A$3:$A$213,'DOE - FIPStoPayeeCodeConvTable'!$E$3:$E$213) -> 0.1924 | X8: 0.2405 | Y8: 0 | Z8: 0
A9: 7 | B9: =LOOKUP(A9,'DOE - FIPStoPayeeCodeConvTable'!$A$3:$A$213,'DOE - FIPStoPayeeCodeConvTable'!$B$3:$B$213) -> Amelia Co | C9: 0 | D9: 0 | E9: 0 | F9: 0 | G9: 0 | H9: 0 | I9: 0 | J9: 0 | K9: 0 | L9: 0 | M9: 0 | N9: 0 | S9: 0 | U9: 0 | V9: 0 | W9: =LOOKUP(A9,'DOE - FIPStoPayeeCodeConvTable'!$A$3:$A$213,'DOE - FIPStoPayeeCodeConvTable'!$E$3:$E$213) -> 0.3268 | X9: 0.4085 | Y9: 0 | Z9: 0
A10: 9 | B10: =LOOKUP(A10,'DOE - FIPStoPayeeCodeConvTable'!$A$3:$A$213,'DOE - FIPStoPayeeCodeConvTable'!$B$3:$B$213) -> Amherst Co | C10: 0 | D10: 0 | E10: 0 | F10: 0 | G10: 0 | H10: 0 | I10: 0 | J10: 0 | K10: 0 | L10: 0 | M10: 0 | N10: 0 | S10: 0 | U10: 0 | V10: 0 | W10: =LOOKUP(A10,'DOE - FIPStoPayeeCodeConvTable'!$A$3:$A$213,'DOE - FIPStoPayeeCodeConvTable'!$E$3:$E$213) -> 0.2722 | X10: 0.34025 | Y10: 0 | Z10: 0
A11: 11 | B11: =LOOKUP(A11,'DOE - FIPStoPayeeCodeConvTable'!$A$3:$A$213,'DOE - FIPStoPayeeCodeConvTable'!$B$3:$B$213) -> Appomattox Co | C11: 0 | D11: 0 | E11: 0 | F11: 0 | G11: 0 | H11: 0 | I11: 0 | J11: 0 | K11: 0 | L11: 0 | M11: 0 | N11: 0 | S11: 0 | U11: 0 | V11: 0 | W11: =LOOKUP(A11,'DOE - FIPStoPayeeCodeConvTable'!$A$3:$A$213,'DOE - FIPStoPayeeCodeConvTable'!$E$3:$E$213) -> 0.2639 | X11: 0.329875 | Y11: 0 | Z11: 0
A12: 13 | B12: =LOOKUP(A12,'DOE - FIPStoPayeeCodeConvTable'!$A$3:$A$213,'DOE - FIPStoPayeeCodeConvTable'!$B$3:$B$213) -> Arlington Co | C12: 0 | D12: 0 | E12: 0 | F12: 0 | G12: 0 | H12: 0 | I12: 0 | J12: 0 | K12: 0 | L12: 0 | M12: 0 | N12: 0 | S12: 0 | U12: 0 | V12: 0 | W12: =LOOKUP(A12,'DOE - FIPStoPayeeCodeConvTable'!$A$3:$A$213,'DOE - FIPStoPayeeCodeConvTable'!$E$3:$E$213) -> 0.4602 | X12: 0.57525 | Y12: 0 | Z12: 0
A13: 15 | B13: =LOOKUP(A13,'DOE - FIPStoPayeeCodeConvTable'!$A$3:$A$213,'DOE - FIPStoPayeeCodeConvTable'!$B$3:$B$213) -> Augusta Co | C13: 18946.1 | D13: 0 | E13: 4971.48 | F13: 0 | G13: 0 | H13: 0 | I13: 787 | J13: 0 | K13: 0 | L13: 0 | M13: 0 | N13: 0 | S13: 24704.58 | U13: 21740.03 | V13: 2964.55 | W13: =LOOKUP(A13,'DOE - FIPStoPayeeCodeConvTable'!$A$3:$A$213,'DOE - FIPStoPayeeCodeConvTable'!$E$3:$E$213) -> 0.3302 | X13: 0.41275 | Y13: 1223.62 | Z13: 1740.93
A14: 17 | B14: =LOOKUP(A14,'DOE - FIPStoPayeeCodeConvTable'!$A$3:$A$213,'DOE - FIPStoPayeeCodeConvTable'!$B$3:$B$213) -> Bath Co | C14: 0 | D14: 0 | E14: 0 | F14: 0 | G14: 0 | H14: 0 | I14: 0 | J14: 0 | K14: 0 | L14: 0 | M14: 0 | N14: 0 | S14: 0 | U14: 0 | V14: 0 | W14: =LOOKUP(A14,'DOE - FIPStoPayeeCodeConvTable'!$A$3:$A$213,'DOE - FIPStoPayeeCodeConvTable'!$E$3:$E$213) -> 0.4278 | X14: 0.53475 | Y14: 0 | Z14: 0
A15: 19 | B15: =LOOKUP(A15,'DOE - FIPStoPayeeCodeConvTable'!$A$3:$A$213,'DOE - FIPStoPayeeCodeConvTable'!$B$3:$B$213) -> Bedford Co | C15: 0 | D15: 0 | E15: 0 | F15: 0 | G15: 0 | H15: 0 | I15: 0 | J15: 0 | K15: 0 | L15: 0 | M15: 0 | N15: 0 | S15: 0 | U15: 0 | V15: 0 | W15: =LOOKUP(A15,'DOE - FIPStoPayeeCodeConvTable'!$A$3:$A$213,'DOE - FIPStoPayeeCodeConvTable'!$E$3:$E$213) -> 0.31112 | X15: 0.3889 | Y15: 0 | Z15: 0
A16: 21 | B16: =LOOKUP(A16,'DOE - FIPStoPayeeCodeConvTable'!$A$3:$A$213,'DOE - FIPStoPayeeCodeConvTable'!$B$3:$B$213) -> Bland Co | C16: 0 | D16: 0 | E16: 0 | F16: 0 | G16: 0 | H16: 0 | I16: 0 | J16: 0 | K16: 0 | L16: 0 | M16: 0 | N16: 0 | S16: 0 | U16: 0 | V16: 0 | W16: =LOOKUP(A16,'DOE - FIPStoPayeeCodeConvTable'!$A$3:$A$213,'DOE - FIPStoPayeeCodeConvTable'!$E$3:$E$213) -> 0.2109 | X16: 0.263625 | Y16: 0 | Z16: 0
A17: 23 | B17: =LOOKUP(A17,'DOE - FIPStoPayeeCodeConvTable'!$A$3:$A$213,'DOE - FIPStoPayeeCodeConvTable'!$B$3:$B$213) -> Botetourt Co | C17: 0 | D17: 0 | E17: 0 | F17: 0 | G17: 0 | H17: 0 | I17: 0 | J17: 0 | K17: 0 | L17: 0 | M17: 0 | N17: 0 | S17: 0 | U17: 0 | V17: 0 | W17: =LOOKUP(A17,'DOE - FIPStoPayeeCodeConvTable'!$A$3:$A$213,'DOE - FIPStoPayeeCodeConvTable'!$E$3:$E$213) -> 0.3602 | X17: 0.45025 | Y17: 0 | Z17: 0
A18: 25 | B18: =LOOKUP(A18,'DOE - FIPStoPayeeCodeConvTable'!$A$3:$A$213,'DOE - FIPStoPayeeCodeConvTable'!$B$3:$B$213) -> Brunswick Co | C18: 0 | D18: 0 | E18: 0 | F18: 0 | G18: 0 | H18: 0 | I18: 0 | J18: 0 | K18: 0 | L18: 0 | M18: 6296 | N18: 12198.5 | S18: 18494.5 | U18: 16275.16 | V18: 2219.34 | W18: =LOOKUP(A18,'DOE - FIPStoPayeeCodeConvTable'!$A$3:$A$213,'DOE - FIPStoPayeeCodeConvTable'!$E$3:$E$213) -> 0.2439 | X18: 0.304875 | Y18: 676.62 | Z18: 1542.72
A19: 27 | B19: =LOOKUP(A19,'DOE - FIPStoPayeeCodeConvTable'!$A$3:$A$213,'DOE - FIPStoPayeeCodeConvTable'!$B$3:$B$213) -> Buchanan Co | C19: 0 | D19: 0 | E19: 0 | F19: 0 | G19: 0 | H19: 0 | I19: 0 | J19: 0 | K19: 0 | L19: 0 | M19: 0 | N19: 0 | S19: 0 | U19: 0 | V19: 0 | W19: =LOOKUP(A19,'DOE - FIPStoPayeeCodeConvTable'!$A$3:$A$213,'DOE - FIPStoPayeeCodeConvTable'!$E$3:$E$213) -> 0.3156 | X19: 0.3945 | Y19: 0 | Z19: 0
A20: 29 | B20: =LOOKUP(A20,'DOE - FIPStoPayeeCodeConvTable'!$A$3:$A$213,'DOE - FIPStoPayeeCodeConvTable'!$B$3:$B$213) -> Buckingham Co | C20: 0 | D20: 0 | E20: 0 | F20: 0 | G20: 0 | H20: 0 | I20: 0 | J20: 0 | K20: 0 | L20: 0 | M20: 0 | N20: 0 | S20: 0 | U20: 0 | V20: 0 | W20: =LOOKUP(A20,'DOE - FIPStoPayeeCodeConvTable'!$A$3:$A$213,'DOE - FIPStoPayeeCodeConvTable'!$E$3:$E$213) -> 0.2023 | X20: 0.252875 | Y20: 0 | Z20: 0
A21: 31 | B21: =LOOKUP(A21,'DOE - FIPStoPayeeCodeConvTable'!$A$3:$A$213,'DOE - FIPStoPayeeCodeConvTable'!$B$3:$B$213) -> Campbell Co | C21: 0 | D21: 0 | E21: 0 | F21: 0 | G21: 0 | H21: 0 | I21: 0 | J21: 0 | K21: 0 | L21: 0 | M21: 0 | N21: 0 | S21: 0 | U21: 0 | V21: 0 | W21: =LOOKUP(A21,'DOE - FIPStoPayeeCodeConvTable'!$A$3:$A$213,'DOE - FIPStoPayeeCodeConvTable'!$E$3:$E$213) -> 0.3107 | X21: 0.388375 | Y21: 0 | Z21: 0
A22: 33 | B22: =LOOKUP(A22,'DOE - FIPStoPayeeCodeConvTable'!$A$3:$A$213,'DOE - FIPStoPayeeCodeConvTable'!$B$3:$B$213) -> Caroline Co | C22: 14953 | D22: 0 | E22: 0 | F22: 0 | G22: 0 | H22: 0 | I22: 0 | J22: 0 | K22: 0 | L22: 0 | M22: 0 | N22: 0 | S22: 14953 | U22: 13158.64 | V22: 1794.36 | W22: =LOOKUP(A22,'DOE - FIPStoPayeeCodeConvTable'!$A$3:$A$213,'DOE - FIPStoPayeeCodeConvTable'!$E$3:$E$213) -> 0.3308 | X22: 0.4135 | Y22: 741.97 | Z22: 1052.39
A23: 35 | B23: =LOOKUP(A23,'DOE - FIPStoPayeeCodeConvTable'!$A$3:$A$213,'DOE - FIPStoPayeeCodeConvTable'!$B$3:$B$213) -> Carroll Co | C23: 0 | D23: 0 | E23: 0 | F23: 0 | G23: 0 | H23: 0 | I23: 0 | J23: 0 | K23: 0 | L23: 0 | M23: 0 | N23: 0 | S23: 0 | U23: 0 | V23: 0 | W23: =LOOKUP(A23,'DOE - FIPStoPayeeCodeConvTable'!$A$3:$A$213,'DOE - FIPStoPayeeCodeConvTable'!$E$3:$E$213) -> 0.291 | X23: 0.36375 | Y23: 0 | Z23: 0
A24: 36 | B24: =LOOKUP(A24,'DOE - FIPStoPayeeCodeConvTable'!$A$3:$A$213,'DOE - FIPStoPayeeCodeConvTable'!$B$3:$B$213) -> Charles City Co | C24: 0 | D24: 0 | E24: 0 | F24: 0 | G24: 10624.5 | H24: 0 | I24: 0 | J24: 0 | K24: 0 | L24: 0 | M24: 0 | N24: 0 | S24: 10624.5 | U24: 9349.56 | V24: 1274.94 | W24: =LOOKUP(A24,'DOE - FIPStoPayeeCodeConvTable'!$A$3:$A$213,'DOE - FIPStoPayeeCodeConvTable'!$E$3:$E$213) -> 0.3131 | X24: 0.391375 | Y24: 498.98 | Z24: 775.96
A25: 37 | B25: =LOOKUP(A25,'DOE - FIPStoPayeeCodeConvTable'!$A$3:$A$213,'DOE - FIPStoPayeeCodeConvTable'!$B$3:$B$213) -> Charlotte Co | C25: 0 | D25: 0 | E25: 0 | F25: 0 | G25: 0 | H25: 0 | I25: 0 | J25: 0 | K25: 0 | L25: 0 | M25: 0 | N25: 0 | S25: 0 | U25: 0 | V25: 0 | W25: =LOOKUP(A25,'DOE - FIPStoPayeeCodeConvTable'!$A$3:$A$213,'DOE - FIPStoPayeeCodeConvTable'!$E$3:$E$213) -> 0.2204 | X25: 0.2755 | Y25: 0 | Z25: 0
A26: 41 | B26: =LOOKUP(A26,'DOE - FIPStoPayeeCodeConvTable'!$A$3:$A$213,'DOE - FIPStoPayeeCodeConvTable'!$B$3:$B$213) -> Chesterfield Co | C26: 0 | D26: 0 | E26: 11411.5 | F26: 24003.5 | G26: 22823 | H26: 9444 | I26: 15740 | J26: 8263.5 | K26: 0 | L26: 1574 | M26: 0 | N26: 0 | S26: 93259.5 | U26: 82068.36 | V26: 11191.14 | W26: =LOOKUP(A26,'DOE - FIPStoPayeeCodeConvTable'!$A$3:$A$213,'DOE - FIPStoPayeeCodeConvTable'!$E$3:$E$213) -> 0.3853 | X26: 0.481625 | Y26: 5389.93 | Z26: 5801.21
A27: 43 | B27: =LOOKUP(A27,'DOE - FIPStoPayeeCodeConvTable'!$A$3:$A$213,'DOE - FIPStoPayeeCodeConvTable'!$B$3:$B$213) -> Clarke Co | C27: 0 | D27: 0 | E27: 0 | F27: 0 | G27: 0 | H27: 0 | I27: 0 | J27: 0 | K27: 0 | L27: 0 | M27: 0 | N27: 0 | S27: 0 | U27: 0 | V27: 0 | W27: =LOOKUP(A27,'DOE - FIPStoPayeeCodeConvTable'!$A$3:$A$213,'DOE - FIPStoPayeeCodeConvTable'!$E$3:$E$213) -> 0.4797 | X27: 0.599625 | Y27: 0 | Z27: 0
A28: 45 | B28: =LOOKUP(A28,'DOE - FIPStoPayeeCodeConvTable'!$A$3:$A$213,'DOE - FIPStoPayeeCodeConvTable'!$B$3:$B$213) -> Craig Co | C28: 0 | D28: 0 | E28: 0 | F28: 0 | G28: 0 | H28: 0 | I28: 0 | J28: 0 | K28: 0 | L28: 0 | M28: 0 | N28: 0 | S28: 0 | U28: 0 | V28: 0 | W28: =LOOKUP(A28,'DOE - FIPStoPayeeCodeConvTable'!$A$3:$A$213,'DOE - FIPStoPayeeCodeConvTable'!$E$3:$E$213) -> 0.2901 | X28: 0.362625 | Y28: 0 | Z28: 0
A29: 47 | B29: =LOOKUP(A29,'DOE - FIPStoPayeeCodeConvTable'!$A$3:$A$213,'DOE - FIPStoPayeeCodeConvTable'!$B$3:$B$213) -> Culpeper Co | C29: 0 | D29: 0 | E29: 0 | F29: 0 | G29: 0 | H29: 0 | I29: 0 | J29: 0 | K29: 0 | L29: 0 | M29: 0 | N29: 0 | S29: 0 | U29: 0 | V29: 0 | W29: =LOOKUP(A29,'DOE - FIPStoPayeeCodeConvTable'!$A$3:$A$213,'DOE - FIPStoPayeeCodeConvTable'!$E$3:$E$213) -> 0.3767 | X29: 0.470875 | Y29: 0 | Z29: 0
A30: 49 | B30: =LOOKUP(A30,'DOE - FIPStoPayeeCodeConvTable'!$A$3:$A$213,'DOE - FIPStoPayeeCodeConvTable'!$B$3:$B$213) -> Cumberland Co | C30: 0 | D30: 0 | E30: 0 | F30: 0 | G30: 0 | H30: 0 | I30: 0 | J30: 0 | K30: 0 | L30: 0 | M30: 0 | N30: 0 | S30: 0 | U30: 0 | V30: 0 | W30: =LOOKUP(A30,'DOE - FIPStoPayeeCodeConvTable'!$A$3:$A$213,'DOE - FIPStoPayeeCodeConvTable'!$E$3:$E$213) -> 0.304 | X30: 0.38 | Y30: 0 | Z30: 0
A31: 51 | B31: =LOOKUP(A31,'DOE - FIPStoPayeeCodeConvTable'!$A$3:$A$213,'DOE - FIPStoPayeeCodeConvTable'!$B$3:$B$213) -> Dickenson Co | C31: 0 | D31: 0 | E31: 0 | F31: 0 | G31: 0 | H31: 0 | I31: 0 | J31: 0 | K31: 0 | L31: 0 | M31: 0 | N31: 0 | S31: 0 | U31: 0 | V31: 0 | W31: =LOOKUP(A31,'DOE - FIPStoPayeeCodeConvTable'!$A$3:$A$213,'DOE - FIPStoPayeeCodeConvTable'!$E$3:$E$213) -> 0.3042 | X31: 0.38025 | Y31: 0 | Z31: 0
A32: 53 | B32: =LOOKUP(A32,'DOE - FIPStoPayeeCodeConvTable'!$A$3:$A$213,'DOE - FIPStoPayeeCodeConvTable'!$B$3:$B$213) -> Dinwiddie Co | C32: 0 | D32: 0 | E32: 0 | F32: 0 | G32: 0 | H32: 0 | I32: 0 | J32: 0 | K32: 0 | L32: 0 | M32: 0 | N32: 10674.06 | S32: 10674.06 | U32: 9393.17 | V32: 1280.89 | W32: =LOOKUP(A32,'DOE - FIPStoPayeeCodeConvTable'!$A$3:$A$213,'DOE - FIPStoPayeeCodeConvTable'!$E$3:$E$213) -> 0.3358 | X32: 0.41975 | Y32: 537.65 | Z32: 743.24
A33: 57 | B33: =LOOKUP(A33,'DOE - FIPStoPayeeCodeConvTable'!$A$3:$A$213,'DOE - FIPStoPayeeCodeConvTable'!$B$3:$B$213) -> Essex Co | C33: 0 | D33: 0 | E33: 0 | F33: 0 | G33: 0 | H33: 0 | I33: 0 | J33: 0 | K33: 0 | L33: 0 | M33: 0 | N33: 0 | S33: 0 | U33: 0 | V33: 0 | W33: =LOOKUP(A33,'DOE - FIPStoPayeeCodeConvTable'!$A$3:$A$213,'DOE - FIPStoPayeeCodeConvTable'!$E$3:$E$213) -> 0.3853 | X33: 0.481625 | Y33: 0 | Z33: 0
A34: 59 | B34: =LOOKUP(A34,'DOE - FIPStoPayeeCodeConvTable'!$A$3:$A$213,'DOE - FIPStoPayeeCodeConvTable'!$B$3:$B$213) -> Fairfax Co | C34: 0 | D34: 35415 | E34: 40137 | F34: 51942 | G34: 73978 | H34: 18101 | I34: 25577.5 | J34: 44072 | K34: 25971 | L34: 29512.5 | M34: 0 | N34: 0 | S34: 344706 | U34: 303341.28 | V34: 41364.72 | W34: =LOOKUP(A34,'DOE - FIPStoPayeeCodeConvTable'!$A$3:$A$213,'DOE - FIPStoPayeeCodeConvTable'!$E$3:$E$213) -> 0.4611 | X34: 0.576375 | Y34: 23841.59 | Z34: 17523.13
A35: 61 | B35: =LOOKUP(A35,'DOE - FIPStoPayeeCodeConvTable'!$A$3:$A$213,'DOE - FIPStoPayeeCodeConvTable'!$B$3:$B$213) -> Fauquier Co | C35: 0 | D35: 0 | E35: 0 | F35: 0 | G35: 0 | H35: 0 | I35: 0 | J35: 0 | K35: 0 | L35: 0 | M35: 0 | N35: 0 | S35: 0 | U35: 0 | V35: 0 | W35: =LOOKUP(A35,'DOE - FIPStoPayeeCodeConvTable'!$A$3:$A$213,'DOE - FIPStoPayeeCodeConvTable'!$E$3:$E$213) -> 0.4584 | X35: 0.573 | Y35: 0 | Z35: 0
A36: 63 | B36: =LOOKUP(A36,'DOE - FIPStoPayeeCodeConvTable'!$A$3:$A$213,'DOE - FIPStoPayeeCodeConvTable'!$B$3:$B$213) -> Floyd Co | C36: 0 | D36: 0 | E36: 0 | F36: 0 | G36: 0 | H36: 0 | I36: 0 | J36: 0 | K36: 0 | L36: 0 | M36: 0 | N36: 0 | S36: 0 | U36: 0 | V36: 0 | W36: =LOOKUP(A36,'DOE - FIPStoPayeeCodeConvTable'!$A$3:$A$213,'DOE - FIPStoPayeeCodeConvTable'!$E$3:$E$213) -> 0.2324 | X36: 0.2905 | Y36: 0 | Z36: 0
A37: 65 | B37: =LOOKUP(A37,'DOE - FIPStoPayeeCodeConvTable'!$A$3:$A$213,'DOE - FIPStoPayeeCodeConvTable'!$B$3:$B$213) -> Fluvanna Co | C37: 0 | D37: 0 | E37: 0 | F37: 0 | G37: 0 | H37: 0 | I37: 0 | J37: 0 | K37: 0 | L37: 0 | M37: 0 | N37: 0 | S37: 0 | U37: 0 | V37: 0 | W37: =LOOKUP(A37,'DOE - FIPStoPayeeCodeConvTable'!$A$3:$A$213,'DOE - FIPStoPayeeCodeConvTable'!$E$3:$E$213) -> 0.3811 | X37: 0.476375 | Y37: 0 | Z37: 0
A38: 67 | B38: =LOOKUP(A38,'DOE - FIPStoPayeeCodeConvTable'!$A$3:$A$213,'DOE - FIPStoPayeeCodeConvTable'!$B$3:$B$213) -> Franklin Co | C38: 2754.5 | D38: 11805 | E38: 12198.5 | F38: 12198.5 | G38: 0 | H38: 0 | I38: 0 | J38: 0 | K38: 0 | L38: 0 | M38: 0 | N38: 0 | S38: 38956.5 | U38: =ROUND($U$1*S38,2) -> 34281.72 | V38: =SUM(S38)-SUM(U38) -> 4674.78 | W38: =LOOKUP(A38,'DOE - FIPStoPayeeCodeConvTable'!$A$3:$A$213,'DOE - FIPStoPayeeCodeConvTable'!$E$3:$E$213) -> 0.283 | X38: 0.35375 | Y38: 1653.7 | Z38: 3021.08
A39: 69 | B39: =LOOKUP(A39,'DOE - FIPStoPayeeCodeConvTable'!$A$3:$A$213,'DOE - FIPStoPayeeCodeConvTable'!$B$3:$B$213) -> Frederick Co | C39: 0 | D39: 0 | E39: 0 | F39: 0 | G39: 0 | H39: 0 | I39: 0 | J39: 0 | K39: 0 | L39: 0 | M39: 0 | N39: 0 | S39: 0 | U39: 0 | V39: 0 | W39: =LOOKUP(A39,'DOE - FIPStoPayeeCodeConvTable'!$A$3:$A$213,'DOE - FIPStoPayeeCodeConvTable'!$E$3:$E$213) -> 0.4348 | X39: 0.5435 | Y39: 0 | Z39: 0
A40: 71 | B40: =LOOKUP(A40,'DOE - FIPStoPayeeCodeConvTable'!$A$3:$A$213,'DOE - FIPStoPayeeCodeConvTable'!$B$3:$B$213) -> Giles Co | C40: 0 | D40: 0 | E40: 0 | F40: 0 | G40: 0 | H40: 0 | I40: 0 | J40: 0 | K40: 0 | L40: 0 | M40: 0 | N40: 0 | S40: 0 | U40: 0 | V40: 0 | W40: =LOOKUP(A40,'DOE - FIPStoPayeeCodeConvTable'!$A$3:$A$213,'DOE - FIPStoPayeeCodeConvTable'!$E$3:$E$213) -> 0.2898 | X40: 0.36225 | Y40: 0 | Z40: 0
A41: 73 | B41: =LOOKUP(A41,'DOE - FIPStoPayeeCodeConvTable'!$A$3:$A$213,'DOE - FIPStoPayeeCodeConvTable'!$B$3:$B$213) -> Gloucester Co | C41: 0 | D41: 0 | E41: 0 | F41: 0 | G41: 0 | H41: 0 | I41: 0 | J41: 0 | K41: 0 | L41: 0 | M41: 0 | N41: 0 | S41: 0 | U41: 0 | V41: 0 | W41: =LOOKUP(A41,'DOE - FIPStoPayeeCodeConvTable'!$A$3:$A$213,'DOE - FIPStoPayeeCodeConvTable'!$E$3:$E$213) -> 0.3687 | X41: 0.460875 | Y41: 0 | Z41: 0
A42: 75 | B42: =LOOKUP(A42,'DOE - FIPStoPayeeCodeConvTable'!$A$3:$A$213,'DOE - FIPStoPayeeCodeConvTable'!$B$3:$B$213) -> Goochland Co | C42: 0 | D42: 0 | E42: 0 | F42: 0 | G42: 0 | H42: 0 | I42: 0 | J42: 0 | K42: 0 | L42: 0 | M42: 0 | N42: 0 | S42: 0 | U42: 0 | V42: 0 | W42: =LOOKUP(A42,'DOE - FIPStoPayeeCodeConvTable'!$A$3:$A$213,'DOE - FIPStoPayeeCodeConvTable'!$E$3:$E$213) -> 0.4871 | X42: 0.608875 | Y42: 0 | Z42: 0
A43: 77 | B43: =LOOKUP(A43,'DOE - FIPStoPayeeCodeConvTable'!$A$3:$A$213,'DOE - FIPStoPayeeCodeConvTable'!$B$3:$B$213) -> Grayson Co | C43: 0 | D43: 0 | E43: 0 | F43: 0 | G43: 0 | H43: 0 | I43: 0 | J43: 0 | K43: 0 | L43: 0 | M43: 0 | N43: 0 | S43: 0 | U43: 0 | V43: 0 | W43: =LOOKUP(A43,'DOE - FIPStoPayeeCodeConvTable'!$A$3:$A$213,'DOE - FIPStoPayeeCodeConvTable'!$E$3:$E$213) -> 0.2109 | X43: 0.263625 | Y43: 0 | Z43: 0
A44: 79 | B44: =LOOKUP(A44,'DOE - FIPStoPayeeCodeConvTable'!$A$3:$A$213,'DOE - FIPStoPayeeCodeConvTable'!$B$3:$B$213) -> Greene Co | C44: 0 | D44: 0 | E44: 0 | F44: 0 | G44: 0 | H44: 0 | I44: 0 | J44: 0 | K44: 0 | L44: 0 | M44: 0 | N44: 0 | S44: 0 | U44: 0 | V44: 0 | W44: =LOOKUP(A44,'DOE - FIPStoPayeeCodeConvTable'!$A$3:$A$213,'DOE - FIPStoPayeeCodeConvTable'!$E$3:$E$213) -> 0.3471 | X44: 0.433875 | Y44: 0 | Z44: 0
A45: 81 | B45: =LOOKUP(A45,'DOE - FIPStoPayeeCodeConvTable'!$A$3:$A$213,'DOE - FIPStoPayeeCodeConvTable'!$B$3:$B$213) -> Greensville Co | C45: 0 | D45: 0 | E45: 0 | F45: 0 | G45: 0 | H45: 0 | I45: 0 | J45: 0 | K45: 0 | L45: 0 | M45: 0 | N45: 0 | S45: 0 | U45: 0 | V45: 0 | W45: =LOOKUP(A45,'DOE - FIPStoPayeeCodeConvTable'!$A$3:$A$213,'DOE - FIPStoPayeeCodeConvTable'!$E$3:$E$213) -> 0.2266 | X45: 0.28325 | Y45: 0 | Z45: 0
A46: 83 | B46: =LOOKUP(A46,'DOE - FIPStoPayeeCodeConvTable'!$A$3:$A$213,'DOE - FIPStoPayeeCodeConvTable'!$B$3:$B$213) -> Halifax Co | C46: 0 | D46: 0 | E46: 0 | F46: 0 | G46: 0 | H46: 0 | I46: 0 | J46: 0 | K46: 0 | L46: 0 | M46: 0 | N46: 0 | S46: 0 | U46: 0 | V46: 0 | W46: =LOOKUP(A46,'DOE - FIPStoPayeeCodeConvTable'!$A$3:$A$213,'DOE - FIPStoPayeeCodeConvTable'!$E$3:$E$213) -> 0.2335 | X46: 0.291875 | Y46: 0 | Z46: 0
A47: 85 | B47: =LOOKUP(A47,'DOE - FIPStoPayeeCodeConvTable'!$A$3:$A$213,'DOE - FIPStoPayeeCodeConvTable'!$B$3:$B$213) -> Hanover Co | C47: 0 | D47: 0 | E47: 0 | F47: 0 | G47: 0 | H47: 0 | I47: 0 | J47: 0 | K47: 0 | L47: 0 | M47: 0 | N47: 0 | S47: 0 | U47: 0 | V47: 0 | W47: =LOOKUP(A47,'DOE - FIPStoPayeeCodeConvTable'!$A$3:$A$213,'DOE - FIPStoPayeeCodeConvTable'!$E$3:$E$213) -> 0.4444 | X47: 0.5555 | Y47: 0 | Z47: 0
A48: 87 | B48: =LOOKUP(A48,'DOE - FIPStoPayeeCodeConvTable'!$A$3:$A$213,'DOE - FIPStoPayeeCodeConvTable'!$B$3:$B$213) -> Henrico Co | C48: 0 | D48: 0 | E48: 5115.5 | F48: 12198.5 | G48: 0 | H48: 0 | I48: 0 | J48: 0 | K48: 0 | L48: 0 | M48: 0 | N48: 0 | S48: 17314 | U48: 15236.32 | V48: 2077.68 | W48: =LOOKUP(A48,'DOE - FIPStoPayeeCodeConvTable'!$A$3:$A$213,'DOE - FIPStoPayeeCodeConvTable'!$E$3:$E$213) -> 0.3755 | X48: 0.469375 | Y48: 975.21 | Z48: 1102.47
A49: 89 | B49: =LOOKUP(A49,'DOE - FIPStoPayeeCodeConvTable'!$A$3:$A$213,'DOE - FIPStoPayeeCodeConvTable'!$B$3:$B$213) -> Henry Co | C49: 4328.5 | D49: 11805 | E49: 0 | F49: 4386.6 | G49: 4532.82 | H49: 4386.6 | I49: 4532.82 | J49: 4532.82 | K49: 4094.16 | L49: 4532.82 | M49: 0 | N49: 0 | S49: 47132.14 | U49: 41476.28 | V49: 5655.86 | W49: =LOOKUP(A49,'DOE - FIPStoPayeeCodeConvTable'!$A$3:$A$213,'DOE - FIPStoPayeeCodeConvTable'!$E$3:$E$213) -> 0.2786 | X49: 0.34825 | Y49: 1969.65 | Z49: 3686.21
A50: 91 | B50: =LOOKUP(A50,'DOE - FIPStoPayeeCodeConvTable'!$A$3:$A$213,'DOE - FIPStoPayeeCodeConvTable'!$B$3:$B$213) -> Highland Co | C50: 0 | D50: 0 | E50: 0 | F50: 0 | G50: 0 | H50: 0 | I50: 0 | J50: 0 | K50: 0 | L50: 0 | M50: 0 | N50: 0 | S50: 0 | U50: 0 | V50: 0 | W50: =LOOKUP(A50,'DOE - FIPStoPayeeCodeConvTable'!$A$3:$A$213,'DOE - FIPStoPayeeCodeConvTable'!$E$3:$E$213) -> 0.3822 | X50: 0.47775 | Y50: 0 | Z50: 0
A51: 93 | B51: =LOOKUP(A51,'DOE - FIPStoPayeeCodeConvTable'!$A$3:$A$213,'DOE - FIPStoPayeeCodeConvTable'!$B$3:$B$213) -> Isle Of Wight Co | C51: 0 | D51: 0 | E51: 0 | F51: 0 | G51: 0 | H51: 0 | I51: 0 | J51: 0 | K51: 0 | L51: 0 | M51: 0 | N51: 0 | S51: 0 | U51: 0 | V51: 0 | W51: =LOOKUP(A51,'DOE - FIPStoPayeeCodeConvTable'!$A$3:$A$213,'DOE - FIPStoPayeeCodeConvTable'!$E$3:$E$213) -> 0.3613 | X51: 0.451625 | Y51: 0 | Z51: 0
A52: 95 | B52: =LOOKUP(A52,'DOE - FIPStoPayeeCodeConvTable'!$A$3:$A$213,'DOE - FIPStoPayeeCodeConvTable'!$B$3:$B$213) -> James City Co | C52: 0 | D52: 0 | E52: 0 | F52: 0 | G52: 0 | H52: 0 | I52: 0 | J52: 0 | K52: 0 | L52: 0 | M52: 0 | N52: 0 | S52: 0 | U52: 0 | V52: 0 | W52: =LOOKUP(A52,'DOE - FIPStoPayeeCodeConvTable'!$A$3:$A$213,'DOE - FIPStoPayeeCodeConvTable'!$E$3:$E$213) -> 0.4483 | X52: 0.560375 | Y52: 0 | Z52: 0
A53: 97 | B53: =LOOKUP(A53,'DOE - FIPStoPayeeCodeConvTable'!$A$3:$A$213,'DOE - FIPStoPayeeCodeConvTable'!$B$3:$B$213) -> King And Queen Co | C53: 0 | D53: 0 | E53: 0 | F53: 0 | G53: 0 | H53: 0 | I53: 0 | J53: 0 | K53: 0 | L53: 0 | M53: 0 | N53: 0 | S53: 0 | U53: 0 | V53: 0 | W53: =LOOKUP(A53,'DOE - FIPStoPayeeCodeConvTable'!$A$3:$A$213,'DOE - FIPStoPayeeCodeConvTable'!$E$3:$E$213) -> 0.3144 | X53: 0.393 | Y53: 0 | Z53: 0
A54: 99 | B54: =LOOKUP(A54,'DOE - FIPStoPayeeCodeConvTable'!$A$3:$A$213,'DOE - FIPStoPayeeCodeConvTable'!$B$3:$B$213) -> King George Co | C54: 23610 | D54: 0 | E54: 12198.5 | F54: 0 | G54: 0 | H54: 0 | I54: 0 | J54: 0 | K54: 0 | L54: 0 | M54: 0 | N54: 0 | S54: 35808.5 | U54: 31511.48 | V54: 4297.02 | W54: =LOOKUP(A54,'DOE - FIPStoPayeeCodeConvTable'!$A$3:$A$213,'DOE - FIPStoPayeeCodeConvTable'!$E$3:$E$213) -> 0.3627 | X54: 0.453375 | Y54: 1948.16 | Z54: 2348.86
A55: 101 | B55: =LOOKUP(A55,'DOE - FIPStoPayeeCodeConvTable'!$A$3:$A$213,'DOE - FIPStoPayeeCodeConvTable'!$B$3:$B$213) -> King William Co | C55: 0 | D55: 0 | E55: 0 | F55: 0 | G55: 0 | H55: 0 | I55: 0 | J55: 0 | K55: 0 | L55: 0 | M55: 0 | N55: 0 | S55: 0 | U55: 0 | V55: 0 | W55: =LOOKUP(A55,'DOE - FIPStoPayeeCodeConvTable'!$A$3:$A$213,'DOE - FIPStoPayeeCodeConvTable'!$E$3:$E$213) -> 0.3853 | X55: 0.481625 | Y55: 0 | Z55: 0
A56: 103 | B56: =LOOKUP(A56,'DOE - FIPStoPayeeCodeConvTable'!$A$3:$A$213,'DOE - FIPStoPayeeCodeConvTable'!$B$3:$B$213) -> Lancaster Co | C56: 0 | D56: 0 | E56: 0 | F56: 0 | G56: 0 | H56: 0 | I56: 0 | J56: 0 | K56: 0 | L56: 0 | M56: 0 | N56: 0 | S56: 0 | U56: 0 | V56: 0 | W56: =LOOKUP(A56,'DOE - FIPStoPayeeCodeConvTable'!$A$3:$A$213,'DOE - FIPStoPayeeCodeConvTable'!$E$3:$E$213) -> 0.4391 | X56: 0.548875 | Y56: 0 | Z56: 0
A57: 105 | B57: =LOOKUP(A57,'DOE - FIPStoPayeeCodeConvTable'!$A$3:$A$213,'DOE - FIPStoPayeeCodeConvTable'!$B$3:$B$213) -> Lee Co | C57: 0 | D57: 0 | E57: 22429.5 | F57: 10624.5 | G57: 0 | H57: 0 | I57: 0 | J57: 0 | K57: 0 | L57: 0 | M57: 0 | N57: 0 | S57: 33054 | U57: 29087.52 | V57: 3966.48 | W57: =LOOKUP(A57,'DOE - FIPStoPayeeCodeConvTable'!$A$3:$A$213,'DOE - FIPStoPayeeCodeConvTable'!$E$3:$E$213) -> 0.2245 | X57: 0.280625 | Y57: 1113.09 | Z57: 2853.39
A58: 107 | B58: =LOOKUP(A58,'DOE - FIPStoPayeeCodeConvTable'!$A$3:$A$213,'DOE - FIPStoPayeeCodeConvTable'!$B$3:$B$213) -> Loudoun Co | C58: 17314 | D58: 3148 | E58: 0 | F58: 0 | G58: 0 | H58: 0 | I58: 0 | J58: 0 | K58: 0 | L58: 0 | M58: 0 | N58: 0 | S58: 20462 | U58: 18006.56 | V58: 2455.44 | W58: =LOOKUP(A58,'DOE - FIPStoPayeeCodeConvTable'!$A$3:$A$213,'DOE - FIPStoPayeeCodeConvTable'!$E$3:$E$213) -> 0.4764 | X58: 0.5955 | Y58: 1462.21 | Z58: 993.23
A59: 109 | B59: =LOOKUP(A59,'DOE - FIPStoPayeeCodeConvTable'!$A$3:$A$213,'DOE - FIPStoPayeeCodeConvTable'!$B$3:$B$213) -> Louisa Co | C59: 0 | D59: 0 | E59: 0 | F59: 0 | G59: 0 | H59: 0 | I59: 0 | J59: 0 | K59: 0 | L59: 0 | M59: 0 | N59: 0 | S59: 0 | U59: 0 | V59: 0 | W59: =LOOKUP(A59,'DOE - FIPStoPayeeCodeConvTable'!$A$3:$A$213,'DOE - FIPStoPayeeCodeConvTable'!$E$3:$E$213) -> 0.4401 | X59: 0.550125 | Y59: 0 | Z59: 0
A60: 111 | B60: =LOOKUP(A60,'DOE - FIPStoPayeeCodeConvTable'!$A$3:$A$213,'DOE - FIPStoPayeeCodeConvTable'!$B$3:$B$213) -> Lunenburg Co | C60: 0 | D60: 0 | E60: 0 | F60: 0 | G60: 0 | H60: 0 | I60: 0 | J60: 0 | K60: 0 | L60: 0 | M60: 0 | N60: 0 | S60: 0 | U60: 0 | V60: 0 | W60: =LOOKUP(A60,'DOE - FIPStoPayeeCodeConvTable'!$A$3:$A$213,'DOE - FIPStoPayeeCodeConvTable'!$E$3:$E$213) -> 0.1698 | X60: 0.21225 | Y60: 0 | Z60: 0
A61: 113 | B61: =LOOKUP(A61,'DOE - FIPStoPayeeCodeConvTable'!$A$3:$A$213,'DOE - FIPStoPayeeCodeConvTable'!$B$3:$B$213) -> Madison Co | C61: 0 | D61: 0 | E61: 0 | F61: 0 | G61: 0 | H61: 0 | I61: 0 | J61: 0 | K61: 0 | L61: 0 | M61: 0 | N61: 0 | S61: 0 | U61: 0 | V61: 0 | W61: =LOOKUP(A61,'DOE - FIPStoPayeeCodeConvTable'!$A$3:$A$213,'DOE - FIPStoPayeeCodeConvTable'!$E$3:$E$213) -> 0.3355 | X61: 0.419375 | Y61: 0 | Z61: 0
A62: 115 | B62: =LOOKUP(A62,'DOE - FIPStoPayeeCodeConvTable'!$A$3:$A$213,'DOE - FIPStoPayeeCodeConvTable'!$B$3:$B$213) -> Mathews Co | C62: 0 | D62: 0 | E62: 0 | F62: 0 | G62: 0 | H62: 0 | I62: 0 | J62: 0 | K62: 0 | L62: 0 | M62: 0 | N62: 0 | S62: 0 | U62: 0 | V62: 0 | W62: =LOOKUP(A62,'DOE - FIPStoPayeeCodeConvTable'!$A$3:$A$213,'DOE - FIPStoPayeeCodeConvTable'!$E$3:$E$213) -> 0.4271 | X62: 0.533875 | Y62: 0 | Z62: 0
A63: 117 | B63: =LOOKUP(A63,'DOE - FIPStoPayeeCodeConvTable'!$A$3:$A$213,'DOE - FIPStoPayeeCodeConvTable'!$B$3:$B$213) -> Mecklenburg Co | C63: 0 | D63: 0 | E63: 0 | F63: 0 | G63: 0 | H63: 0 | I63: 0 | J63: 0 | K63: 0 | L63: 0 | M63: 0 | N63: 0 | S63: 0 | U63: 0 | V63: 0 | W63: =LOOKUP(A63,'DOE - FIPStoPayeeCodeConvTable'!$A$3:$A$213,'DOE - FIPStoPayeeCodeConvTable'!$E$3:$E$213) -> 0.2286 | X63: 0.28575 | Y63: 0 | Z63: 0
A64: 119 | B64: =LOOKUP(A64,'DOE - FIPStoPayeeCodeConvTable'!$A$3:$A$213,'DOE - FIPStoPayeeCodeConvTable'!$B$3:$B$213) -> Middlesex Co | C64: 0 | D64: 0 | E64: 0 | F64: 0 | G64: 0 | H64: 0 | I64: 0 | J64: 0 | K64: 0 | L64: 0 | M64: 0 | N64: 0 | S64: 0 | U64: 0 | V64: 0 | W64: =LOOKUP(A64,'DOE - FIPStoPayeeCodeConvTable'!$A$3:$A$213,'DOE - FIPStoPayeeCodeConvTable'!$E$3:$E$213) -> 0.4333 | X64: 0.541625 | Y64: 0 | Z64: 0
A65: 121 | B65: =LOOKUP(A65,'DOE - FIPStoPayeeCodeConvTable'!$A$3:$A$213,'DOE - FIPStoPayeeCodeConvTable'!$B$3:$B$213) -> Montgomery Co | C65: 0 | D65: 0 | E65: 0 | F65: 0 | G65: 0 | H65: 0 | I65: 0 | J65: 0 | K65: 0 | L65: 0 | M65: 0 | N65: 0 | S65: 0 | U65: 0 | V65: 0 | W65: =LOOKUP(A65,'DOE - FIPStoPayeeCodeConvTable'!$A$3:$A$213,'DOE - FIPStoPayeeCodeConvTable'!$E$3:$E$213) -> 0.2834 | X65: 0.35425 | Y65: 0 | Z65: 0
A66: 125 | B66: =LOOKUP(A66,'DOE - FIPStoPayeeCodeConvTable'!$A$3:$A$213,'DOE - FIPStoPayeeCodeConvTable'!$B$3:$B$213) -> Nelson Co | C66: 0 | D66: 0 | E66: 0 | F66: 0 | G66: 0 | H66: 0 | I66: 0 | J66: 0 | K66: 0 | L66: 0 | M66: 0 | N66: 0 | S66: 0 | U66: 0 | V66: 0 | W66: =LOOKUP(A66,'DOE - FIPStoPayeeCodeConvTable'!$A$3:$A$213,'DOE - FIPStoPayeeCodeConvTable'!$E$3:$E$213) -> 0.3132 | X66: 0.3915 | Y66: 0 | Z66: 0
A67: 127 | B67: =LOOKUP(A67,'DOE - FIPStoPayeeCodeConvTable'!$A$3:$A$213,'DOE - FIPStoPayeeCodeConvTable'!$B$3:$B$213) -> New Kent Co | C67: 0 | D67: 0 | E67: 0 | F67: 0 | G67: 0 | H67: 0 | I67: 0 | J67: 0 | K67: 0 | L67: 0 | M67: 0 | N67: 0 | S67: 0 | U67: 0 | V67: 0 | W67: =LOOKUP(A67,'DOE - FIPStoPayeeCodeConvTable'!$A$3:$A$213,'DOE - FIPStoPayeeCodeConvTable'!$E$3:$E$213) -> 0.4329 | X67: 0.541125 | Y67: 0 | Z67: 0
A68: 131 | B68: =LOOKUP(A68,'DOE - FIPStoPayeeCodeConvTable'!$A$3:$A$213,'DOE - FIPStoPayeeCodeConvTable'!$B$3:$B$213) -> Northampton Co | C68: 0 | D68: 0 | E68: 0 | F68: 0 | G68: 0 | H68: 0 | I68: 0 | J68: 0 | K68: 0 | L68: 0 | M68: 0 | N68: 0 | S68: 0 | U68: 0 | V68: 0 | W68: =LOOKUP(A68,'DOE - FIPStoPayeeCodeConvTable'!$A$3:$A$213,'DOE - FIPStoPayeeCodeConvTable'!$E$3:$E$213) -> 0.1971 | X68: 0.246375 | Y68: 0 | Z68: 0
A69: 133 | B69: =LOOKUP(A69,'DOE - FIPStoPayeeCodeConvTable'!$A$3:$A$213,'DOE - FIPStoPayeeCodeConvTable'!$B$3:$B$213) -> Northumberland Co | C69: 0 | D69: 14953 | E69: 0 | F69: 0 | G69: 0 | H69: 0 | I69: 0 | J69: 0 | K69: 0 | L69: 0 | M69: 0 | N69: 0 | S69: 14953 | U69: 13158.64 | V69: 1794.36 | W69: =LOOKUP(A69,'DOE - FIPStoPayeeCodeConvTable'!$A$3:$A$213,'DOE - FIPStoPayeeCodeConvTable'!$E$3:$E$213) -> 0.3304 | X69: 0.413 | Y69: 741.07 | Z69: 1053.29
A70: 135 | B70: =LOOKUP(A70,'DOE - FIPStoPayeeCodeConvTable'!$A$3:$A$213,'DOE - FIPStoPayeeCodeConvTable'!$B$3:$B$213) -> Nottoway Co | C70: 0 | D70: 0 | E70: 0 | F70: 0 | G70: 0 | H70: 0 | I70: 0 | J70: 0 | K70: 0 | L70: 0 | M70: 0 | N70: 0 | S70: 0 | U70: =ROUND($U$1*S70,2) -> 0 | V70: =SUM(S70)-SUM(U70) -> 0 | W70: =LOOKUP(A70,'DOE - FIPStoPayeeCodeConvTable'!$A$3:$A$213,'DOE - FIPStoPayeeCodeConvTable'!$E$3:$E$213) -> 0.2686 | X70: 0.33575 | Y70: 0 | Z70: 0
A71: 137 | B71: =LOOKUP(A71,'DOE - FIPStoPayeeCodeConvTable'!$A$3:$A$213,'DOE - FIPStoPayeeCodeConvTable'!$B$3:$B$213) -> Orange Co | C71: 0 | D71: 0 | E71: 0 | F71: 2522.18 | G71: 0 | H71: 0 | I71: 0 | J71: 0 | K71: 0 | L71: 0 | M71: 0 | N71: 0 | S71: =SUM(C71:R71) -> 2522.18 | U71: 2219.52 | V71: 302.66 | W71: =LOOKUP(A71,'DOE - FIPStoPayeeCodeConvTable'!$A$3:$A$213,'DOE - FIPStoPayeeCodeConvTable'!$E$3:$E$213) -> 0.4083 | X71: =$X$1*W71 -> 0.510375 | Y71: =ROUND(X71*V71,2) -> 154.47 | Z71: =SUM(V71)-SUM(Y71) -> 148.19
A72: 139 | B72: =LOOKUP(A72,'DOE - FIPStoPayeeCodeConvTable'!$A$3:$A$213,'DOE - FIPStoPayeeCodeConvTable'!$B$3:$B$213) -> Page Co | C72: 14166 | D72: 0 | E72: 0 | F72: 0 | G72: 0 | H72: 0 | I72: 0 | J72: 0 | K72: 0 | L72: 0 | M72: 0 | N72: 0 | S72: 14166 | U72: 12466.08 | V72: 1699.92 | W72: =LOOKUP(A72,'DOE - FIPStoPayeeCodeConvTable'!$A$3:$A$213,'DOE - FIPStoPayeeCodeConvTable'!$E$3:$E$213) -> 0.2865 | X72: 0.358125 | Y72: 608.78 | Z72: 1091.14
A73: 141 | B73: =LOOKUP(A73,'DOE - FIPStoPayeeCodeConvTable'!$A$3:$A$213,'DOE - FIPStoPayeeCodeConvTable'!$B$3:$B$213) -> Patrick Co | C73: 0 | D73: 0 | E73: 0 | F73: 0 | G73: 0 | H73: 0 | I73: 0 | J73: 0 | K73: 0 | L73: 0 | M73: 0 | N73: 0 | S73: 0 | U73: 0 | V73: 0 | W73: =LOOKUP(A73,'DOE - FIPStoPayeeCodeConvTable'!$A$3:$A$213,'DOE - FIPStoPayeeCodeConvTable'!$E$3:$E$213) -> 0.2539 | X73: 0.317375 | Y73: 0 | Z73: 0
A74: 143 | B74: =LOOKUP(A74,'DOE - FIPStoPayeeCodeConvTable'!$A$3:$A$213,'DOE - FIPStoPayeeCodeConvTable'!$B$3:$B$213) -> Pittsylvania Co | C74: 0 | D74: 0 | E74: 0 | F74: 0 | G74: 0 | H74: 12198.5 | I74: 393.5 | J74: 0 | K74: 0 | L74: 0 | M74: 0 | N74: 0 | S74: 12592 | U74: 11080.96 | V74: 1511.04 | W74: =LOOKUP(A74,'DOE - FIPStoPayeeCodeConvTable'!$A$3:$A$213,'DOE - FIPStoPayeeCodeConvTable'!$E$3:$E$213) -> 0.2355 | X74: 0.294375 | Y74: 444.81 | Z74: 1066.23
A75: 145 | B75: =LOOKUP(A75,'DOE - FIPStoPayeeCodeConvTable'!$A$3:$A$213,'DOE - FIPStoPayeeCodeConvTable'!$B$3:$B$213) -> Powhatan Co | C75: 0 | D75: 0 | E75: 0 | F75: 0 | G75: 0 | H75: 0 | I75: 0 | J75: 0 | K75: 0 | L75: 0 | M75: 0 | N75: 0 | S75: 0 | U75: 0 | V75: 0 | W75: =LOOKUP(A75,'DOE - FIPStoPayeeCodeConvTable'!$A$3:$A$213,'DOE - FIPStoPayeeCodeConvTable'!$E$3:$E$213) -> 0.4342 | X75: 0.54275 | Y75: 0 | Z75: 0
A76: 147 | B76: =LOOKUP(A76,'DOE - FIPStoPayeeCodeConvTable'!$A$3:$A$213,'DOE - FIPStoPayeeCodeConvTable'!$B$3:$B$213) -> Prince Edward Co | C76: 0 | D76: 0 | E76: 0 | F76: 0 | G76: 0 | H76: 0 | I76: 0 | J76: 0 | K76: 0 | L76: 0 | M76: 0 | N76: 0 | S76: 0 | U76: 0 | V76: 0 | W76: =LOOKUP(A76,'DOE - FIPStoPayeeCodeConvTable'!$A$3:$A$213,'DOE - FIPStoPayeeCodeConvTable'!$E$3:$E$213) -> 0.2232 | X76: 0.279 | Y76: 0 | Z76: 0
A77: 149 | B77: =LOOKUP(A77,'DOE - FIPStoPayeeCodeConvTable'!$A$3:$A$213,'DOE - FIPStoPayeeCodeConvTable'!$B$3:$B$213) -> Prince George Co | C77: 0 | D77: 0 | E77: 0 | F77: 0 | G77: 0 | H77: 0 | I77: 0 | J77: 0 | K77: 0 | L77: 0 | M77: 0 | N77: 0 | S77: 0 | U77: 0 | V77: 0 | W77: =LOOKUP(A77,'DOE - FIPStoPayeeCodeConvTable'!$A$3:$A$213,'DOE - FIPStoPayeeCodeConvTable'!$E$3:$E$213) -> 0.3716 | X77: 0.4645 | Y77: 0 | Z77: 0
A78: 153 | B78: =LOOKUP(A78,'DOE - FIPStoPayeeCodeConvTable'!$A$3:$A$213,'DOE - FIPStoPayeeCodeConvTable'!$B$3:$B$213) -> Prince William Co | C78: 0 | D78: 0 | E78: 4722 | F78: 28332 | G78: 24003.5 | H78: 22823 | I78: 20068.5 | J78: 48794 | K78: 32660.5 | L78: 62173 | M78: 31086.5 | N78: 41711 | S78: 316374 | U78: 278409.12 | V78: 37964.88 | W78: =LOOKUP(A78,'DOE - FIPStoPayeeCodeConvTable'!$A$3:$A$213,'DOE - FIPStoPayeeCodeConvTable'!$E$3:$E$213) -> 0.3414 | X78: 0.42675 | Y78: 16201.51 | Z78: 21763.37
A79: 155 | B79: =LOOKUP(A79,'DOE - FIPStoPayeeCodeConvTable'!$A$3:$A$213,'DOE - FIPStoPayeeCodeConvTable'!$B$3:$B$213) -> Pulaski Co | C79: 0 | D79: 0 | E79: 0 | F79: 0 | G79: 0 | H79: 0 | I79: 0 | J79: 0 | K79: 0 | L79: 0 | M79: 0 | N79: 0 | S79: 0 | U79: 0 | V79: 0 | W79: =LOOKUP(A79,'DOE - FIPStoPayeeCodeConvTable'!$A$3:$A$213,'DOE - FIPStoPayeeCodeConvTable'!$E$3:$E$213) -> 0.2923 | X79: 0.365375 | Y79: 0 | Z79: 0
A80: 157 | B80: =LOOKUP(A80,'DOE - FIPStoPayeeCodeConvTable'!$A$3:$A$213,'DOE - FIPStoPayeeCodeConvTable'!$B$3:$B$213) -> Rappahannock Co | C80: 0 | D80: 0 | E80: 0 | F80: 0 | G80: 0 | H80: 0 | I80: 4328.5 | J80: 16133.5 | K80: 0 | L80: 0 | M80: 0 | N80: 0 | S80: 20462 | U80: 18006.56 | V80: 2455.44 | W80: =LOOKUP(A80,'DOE - FIPStoPayeeCodeConvTable'!$A$3:$A$213,'DOE - FIPStoPayeeCodeConvTable'!$E$3:$E$213) -> 0.4199 | X80: 0.524875 | Y80: 1288.8 | Z80: 1166.64
A81: 159 | B81: =LOOKUP(A81,'DOE - FIPStoPayeeCodeConvTable'!$A$3:$A$213,'DOE - FIPStoPayeeCodeConvTable'!$B$3:$B$213) -> Richmond Co | C81: 0 | D81: 0 | E81: 0 | F81: 0 | G81: 0 | H81: 0 | I81: 0 | J81: 0 | K81: 0 | L81: 0 | M81: 0 | N81: 0 | S81: 0 | U81: 0 | V81: 0 | W81: =LOOKUP(A81,'DOE - FIPStoPayeeCodeConvTable'!$A$3:$A$213,'DOE - FIPStoPayeeCodeConvTable'!$E$3:$E$213) -> 0.3227 | X81: 0.403375 | Y81: 0 | Z81: 0
A82: 161 | B82: =LOOKUP(A82,'DOE - FIPStoPayeeCodeConvTable'!$A$3:$A$213,'DOE - FIPStoPayeeCodeConvTable'!$B$3:$B$213) -> Roanoke Co | C82: 0 | D82: 0 | E82: 0 | F82: 0 | G82: 0 | H82: 0 | I82: 0 | J82: 0 | K82: 9444 | L82: 0 | M82: 0 | N82: 0 | S82: 9444 | U82: 8310.72 | V82: 1133.28 | W82: =LOOKUP(A82,'DOE - FIPStoPayeeCodeConvTable'!$A$3:$A$213,'DOE - FIPStoPayeeCodeConvTable'!$E$3:$E$213) -> 0.4397 | X82: 0.549625 | Y82: 622.88 | Z82: 510.4
A83: 163 | B83: =LOOKUP(A83,'DOE - FIPStoPayeeCodeConvTable'!$A$3:$A$213,'DOE - FIPStoPayeeCodeConvTable'!$B$3:$B$213) -> Rockbridge Co | C83: 0 | D83: 0 | E83: 0 | F83: 0 | G83: 0 | H83: 24003.5 | I83: 29906 | J83: 0 | K83: 3148 | L83: 44465.5 | M83: 0 | N83: 0 | S83: 101523 | U83: 89340.24 | V83: 12182.76 | W83: =LOOKUP(A83,'DOE - FIPStoPayeeCodeConvTable'!$A$3:$A$213,'DOE - FIPStoPayeeCodeConvTable'!$E$3:$E$213) -> 0.2336 | X83: 0.292 | Y83: 3557.37 | Z83: 8625.39
A84: 165 | B84: =LOOKUP(A84,'DOE - FIPStoPayeeCodeConvTable'!$A$3:$A$213,'DOE - FIPStoPayeeCodeConvTable'!$B$3:$B$213) -> Rockingham Co | C84: 0 | D84: 0 | E84: 0 | F84: 0 | G84: 0 | H84: 0 | I84: 0 | J84: 0 | K84: 9837.5 | L84: 23216.5 | M84: 0 | N84: 14559.5 | S84: 47613.5 | U84: 41899.88 | V84: 5713.62 | W84: =LOOKUP(A84,'DOE - FIPStoPayeeCodeConvTable'!$A$3:$A$213,'DOE - FIPStoPayeeCodeConvTable'!$E$3:$E$213) -> 0.3445 | X84: 0.430625 | Y84: 2460.43 | Z84: 3253.19
A85: 167 | B85: =LOOKUP(A85,'DOE - FIPStoPayeeCodeConvTable'!$A$3:$A$213,'DOE - FIPStoPayeeCodeConvTable'!$B$3:$B$213) -> Russell Co | C85: 4386.6 | D85: 4532.82 | E85: 4532.82 | F85: 4386.6 | G85: 1900.86 | H85: 0 | I85: 0 | J85: 0 | K85: 0 | L85: 0 | M85: 0 | N85: 0 | S85: 19739.7 | U85: 17370.94 | V85: 2368.76 | W85: =LOOKUP(A85,'DOE - FIPStoPayeeCodeConvTable'!$A$3:$A$213,'DOE - FIPStoPayeeCodeConvTable'!$E$3:$E$213) -> 0.1894 | X85: 0.23675 | Y85: 560.8 | Z85: 1807.96
A86: 169 | B86: =LOOKUP(A86,'DOE - FIPStoPayeeCodeConvTable'!$A$3:$A$213,'DOE - FIPStoPayeeCodeConvTable'!$B$3:$B$213) -> Scott Co | C86: 0 | D86: 0 | E86: 0 | F86: 0 | G86: 0 | H86: 0 | I86: 0 | J86: 0 | K86: 0 | L86: 0 | M86: 0 | N86: 0 | S86: 0 | U86: 0 | V86: 0 | W86: =LOOKUP(A86,'DOE - FIPStoPayeeCodeConvTable'!$A$3:$A$213,'DOE - FIPStoPayeeCodeConvTable'!$E$3:$E$213) -> 0.3154 | X86: 0.39425 | Y86: 0 | Z86: 0
A87: 171 | B87: =LOOKUP(A87,'DOE - FIPStoPayeeCodeConvTable'!$A$3:$A$213,'DOE - FIPStoPayeeCodeConvTable'!$B$3:$B$213) -> Shenandoah Co | C87: 15415.34 | D87: 11805 | E87: 12198.5 | F87: 24397 | G87: 2047.08 | H87: 0 | I87: 4328.5 | J87: 12198.5 | K87: 12198.5 | L87: 23216.5 | M87: 2754.5 | N87: 11805 | S87: 132364.42 | U87: 116480.69 | V87: 15883.73 | W87: =LOOKUP(A87,'DOE - FIPStoPayeeCodeConvTable'!$A$3:$A$213,'DOE - FIPStoPayeeCodeConvTable'!$E$3:$E$213) -> 0.3517 | X87: 0.439625 | Y87: 6982.88 | Z87: 8900.85
A88: 173 | B88: =LOOKUP(A88,'DOE - FIPStoPayeeCodeConvTable'!$A$3:$A$213,'DOE - FIPStoPayeeCodeConvTable'!$B$3:$B$213) -> Smyth Co | C88: 0 | D88: 0 | E88: 0 | F88: 0 | G88: 0 | H88: 0 | I88: 0 | J88: 0 | K88: 0 | L88: 0 | M88: 0 | N88: 0 | S88: 0 | U88: 0 | V88: 0 | W88: =LOOKUP(A88,'DOE - FIPStoPayeeCodeConvTable'!$A$3:$A$213,'DOE - FIPStoPayeeCodeConvTable'!$E$3:$E$213) -> 0.2337 | X88: 0.292125 | Y88: 0 | Z88: 0
A89: 175 | B89: =LOOKUP(A89,'DOE - FIPStoPayeeCodeConvTable'!$A$3:$A$213,'DOE - FIPStoPayeeCodeConvTable'!$B$3:$B$213) -> Southampton Co | C89: 0 | D89: 0 | E89: 0 | F89: 0 | G89: 0 | H89: 0 | I89: 0 | J89: 0 | K89: 0 | L89: 0 | M89: 0 | N89: 0 | S89: 0 | U89: 0 | V89: 0 | W89: =LOOKUP(A89,'DOE - FIPStoPayeeCodeConvTable'!$A$3:$A$213,'DOE - FIPStoPayeeCodeConvTable'!$E$3:$E$213) -> 0.323 | X89: 0.40375 | Y89: 0 | Z89: 0
A90: 177 | B90: =LOOKUP(A90,'DOE - FIPStoPayeeCodeConvTable'!$A$3:$A$213,'DOE - FIPStoPayeeCodeConvTable'!$B$3:$B$213) -> Spotsylvania Co | C90: 13617.74 | D90: 0 | E90: 0 | F90: 0 | G90: 0 | H90: 0 | I90: 0 | J90: 0 | K90: 0 | L90: 12592 | M90: 5902.5 | N90: 0 | S90: 32112.24 | U90: 28258.77 | V90: 3853.47 | W90: =LOOKUP(A90,'DOE - FIPStoPayeeCodeConvTable'!$A$3:$A$213,'DOE - FIPStoPayeeCodeConvTable'!$E$3:$E$213) -> 0.4588 | X90: 0.5735 | Y90: 2209.97 | Z90: 1643.5
A91: 179 | B91: =LOOKUP(A91,'DOE - FIPStoPayeeCodeConvTable'!$A$3:$A$213,'DOE - FIPStoPayeeCodeConvTable'!$B$3:$B$213) -> Stafford Co | C91: 0 | D91: 0 | E91: 0 | F91: 12198.5 | G91: 11805 | H91: 24397 | I91: 35808.5 | J91: 5115.5 | K91: 0 | L91: 0 | M91: 0 | N91: 0 | S91: 89324.5 | U91: 78605.56 | V91: 10718.94 | W91: =LOOKUP(A91,'DOE - FIPStoPayeeCodeConvTable'!$A$3:$A$213,'DOE - FIPStoPayeeCodeConvTable'!$E$3:$E$213) -> 0.4439 | X91: 0.554875 | Y91: 5947.67 | Z91: 4771.27
A92: 181 | B92: =LOOKUP(A92,'DOE - FIPStoPayeeCodeConvTable'!$A$3:$A$213,'DOE - FIPStoPayeeCodeConvTable'!$B$3:$B$213) -> Surry Co | C92: 0 | D92: 0 | E92: 0 | F92: 0 | G92: 0 | H92: 0 | I92: 0 | J92: 0 | K92: 0 | L92: 0 | M92: 0 | N92: 0 | S92: 0 | U92: 0 | V92: 0 | W92: =LOOKUP(A92,'DOE - FIPStoPayeeCodeConvTable'!$A$3:$A$213,'DOE - FIPStoPayeeCodeConvTable'!$E$3:$E$213) -> 0.3979 | X92: 0.497375 | Y92: 0 | Z92: 0
A93: 183 | B93: =LOOKUP(A93,'DOE - FIPStoPayeeCodeConvTable'!$A$3:$A$213,'DOE - FIPStoPayeeCodeConvTable'!$B$3:$B$213) -> Sussex Co | C93: 0 | D93: 0 | E93: 0 | F93: 0 | G93: 0 | H93: 0 | I93: 0 | J93: 0 | K93: 0 | L93: 0 | M93: 4094.16 | N93: 8919.42 | S93: 13013.58 | U93: 11451.95 | V93: 1561.63 | W93: =LOOKUP(A93,'DOE - FIPStoPayeeCodeConvTable'!$A$3:$A$213,'DOE - FIPStoPayeeCodeConvTable'!$E$3:$E$213) -> 0.2387 | X93: 0.298375 | Y93: 465.95 | Z93: 1095.68
A94: 185 | B94: =LOOKUP(A94,'DOE - FIPStoPayeeCodeConvTable'!$A$3:$A$213,'DOE - FIPStoPayeeCodeConvTable'!$B$3:$B$213) -> Tazewell Co | C94: 0 | D94: 0 | E94: 0 | F94: 0 | G94: 0 | H94: 0 | I94: 0 | J94: 0 | K94: 0 | L94: 0 | M94: 0 | N94: 0 | S94: 0 | U94: 0 | V94: 0 | W94: =LOOKUP(A94,'DOE - FIPStoPayeeCodeConvTable'!$A$3:$A$213,'DOE - FIPStoPayeeCodeConvTable'!$E$3:$E$213) -> 0.2455 | X94: 0.306875 | Y94: 0 | Z94: 0
A95: 187 | B95: =LOOKUP(A95,'DOE - FIPStoPayeeCodeConvTable'!$A$3:$A$213,'DOE - FIPStoPayeeCodeConvTable'!$B$3:$B$213) -> Warren Co | C95: 0 | D95: 0 | E95: 0 | F95: 0 | G95: 0 | H95: 0 | I95: 0 | J95: 0 | K95: 0 | L95: 0 | M95: 0 | N95: 0 | S95: 0 | U95: 0 | V95: 0 | W95: =LOOKUP(A95,'DOE - FIPStoPayeeCodeConvTable'!$A$3:$A$213,'DOE - FIPStoPayeeCodeConvTable'!$E$3:$E$213) -> 0.3853 | X95: 0.481625 | Y95: 0 | Z95: 0
A96: 191 | B96: =LOOKUP(A96,'DOE - FIPStoPayeeCodeConvTable'!$A$3:$A$213,'DOE - FIPStoPayeeCodeConvTable'!$B$3:$B$213) -> Washington Co | C96: 0 | D96: 0 | E96: 0 | F96: 0 | G96: 0 | H96: 0 | I96: 0 | J96: 0 | K96: 0 | L96: 0 | M96: 0 | N96: 0 | S96: 0 | U96: 0 | V96: 0 | W96: =LOOKUP(A96,'DOE - FIPStoPayeeCodeConvTable'!$A$3:$A$213,'DOE - FIPStoPayeeCodeConvTable'!$E$3:$E$213) -> 0.276 | X96: 0.345 | Y96: 0 | Z96: 0
A97: 193 | B97: =LOOKUP(A97,'DOE - FIPStoPayeeCodeConvTable'!$A$3:$A$213,'DOE - FIPStoPayeeCodeConvTable'!$B$3:$B$213) -> Westmoreland Co | C97: 0 | D97: 0 | E97: 0 | F97: 0 | G97: 0 | H97: 0 | I97: 0 | J97: 0 | K97: 0 | L97: 0 | M97: 0 | N97: 0 | S97: 0 | U97: 0 | V97: 0 | W97: =LOOKUP(A97,'DOE - FIPStoPayeeCodeConvTable'!$A$3:$A$213,'DOE - FIPStoPayeeCodeConvTable'!$E$3:$E$213) -> 0.3025 | X97: 0.378125 | Y97: 0 | Z97: 0
A98: 195 | B98: =LOOKUP(A98,'DOE - FIPStoPayeeCodeConvTable'!$A$3:$A$213,'DOE - FIPStoPayeeCodeConvTable'!$B$3:$B$213) -> Wise Co | C98: 0 | D98: 0 | E98: 0 | F98: 0 | G98: 0 | H98: 0 | I98: 0 | J98: 0 | K98: 0 | L98: 0 | M98: 0 | N98: 0 | S98: 0 | U98: 0 | V98: 0 | W98: =LOOKUP(A98,'DOE - FIPStoPayeeCodeConvTable'!$A$3:$A$213,'DOE - FIPStoPayeeCodeConvTable'!$E$3:$E$213) -> 0.2755 | X98: 0.344375 | Y98: 0 | Z98: 0
A99: 197 | B99: =LOOKUP(A99,'DOE - FIPStoPayeeCodeConvTable'!$A$3:$A$213,'DOE - FIPStoPayeeCodeConvTable'!$B$3:$B$213) -> Wythe Co | C99: 0 | D99: 0 | E99: 0 | F99: 0 | G99: 0 | H99: 0 | I99: 0 | J99: 0 | K99: 0 | L99: 0 | M99: 0 | N99: 0 | S99: 0 | U99: 0 | V99: 0 | W99: =LOOKUP(A99,'DOE - FIPStoPayeeCodeConvTable'!$A$3:$A$213,'DOE - FIPStoPayeeCodeConvTable'!$E$3:$E$213) -> 0.2708 | X99: 0.3385 | Y99: 0 | Z99: 0
A100: 199 | B100: =LOOKUP(A100,'DOE - FIPStoPayeeCodeConvTable'!$A$3:$A$213,'DOE - FIPStoPayeeCodeConvTable'!$B$3:$B$213) -> York Co | C100: 6433.68 | D100: 1900.86 | E100: 0 | F100: 0 | G100: 13159.8 | H100: 0 | I100: 3801.72 | J100: 2778.18 | K100: 877.32 | L100: 3070.62 | M100: 5117.7 | N100: 0 | S100: 37139.88 | U100: 32683.09 | V100: 4456.79 | W100: =LOOKUP(A100,'DOE - FIPStoPayeeCodeConvTable'!$A$3:$A$213,'DOE - FIPStoPayeeCodeConvTable'!$E$3:$E$213) -> 0.3888 | X100: 0.486 | Y100: 2166 | Z100: 2290.79
A101: 510 | B101: =LOOKUP(A101,'DOE - FIPStoPayeeCodeConvTable'!$A$3:$A$213,'DOE - FIPStoPayeeCodeConvTable'!$B$3:$B$213) -> Alexandria City | C101: 0 | D101: 0 | E101: 0 | F101: 0 | G101: 0 | H101: 0 | I101: 0 | J101: 0 | K101: 0 | L101: 0 | M101: 0 | N101: 0 | S101: 0 | U101: 0 | V101: 0 | W101: =LOOKUP(A101,'DOE - FIPStoPayeeCodeConvTable'!$A$3:$A$213,'DOE - FIPStoPayeeCodeConvTable'!$E$3:$E$213) -> 0.5309 | X101: 0.663625 | Y101: 0 | Z101: 0
A102: 520 | B102: =LOOKUP(A102,'DOE - FIPStoPayeeCodeConvTable'!$A$3:$A$213,'DOE - FIPStoPayeeCodeConvTable'!$B$3:$B$213) -> Bristol City | C102: 0 | D102: 0 | E102: 0 | F102: 0 | G102: 0 | H102: 0 | I102: 0 | J102: 0 | K102: 0 | L102: 0 | M102: 0 | N102: 0 | S102: 0 | U102: =ROUND($U$1*S102,2) -> 0 | V102: =SUM(S102)-SUM(U102) -> 0 | W102: =LOOKUP(A102,'DOE - FIPStoPayeeCodeConvTable'!$A$3:$A$213,'DOE - FIPStoPayeeCodeConvTable'!$E$3:$E$213) -> 0.2547 | X102: 0.318375 | Y102: 0 | Z102: 0
A103: 530 | B103: =LOOKUP(A103,'DOE - FIPStoPayeeCodeConvTable'!$A$3:$A$213,'DOE - FIPStoPayeeCodeConvTable'!$B$3:$B$213) -> Buena Vista City | C103: 0 | D103: 0 | E103: 0 | F103: 0 | G103: 0 | H103: 0 | I103: 0 | J103: 0 | K103: 0 | L103: 0 | M103: 0 | N103: 0 | S103: 0 | U103: 0 | V103: 0 | W103: =LOOKUP(A103,'DOE - FIPStoPayeeCodeConvTable'!$A$3:$A$213,'DOE - FIPStoPayeeCodeConvTable'!$E$3:$E$213) -> 0.2329 | X103: 0.291125 | Y103: 0 | Z103: 0
A104: 540 | B104: =LOOKUP(A104,'DOE - FIPStoPayeeCodeConvTable'!$A$3:$A$213,'DOE - FIPStoPayeeCodeConvTable'!$B$3:$B$213) -> Charlottesville City | C104: 0 | D104: 0 | E104: 0 | F104: 10624.5 | G104: 0 | H104: 12198.5 | I104: 11805 | J104: 12198.5 | K104: 12198.5 | L104: 11018 | M104: 0 | N104: 0 | S104: 70043 | U104: 61637.84 | V104: 8405.16 | W104: =LOOKUP(A104,'DOE - FIPStoPayeeCodeConvTable'!$A$3:$A$213,'DOE - FIPStoPayeeCodeConvTable'!$E$3:$E$213) -> 0.3068 | X104: 0.3835 | Y104: 3223.38 | Z104: 5181.78
A105: 550 | B105: =LOOKUP(A105,'DOE - FIPStoPayeeCodeConvTable'!$A$3:$A$213,'DOE - FIPStoPayeeCodeConvTable'!$B$3:$B$213) -> Chesapeake City | C105: 0 | D105: 0 | E105: 0 | F105: 0 | G105: 0 | H105: 0 | I105: 0 | J105: 0 | K105: 0 | L105: 0 | M105: 0 | N105: 0 | S105: 0 | U105: 0 | V105: 0 | W105: =LOOKUP(A105,'DOE - FIPStoPayeeCodeConvTable'!$A$3:$A$213,'DOE - FIPStoPayeeCodeConvTable'!$E$3:$E$213) -> 0.3715 | X105: 0.464375 | Y105: 0 | Z105: 0
A106: 570 | B106: =LOOKUP(A106,'DOE - FIPStoPayeeCodeConvTable'!$A$3:$A$213,'DOE - FIPStoPayeeCodeConvTable'!$B$3:$B$213) -> Colonial Heights City | C106: 0 | D106: 0 | E106: 0 | F106: 0 | G106: 0 | H106: 0 | I106: 0 | J106: 0 | K106: 0 | L106: 0 | M106: 0 | N106: 0 | S106: 0 | U106: 0 | V106: 0 | W106: =LOOKUP(A106,'DOE - FIPStoPayeeCodeConvTable'!$A$3:$A$213,'DOE - FIPStoPayeeCodeConvTable'!$E$3:$E$213) -> 0.4027 | X106: 0.503375 | Y106: 0 | Z106: 0
A107: 580 | B107: =LOOKUP(A107,'DOE - FIPStoPayeeCodeConvTable'!$A$3:$A$213,'DOE - FIPStoPayeeCodeConvTable'!$B$3:$B$213) -> Covington City | C107: 0 | D107: 0 | E107: 0 | F107: 0 | G107: 0 | H107: 0 | I107: 0 | J107: 0 | K107: 0 | L107: 0 | M107: 0 | N107: 0 | S107: 0 | U107: 0 | V107: 0 | W107: =LOOKUP(A107,'DOE - FIPStoPayeeCodeConvTable'!$A$3:$A$213,'DOE - FIPStoPayeeCodeConvTable'!$E$3:$E$213) -> 0.2496 | X107: 0.312 | Y107: 0 | Z107: 0
A108: 590 | B108: =LOOKUP(A108,'DOE - FIPStoPayeeCodeConvTable'!$A$3:$A$213,'DOE - FIPStoPayeeCodeConvTable'!$B$3:$B$213) -> Danville City | C108: 0 | D108: 0 | E108: 0 | F108: 0 | G108: 0 | H108: 0 | I108: 0 | J108: 0 | K108: 0 | L108: 0 | M108: 0 | N108: 0 | S108: 0 | U108: 0 | V108: 0 | W108: =LOOKUP(A108,'DOE - FIPStoPayeeCodeConvTable'!$A$3:$A$213,'DOE - FIPStoPayeeCodeConvTable'!$E$3:$E$213) -> 0.2223 | X108: 0.277875 | Y108: 0 | Z108: 0
A109: 620 | B109: =LOOKUP(A109,'DOE - FIPStoPayeeCodeConvTable'!$A$3:$A$213,'DOE - FIPStoPayeeCodeConvTable'!$B$3:$B$213) -> Franklin City | C109: 0 | D109: 0 | E109: 0 | F109: 0 | G109: 0 | H109: 0 | I109: 0 | J109: 0 | K109: 0 | L109: 0 | M109: 0 | N109: 0 | S109: 0 | U109: 0 | V109: 0 | W109: =LOOKUP(A109,'DOE - FIPStoPayeeCodeConvTable'!$A$3:$A$213,'DOE - FIPStoPayeeCodeConvTable'!$E$3:$E$213) -> 0.371 | X109: 0.46375 | Y109: 0 | Z109: 0
A110: 630 | B110: =LOOKUP(A110,'DOE - FIPStoPayeeCodeConvTable'!$A$3:$A$213,'DOE - FIPStoPayeeCodeConvTable'!$B$3:$B$213) -> Fredericksburg City | C110: 0 | D110: 0 | E110: 0 | F110: 0 | G110: 0 | H110: 0 | I110: 0 | J110: 0 | K110: 0 | L110: 0 | M110: 0 | N110: 0 | S110: 0 | U110: 0 | V110: 0 | W110: =LOOKUP(A110,'DOE - FIPStoPayeeCodeConvTable'!$A$3:$A$213,'DOE - FIPStoPayeeCodeConvTable'!$E$3:$E$213) -> 0.3441 | X110: 0.430125 | Y110: 0 | Z110: 0
A111: 640 | B111: =LOOKUP(A111,'DOE - FIPStoPayeeCodeConvTable'!$A$3:$A$213,'DOE - FIPStoPayeeCodeConvTable'!$B$3:$B$213) -> Galax City | C111: 0 | D111: 0 | E111: 0 | F111: 0 | G111: 24003.5 | H111: 0 | I111: 17314 | J111: 12985.5 | K111: 32267 | L111: 15740 | M111: 0 | N111: 0 | S111: 102310 | U111: 90032.8 | V111: 12277.2 | W111: =LOOKUP(A111,'DOE - FIPStoPayeeCodeConvTable'!$A$3:$A$213,'DOE - FIPStoPayeeCodeConvTable'!$E$3:$E$213) -> 0.3146 | X111: 0.39325 | Y111: 4828.01 | Z111: 7449.19
A112: 650 | B112: =LOOKUP(A112,'DOE - FIPStoPayeeCodeConvTable'!$A$3:$A$213,'DOE - FIPStoPayeeCodeConvTable'!$B$3:$B$213) -> Hampton City | C112: 0 | D112: 0 | E112: 0 | F112: 0 | G112: 0 | H112: 0 | I112: 0 | J112: 0 | K112: 0 | L112: 0 | M112: 0 | N112: 0 | S112: 0 | U112: 0 | V112: 0 | W112: =LOOKUP(A112,'DOE - FIPStoPayeeCodeConvTable'!$A$3:$A$213,'DOE - FIPStoPayeeCodeConvTable'!$E$3:$E$213) -> 0.3223 | X112: 0.402875 | Y112: 0 | Z112: 0
A113: 660 | B113: =LOOKUP(A113,'DOE - FIPStoPayeeCodeConvTable'!$A$3:$A$213,'DOE - FIPStoPayeeCodeConvTable'!$B$3:$B$213) -> Harrisonburg City | C113: 0 | D113: 0 | E113: 10624.5 | F113: -1890 | G113: 0 | H113: 0 | I113: 0 | J113: 0 | K113: 0 | L113: 0 | M113: 0 | N113: 0 | S113: 8734.5 | U113: 7686.36 | V113: 1048.14 | W113: =LOOKUP(A113,'DOE - FIPStoPayeeCodeConvTable'!$A$3:$A$213,'DOE - FIPStoPayeeCodeConvTable'!$E$3:$E$213) -> 0.3808 | X113: 0.476 | Y113: 498.91 | Z113: 549.23
A114: 670 | B114: =LOOKUP(A114,'DOE - FIPStoPayeeCodeConvTable'!$A$3:$A$213,'DOE - FIPStoPayeeCodeConvTable'!$B$3:$B$213) -> Hopewell City | C114: 0 | D114: 0 | E114: 0 | F114: 0 | G114: 0 | H114: 0 | I114: 0 | J114: 0 | K114: 0 | L114: 0 | M114: 0 | N114: 0 | S114: 0 | U114: 0 | V114: 0 | W114: =LOOKUP(A114,'DOE - FIPStoPayeeCodeConvTable'!$A$3:$A$213,'DOE - FIPStoPayeeCodeConvTable'!$E$3:$E$213) -> 0.2667 | X114: 0.333375 | Y114: 0 | Z114: 0
A115: 678 | B115: =LOOKUP(A115,'DOE - FIPStoPayeeCodeConvTable'!$A$3:$A$213,'DOE - FIPStoPayeeCodeConvTable'!$B$3:$B$213) -> Lexington City | C115: 0 | D115: 0 | E115: 0 | F115: 0 | G115: 0 | H115: 0 | I115: 0 | J115: 0 | K115: 0 | L115: 0 | M115: 0 | N115: 0 | S115: 0 | U115: 0 | V115: 0 | W115: =LOOKUP(A115,'DOE - FIPStoPayeeCodeConvTable'!$A$3:$A$213,'DOE - FIPStoPayeeCodeConvTable'!$E$3:$E$213) -> 0.3302 | X115: 0.41275 | Y115: 0 | Z115: 0
A116: 680 | B116: =LOOKUP(A116,'DOE - FIPStoPayeeCodeConvTable'!$A$3:$A$213,'DOE - FIPStoPayeeCodeConvTable'!$B$3:$B$213) -> Lynchburg City | C116: 0 | D116: 0 | E116: 0 | F116: 0 | G116: 0 | H116: 0 | I116: 0 | J116: 0 | K116: 0 | L116: 0 | M116: 0 | N116: 0 | S116: 0 | U116: 0 | V116: 0 | W116: =LOOKUP(A116,'DOE - FIPStoPayeeCodeConvTable'!$A$3:$A$213,'DOE - FIPStoPayeeCodeConvTable'!$E$3:$E$213) -> 0.2736 | X116: 0.342 | Y116: 0 | Z116: 0
A117: 683 | B117: =LOOKUP(A117,'DOE - FIPStoPayeeCodeConvTable'!$A$3:$A$213,'DOE - FIPStoPayeeCodeConvTable'!$B$3:$B$213) -> Manassas City | C117: 0 | D117: 0 | E117: 0 | F117: 0 | G117: 0 | H117: 0 | I117: 0 | J117: 0 | K117: 393.5 | L117: 0 | M117: 0 | N117: 0 | S117: 393.5 | U117: 346.28 | V117: 47.22 | W117: =LOOKUP(A117,'DOE - FIPStoPayeeCodeConvTable'!$A$3:$A$213,'DOE - FIPStoPayeeCodeConvTable'!$E$3:$E$213) -> 0.4168 | X117: 0.521 | Y117: 24.6 | Z117: 22.62
A118: 685 | B118: =LOOKUP(A118,'DOE - FIPStoPayeeCodeConvTable'!$A$3:$A$213,'DOE - FIPStoPayeeCodeConvTable'!$B$3:$B$213) -> Manassas Park City | C118: 0 | D118: 12198.5 | E118: 0 | F118: 0 | G118: 0 | H118: 0 | I118: 0 | J118: 0 | K118: 0 | L118: 0 | M118: 0 | N118: 0 | S118: 12198.5 | U118: 10734.68 | V118: 1463.82 | W118: =LOOKUP(A118,'DOE - FIPStoPayeeCodeConvTable'!$A$3:$A$213,'DOE - FIPStoPayeeCodeConvTable'!$E$3:$E$213) -> 0.4273 | X118: 0.534125 | Y118: 781.86 | Z118: 681.96
A119: 690 | B119: =LOOKUP(A119,'DOE - FIPStoPayeeCodeConvTable'!$A$3:$A$213,'DOE - FIPStoPayeeCodeConvTable'!$B$3:$B$213) -> Martinsville City | C119: 0 | D119: 0 | E119: 0 | F119: 0 | G119: 0 | H119: 0 | I119: 0 | J119: 0 | K119: 0 | L119: 0 | M119: 4386.6 | N119: 0 | S119: 4386.6 | U119: 3860.21 | V119: 526.39 | W119: =LOOKUP(A119,'DOE - FIPStoPayeeCodeConvTable'!$A$3:$A$213,'DOE - FIPStoPayeeCodeConvTable'!$E$3:$E$213) -> 0.3321 | X119: 0.415125 | Y119: 218.52 | Z119: 307.87
A120: 700 | B120: =LOOKUP(A120,'DOE - FIPStoPayeeCodeConvTable'!$A$3:$A$213,'DOE - FIPStoPayeeCodeConvTable'!$B$3:$B$213) -> Newport News City | C120: 17314 | D120: 11018 | E120: 11018 | F120: 8657 | G120: 0 | H120: 0 | I120: 0 | J120: 0 | K120: 0 | L120: 0 | M120: 0 | N120: 0 | S120: 48007 | U120: 42246.16 | V120: 5760.84 | W120: =LOOKUP(A120,'DOE - FIPStoPayeeCodeConvTable'!$A$3:$A$213,'DOE - FIPStoPayeeCodeConvTable'!$E$3:$E$213) -> 0.2773 | X120: 0.346625 | Y120: 1996.85 | Z120: 3763.99
A121: 710 | B121: =LOOKUP(A121,'DOE - FIPStoPayeeCodeConvTable'!$A$3:$A$213,'DOE - FIPStoPayeeCodeConvTable'!$B$3:$B$213) -> Norfolk City | C121: 0 | D121: 0 | E121: 0 | F121: 0 | G121: 0 | H121: 0 | I121: 0 | J121: 0 | K121: 0 | L121: 21642.5 | M121: 0 | N121: 20462 | S121: 42104.5 | U121: 37051.96 | V121: 5052.54 | W121: =LOOKUP(A121,'DOE - FIPStoPayeeCodeConvTable'!$A$3:$A$213,'DOE - FIPStoPayeeCodeConvTable'!$E$3:$E$213) -> 0.2455 | X121: 0.306875 | Y121: 1550.5 | Z121: 3502.04
A122: 720 | B122: =LOOKUP(A122,'DOE - FIPStoPayeeCodeConvTable'!$A$3:$A$213,'DOE - FIPStoPayeeCodeConvTable'!$B$3:$B$213) -> Norton City | C122: 0 | D122: 0 | E122: 0 | F122: 0 | G122: 0 | H122: 0 | I122: 0 | J122: 0 | K122: 0 | L122: 0 | M122: 0 | N122: 0 | S122: 0 | U122: 0 | V122: 0 | W122: =LOOKUP(A122,'DOE - FIPStoPayeeCodeConvTable'!$A$3:$A$213,'DOE - FIPStoPayeeCodeConvTable'!$E$3:$E$213) -> 0.3254 | X122: 0.40675 | Y122: 0 | Z122: 0
A123: 730 | B123: =LOOKUP(A123,'DOE - FIPStoPayeeCodeConvTable'!$A$3:$A$213,'DOE - FIPStoPayeeCodeConvTable'!$B$3:$B$213) -> Petersburg City | C123: 0 | D123: 0 | E123: 0 | F123: 0 | G123: 0 | H123: 0 | I123: 0 | J123: 0 | K123: 0 | L123: 0 | M123: 0 | N123: 0 | S123: 0 | U123: 0 | V123: 0 | W123: =LOOKUP(A123,'DOE - FIPStoPayeeCodeConvTable'!$A$3:$A$213,'DOE - FIPStoPayeeCodeConvTable'!$E$3:$E$213) -> 0.3535 | X123: 0.441875 | Y123: 0 | Z123: 0
A124: 735 | B124: =LOOKUP(A124,'DOE - FIPStoPayeeCodeConvTable'!$A$3:$A$213,'DOE - FIPStoPayeeCodeConvTable'!$B$3:$B$213) -> Poquoson City | C124: 0 | D124: 0 | E124: 0 | F124: 0 | G124: 0 | H124: 0 | I124: 0 | J124: 0 | K124: 0 | L124: 0 | M124: 0 | N124: 0 | S124: 0 | U124: 0 | V124: 0 | W124: =LOOKUP(A124,'DOE - FIPStoPayeeCodeConvTable'!$A$3:$A$213,'DOE - FIPStoPayeeCodeConvTable'!$E$3:$E$213) -> 0.2787 | X124: 0.348375 | Y124: 0 | Z124: 0
A125: 740 | B125: =LOOKUP(A125,'DOE - FIPStoPayeeCodeConvTable'!$A$3:$A$213,'DOE - FIPStoPayeeCodeConvTable'!$B$3:$B$213) -> Portsmouth City | C125: 0 | D125: 0 | E125: 0 | F125: 0 | G125: 0 | H125: 0 | I125: 0 | J125: 0 | K125: 0 | L125: 0 | M125: 0 | N125: 0 | S125: 0 | U125: 0 | V125: 0 | W125: =LOOKUP(A125,'DOE - FIPStoPayeeCodeConvTable'!$A$3:$A$213,'DOE - FIPStoPayeeCodeConvTable'!$E$3:$E$213) -> 0.2605 | X125: 0.325625 | Y125: 0 | Z125: 0
A126: 750 | B126: =LOOKUP(A126,'DOE - FIPStoPayeeCodeConvTable'!$A$3:$A$213,'DOE - FIPStoPayeeCodeConvTable'!$B$3:$B$213) -> Radford City | C126: 0 | D126: 0 | E126: 0 | F126: 0 | G126: 0 | H126: 0 | I126: 0 | J126: 0 | K126: 0 | L126: 0 | M126: 0 | N126: 0 | S126: 0 | U126: 0 | V126: 0 | W126: =LOOKUP(A126,'DOE - FIPStoPayeeCodeConvTable'!$A$3:$A$213,'DOE - FIPStoPayeeCodeConvTable'!$E$3:$E$213) -> 0.2035 | X126: 0.254375 | Y126: 0 | Z126: 0
A127: 760 | B127: =LOOKUP(A127,'DOE - FIPStoPayeeCodeConvTable'!$A$3:$A$213,'DOE - FIPStoPayeeCodeConvTable'!$B$3:$B$213) -> Richmond City | C127: 0 | D127: 0 | E127: 0 | F127: 0 | G127: 0 | H127: 0 | I127: 0 | J127: 0 | K127: 0 | L127: 0 | M127: 0 | N127: 12198.5 | S127: 12198.5 | U127: 10734.68 | V127: 1463.82 | W127: =LOOKUP(A127,'DOE - FIPStoPayeeCodeConvTable'!$A$3:$A$213,'DOE - FIPStoPayeeCodeConvTable'!$E$3:$E$213) -> 0.3691 | X127: 0.461375 | Y127: 675.37 | Z127: 788.45
A128: 770 | B128: =LOOKUP(A128,'DOE - FIPStoPayeeCodeConvTable'!$A$3:$A$213,'DOE - FIPStoPayeeCodeConvTable'!$B$3:$B$213) -> Roanoke City | C128: 0 | D128: 1023.54 | E128: 4532.82 | F128: 4386.6 | G128: 4532.82 | H128: 0 | I128: 4094.16 | J128: 0 | K128: 0 | L128: 0 | M128: 0 | N128: 0 | S128: 18569.94 | U128: 16341.55 | V128: 2228.39 | W128: =LOOKUP(A128,'DOE - FIPStoPayeeCodeConvTable'!$A$3:$A$213,'DOE - FIPStoPayeeCodeConvTable'!$E$3:$E$213) -> 0.3072 | X128: 0.384 | Y128: 855.7 | Z128: 1372.69
A129: 775 | B129: =LOOKUP(A129,'DOE - FIPStoPayeeCodeConvTable'!$A$3:$A$213,'DOE - FIPStoPayeeCodeConvTable'!$B$3:$B$213) -> Salem City | C129: 0 | D129: 0 | E129: 0 | F129: 0 | G129: 0 | H129: 0 | I129: 0 | J129: 0 | K129: 0 | L129: 0 | M129: 4532.82 | N129: 0 | S129: 4532.82 | U129: 3988.88 | V129: 543.94 | W129: =LOOKUP(A129,'DOE - FIPStoPayeeCodeConvTable'!$A$3:$A$213,'DOE - FIPStoPayeeCodeConvTable'!$E$3:$E$213) -> 0.3513 | X129: 0.439125 | Y129: 238.86 | Z129: 305.08
A130: 790 | B130: =LOOKUP(A130,'DOE - FIPStoPayeeCodeConvTable'!$A$3:$A$213,'DOE - FIPStoPayeeCodeConvTable'!$B$3:$B$213) -> Staunton City | C130: 0 | D130: 0 | E130: 0 | F130: 0 | G130: 0 | H130: 0 | I130: 0 | J130: 0 | K130: 0 | L130: 0 | M130: 0 | N130: 0 | S130: 0 | U130: 0 | V130: 0 | W130: =LOOKUP(A130,'DOE - FIPStoPayeeCodeConvTable'!$A$3:$A$213,'DOE - FIPStoPayeeCodeConvTable'!$E$3:$E$213) -> 0.2699 | X130: 0.337375 | Y130: 0 | Z130: 0
A131: 800 | B131: =LOOKUP(A131,'DOE - FIPStoPayeeCodeConvTable'!$A$3:$A$213,'DOE - FIPStoPayeeCodeConvTable'!$B$3:$B$213) -> Suffolk City | C131: 0 | D131: 0 | E131: 0 | F131: 0 | G131: 0 | H131: 0 | I131: 0 | J131: 0 | K131: 0 | L131: 0 | M131: 0 | N131: 0 | S131: 0 | U131: 0 | V131: 0 | W131: =LOOKUP(A131,'DOE - FIPStoPayeeCodeConvTable'!$A$3:$A$213,'DOE - FIPStoPayeeCodeConvTable'!$E$3:$E$213) -> 0.2432 | X131: 0.304 | Y131: 0 | Z131: 0
A132: 810 | B132: =LOOKUP(A132,'DOE - FIPStoPayeeCodeConvTable'!$A$3:$A$213,'DOE - FIPStoPayeeCodeConvTable'!$B$3:$B$213) -> Virginia Beach City | C132: 0 | D132: 0 | E132: 0 | F132: 0 | G132: 0 | H132: 0 | I132: 0 | J132: 0 | K132: 11018 | L132: 11018 | M132: 12198.5 | N132: 11805 | S132: 46039.5 | U132: 40514.76 | V132: 5524.74 | W132: =LOOKUP(A132,'DOE - FIPStoPayeeCodeConvTable'!$A$3:$A$213,'DOE - FIPStoPayeeCodeConvTable'!$E$3:$E$213) -> 0.3569 | X132: 0.446125 | Y132: 2464.72 | Z132: 3060.02
A133: 820 | B133: =LOOKUP(A133,'DOE - FIPStoPayeeCodeConvTable'!$A$3:$A$213,'DOE - FIPStoPayeeCodeConvTable'!$B$3:$B$213) -> Waynesboro City | C133: 0 | D133: 0 | E133: 0 | F133: 0 | G133: 0 | H133: 0 | I133: 0 | J133: 0 | K133: 0 | L133: 0 | M133: 0 | N133: 11521.36 | S133: 11521.36 | U133: 10138.8 | V133: =SUM(S133)-SUM(U133) -> 1382.56 | W133: =LOOKUP(A133,'DOE - FIPStoPayeeCodeConvTable'!$A$3:$A$213,'DOE - FIPStoPayeeCodeConvTable'!$E$3:$E$213) -> 0.3843 | X133: 0.480375 | Y133: 664.15 | Z133: 718.41
A134: 830 | B134: =LOOKUP(A134,'DOE - FIPStoPayeeCodeConvTable'!$A$3:$A$213,'DOE - FIPStoPayeeCodeConvTable'!$B$3:$B$213) -> Williamsburg City | C134: 0 | D134: 0 | E134: 0 | F134: 0 | G134: 0 | H134: 0 | I134: 0 | J134: 0 | K134: 0 | L134: 0 | M134: 0 | N134: 0 | S134: 0 | U134: 0 | V134: 0 | W134: =LOOKUP(A134,'DOE - FIPStoPayeeCodeConvTable'!$A$3:$A$213,'DOE - FIPStoPayeeCodeConvTable'!$E$3:$E$213) -> 0.4553 | X134: =$X$1*W134 -> 0.569125 | Y134: =ROUND(X134*V134,2) -> 0 | Z134: =SUM(V134)-SUM(Y134) -> 0
A135: 840 | B135: =LOOKUP(A135,'DOE - FIPStoPayeeCodeConvTable'!$A$3:$A$213,'DOE - FIPStoPayeeCodeConvTable'!$B$3:$B$213) -> Winchester City | C135: 0 | D135: 0 | E135: 0 | F135: 0 | G135: 0 | H135: 0 | I135: 0 | J135: 0 | K135: 0 | L135: 0 | M135: 0 | N135: 0 | S135: =SUM(C135:R135) -> 0 | U135: 0 | V135: 0 | W135: =LOOKUP(A135,'DOE - FIPStoPayeeCodeConvTable'!$A$3:$A$213,'DOE - FIPStoPayeeCodeConvTable'!$E$3:$E$213) -> 0.4587 | X135: 0.573375 | Y135: =ROUND(X135*V135,2) -> 0 | Z135: =SUM(V135)-SUM(Y135) -> 0

Sheet FAMIS (hidden)
A1: FY | B1: ='DOE - FIPStoPayeeCodeConvTable'!G1 -> 2019 | C1: MEDICAID ADJUSTMENTS--FAMIS PAYMENTS TO PROVIDERS | O1: ="Extended to be paided in this SFY = " & B1 -> Extended to be paided in this SFY = 2019 | T1: xx | U1: 0.88 | V1: =100%-U1 -> 0.12 | W1: (POOL) | X1: 1.25
U2: FEDERAL | V2: STATE/ | W2: (RATE) | X2: Factor
A3: FIPS | S3: Grand | U3: MEDICAID | V3: LOCAL | W3: LOCAL | Y3: LOCAL | Z3: STATE
A4: CODE | B4: LOCALITY | C4: =TEXT("7/1/" & $B$1-1,"mmm-yyyy") -> Jul-2018 | D4: =TEXT("8/1/" & $B$1-1,"mmm-yyyy") -> Aug-2018 | E4: =TEXT("9/1/" & $B$1-1,"mmm-yyyy") -> Sep-2018 | F4: =TEXT("10/1/" & $B$1-1,"mmm-yyyy") -> Oct-2018 | G4: =TEXT("11/1/" & $B$1-1,"mmm-yyyy") -> Nov-2018 | H4: =TEXT("12/1/" & $B$1-1,"mmm-yyyy") -> Dec-2018 | I4: =TEXT("1/1/" & $B$1,"mmm-yyyy") -> Jan-2019 | J4: =TEXT("2/1/" & $B$1,"mmm-yyyy") -> Feb-2019 | K4: =TEXT("3/1/" & $B$1,"mmm-yyyy") -> Mar-2019 | L4: =TEXT("4/1/" & $B$1,"mmm-yyyy") -> Apr-2019 | M4: =TEXT("5/1/" & $B$1,"mmm-yyyy") -> May-2019 | N4: =TEXT("6/1/" & $B$1,"mmm-yyyy") -> Jun-2019 | O4: =TEXT("7/1/" & $B$1,"mmm-yyyy") -> Jul-2019 | P4: =TEXT("8/1/" & $B$1,"mmm-yyyy") -> Aug-2019 | Q4: =TEXT("9/1/" & $B$1,"mmm-yyyy") -> Sep-2019 | R4: =TEXT("10/1/" & $B$1,"mmm-yyyy") -> Oct-2019 | S4: Total | U4: RATE/Share | V4: SHARE | W4: MATCH Rate | Y4: MATCH | Z4: SHARE
A5: Totals | C5: =SUM(C6:C1200) -> 0 | D5: 0 | E5: 0 | F5: 0 | G5: 0 | H5: 0 | I5: 0 | J5: 0 | K5: 0 | L5: 0 | M5: 0 | N5: 0 | O5: 0 | P5: 0 | Q5: 0 | R5: 0 | S5: =SUM(C5:R5) -> 0 | T5: = | U5: =SUM(U6:U399) -> 0 | V5: =SUM(V6:V399) -> 0 | W5: = | Y5: =SUM(Y6:Y399) -> 0 | Z5: =SUM(Z6:Z399) -> 0
A6: 1 | B6: =LOOKUP(A6,'DOE - FIPStoPayeeCodeConvTable'!$A$3:$A$213,'DOE - FIPStoPayeeCodeConvTable'!$B$3:$B$213) -> Accomack Co | C6: 0 | S6: 0 | U6: =ROUND($U$1*S6,2) -> 0 | V6: =SUM(S6)-SUM(U6) -> 0 | W6: =LOOKUP(A6,'DOE - FIPStoPayeeCodeConvTable'!$A$3:$A$213,'DOE - FIPStoPayeeCodeConvTable'!$E$3:$E$213) -> 0.2332 | X6: =$X$1*W6 -> 0.2915 | Y6: =ROUND(X6*V6,2) -> 0 | Z6: =SUM(V6)-SUM(Y6) -> 0
A7: 3 | B7: =LOOKUP(A7,'DOE - FIPStoPayeeCodeConvTable'!$A$3:$A$213,'DOE - FIPStoPayeeCodeConvTable'!$B$3:$B$213) -> Albemarle Co | C7: 0 | S7: 0 | U7: 0 | V7: 0 | W7: =LOOKUP(A7,'DOE - FIPStoPayeeCodeConvTable'!$A$3:$A$213,'DOE - FIPStoPayeeCodeConvTable'!$E$3:$E$213) -> 0.4474 | X7: =$X$1*W7 -> 0.55925 | Y7: =ROUND(X7*V7,2) -> 0 | Z7: =SUM(V7)-SUM(Y7) -> 0
A8: 5 | B8: =LOOKUP(A8,'DOE - FIPStoPayeeCodeConvTable'!$A$3:$A$213,'DOE - FIPStoPayeeCodeConvTable'!$B$3:$B$213) -> Alleghany Co | C8: 0 | S8: 0 | U8: 0 | V8: 0 | W8: =LOOKUP(A8,'DOE - FIPStoPayeeCodeConvTable'!$A$3:$A$213,'DOE - FIPStoPayeeCodeConvTable'!$E$3:$E$213) -> 0.1924 | X8: 0.2405 | Y8: 0 | Z8: 0
A9: 7 | B9: =LOOKUP(A9,'DOE - FIPStoPayeeCodeConvTable'!$A$3:$A$213,'DOE - FIPStoPayeeCodeConvTable'!$B$3:$B$213) -> Amelia Co | C9: 0 | S9: 0 | U9: 0 | V9: 0 | W9: =LOOKUP(A9,'DOE - FIPStoPayeeCodeConvTable'!$A$3:$A$213,'DOE - FIPStoPayeeCodeConvTable'!$E$3:$E$213) -> 0.3268 | X9: 0.4085 | Y9: 0 | Z9: 0
A10: 9 | B10: =LOOKUP(A10,'DOE - FIPStoPayeeCodeConvTable'!$A$3:$A$213,'DOE - FIPStoPayeeCodeConvTable'!$B$3:$B$213) -> Amherst Co | C10: 0 | S10: 0 | U10: 0 | V10: 0 | W10: =LOOKUP(A10,'DOE - FIPStoPayeeCodeConvTable'!$A$3:$A$213,'DOE - FIPStoPayeeCodeConvTable'!$E$3:$E$213) -> 0.2722 | X10: 0.34025 | Y10: 0 | Z10: 0
A11: 11 | B11: =LOOKUP(A11,'DOE - FIPStoPayeeCodeConvTable'!$A$3:$A$213,'DOE - FIPStoPayeeCodeConvTable'!$B$3:$B$213) -> Appomattox Co | C11: 0 | S11: 0 | U11: 0 | V11: 0 | W11: =LOOKUP(A11,'DOE - FIPStoPayeeCodeConvTable'!$A$3:$A$213,'DOE - FIPStoPayeeCodeConvTable'!$E$3:$E$213) -> 0.2639 | X11: 0.329875 | Y11: 0 | Z11: 0
A12: 13 | B12: =LOOKUP(A12,'DOE - FIPStoPayeeCodeConvTable'!$A$3:$A$213,'DOE - FIPStoPayeeCodeConvTable'!$B$3:$B$213) -> Arlington Co | C12: 0 | S12: 0 | U12: 0 | V12: 0 | W12: =LOOKUP(A12,'DOE - FIPStoPayeeCodeConvTable'!$A$3:$A$213,'DOE - FIPStoPayeeCodeConvTable'!$E$3:$E$213) -> 0.4602 | X12: 0.57525 | Y12: 0 | Z12: 0
A13: 15 | B13: =LOOKUP(A13,'DOE - FIPStoPayeeCodeConvTable'!$A$3:$A$213,'DOE - FIPStoPayeeCodeConvTable'!$B$3:$B$213) -> Augusta Co | C13: 0 | S13: 0 | U13: 0 | V13: 0 | W13: =LOOKUP(A13,'DOE - FIPStoPayeeCodeConvTable'!$A$3:$A$213,'DOE - FIPStoPayeeCodeConvTable'!$E$3:$E$213) -> 0.3302 | X13: 0.41275 | Y13: 0 | Z13: 0
A14: 17 | B14: =LOOKUP(A14,'DOE - FIPStoPayeeCodeConvTable'!$A$3:$A$213,'DOE - FIPStoPayeeCodeConvTable'!$B$3:$B$213) -> Bath Co | C14: 0 | S14: 0 | U14: 0 | V14: 0 | W14: =LOOKUP(A14,'DOE - FIPStoPayeeCodeConvTable'!$A$3:$A$213,'DOE - FIPStoPayeeCodeConvTable'!$E$3:$E$213) -> 0.4278 | X14: 0.53475 | Y14: 0 | Z14: 0
A15: 19 | B15: =LOOKUP(A15,'DOE - FIPStoPayeeCodeConvTable'!$A$3:$A$213,'DOE - FIPStoPayeeCodeConvTable'!$B$3:$B$213) -> Bedford Co | C15: 0 | S15: 0 | U15: 0 | V15: 0 | W15: =LOOKUP(A15,'DOE - FIPStoPayeeCodeConvTable'!$A$3:$A$213,'DOE - FIPStoPayeeCodeConvTable'!$E$3:$E$213) -> 0.31112 | X15: 0.3889 | Y15: 0 | Z15: 0
A16: 21 | B16: =LOOKUP(A16,'DOE - FIPStoPayeeCodeConvTable'!$A$3:$A$213,'DOE - FIPStoPayeeCodeConvTable'!$B$3:$B$213) -> Bland Co | C16: 0 | S16: 0 | U16: 0 | V16: 0 | W16: =LOOKUP(A16,'DOE - FIPStoPayeeCodeConvTable'!$A$3:$A$213,'DOE - FIPStoPayeeCodeConvTable'!$E$3:$E$213) -> 0.2109 | X16: 0.263625 | Y16: 0 | Z16: 0
A17: 23 | B17: =LOOKUP(A17,'DOE - FIPStoPayeeCodeConvTable'!$A$3:$A$213,'DOE - FIPStoPayeeCodeConvTable'!$B$3:$B$213) -> Botetourt Co | C17: 0 | S17: 0 | U17: 0 | V17: 0 | W17: =LOOKUP(A17,'DOE - FIPStoPayeeCodeConvTable'!$A$3:$A$213,'DOE - FIPStoPayeeCodeConvTable'!$E$3:$E$213) -> 0.3602 | X17: 0.45025 | Y17: 0 | Z17: 0
A18: 25 | B18: =LOOKUP(A18,'DOE - FIPStoPayeeCodeConvTable'!$A$3:$A$213,'DOE - FIPStoPayeeCodeConvTable'!$B$3:$B$213) -> Brunswick Co | C18: 0 | S18: 0 | U18: 0 | V18: 0 | W18: =LOOKUP(A18,'DOE - FIPStoPayeeCodeConvTable'!$A$3:$A$213,'DOE - FIPStoPayeeCodeConvTable'!$E$3:$E$213) -> 0.2439 | X18: 0.304875 | Y18: 0 | Z18: 0
A19: 27 | B19: =LOOKUP(A19,'DOE - FIPStoPayeeCodeConvTable'!$A$3:$A$213,'DOE - FIPStoPayeeCodeConvTable'!$B$3:$B$213) -> Buchanan Co | C19: 0 | S19: 0 | U19: 0 | V19: 0 | W19: =LOOKUP(A19,'DOE - FIPStoPayeeCodeConvTable'!$A$3:$A$213,'DOE - FIPStoPayeeCodeConvTable'!$E$3:$E$213) -> 0.3156 | X19: 0.3945 | Y19: 0 | Z19: 0
A20: 29 | B20: =LOOKUP(A20,'DOE - FIPStoPayeeCodeConvTable'!$A$3:$A$213,'DOE - FIPStoPayeeCodeConvTable'!$B$3:$B$213) -> Buckingham Co | C20: 0 | S20: 0 | U20: 0 | V20: 0 | W20: =LOOKUP(A20,'DOE - FIPStoPayeeCodeConvTable'!$A$3:$A$213,'DOE - FIPStoPayeeCodeConvTable'!$E$3:$E$213) -> 0.2023 | X20: 0.252875 | Y20: 0 | Z20: 0
A21: 31 | B21: =LOOKUP(A21,'DOE - FIPStoPayeeCodeConvTable'!$A$3:$A$213,'DOE - FIPStoPayeeCodeConvTable'!$B$3:$B$213) -> Campbell Co | C21: 0 | S21: 0 | U21: 0 | V21: 0 | W21: =LOOKUP(A21,'DOE - FIPStoPayeeCodeConvTable'!$A$3:$A$213,'DOE - FIPStoPayeeCodeConvTable'!$E$3:$E$213) -> 0.3107 | X21: 0.388375 | Y21: 0 | Z21: 0
A22: 33 | B22: =LOOKUP(A22,'DOE - FIPStoPayeeCodeConvTable'!$A$3:$A$213,'DOE - FIPStoPayeeCodeConvTable'!$B$3:$B$213) -> Caroline Co | C22: 0 | S22: 0 | U22: 0 | V22: 0 | W22: =LOOKUP(A22,'DOE - FIPStoPayeeCodeConvTable'!$A$3:$A$213,'DOE - FIPStoPayeeCodeConvTable'!$E$3:$E$213) -> 0.3308 | X22: 0.4135 | Y22: 0 | Z22: 0
A23: 35 | B23: =LOOKUP(A23,'DOE - FIPStoPayeeCodeConvTable'!$A$3:$A$213,'DOE - FIPStoPayeeCodeConvTable'!$B$3:$B$213) -> Carroll Co | C23: 0 | S23: 0 | U23: 0 | V23: 0 | W23: =LOOKUP(A23,'DOE - FIPStoPayeeCodeConvTable'!$A$3:$A$213,'DOE - FIPStoPayeeCodeConvTable'!$E$3:$E$213) -> 0.291 | X23: 0.36375 | Y23: 0 | Z23: 0
A24: 36 | B24: =LOOKUP(A24,'DOE - FIPStoPayeeCodeConvTable'!$A$3:$A$213,'DOE - FIPStoPayeeCodeConvTable'!$B$3:$B$213) -> Charles City Co | C24: 0 | S24: 0 | U24: 0 | V24: 0 | W24: =LOOKUP(A24,'DOE - FIPStoPayeeCodeConvTable'!$A$3:$A$213,'DOE - FIPStoPayeeCodeConvTable'!$E$3:$E$213) -> 0.3131 | X24: 0.391375 | Y24: 0 | Z24: 0
A25: 37 | B25: =LOOKUP(A25,'DOE - FIPStoPayeeCodeConvTable'!$A$3:$A$213,'DOE - FIPStoPayeeCodeConvTable'!$B$3:$B$213) -> Charlotte Co | C25: 0 | S25: 0 | U25: 0 | V25: 0 | W25: =LOOKUP(A25,'DOE - FIPStoPayeeCodeConvTable'!$A$3:$A$213,'DOE - FIPStoPayeeCodeConvTable'!$E$3:$E$213) -> 0.2204 | X25: 0.2755 | Y25: 0 | Z25: 0
A26: 41 | B26: =LOOKUP(A26,'DOE - FIPStoPayeeCodeConvTable'!$A$3:$A$213,'DOE - FIPStoPayeeCodeConvTable'!$B$3:$B$213) -> Chesterfield Co | C26: 0 | S26: 0 | U26: 0 | V26: 0 | W26: =LOOKUP(A26,'DOE - FIPStoPayeeCodeConvTable'!$A$3:$A$213,'DOE - FIPStoPayeeCodeConvTable'!$E$3:$E$213) -> 0.3853 | X26: 0.481625 | Y26: 0 | Z26: 0
A27: 43 | B27: =LOOKUP(A27,'DOE - FIPStoPayeeCodeConvTable'!$A$3:$A$213,'DOE - FIPStoPayeeCodeConvTable'!$B$3:$B$213) -> Clarke Co | C27: 0 | S27: 0 | U27: 0 | V27: 0 | W27: =LOOKUP(A27,'DOE - FIPStoPayeeCodeConvTable'!$A$3:$A$213,'DOE - FIPStoPayeeCodeConvTable'!$E$3:$E$213) -> 0.4797 | X27: 0.599625 | Y27: 0 | Z27: 0
A28: 45 | B28: =LOOKUP(A28,'DOE - FIPStoPayeeCodeConvTable'!$A$3:$A$213,'DOE - FIPStoPayeeCodeConvTable'!$B$3:$B$213) -> Craig Co | C28: 0 | S28: 0 | U28: 0 | V28: 0 | W28: =LOOKUP(A28,'DOE - FIPStoPayeeCodeConvTable'!$A$3:$A$213,'DOE - FIPStoPayeeCodeConvTable'!$E$3:$E$213) -> 0.2901 | X28: 0.362625 | Y28: 0 | Z28: 0
A29: 47 | B29: =LOOKUP(A29,'DOE - FIPStoPayeeCodeConvTable'!$A$3:$A$213,'DOE - FIPStoPayeeCodeConvTable'!$B$3:$B$213) -> Culpeper Co | C29: 0 | S29: 0 | U29: 0 | V29: 0 | W29: =LOOKUP(A29,'DOE - FIPStoPayeeCodeConvTable'!$A$3:$A$213,'DOE - FIPStoPayeeCodeConvTable'!$E$3:$E$213) -> 0.3767 | X29: 0.470875 | Y29: 0 | Z29: 0
A30: 49 | B30: =LOOKUP(A30,'DOE - FIPStoPayeeCodeConvTable'!$A$3:$A$213,'DOE - FIPStoPayeeCodeConvTable'!$B$3:$B$213) -> Cumberland Co | C30: 0 | S30: 0 | U30: 0 | V30: 0 | W30: =LOOKUP(A30,'DOE - FIPStoPayeeCodeConvTable'!$A$3:$A$213,'DOE - FIPStoPayeeCodeConvTable'!$E$3:$E$213) -> 0.304 | X30: 0.38 | Y30: 0 | Z30: 0
A31: 51 | B31: =LOOKUP(A31,'DOE - FIPStoPayeeCodeConvTable'!$A$3:$A$213,'DOE - FIPStoPayeeCodeConvTable'!$B$3:$B$213) -> Dickenson Co | C31: 0 | S31: 0 | U31: 0 | V31: 0 | W31: =LOOKUP(A31,'DOE - FIPStoPayeeCodeConvTable'!$A$3:$A$213,'DOE - FIPStoPayeeCodeConvTable'!$E$3:$E$213) -> 0.3042 | X31: 0.38025 | Y31: 0 | Z31: 0
A32: 53 | B32: =LOOKUP(A32,'DOE - FIPStoPayeeCodeConvTable'!$A$3:$A$213,'DOE - FIPStoPayeeCodeConvTable'!$B$3:$B$213) -> Dinwiddie Co | C32: 0 | S32: 0 | U32: 0 | V32: 0 | W32: =LOOKUP(A32,'DOE - FIPStoPayeeCodeConvTable'!$A$3:$A$213,'DOE - FIPStoPayeeCodeConvTable'!$E$3:$E$213) -> 0.3358 | X32: 0.41975 | Y32: 0 | Z32: 0
A33: 57 | B33: =LOOKUP(A33,'DOE - FIPStoPayeeCodeConvTable'!$A$3:$A$213,'DOE - FIPStoPayeeCodeConvTable'!$B$3:$B$213) -> Essex Co | C33: 0 | S33: 0 | U33: 0 | V33: 0 | W33: =LOOKUP(A33,'DOE - FIPStoPayeeCodeConvTable'!$A$3:$A$213,'DOE - FIPStoPayeeCodeConvTable'!$E$3:$E$213) -> 0.3853 | X33: 0.481625 | Y33: 0 | Z33: 0
A34: 59 | B34: =LOOKUP(A34,'DOE - FIPStoPayeeCodeConvTable'!$A$3:$A$213,'DOE - FIPStoPayeeCodeConvTable'!$B$3:$B$213) -> Fairfax Co | C34: 0 | S34: 0 | U34: 0 | V34: 0 | W34: =LOOKUP(A34,'DOE - FIPStoPayeeCodeConvTable'!$A$3:$A$213,'DOE - FIPStoPayeeCodeConvTable'!$E$3:$E$213) -> 0.4611 | X34: 0.576375 | Y34: 0 | Z34: 0
A35: 61 | B35: =LOOKUP(A35,'DOE - FIPStoPayeeCodeConvTable'!$A$3:$A$213,'DOE - FIPStoPayeeCodeConvTable'!$B$3:$B$213) -> Fauquier Co | C35: 0 | S35: 0 | U35: 0 | V35: 0 | W35: =LOOKUP(A35,'DOE - FIPStoPayeeCodeConvTable'!$A$3:$A$213,'DOE - FIPStoPayeeCodeConvTable'!$E$3:$E$213) -> 0.4584 | X35: 0.573 | Y35: 0 | Z35: 0
A36: 63 | B36: =LOOKUP(A36,'DOE - FIPStoPayeeCodeConvTable'!$A$3:$A$213,'DOE - FIPStoPayeeCodeConvTable'!$B$3:$B$213) -> Floyd Co | C36: 0 | S36: 0 | U36: 0 | V36: 0 | W36: =LOOKUP(A36,'DOE - FIPStoPayeeCodeConvTable'!$A$3:$A$213,'DOE - FIPStoPayeeCodeConvTable'!$E$3:$E$213) -> 0.2324 | X36: 0.2905 | Y36: 0 | Z36: 0
A37: 65 | B37: =LOOKUP(A37,'DOE - FIPStoPayeeCodeConvTable'!$A$3:$A$213,'DOE - FIPStoPayeeCodeConvTable'!$B$3:$B$213) -> Fluvanna Co | C37: 0 | S37: =SUM(C37:R37) -> 0 | U37: 0 | V37: 0 | W37: =LOOKUP(A37,'DOE - FIPStoPayeeCodeConvTable'!$A$3:$A$213,'DOE - FIPStoPayeeCodeConvTable'!$E$3:$E$213) -> 0.3811 | X37: 0.476375 | Y37: 0 | Z37: 0
A38: 67 | B38: =LOOKUP(A38,'DOE - FIPStoPayeeCodeConvTable'!$A$3:$A$213,'DOE - FIPStoPayeeCodeConvTable'!$B$3:$B$213) -> Franklin Co | C38: 0 | S38: 0 | U38: =ROUND($U$1*S38,2) -> 0 | V38: =SUM(S38)-SUM(U38) -> 0 | W38: =LOOKUP(A38,'DOE - FIPStoPayeeCodeConvTable'!$A$3:$A$213,'DOE - FIPStoPayeeCodeConvTable'!$E$3:$E$213) -> 0.283 | X38: 0.35375 | Y38: 0 | Z38: 0
A39: 69 | B39: =LOOKUP(A39,'DOE - FIPStoPayeeCodeConvTable'!$A$3:$A$213,'DOE - FIPStoPayeeCodeConvTable'!$B$3:$B$213) -> Frederick Co | C39: 0 | S39: 0 | U39: 0 | V39: 0 | W39: =LOOKUP(A39,'DOE - FIPStoPayeeCodeConvTable'!$A$3:$A$213,'DOE - FIPStoPayeeCodeConvTable'!$E$3:$E$213) -> 0.4348 | X39: 0.5435 | Y39: 0 | Z39: 0
A40: 71 | B40: =LOOKUP(A40,'DOE - FIPStoPayeeCodeConvTable'!$A$3:$A$213,'DOE - FIPStoPayeeCodeConvTable'!$B$3:$B$213) -> Giles Co | C40: 0 | S40: 0 | U40: 0 | V40: 0 | W40: =LOOKUP(A40,'DOE - FIPStoPayeeCodeConvTable'!$A$3:$A$213,'DOE - FIPStoPayeeCodeConvTable'!$E$3:$E$213) -> 0.2898 | X40: 0.36225 | Y40: 0 | Z40: 0
A41: 73 | B41: =LOOKUP(A41,'DOE - FIPStoPayeeCodeConvTable'!$A$3:$A$213,'DOE - FIPStoPayeeCodeConvTable'!$B$3:$B$213) -> Gloucester Co | C41: 0 | S41: 0 | U41: 0 | V41: 0 | W41: =LOOKUP(A41,'DOE - FIPStoPayeeCodeConvTable'!$A$3:$A$213,'DOE - FIPStoPayeeCodeConvTable'!$E$3:$E$213) -> 0.3687 | X41: 0.460875 | Y41: 0 | Z41: 0
A42: 75 | B42: =LOOKUP(A42,'DOE - FIPStoPayeeCodeConvTable'!$A$3:$A$213,'DOE - FIPStoPayeeCodeConvTable'!$B$3:$B$213) -> Goochland Co | C42: 0 | S42: 0 | U42: 0 | V42: 0 | W42: =LOOKUP(A42,'DOE - FIPStoPayeeCodeConvTable'!$A$3:$A$213,'DOE - FIPStoPayeeCodeConvTable'!$E$3:$E$213) -> 0.4871 | X42: 0.608875 | Y42: 0 | Z42: 0
A43: 77 | B43: =LOOKUP(A43,'DOE - FIPStoPayeeCodeConvTable'!$A$3:$A$213,'DOE - FIPStoPayeeCodeConvTable'!$B$3:$B$213) -> Grayson Co | C43: 0 | S43: 0 | U43: 0 | V43: 0 | W43: =LOOKUP(A43,'DOE - FIPStoPayeeCodeConvTable'!$A$3:$A$213,'DOE - FIPStoPayeeCodeConvTable'!$E$3:$E$213) -> 0.2109 | X43: 0.263625 | Y43: 0 | Z43: 0
A44: 79 | B44: =LOOKUP(A44,'DOE - FIPStoPayeeCodeConvTable'!$A$3:$A$213,'DOE - FIPStoPayeeCodeConvTable'!$B$3:$B$213) -> Greene Co | C44: 0 | S44: 0 | U44: 0 | V44: 0 | W44: =LOOKUP(A44,'DOE - FIPStoPayeeCodeConvTable'!$A$3:$A$213,'DOE - FIPStoPayeeCodeConvTable'!$E$3:$E$213) -> 0.3471 | X44: 0.433875 | Y44: 0 | Z44: 0
A45: 81 | B45: =LOOKUP(A45,'DOE - FIPStoPayeeCodeConvTable'!$A$3:$A$213,'DOE - FIPStoPayeeCodeConvTable'!$B$3:$B$213) -> Greensville Co | C45: 0 | S45: 0 | U45: 0 | V45: 0 | W45: =LOOKUP(A45,'DOE - FIPStoPayeeCodeConvTable'!$A$3:$A$213,'DOE - FIPStoPayeeCodeConvTable'!$E$3:$E$213) -> 0.2266 | X45: 0.28325 | Y45: 0 | Z45: 0
A46: 83 | B46: =LOOKUP(A46,'DOE - FIPStoPayeeCodeConvTable'!$A$3:$A$213,'DOE - FIPStoPayeeCodeConvTable'!$B$3:$B$213) -> Halifax Co | C46: 0 | S46: 0 | U46: 0 | V46: 0 | W46: =LOOKUP(A46,'DOE - FIPStoPayeeCodeConvTable'!$A$3:$A$213,'DOE - FIPStoPayeeCodeConvTable'!$E$3:$E$213) -> 0.2335 | X46: 0.291875 | Y46: 0 | Z46: 0
A47: 85 | B47: =LOOKUP(A47,'DOE - FIPStoPayeeCodeConvTable'!$A$3:$A$213,'DOE - FIPStoPayeeCodeConvTable'!$B$3:$B$213) -> Hanover Co | C47: 0 | S47: 0 | U47: 0 | V47: 0 | W47: =LOOKUP(A47,'DOE - FIPStoPayeeCodeConvTable'!$A$3:$A$213,'DOE - FIPStoPayeeCodeConvTable'!$E$3:$E$213) -> 0.4444 | X47: 0.5555 | Y47: 0 | Z47: 0
A48: 87 | B48: =LOOKUP(A48,'DOE - FIPStoPayeeCodeConvTable'!$A$3:$A$213,'DOE - FIPStoPayeeCodeConvTable'!$B$3:$B$213) -> Henrico Co | C48: 0 | S48: 0 | U48: 0 | V48: 0 | W48: =LOOKUP(A48,'DOE - FIPStoPayeeCodeConvTable'!$A$3:$A$213,'DOE - FIPStoPayeeCodeConvTable'!$E$3:$E$213) -> 0.3755 | X48: 0.469375 | Y48: 0 | Z48: 0
A49: 89 | B49: =LOOKUP(A49,'DOE - FIPStoPayeeCodeConvTable'!$A$3:$A$213,'DOE - FIPStoPayeeCodeConvTable'!$B$3:$B$213) -> Henry Co | C49: 0 | S49: 0 | U49: 0 | V49: 0 | W49: =LOOKUP(A49,'DOE - FIPStoPayeeCodeConvTable'!$A$3:$A$213,'DOE - FIPStoPayeeCodeConvTable'!$E$3:$E$213) -> 0.2786 | X49: 0.34825 | Y49: 0 | Z49: 0
A50: 91 | B50: =LOOKUP(A50,'DOE - FIPStoPayeeCodeConvTable'!$A$3:$A$213,'DOE - FIPStoPayeeCodeConvTable'!$B$3:$B$213) -> Highland Co | C50: 0 | S50: 0 | U50: 0 | V50: 0 | W50: =LOOKUP(A50,'DOE - FIPStoPayeeCodeConvTable'!$A$3:$A$213,'DOE - FIPStoPayeeCodeConvTable'!$E$3:$E$213) -> 0.3822 | X50: 0.47775 | Y50: 0 | Z50: 0
A51: 93 | B51: =LOOKUP(A51,'DOE - FIPStoPayeeCodeConvTable'!$A$3:$A$213,'DOE - FIPStoPayeeCodeConvTable'!$B$3:$B$213) -> Isle Of Wight Co | C51: 0 | S51: 0 | U51: 0 | V51: 0 | W51: =LOOKUP(A51,'DOE - FIPStoPayeeCodeConvTable'!$A$3:$A$213,'DOE - FIPStoPayeeCodeConvTable'!$E$3:$E$213) -> 0.3613 | X51: 0.451625 | Y51: 0 | Z51: 0
A52: 95 | B52: =LOOKUP(A52,'DOE - FIPStoPayeeCodeConvTable'!$A$3:$A$213,'DOE - FIPStoPayeeCodeConvTable'!$B$3:$B$213) -> James City Co | C52: 0 | S52: 0 | U52: 0 | V52: 0 | W52: =LOOKUP(A52,'DOE - FIPStoPayeeCodeConvTable'!$A$3:$A$213,'DOE - FIPStoPayeeCodeConvTable'!$E$3:$E$213) -> 0.4483 | X52: 0.560375 | Y52: 0 | Z52: 0
A53: 97 | B53: =LOOKUP(A53,'DOE - FIPStoPayeeCodeConvTable'!$A$3:$A$213,'DOE - FIPStoPayeeCodeConvTable'!$B$3:$B$213) -> King And Queen Co | C53: 0 | S53: 0 | U53: 0 | V53: 0 | W53: =LOOKUP(A53,'DOE - FIPStoPayeeCodeConvTable'!$A$3:$A$213,'DOE - FIPStoPayeeCodeConvTable'!$E$3:$E$213) -> 0.3144 | X53: 0.393 | Y53: 0 | Z53: 0
A54: 99 | B54: =LOOKUP(A54,'DOE - FIPStoPayeeCodeConvTable'!$A$3:$A$213,'DOE - FIPStoPayeeCodeConvTable'!$B$3:$B$213) -> King George Co | C54: 0 | S54: 0 | U54: 0 | V54: 0 | W54: =LOOKUP(A54,'DOE - FIPStoPayeeCodeConvTable'!$A$3:$A$213,'DOE - FIPStoPayeeCodeConvTable'!$E$3:$E$213) -> 0.3627 | X54: 0.453375 | Y54: 0 | Z54: 0
A55: 101 | B55: =LOOKUP(A55,'DOE - FIPStoPayeeCodeConvTable'!$A$3:$A$213,'DOE - FIPStoPayeeCodeConvTable'!$B$3:$B$213) -> King William Co | C55: 0 | S55: 0 | U55: 0 | V55: 0 | W55: =LOOKUP(A55,'DOE - FIPStoPayeeCodeConvTable'!$A$3:$A$213,'DOE - FIPStoPayeeCodeConvTable'!$E$3:$E$213) -> 0.3853 | X55: 0.481625 | Y55: 0 | Z55: 0
A56: 103 | B56: =LOOKUP(A56,'DOE - FIPStoPayeeCodeConvTable'!$A$3:$A$213,'DOE - FIPStoPayeeCodeConvTable'!$B$3:$B$213) -> Lancaster Co | C56: 0 | S56: 0 | U56: 0 | V56: 0 | W56: =LOOKUP(A56,'DOE - FIPStoPayeeCodeConvTable'!$A$3:$A$213,'DOE - FIPStoPayeeCodeConvTable'!$E$3:$E$213) -> 0.4391 | X56: 0.548875 | Y56: 0 | Z56: 0
A57: 105 | B57: =LOOKUP(A57,'DOE - FIPStoPayeeCodeConvTable'!$A$3:$A$213,'DOE - FIPStoPayeeCodeConvTable'!$B$3:$B$213) -> Lee Co | C57: 0 | S57: 0 | U57: 0 | V57: 0 | W57: =LOOKUP(A57,'DOE - FIPStoPayeeCodeConvTable'!$A$3:$A$213,'DOE - FIPStoPayeeCodeConvTable'!$E$3:$E$213) -> 0.2245 | X57: 0.280625 | Y57: 0 | Z57: 0
A58: 107 | B58: =LOOKUP(A58,'DOE - FIPStoPayeeCodeConvTable'!$A$3:$A$213,'DOE - FIPStoPayeeCodeConvTable'!$B$3:$B$213) -> Loudoun Co | C58: 0 | S58: 0 | U58: 0 | V58: 0 | W58: =LOOKUP(A58,'DOE - FIPStoPayeeCodeConvTable'!$A$3:$A$213,'DOE - FIPStoPayeeCodeConvTable'!$E$3:$E$213) -> 0.4764 | X58: 0.5955 | Y58: 0 | Z58: 0
A59: 109 | B59: =LOOKUP(A59,'DOE - FIPStoPayeeCodeConvTable'!$A$3:$A$213,'DOE - FIPStoPayeeCodeConvTable'!$B$3:$B$213) -> Louisa Co | C59: 0 | S59: 0 | U59: 0 | V59: 0 | W59: =LOOKUP(A59,'DOE - FIPStoPayeeCodeConvTable'!$A$3:$A$213,'DOE - FIPStoPayeeCodeConvTable'!$E$3:$E$213) -> 0.4401 | X59: 0.550125 | Y59: 0 | Z59: 0
A60: 111 | B60: =LOOKUP(A60,'DOE - FIPStoPayeeCodeConvTable'!$A$3:$A$213,'DOE - FIPStoPayeeCodeConvTable'!$B$3:$B$213) -> Lunenburg Co | C60: 0 | S60: 0 | U60: 0 | V60: 0 | W60: =LOOKUP(A60,'DOE - FIPStoPayeeCodeConvTable'!$A$3:$A$213,'DOE - FIPStoPayeeCodeConvTable'!$E$3:$E$213) -> 0.1698 | X60: 0.21225 | Y60: 0 | Z60: 0
A61: 113 | B61: =LOOKUP(A61,'DOE - FIPStoPayeeCodeConvTable'!$A$3:$A$213,'DOE - FIPStoPayeeCodeConvTable'!$B$3:$B$213) -> Madison Co | C61: 0 | S61: 0 | U61: 0 | V61: 0 | W61: =LOOKUP(A61,'DOE - FIPStoPayeeCodeConvTable'!$A$3:$A$213,'DOE - FIPStoPayeeCodeConvTable'!$E$3:$E$213) -> 0.3355 | X61: 0.419375 | Y61: 0 | Z61: 0
A62: 115 | B62: =LOOKUP(A62,'DOE - FIPStoPayeeCodeConvTable'!$A$3:$A$213,'DOE - FIPStoPayeeCodeConvTable'!$B$3:$B$213) -> Mathews Co | C62: 0 | S62: 0 | U62: 0 | V62: 0 | W62: =LOOKUP(A62,'DOE - FIPStoPayeeCodeConvTable'!$A$3:$A$213,'DOE - FIPStoPayeeCodeConvTable'!$E$3:$E$213) -> 0.4271 | X62: 0.533875 | Y62: 0 | Z62: 0
A63: 117 | B63: =LOOKUP(A63,'DOE - FIPStoPayeeCodeConvTable'!$A$3:$A$213,'DOE - FIPStoPayeeCodeConvTable'!$B$3:$B$213) -> Mecklenburg Co | C63: 0 | S63: 0 | U63: 0 | V63: 0 | W63: =LOOKUP(A63,'DOE - FIPStoPayeeCodeConvTable'!$A$3:$A$213,'DOE - FIPStoPayeeCodeConvTable'!$E$3:$E$213) -> 0.2286 | X63: 0.28575 | Y63: 0 | Z63: 0
A64: 119 | B64: =LOOKUP(A64,'DOE - FIPStoPayeeCodeConvTable'!$A$3:$A$213,'DOE - FIPStoPayeeCodeConvTable'!$B$3:$B$213) -> Middlesex Co | C64: 0 | S64: 0 | U64: 0 | V64: 0 | W64: =LOOKUP(A64,'DOE - FIPStoPayeeCodeConvTable'!$A$3:$A$213,'DOE - FIPStoPayeeCodeConvTable'!$E$3:$E$213) -> 0.4333 | X64: 0.541625 | Y64: 0 | Z64: 0
A65: 121 | B65: =LOOKUP(A65,'DOE - FIPStoPayeeCodeConvTable'!$A$3:$A$213,'DOE - FIPStoPayeeCodeConvTable'!$B$3:$B$213) -> Montgomery Co | C65: 0 | S65: 0 | U65: 0 | V65: 0 | W65: =LOOKUP(A65,'DOE - FIPStoPayeeCodeConvTable'!$A$3:$A$213,'DOE - FIPStoPayeeCodeConvTable'!$E$3:$E$213) -> 0.2834 | X65: 0.35425 | Y65: 0 | Z65: 0
A66: 125 | B66: =LOOKUP(A66,'DOE - FIPStoPayeeCodeConvTable'!$A$3:$A$213,'DOE - FIPStoPayeeCodeConvTable'!$B$3:$B$213) -> Nelson Co | C66: 0 | S66: 0 | U66: 0 | V66: 0 | W66: =LOOKUP(A66,'DOE - FIPStoPayeeCodeConvTable'!$A$3:$A$213,'DOE - FIPStoPayeeCodeConvTable'!$E$3:$E$213) -> 0.3132 | X66: 0.3915 | Y66: 0 | Z66: 0
A67: 127 | B67: =LOOKUP(A67,'DOE - FIPStoPayeeCodeConvTable'!$A$3:$A$213,'DOE - FIPStoPayeeCodeConvTable'!$B$3:$B$213) -> New Kent Co | C67: 0 | S67: 0 | U67: 0 | V67: 0 | W67: =LOOKUP(A67,'DOE - FIPStoPayeeCodeConvTable'!$A$3:$A$213,'DOE - FIPStoPayeeCodeConvTable'!$E$3:$E$213) -> 0.4329 | X67: 0.541125 | Y67: 0 | Z67: 0
A68: 131 | B68: =LOOKUP(A68,'DOE - FIPStoPayeeCodeConvTable'!$A$3:$A$213,'DOE - FIPStoPayeeCodeConvTable'!$B$3:$B$213) -> Northampton Co | C68: 0 | S68: 0 | U68: 0 | V68: 0 | W68: =LOOKUP(A68,'DOE - FIPStoPayeeCodeConvTable'!$A$3:$A$213,'DOE - FIPStoPayeeCodeConvTable'!$E$3:$E$213) -> 0.1971 | X68: 0.246375 | Y68: 0 | Z68: 0
A69: 133 | B69: =LOOKUP(A69,'DOE - FIPStoPayeeCodeConvTable'!$A$3:$A$213,'DOE - FIPStoPayeeCodeConvTable'!$B$3:$B$213) -> Northumberland Co | C69: 0 | S69: =SUM(C69:R69) -> 0 | U69: 0 | V69: 0 | W69: =LOOKUP(A69,'DOE - FIPStoPayeeCodeConvTable'!$A$3:$A$213,'DOE - FIPStoPayeeCodeConvTable'!$E$3:$E$213) -> 0.3304 | X69: 0.413 | Y69: 0 | Z69: 0
A70: 135 | B70: =LOOKUP(A70,'DOE - FIPStoPayeeCodeConvTable'!$A$3:$A$213,'DOE - FIPStoPayeeCodeConvTable'!$B$3:$B$213) -> Nottoway Co | C70: 0 | S70: 0 | U70: =ROUND($U$1*S70,2) -> 0 | V70: =SUM(S70)-SUM(U70) -> 0 | W70: =LOOKUP(A70,'DOE - FIPStoPayeeCodeConvTable'!$A$3:$A$213,'DOE - FIPStoPayeeCodeConvTable'!$E$3:$E$213) -> 0.2686 | X70: 0.33575 | Y70: 0 | Z70: 0
A71: 137 | B71: =LOOKUP(A71,'DOE - FIPStoPayeeCodeConvTable'!$A$3:$A$213,'DOE - FIPStoPayeeCodeConvTable'!$B$3:$B$213) -> Orange Co | C71: 0 | S71: 0 | U71: 0 | V71: 0 | W71: =LOOKUP(A71,'DOE - FIPStoPayeeCodeConvTable'!$A$3:$A$213,'DOE - FIPStoPayeeCodeConvTable'!$E$3:$E$213) -> 0.4083 | X71: =$X$1*W71 -> 0.510375 | Y71: =ROUND(X71*V71,2) -> 0 | Z71: =SUM(V71)-SUM(Y71) -> 0
A72: 139 | B72: =LOOKUP(A72,'DOE - FIPStoPayeeCodeConvTable'!$A$3:$A$213,'DOE - FIPStoPayeeCodeConvTable'!$B$3:$B$213) -> Page Co | C72: 0 | S72: 0 | U72: 0 | V72: 0 | W72: =LOOKUP(A72,'DOE - FIPStoPayeeCodeConvTable'!$A$3:$A$213,'DOE - FIPStoPayeeCodeConvTable'!$E$3:$E$213) -> 0.2865 | X72: 0.358125 | Y72: 0 | Z72: 0
A73: 141 | B73: =LOOKUP(A73,'DOE - FIPStoPayeeCodeConvTable'!$A$3:$A$213,'DOE - FIPStoPayeeCodeConvTable'!$B$3:$B$213) -> Patrick Co | C73: 0 | S73: 0 | U73: 0 | V73: 0 | W73: =LOOKUP(A73,'DOE - FIPStoPayeeCodeConvTable'!$A$3:$A$213,'DOE - FIPStoPayeeCodeConvTable'!$E$3:$E$213) -> 0.2539 | X73: 0.317375 | Y73: 0 | Z73: 0
A74: 143 | B74: =LOOKUP(A74,'DOE - FIPStoPayeeCodeConvTable'!$A$3:$A$213,'DOE - FIPStoPayeeCodeConvTable'!$B$3:$B$213) -> Pittsylvania Co | C74: 0 | S74: 0 | U74: 0 | V74: 0 | W74: =LOOKUP(A74,'DOE - FIPStoPayeeCodeConvTable'!$A$3:$A$213,'DOE - FIPStoPayeeCodeConvTable'!$E$3:$E$213) -> 0.2355 | X74: 0.294375 | Y74: 0 | Z74: 0
A75: 145 | B75: =LOOKUP(A75,'DOE - FIPStoPayeeCodeConvTable'!$A$3:$A$213,'DOE - FIPStoPayeeCodeConvTable'!$B$3:$B$213) -> Powhatan Co | C75: 0 | S75: 0 | U75: 0 | V75: 0 | W75: =LOOKUP(A75,'DOE - FIPStoPayeeCodeConvTable'!$A$3:$A$213,'DOE - FIPStoPayeeCodeConvTable'!$E$3:$E$213) -> 0.4342 | X75: 0.54275 | Y75: 0 | Z75: 0
A76: 147 | B76: =LOOKUP(A76,'DOE - FIPStoPayeeCodeConvTable'!$A$3:$A$213,'DOE - FIPStoPayeeCodeConvTable'!$B$3:$B$213) -> Prince Edward Co | C76: 0 | S76: 0 | U76: 0 | V76: 0 | W76: =LOOKUP(A76,'DOE - FIPStoPayeeCodeConvTable'!$A$3:$A$213,'DOE - FIPStoPayeeCodeConvTable'!$E$3:$E$213) -> 0.2232 | X76: 0.279 | Y76: 0 | Z76: 0
A77: 149 | B77: =LOOKUP(A77,'DOE - FIPStoPayeeCodeConvTable'!$A$3:$A$213,'DOE - FIPStoPayeeCodeConvTable'!$B$3:$B$213) -> Prince George Co | C77: 0 | S77: 0 | U77: 0 | V77: 0 | W77: =LOOKUP(A77,'DOE - FIPStoPayeeCodeConvTable'!$A$3:$A$213,'DOE - FIPStoPayeeCodeConvTable'!$E$3:$E$213) -> 0.3716 | X77: 0.4645 | Y77: 0 | Z77: 0
A78: 153 | B78: =LOOKUP(A78,'DOE - FIPStoPayeeCodeConvTable'!$A$3:$A$213,'DOE - FIPStoPayeeCodeConvTable'!$B$3:$B$213) -> Prince William Co | C78: 0 | S78: 0 | U78: 0 | V78: 0 | W78: =LOOKUP(A78,'DOE - FIPStoPayeeCodeConvTable'!$A$3:$A$213,'DOE - FIPStoPayeeCodeConvTable'!$E$3:$E$213) -> 0.3414 | X78: 0.42675 | Y78: 0 | Z78: 0
A79: 155 | B79: =LOOKUP(A79,'DOE - FIPStoPayeeCodeConvTable'!$A$3:$A$213,'DOE - FIPStoPayeeCodeConvTable'!$B$3:$B$213) -> Pulaski Co | C79: 0 | S79: 0 | U79: 0 | V79: 0 | W79: =LOOKUP(A79,'DOE - FIPStoPayeeCodeConvTable'!$A$3:$A$213,'DOE - FIPStoPayeeCodeConvTable'!$E$3:$E$213) -> 0.2923 | X79: 0.365375 | Y79: 0 | Z79: 0
A80: 157 | B80: =LOOKUP(A80,'DOE - FIPStoPayeeCodeConvTable'!$A$3:$A$213,'DOE - FIPStoPayeeCodeConvTable'!$B$3:$B$213) -> Rappahannock Co | C80: 0 | S80: 0 | U80: 0 | V80: 0 | W80: =LOOKUP(A80,'DOE - FIPStoPayeeCodeConvTable'!$A$3:$A$213,'DOE - FIPStoPayeeCodeConvTable'!$E$3:$E$213) -> 0.4199 | X80: 0.524875 | Y80: 0 | Z80: 0
A81: 159 | B81: =LOOKUP(A81,'DOE - FIPStoPayeeCodeConvTable'!$A$3:$A$213,'DOE - FIPStoPayeeCodeConvTable'!$B$3:$B$213) -> Richmond Co | C81: 0 | S81: 0 | U81: 0 | V81: 0 | W81: =LOOKUP(A81,'DOE - FIPStoPayeeCodeConvTable'!$A$3:$A$213,'DOE - FIPStoPayeeCodeConvTable'!$E$3:$E$213) -> 0.3227 | X81: 0.403375 | Y81: 0 | Z81: 0
A82: 161 | B82: =LOOKUP(A82,'DOE - FIPStoPayeeCodeConvTable'!$A$3:$A$213,'DOE - FIPStoPayeeCodeConvTable'!$B$3:$B$213) -> Roanoke Co | C82: 0 | S82: 0 | U82: 0 | V82: 0 | W82: =LOOKUP(A82,'DOE - FIPStoPayeeCodeConvTable'!$A$3:$A$213,'DOE - FIPStoPayeeCodeConvTable'!$E$3:$E$213) -> 0.4397 | X82: 0.549625 | Y82: 0 | Z82: 0
A83: 163 | B83: =LOOKUP(A83,'DOE - FIPStoPayeeCodeConvTable'!$A$3:$A$213,'DOE - FIPStoPayeeCodeConvTable'!$B$3:$B$213) -> Rockbridge Co | C83: 0 | S83: 0 | U83: 0 | V83: 0 | W83: =LOOKUP(A83,'DOE - FIPStoPayeeCodeConvTable'!$A$3:$A$213,'DOE - FIPStoPayeeCodeConvTable'!$E$3:$E$213) -> 0.2336 | X83: 0.292 | Y83: 0 | Z83: 0
A84: 165 | B84: =LOOKUP(A84,'DOE - FIPStoPayeeCodeConvTable'!$A$3:$A$213,'DOE - FIPStoPayeeCodeConvTable'!$B$3:$B$213) -> Rockingham Co | C84: 0 | S84: 0 | U84: 0 | V84: 0 | W84: =LOOKUP(A84,'DOE - FIPStoPayeeCodeConvTable'!$A$3:$A$213,'DOE - FIPStoPayeeCodeConvTable'!$E$3:$E$213) -> 0.3445 | X84: 0.430625 | Y84: 0 | Z84: 0
A85: 167 | B85: =LOOKUP(A85,'DOE - FIPStoPayeeCodeConvTable'!$A$3:$A$213,'DOE - FIPStoPayeeCodeConvTable'!$B$3:$B$213) -> Russell Co | C85: 0 | S85: 0 | U85: 0 | V85: 0 | W85: =LOOKUP(A85,'DOE - FIPStoPayeeCodeConvTable'!$A$3:$A$213,'DOE - FIPStoPayeeCodeConvTable'!$E$3:$E$213) -> 0.1894 | X85: 0.23675 | Y85: 0 | Z85: 0
A86: 169 | B86: =LOOKUP(A86,'DOE - FIPStoPayeeCodeConvTable'!$A$3:$A$213,'DOE - FIPStoPayeeCodeConvTable'!$B$3:$B$213) -> Scott Co | C86: 0 | S86: 0 | U86: 0 | V86: 0 | W86: =LOOKUP(A86,'DOE - FIPStoPayeeCodeConvTable'!$A$3:$A$213,'DOE - FIPStoPayeeCodeConvTable'!$E$3:$E$213) -> 0.3154 | X86: 0.39425 | Y86: 0 | Z86: 0
A87: 171 | B87: =LOOKUP(A87,'DOE - FIPStoPayeeCodeConvTable'!$A$3:$A$213,'DOE - FIPStoPayeeCodeConvTable'!$B$3:$B$213) -> Shenandoah Co | C87: 0 | S87: 0 | U87: 0 | V87: 0 | W87: =LOOKUP(A87,'DOE - FIPStoPayeeCodeConvTable'!$A$3:$A$213,'DOE - FIPStoPayeeCodeConvTable'!$E$3:$E$213) -> 0.3517 | X87: 0.439625 | Y87: 0 | Z87: 0
A88: 173 | B88: =LOOKUP(A88,'DOE - FIPStoPayeeCodeConvTable'!$A$3:$A$213,'DOE - FIPStoPayeeCodeConvTable'!$B$3:$B$213) -> Smyth Co | C88: 0 | S88: 0 | U88: 0 | V88: 0 | W88: =LOOKUP(A88,'DOE - FIPStoPayeeCodeConvTable'!$A$3:$A$213,'DOE - FIPStoPayeeCodeConvTable'!$E$3:$E$213) -> 0.2337 | X88: 0.292125 | Y88: 0 | Z88: 0
A89: 175 | B89: =LOOKUP(A89,'DOE - FIPStoPayeeCodeConvTable'!$A$3:$A$213,'DOE - FIPStoPayeeCodeConvTable'!$B$3:$B$213) -> Southampton Co | C89: 0 | S89: 0 | U89: 0 | V89: 0 | W89: =LOOKUP(A89,'DOE - FIPStoPayeeCodeConvTable'!$A$3:$A$213,'DOE - FIPStoPayeeCodeConvTable'!$E$3:$E$213) -> 0.323 | X89: 0.40375 | Y89: 0 | Z89: 0
A90: 177 | B90: =LOOKUP(A90,'DOE - FIPStoPayeeCodeConvTable'!$A$3:$A$213,'DOE - FIPStoPayeeCodeConvTable'!$B$3:$B$213) -> Spotsylvania Co | C90: 0 | S90: 0 | U90: 0 | V90: 0 | W90: =LOOKUP(A90,'DOE - FIPStoPayeeCodeConvTable'!$A$3:$A$213,'DOE - FIPStoPayeeCodeConvTable'!$E$3:$E$213) -> 0.4588 | X90: 0.5735 | Y90: 0 | Z90: 0
A91: 179 | B91: =LOOKUP(A91,'DOE - FIPStoPayeeCodeConvTable'!$A$3:$A$213,'DOE - FIPStoPayeeCodeConvTable'!$B$3:$B$213) -> Stafford Co | C91: 0 | S91: 0 | U91: 0 | V91: 0 | W91: =LOOKUP(A91,'DOE - FIPStoPayeeCodeConvTable'!$A$3:$A$213,'DOE - FIPStoPayeeCodeConvTable'!$E$3:$E$213) -> 0.4439 | X91: 0.554875 | Y91: 0 | Z91: 0
A92: 181 | B92: =LOOKUP(A92,'DOE - FIPStoPayeeCodeConvTable'!$A$3:$A$213,'DOE - FIPStoPayeeCodeConvTable'!$B$3:$B$213) -> Surry Co | C92: 0 | S92: 0 | U92: 0 | V92: 0 | W92: =LOOKUP(A92,'DOE - FIPStoPayeeCodeConvTable'!$A$3:$A$213,'DOE - FIPStoPayeeCodeConvTable'!$E$3:$E$213) -> 0.3979 | X92: 0.497375 | Y92: 0 | Z92: 0
A93: 183 | B93: =LOOKUP(A93,'DOE - FIPStoPayeeCodeConvTable'!$A$3:$A$213,'DOE - FIPStoPayeeCodeConvTable'!$B$3:$B$213) -> Sussex Co | C93: 0 | S93: 0 | U93: 0 | V93: 0 | W93: =LOOKUP(A93,'DOE - FIPStoPayeeCodeConvTable'!$A$3:$A$213,'DOE - FIPStoPayeeCodeConvTable'!$E$3:$E$213) -> 0.2387 | X93: 0.298375 | Y93: 0 | Z93: 0
A94: 185 | B94: =LOOKUP(A94,'DOE - FIPStoPayeeCodeConvTable'!$A$3:$A$213,'DOE - FIPStoPayeeCodeConvTable'!$B$3:$B$213) -> Tazewell Co | C94: 0 | S94: 0 | U94: 0 | V94: 0 | W94: =LOOKUP(A94,'DOE - FIPStoPayeeCodeConvTable'!$A$3:$A$213,'DOE - FIPStoPayeeCodeConvTable'!$E$3:$E$213) -> 0.2455 | X94: 0.306875 | Y94: 0 | Z94: 0
A95: 187 | B95: =LOOKUP(A95,'DOE - FIPStoPayeeCodeConvTable'!$A$3:$A$213,'DOE - FIPStoPayeeCodeConvTable'!$B$3:$B$213) -> Warren Co | C95: 0 | S95: 0 | U95: 0 | V95: 0 | W95: =LOOKUP(A95,'DOE - FIPStoPayeeCodeConvTable'!$A$3:$A$213,'DOE - FIPStoPayeeCodeConvTable'!$E$3:$E$213) -> 0.3853 | X95: 0.481625 | Y95: 0 | Z95: 0
A96: 191 | B96: =LOOKUP(A96,'DOE - FIPStoPayeeCodeConvTable'!$A$3:$A$213,'DOE - FIPStoPayeeCodeConvTable'!$B$3:$B$213) -> Washington Co | C96: 0 | S96: 0 | U96: 0 | V96: 0 | W96: =LOOKUP(A96,'DOE - FIPStoPayeeCodeConvTable'!$A$3:$A$213,'DOE - FIPStoPayeeCodeConvTable'!$E$3:$E$213) -> 0.276 | X96: 0.345 | Y96: 0 | Z96: 0
A97: 193 | B97: =LOOKUP(A97,'DOE - FIPStoPayeeCodeConvTable'!$A$3:$A$213,'DOE - FIPStoPayeeCodeConvTable'!$B$3:$B$213) -> Westmoreland Co | C97: 0 | S97: 0 | U97: 0 | V97: 0 | W97: =LOOKUP(A97,'DOE - FIPStoPayeeCodeConvTable'!$A$3:$A$213,'DOE - FIPStoPayeeCodeConvTable'!$E$3:$E$213) -> 0.3025 | X97: 0.378125 | Y97: 0 | Z97: 0
A98: 195 | B98: =LOOKUP(A98,'DOE - FIPStoPayeeCodeConvTable'!$A$3:$A$213,'DOE - FIPStoPayeeCodeConvTable'!$B$3:$B$213) -> Wise Co | C98: 0 | S98: 0 | U98: 0 | V98: 0 | W98: =LOOKUP(A98,'DOE - FIPStoPayeeCodeConvTable'!$A$3:$A$213,'DOE - FIPStoPayeeCodeConvTable'!$E$3:$E$213) -> 0.2755 | X98: 0.344375 | Y98: 0 | Z98: 0
A99: 197 | B99: =LOOKUP(A99,'DOE - FIPStoPayeeCodeConvTable'!$A$3:$A$213,'DOE - FIPStoPayeeCodeConvTable'!$B$3:$B$213) -> Wythe Co | C99: 0 | S99: 0 | U99: 0 | V99: 0 | W99: =LOOKUP(A99,'DOE - FIPStoPayeeCodeConvTable'!$A$3:$A$213,'DOE - FIPStoPayeeCodeConvTable'!$E$3:$E$213) -> 0.2708 | X99: 0.3385 | Y99: 0 | Z99: 0
A100: 199 | B100: =LOOKUP(A100,'DOE - FIPStoPayeeCodeConvTable'!$A$3:$A$213,'DOE - FIPStoPayeeCodeConvTable'!$B$3:$B$213) -> York Co | C100: 0 | S100: 0 | U100: 0 | V100: 0 | W100: =LOOKUP(A100,'DOE - FIPStoPayeeCodeConvTable'!$A$3:$A$213,'DOE - FIPStoPayeeCodeConvTable'!$E$3:$E$213) -> 0.3888 | X100: 0.486 | Y100: 0 | Z100: 0
A101: 510 | B101: =LOOKUP(A101,'DOE - FIPStoPayeeCodeConvTable'!$A$3:$A$213,'DOE - FIPStoPayeeCodeConvTable'!$B$3:$B$213) -> Alexandria City | C101: 0 | S101: =SUM(C101:R101) -> 0 | U101: 0 | V101: 0 | W101: =LOOKUP(A101,'DOE - FIPStoPayeeCodeConvTable'!$A$3:$A$213,'DOE - FIPStoPayeeCodeConvTable'!$E$3:$E$213) -> 0.5309 | X101: 0.663625 | Y101: 0 | Z101: 0
A102: 520 | B102: =LOOKUP(A102,'DOE - FIPStoPayeeCodeConvTable'!$A$3:$A$213,'DOE - FIPStoPayeeCodeConvTable'!$B$3:$B$213) -> Bristol City | C102: 0 | S102: 0 | U102: =ROUND($U$1*S102,2) -> 0 | V102: =SUM(S102)-SUM(U102) -> 0 | W102: =LOOKUP(A102,'DOE - FIPStoPayeeCodeConvTable'!$A$3:$A$213,'DOE - FIPStoPayeeCodeConvTable'!$E$3:$E$213) -> 0.2547 | X102: 0.318375 | Y102: 0 | Z102: 0
A103: 530 | B103: =LOOKUP(A103,'DOE - FIPStoPayeeCodeConvTable'!$A$3:$A$213,'DOE - FIPStoPayeeCodeConvTable'!$B$3:$B$213) -> Buena Vista City | C103: 0 | S103: 0 | U103: 0 | V103: 0 | W103: =LOOKUP(A103,'DOE - FIPStoPayeeCodeConvTable'!$A$3:$A$213,'DOE - FIPStoPayeeCodeConvTable'!$E$3:$E$213) -> 0.2329 | X103: 0.291125 | Y103: 0 | Z103: 0
A104: 540 | B104: =LOOKUP(A104,'DOE - FIPStoPayeeCodeConvTable'!$A$3:$A$213,'DOE - FIPStoPayeeCodeConvTable'!$B$3:$B$213) -> Charlottesville City | C104: 0 | S104: 0 | U104: 0 | V104: 0 | W104: =LOOKUP(A104,'DOE - FIPStoPayeeCodeConvTable'!$A$3:$A$213,'DOE - FIPStoPayeeCodeConvTable'!$E$3:$E$213) -> 0.3068 | X104: 0.3835 | Y104: 0 | Z104: 0
A105: 550 | B105: =LOOKUP(A105,'DOE - FIPStoPayeeCodeConvTable'!$A$3:$A$213,'DOE - FIPStoPayeeCodeConvTable'!$B$3:$B$213) -> Chesapeake City | C105: 0 | S105: 0 | U105: 0 | V105: 0 | W105: =LOOKUP(A105,'DOE - FIPStoPayeeCodeConvTable'!$A$3:$A$213,'DOE - FIPStoPayeeCodeConvTable'!$E$3:$E$213) -> 0.3715 | X105: 0.464375 | Y105: 0 | Z105: 0
A106: 570 | B106: =LOOKUP(A106,'DOE - FIPStoPayeeCodeConvTable'!$A$3:$A$213,'DOE - FIPStoPayeeCodeConvTable'!$B$3:$B$213) -> Colonial Heights City | C106: 0 | S106: 0 | U106: 0 | V106: 0 | W106: =LOOKUP(A106,'DOE - FIPStoPayeeCodeConvTable'!$A$3:$A$213,'DOE - FIPStoPayeeCodeConvTable'!$E$3:$E$213) -> 0.4027 | X106: 0.503375 | Y106: 0 | Z106: 0
A107: 580 | B107: =LOOKUP(A107,'DOE - FIPStoPayeeCodeConvTable'!$A$3:$A$213,'DOE - FIPStoPayeeCodeConvTable'!$B$3:$B$213) -> Covington City | C107: 0 | S107: 0 | U107: 0 | V107: 0 | W107: =LOOKUP(A107,'DOE - FIPStoPayeeCodeConvTable'!$A$3:$A$213,'DOE - FIPStoPayeeCodeConvTable'!$E$3:$E$213) -> 0.2496 | X107: 0.312 | Y107: 0 | Z107: 0
A108: 590 | B108: =LOOKUP(A108,'DOE - FIPStoPayeeCodeConvTable'!$A$3:$A$213,'DOE - FIPStoPayeeCodeConvTable'!$B$3:$B$213) -> Danville City | C108: 0 | S108: 0 | U108: 0 | V108: 0 | W108: =LOOKUP(A108,'DOE - FIPStoPayeeCodeConvTable'!$A$3:$A$213,'DOE - FIPStoPayeeCodeConvTable'!$E$3:$E$213) -> 0.2223 | X108: 0.277875 | Y108: 0 | Z108: 0
A109: 620 | B109: =LOOKUP(A109,'DOE - FIPStoPayeeCodeConvTable'!$A$3:$A$213,'DOE - FIPStoPayeeCodeConvTable'!$B$3:$B$213) -> Franklin City | C109: 0 | S109: 0 | U109: 0 | V109: 0 | W109: =LOOKUP(A109,'DOE - FIPStoPayeeCodeConvTable'!$A$3:$A$213,'DOE - FIPStoPayeeCodeConvTable'!$E$3:$E$213) -> 0.371 | X109: 0.46375 | Y109: 0 | Z109: 0
A110: 630 | B110: =LOOKUP(A110,'DOE - FIPStoPayeeCodeConvTable'!$A$3:$A$213,'DOE - FIPStoPayeeCodeConvTable'!$B$3:$B$213) -> Fredericksburg City | C110: 0 | S110: 0 | U110: 0 | V110: 0 | W110: =LOOKUP(A110,'DOE - FIPStoPayeeCodeConvTable'!$A$3:$A$213,'DOE - FIPStoPayeeCodeConvTable'!$E$3:$E$213) -> 0.3441 | X110: 0.430125 | Y110: 0 | Z110: 0
A111: 640 | B111: =LOOKUP(A111,'DOE - FIPStoPayeeCodeConvTable'!$A$3:$A$213,'DOE - FIPStoPayeeCodeConvTable'!$B$3:$B$213) -> Galax City | C111: 0 | S111: 0 | U111: 0 | V111: 0 | W111: =LOOKUP(A111,'DOE - FIPStoPayeeCodeConvTable'!$A$3:$A$213,'DOE - FIPStoPayeeCodeConvTable'!$E$3:$E$213) -> 0.3146 | X111: 0.39325 | Y111: 0 | Z111: 0
A112: 650 | B112: =LOOKUP(A112,'DOE - FIPStoPayeeCodeConvTable'!$A$3:$A$213,'DOE - FIPStoPayeeCodeConvTable'!$B$3:$B$213) -> Hampton City | C112: 0 | S112: 0 | U112: 0 | V112: 0 | W112: =LOOKUP(A112,'DOE - FIPStoPayeeCodeConvTable'!$A$3:$A$213,'DOE - FIPStoPayeeCodeConvTable'!$E$3:$E$213) -> 0.3223 | X112: 0.402875 | Y112: 0 | Z112: 0
A113: 660 | B113: =LOOKUP(A113,'DOE - FIPStoPayeeCodeConvTable'!$A$3:$A$213,'DOE - FIPStoPayeeCodeConvTable'!$B$3:$B$213) -> Harrisonburg City | C113: 0 | S113: 0 | U113: 0 | V113: 0 | W113: =LOOKUP(A113,'DOE - FIPStoPayeeCodeConvTable'!$A$3:$A$213,'DOE - FIPStoPayeeCodeConvTable'!$E$3:$E$213) -> 0.3808 | X113: 0.476 | Y113: 0 | Z113: 0
A114: 670 | B114: =LOOKUP(A114,'DOE - FIPStoPayeeCodeConvTable'!$A$3:$A$213,'DOE - FIPStoPayeeCodeConvTable'!$B$3:$B$213) -> Hopewell City | C114: 0 | S114: 0 | U114: 0 | V114: 0 | W114: =LOOKUP(A114,'DOE - FIPStoPayeeCodeConvTable'!$A$3:$A$213,'DOE - FIPStoPayeeCodeConvTable'!$E$3:$E$213) -> 0.2667 | X114: 0.333375 | Y114: 0 | Z114: 0
A115: 678 | B115: =LOOKUP(A115,'DOE - FIPStoPayeeCodeConvTable'!$A$3:$A$213,'DOE - FIPStoPayeeCodeConvTable'!$B$3:$B$213) -> Lexington City | C115: 0 | S115: 0 | U115: 0 | V115: 0 | W115: =LOOKUP(A115,'DOE - FIPStoPayeeCodeConvTable'!$A$3:$A$213,'DOE - FIPStoPayeeCodeConvTable'!$E$3:$E$213) -> 0.3302 | X115: 0.41275 | Y115: 0 | Z115: 0
A116: 680 | B116: =LOOKUP(A116,'DOE - FIPStoPayeeCodeConvTable'!$A$3:$A$213,'DOE - FIPStoPayeeCodeConvTable'!$B$3:$B$213) -> Lynchburg City | C116: 0 | S116: 0 | U116: 0 | V116: 0 | W116: =LOOKUP(A116,'DOE - FIPStoPayeeCodeConvTable'!$A$3:$A$213,'DOE - FIPStoPayeeCodeConvTable'!$E$3:$E$213) -> 0.2736 | X116: 0.342 | Y116: 0 | Z116: 0
A117: 683 | B117: =LOOKUP(A117,'DOE - FIPStoPayeeCodeConvTable'!$A$3:$A$213,'DOE - FIPStoPayeeCodeConvTable'!$B$3:$B$213) -> Manassas City | C117: 0 | S117: 0 | U117: 0 | V117: 0 | W117: =LOOKUP(A117,'DOE - FIPStoPayeeCodeConvTable'!$A$3:$A$213,'DOE - FIPStoPayeeCodeConvTable'!$E$3:$E$213) -> 0.4168 | X117: 0.521 | Y117: 0 | Z117: 0
A118: 685 | B118: =LOOKUP(A118,'DOE - FIPStoPayeeCodeConvTable'!$A$3:$A$213,'DOE - FIPStoPayeeCodeConvTable'!$B$3:$B$213) -> Manassas Park City | C118: 0 | S118: 0 | U118: 0 | V118: 0 | W118: =LOOKUP(A118,'DOE - FIPStoPayeeCodeConvTable'!$A$3:$A$213,'DOE - FIPStoPayeeCodeConvTable'!$E$3:$E$213) -> 0.4273 | X118: 0.534125 | Y118: 0 | Z118: 0
A119: 690 | B119: =LOOKUP(A119,'DOE - FIPStoPayeeCodeConvTable'!$A$3:$A$213,'DOE - FIPStoPayeeCodeConvTable'!$B$3:$B$213) -> Martinsville City | C119: 0 | S119: 0 | U119: 0 | V119: 0 | W119: =LOOKUP(A119,'DOE - FIPStoPayeeCodeConvTable'!$A$3:$A$213,'DOE - FIPStoPayeeCodeConvTable'!$E$3:$E$213) -> 0.3321 | X119: 0.415125 | Y119: 0 | Z119: 0
A120: 700 | B120: =LOOKUP(A120,'DOE - FIPStoPayeeCodeConvTable'!$A$3:$A$213,'DOE - FIPStoPayeeCodeConvTable'!$B$3:$B$213) -> Newport News City | C120: 0 | S120: 0 | U120: 0 | V120: 0 | W120: =LOOKUP(A120,'DOE - FIPStoPayeeCodeConvTable'!$A$3:$A$213,'DOE - FIPStoPayeeCodeConvTable'!$E$3:$E$213) -> 0.2773 | X120: 0.346625 | Y120: 0 | Z120: 0
A121: 710 | B121: =LOOKUP(A121,'DOE - FIPStoPayeeCodeConvTable'!$A$3:$A$213,'DOE - FIPStoPayeeCodeConvTable'!$B$3:$B$213) -> Norfolk City | C121: 0 | S121: 0 | U121: 0 | V121: 0 | W121: =LOOKUP(A121,'DOE - FIPStoPayeeCodeConvTable'!$A$3:$A$213,'DOE - FIPStoPayeeCodeConvTable'!$E$3:$E$213) -> 0.2455 | X121: 0.306875 | Y121: 0 | Z121: 0
A122: 720 | B122: =LOOKUP(A122,'DOE - FIPStoPayeeCodeConvTable'!$A$3:$A$213,'DOE - FIPStoPayeeCodeConvTable'!$B$3:$B$213) -> Norton City | C122: 0 | S122: 0 | U122: 0 | V122: 0 | W122: =LOOKUP(A122,'DOE - FIPStoPayeeCodeConvTable'!$A$3:$A$213,'DOE - FIPStoPayeeCodeConvTable'!$E$3:$E$213) -> 0.3254 | X122: 0.40675 | Y122: 0 | Z122: 0
A123: 730 | B123: =LOOKUP(A123,'DOE - FIPStoPayeeCodeConvTable'!$A$3:$A$213,'DOE - FIPStoPayeeCodeConvTable'!$B$3:$B$213) -> Petersburg City | C123: 0 | S123: 0 | U123: 0 | V123: 0 | W123: =LOOKUP(A123,'DOE - FIPStoPayeeCodeConvTable'!$A$3:$A$213,'DOE - FIPStoPayeeCodeConvTable'!$E$3:$E$213) -> 0.3535 | X123: 0.441875 | Y123: 0 | Z123: 0
A124: 735 | B124: =LOOKUP(A124,'DOE - FIPStoPayeeCodeConvTable'!$A$3:$A$213,'DOE - FIPStoPayeeCodeConvTable'!$B$3:$B$213) -> Poquoson City | C124: 0 | S124: 0 | U124: 0 | V124: 0 | W124: =LOOKUP(A124,'DOE - FIPStoPayeeCodeConvTable'!$A$3:$A$213,'DOE - FIPStoPayeeCodeConvTable'!$E$3:$E$213) -> 0.2787 | X124: 0.348375 | Y124: 0 | Z124: 0
A125: 740 | B125: =LOOKUP(A125,'DOE - FIPStoPayeeCodeConvTable'!$A$3:$A$213,'DOE - FIPStoPayeeCodeConvTable'!$B$3:$B$213) -> Portsmouth City | C125: 0 | S125: 0 | U125: 0 | V125: 0 | W125: =LOOKUP(A125,'DOE - FIPStoPayeeCodeConvTable'!$A$3:$A$213,'DOE - FIPStoPayeeCodeConvTable'!$E$3:$E$213) -> 0.2605 | X125: 0.325625 | Y125: 0 | Z125: 0
A126: 750 | B126: =LOOKUP(A126,'DOE - FIPStoPayeeCodeConvTable'!$A$3:$A$213,'DOE - FIPStoPayeeCodeConvTable'!$B$3:$B$213) -> Radford City | C126: 0 | S126: 0 | U126: 0 | V126: 0 | W126: =LOOKUP(A126,'DOE - FIPStoPayeeCodeConvTable'!$A$3:$A$213,'DOE - FIPStoPayeeCodeConvTable'!$E$3:$E$213) -> 0.2035 | X126: 0.254375 | Y126: 0 | Z126: 0
A127: 760 | B127: =LOOKUP(A127,'DOE - FIPStoPayeeCodeConvTable'!$A$3:$A$213,'DOE - FIPStoPayeeCodeConvTable'!$B$3:$B$213) -> Richmond City | C127: 0 | S127: 0 | U127: 0 | V127: 0 | W127: =LOOKUP(A127,'DOE - FIPStoPayeeCodeConvTable'!$A$3:$A$213,'DOE - FIPStoPayeeCodeConvTable'!$E$3:$E$213) -> 0.3691 | X127: 0.461375 | Y127: 0 | Z127: 0
A128: 770 | B128: =LOOKUP(A128,'DOE - FIPStoPayeeCodeConvTable'!$A$3:$A$213,'DOE - FIPStoPayeeCodeConvTable'!$B$3:$B$213) -> Roanoke City | C128: 0 | S128: 0 | U128: 0 | V128: 0 | W128: =LOOKUP(A128,'DOE - FIPStoPayeeCodeConvTable'!$A$3:$A$213,'DOE - FIPStoPayeeCodeConvTable'!$E$3:$E$213) -> 0.3072 | X128: 0.384 | Y128: 0 | Z128: 0
A129: 775 | B129: =LOOKUP(A129,'DOE - FIPStoPayeeCodeConvTable'!$A$3:$A$213,'DOE - FIPStoPayeeCodeConvTable'!$B$3:$B$213) -> Salem City | C129: 0 | S129: 0 | U129: 0 | V129: 0 | W129: =LOOKUP(A129,'DOE - FIPStoPayeeCodeConvTable'!$A$3:$A$213,'DOE - FIPStoPayeeCodeConvTable'!$E$3:$E$213) -> 0.3513 | X129: 0.439125 | Y129: 0 | Z129: 0
A130: 790 | B130: =LOOKUP(A130,'DOE - FIPStoPayeeCodeConvTable'!$A$3:$A$213,'DOE - FIPStoPayeeCodeConvTable'!$B$3:$B$213) -> Staunton City | C130: 0 | S130: 0 | U130: 0 | V130: 0 | W130: =LOOKUP(A130,'DOE - FIPStoPayeeCodeConvTable'!$A$3:$A$213,'DOE - FIPStoPayeeCodeConvTable'!$E$3:$E$213) -> 0.2699 | X130: 0.337375 | Y130: 0 | Z130: 0
A131: 800 | B131: =LOOKUP(A131,'DOE - FIPStoPayeeCodeConvTable'!$A$3:$A$213,'DOE - FIPStoPayeeCodeConvTable'!$B$3:$B$213) -> Suffolk City | C131: 0 | S131: 0 | U131: 0 | V131: 0 | W131: =LOOKUP(A131,'DOE - FIPStoPayeeCodeConvTable'!$A$3:$A$213,'DOE - FIPStoPayeeCodeConvTable'!$E$3:$E$213) -> 0.2432 | X131: 0.304 | Y131: 0 | Z131: 0
A132: 810 | B132: =LOOKUP(A132,'DOE - FIPStoPayeeCodeConvTable'!$A$3:$A$213,'DOE - FIPStoPayeeCodeConvTable'!$B$3:$B$213) -> Virginia Beach City | C132: 0 | S132: 0 | U132: 0 | V132: 0 | W132: =LOOKUP(A132,'DOE - FIPStoPayeeCodeConvTable'!$A$3:$A$213,'DOE - FIPStoPayeeCodeConvTable'!$E$3:$E$213) -> 0.3569 | X132: 0.446125 | Y132: 0 | Z132: 0
A133: 820 | B133: =LOOKUP(A133,'DOE - FIPStoPayeeCodeConvTable'!$A$3:$A$213,'DOE - FIPStoPayeeCodeConvTable'!$B$3:$B$213) -> Waynesboro City | C133: 0 | S133: =SUM(C133:R133) -> 0 | U133: 0 | V133: =SUM(S133)-SUM(U133) -> 0 | W133: =LOOKUP(A133,'DOE - FIPStoPayeeCodeConvTable'!$A$3:$A$213,'DOE - FIPStoPayeeCodeConvTable'!$E$3:$E$213) -> 0.3843 | X133: 0.480375 | Y133: 0 | Z133: 0
A134: 830 | B134: =LOOKUP(A134,'DOE - FIPStoPayeeCodeConvTable'!$A$3:$A$213,'DOE - FIPStoPayeeCodeConvTable'!$B$3:$B$213) -> Williamsburg City | C134: 0 | S134: 0 | U134: 0 | V134: 0 | W134: =LOOKUP(A134,'DOE - FIPStoPayeeCodeConvTable'!$A$3:$A$213,'DOE - FIPStoPayeeCodeConvTable'!$E$3:$E$213) -> 0.4553 | X134: =$X$1*W134 -> 0.569125 | Y134: =ROUND(X134*V134,2) -> 0 | Z134: =SUM(V134)-SUM(Y134) -> 0
A135: 840 | B135: =LOOKUP(A135,'DOE - FIPStoPayeeCodeConvTable'!$A$3:$A$213,'DOE - FIPStoPayeeCodeConvTable'!$B$3:$B$213) -> Winchester City | C135: 0 | S135: 0 | U135: 0 | V135: 0 | W135: =LOOKUP(A135,'DOE - FIPStoPayeeCodeConvTable'!$A$3:$A$213,'DOE - FIPStoPayeeCodeConvTable'!$E$3:$E$213) -> 0.4587 | X135: 0.573375 | Y135: 0 | Z135: 0

Sheet Regular (hidden)
A1: FY | B1: ='DOE - FIPStoPayeeCodeConvTable'!G1 -> 2019 | C1: MEDICAID ADJUSTMENTS--Regular PAYMENTS TO PROVIDERS | O1: ="Extended to be paided in this SFY = " & B1 -> Extended to be paided in this SFY = 2019 | T1: xx | U1: 0.5 | V1: 0.5 | W1: (POOL) | X1: 1.25
U2: FEDERAL | V2: STATE/ | W2: (RATE) | X2: Factor
A3: FIPS | S3: Grand | U3: MEDICAID | V3: LOCAL | W3: LOCAL | Y3: LOCAL | Z3: STATE
A4: CODE | B4: LOCALITY | C4: =TEXT("7/1/" & $B$1-1,"mmm-yyyy") -> Jul-2018 | D4: =TEXT("8/1/" & $B$1-1,"mmm-yyyy") -> Aug-2018 | E4: =TEXT("9/1/" & $B$1-1,"mmm-yyyy") -> Sep-2018 | F4: =TEXT("10/1/" & $B$1-1,"mmm-yyyy") -> Oct-2018 | G4: =TEXT("11/1/" & $B$1-1,"mmm-yyyy") -> Nov-2018 | H4: =TEXT("12/1/" & $B$1-1,"mmm-yyyy") -> Dec-2018 | I4: =TEXT("1/1/" & $B$1,"mmm-yyyy") -> Jan-2019 | J4: =TEXT("2/1/" & $B$1,"mmm-yyyy") -> Feb-2019 | K4: =TEXT("3/1/" & $B$1,"mmm-yyyy") -> Mar-2019 | L4: =TEXT("4/1/" & $B$1,"mmm-yyyy") -> Apr-2019 | M4: =TEXT("5/1/" & $B$1,"mmm-yyyy") -> May-2019 | N4: =TEXT("6/1/" & $B$1,"mmm-yyyy") -> Jun-2019 | O4: =TEXT("7/1/" & $B$1,"mmm-yyyy") -> Jul-2019 | P4: =TEXT("8/1/" & $B$1,"mmm-yyyy") -> Aug-2019 | Q4: =TEXT("9/1/" & $B$1,"mmm-yyyy") -> Sep-2019 | R4: =TEXT("10/1/" & $B$1,"mmm-yyyy") -> Oct-2019 | S4: Total | U4: RATE/Share | V4: SHARE | W4: MATCH Rate | Y4: MATCH | Z4: SHARE
A5: Totals | C5: =SUM(C6:C1201) -> 8380092.15 | D5: 4441723.75 | E5: =SUM(E6:E1201) -> 5455159.56 | F5: =SUM(F6:F1201) -> 7606798.34 | G5: =SUM(G6:G1201) -> 5686249.53 | H5: =SUM(H6:H1201) -> 4267075.93 | I5: 4264654.57 | J5: 6602683.59 | K5: =SUM(K6:K1200) -> 6409300.91 | L5: =SUM(L6:L1200) -> 8813366.76 | M5: =SUM(M6:M1200) -> 3464591.69 | N5: =SUM(N6:N1200) -> 8617503.75 | O5: 0 | P5: 0 | Q5: 0 | R5: 0 | S5: =SUM(C5:R5) -> 74009200.53 | T5: = | U5: =SUM(U6:U399) -> 37004600.4 | V5: =SUM(V6:V399) -> 37004600.13 | W5: = | Y5: =SUM(Y6:Y399) -> 15723703.03 | Z5: =SUM(Z6:Z399) -> 21280897.1
A6: 1 | B6: =LOOKUP(A6,'DOE - FIPStoPayeeCodeConvTable'!$A$3:$A$213,'DOE - FIPStoPayeeCodeConvTable'!$B$3:$B$213) -> Accomack Co | C6: 114100.12 | D6: 16707.64 | E6: 36688.02 | F6: 55148.1 | G6: 54187.06 | H6: 16527 | I6: 33563.7 | J6: 40016.66 | K6: 128296.14 | L6: 38644.78 | M6: 0 | N6: 51548.5 | S6: 585427.72 | U6: =ROUND($U$1*S6,2) -> 292713.86 | V6: =SUM(S6)-SUM(U6) -> 292713.86 | W6: =LOOKUP(A6,'DOE - FIPStoPayeeCodeConvTable'!$A$3:$A$213,'DOE - FIPStoPayeeCodeConvTable'!$E$3:$E$213) -> 0.2332 | X6: =$X$1*W6 -> 0.2915 | Y6: =ROUND(X6*V6,2) -> 85326.09 | Z6: =SUM(V6)-SUM(Y6) -> 207387.77
A7: 3 | B7: =LOOKUP(A7,'DOE - FIPStoPayeeCodeConvTable'!$A$3:$A$213,'DOE - FIPStoPayeeCodeConvTable'!$B$3:$B$213) -> Albemarle Co | C7: 91540.58 | D7: 41065.64 | E7: 13284.1 | F7: 23807.32 | G7: 17631.6 | H7: 19349.82 | I7: 15270.1 | J7: 85121 | K7: 120274 | L7: 114019.93 | M7: 37448.7 | N7: 99043.76 | S7: 677856.55 | U7: 338928.28 | V7: 338928.27 | W7: =LOOKUP(A7,'DOE - FIPStoPayeeCodeConvTable'!$A$3:$A$213,'DOE - FIPStoPayeeCodeConvTable'!$E$3:$E$213) -> 0.4474 | X7: =$X$1*W7 -> 0.55925 | Y7: =ROUND(X7*V7,2) -> 189545.63 | Z7: =SUM(V7)-SUM(Y7) -> 149382.64
A8: 5 | B8: =LOOKUP(A8,'DOE - FIPStoPayeeCodeConvTable'!$A$3:$A$213,'DOE - FIPStoPayeeCodeConvTable'!$B$3:$B$213) -> Alleghany Co | C8: 62810.19 | D8: 37618.2 | E8: 27702.56 | F8: 41711 | G8: 27736.09 | H8: 25184 | I8: 15740 | J8: 30299.5 | K8: 13614.94 | L8: 1180.5 | M8: 1193.43 | N8: 2754.5 | S8: 287544.91 | U8: 143772.46 | V8: 143772.45 | W8: =LOOKUP(A8,'DOE - FIPStoPayeeCodeConvTable'!$A$3:$A$213,'DOE - FIPStoPayeeCodeConvTable'!$E$3:$E$213) -> 0.1924 | X8: 0.2405 | Y8: 34577.27 | Z8: 109195.18
A9: 7 | B9: =LOOKUP(A9,'DOE - FIPStoPayeeCodeConvTable'!$A$3:$A$213,'DOE - FIPStoPayeeCodeConvTable'!$B$3:$B$213) -> Amelia Co | C9: 26364.5 | D9: 11411.5 | E9: 11018 | F9: 13724.22 | G9: 11018 | H9: 11018 | I9: 4328.5 | J9: 17707.5 | K9: 11018 | L9: 16527 | M9: 8263.5 | N9: 2802.78 | S9: 145201.5 | U9: 72600.75 | V9: 72600.75 | W9: =LOOKUP(A9,'DOE - FIPStoPayeeCodeConvTable'!$A$3:$A$213,'DOE - FIPStoPayeeCodeConvTable'!$E$3:$E$213) -> 0.3268 | X9: 0.4085 | Y9: 29657.41 | Z9: 42943.34
A10: 9 | B10: =LOOKUP(A10,'DOE - FIPStoPayeeCodeConvTable'!$A$3:$A$213,'DOE - FIPStoPayeeCodeConvTable'!$B$3:$B$213) -> Amherst Co | C10: 28332 | D10: 11018 | E10: 20855.5 | F10: 34234.5 | G10: 44387.06 | H10: 68862.5 | I10: 28390.1 | J10: 27355.82 | K10: 21846.82 | L10: 49965.96 | M10: 18425.92 | N10: 119889.08 | S10: 473563.26 | U10: 236781.63 | V10: 236781.63 | W10: =LOOKUP(A10,'DOE - FIPStoPayeeCodeConvTable'!$A$3:$A$213,'DOE - FIPStoPayeeCodeConvTable'!$E$3:$E$213) -> 0.2722 | X10: 0.34025 | Y10: 80564.95 | Z10: 156216.68
A11: 11 | B11: =LOOKUP(A11,'DOE - FIPStoPayeeCodeConvTable'!$A$3:$A$213,'DOE - FIPStoPayeeCodeConvTable'!$B$3:$B$213) -> Appomattox Co | C11: 58271.29 | D11: 11018 | E11: 23947.6 | F11: 45646 | G11: 45793.84 | H11: 11018 | I11: 20206.18 | J11: 12402.82 | K11: 9065.64 | L11: 8164.64 | M11: 14428.42 | N11: 44951.52 | S11: 304913.95 | U11: 152456.98 | V11: 152456.97 | W11: =LOOKUP(A11,'DOE - FIPStoPayeeCodeConvTable'!$A$3:$A$213,'DOE - FIPStoPayeeCodeConvTable'!$E$3:$E$213) -> 0.2639 | X11: 0.329875 | Y11: 50291.74 | Z11: 102165.23
A12: 13 | B12: =LOOKUP(A12,'DOE - FIPStoPayeeCodeConvTable'!$A$3:$A$213,'DOE - FIPStoPayeeCodeConvTable'!$B$3:$B$213) -> Arlington Co | C12: 7375.44 | D12: 8467.82 | E12: 4532.82 | F12: 4386.6 | G12: 57451 | H12: 4532.82 | I12: 15303.54 | J12: 71238.64 | K12: 71632.14 | L12: 87451.72 | M12: 0 | N12: 23872.42 | S12: 356244.96 | U12: 178122.48 | V12: 178122.48 | W12: =LOOKUP(A12,'DOE - FIPStoPayeeCodeConvTable'!$A$3:$A$213,'DOE - FIPStoPayeeCodeConvTable'!$E$3:$E$213) -> 0.4602 | X12: 0.57525 | Y12: 102464.96 | Z12: 75657.52
A13: 15 | B13: =LOOKUP(A13,'DOE - FIPStoPayeeCodeConvTable'!$A$3:$A$213,'DOE - FIPStoPayeeCodeConvTable'!$B$3:$B$213) -> Augusta Co | C13: 103926.28 | D13: 50122.72 | E13: 68134.24 | F13: 82599.6 | G13: 49315.56 | H13: 48209.74 | I13: 54182.1 | J13: 79380.16 | K13: 88820.32 | L13: 34836.84 | M13: 51291.81 | N13: 167988.44 | S13: 878807.81 | U13: 439403.91 | V13: 439403.9 | W13: =LOOKUP(A13,'DOE - FIPStoPayeeCodeConvTable'!$A$3:$A$213,'DOE - FIPStoPayeeCodeConvTable'!$E$3:$E$213) -> 0.3302 | X13: 0.41275 | Y13: 181363.96 | Z13: 258039.94
A14: 17 | B14: =LOOKUP(A14,'DOE - FIPStoPayeeCodeConvTable'!$A$3:$A$213,'DOE - FIPStoPayeeCodeConvTable'!$B$3:$B$213) -> Bath Co | C14: 0 | D14: 0 | E14: 0 | F14: 0 | G14: 0 | H14: 0 | I14: 0 | J14: 0 | K14: 0 | L14: 0 | M14: 3655.5 | N14: 0 | S14: 3655.5 | U14: 1827.75 | V14: 1827.75 | W14: =LOOKUP(A14,'DOE - FIPStoPayeeCodeConvTable'!$A$3:$A$213,'DOE - FIPStoPayeeCodeConvTable'!$E$3:$E$213) -> 0.4278 | X14: 0.53475 | Y14: 977.39 | Z14: 850.36
A15: 19 | B15: =LOOKUP(A15,'DOE - FIPStoPayeeCodeConvTable'!$A$3:$A$213,'DOE - FIPStoPayeeCodeConvTable'!$B$3:$B$213) -> Bedford Co | C15: 179760.72 | D15: 85369.58 | E15: 81777.16 | F15: 242199 | G15: 163974.2 | H15: 112427.62 | I15: 187856.62 | J15: 299773.98 | K15: 314662.02 | L15: 361662.92 | M15: 119542.77 | N15: 266836.29 | S15: 2415842.88 | U15: 1207921.44 | V15: 1207921.44 | W15: =LOOKUP(A15,'DOE - FIPStoPayeeCodeConvTable'!$A$3:$A$213,'DOE - FIPStoPayeeCodeConvTable'!$E$3:$E$213) -> 0.31112 | X15: 0.3889 | Y15: 469760.65 | Z15: 738160.79
A16: 21 | B16: =LOOKUP(A16,'DOE - FIPStoPayeeCodeConvTable'!$A$3:$A$213,'DOE - FIPStoPayeeCodeConvTable'!$B$3:$B$213) -> Bland Co | C16: 0 | D16: 0 | E16: 0 | F16: 55090 | G16: 0 | H16: 0 | I16: 0 | J16: 0 | K16: 0 | L16: 0 | M16: 0 | N16: 0 | S16: 55090 | U16: 27545 | V16: 27545 | W16: =LOOKUP(A16,'DOE - FIPStoPayeeCodeConvTable'!$A$3:$A$213,'DOE - FIPStoPayeeCodeConvTable'!$E$3:$E$213) -> 0.2109 | X16: 0.263625 | Y16: 7261.55 | Z16: 20283.45
A17: 23 | B17: =LOOKUP(A17,'DOE - FIPStoPayeeCodeConvTable'!$A$3:$A$213,'DOE - FIPStoPayeeCodeConvTable'!$B$3:$B$213) -> Botetourt Co | C17: 0 | D17: 0 | E17: 0 | F17: 2778.18 | G17: 32447.64 | H17: 14768.22 | I17: 20091.88 | J17: 9175.24 | K17: 19675 | L17: 5902.5 | M17: 0 | N17: 2193.3 | S17: 107031.96 | U17: 53515.98 | V17: 53515.98 | W17: =LOOKUP(A17,'DOE - FIPStoPayeeCodeConvTable'!$A$3:$A$213,'DOE - FIPStoPayeeCodeConvTable'!$E$3:$E$213) -> 0.3602 | X17: 0.45025 | Y17: 24095.57 | Z17: 29420.41
A18: 25 | B18: =LOOKUP(A18,'DOE - FIPStoPayeeCodeConvTable'!$A$3:$A$213,'DOE - FIPStoPayeeCodeConvTable'!$B$3:$B$213) -> Brunswick Co | C18: 12592 | D18: 0 | E18: 65321 | F18: 51942 | G18: 12198.5 | H18: 2754.5 | I18: 17314 | J18: 25971 | K18: 27545 | L18: 44465.5 | M18: 0 | N18: 46433 | S18: 306536.5 | U18: 153268.25 | V18: 153268.25 | W18: =LOOKUP(A18,'DOE - FIPStoPayeeCodeConvTable'!$A$3:$A$213,'DOE - FIPStoPayeeCodeConvTable'!$E$3:$E$213) -> 0.2439 | X18: 0.304875 | Y18: 46727.66 | Z18: 106540.59
A19: 27 | B19: =LOOKUP(A19,'DOE - FIPStoPayeeCodeConvTable'!$A$3:$A$213,'DOE - FIPStoPayeeCodeConvTable'!$B$3:$B$213) -> Buchanan Co | C19: 17314 | D19: 36857.92 | E19: 11953.42 | F19: 8163.22 | G19: 146.22 | H19: 0 | I19: 838.75 | J19: 53151 | K19: 31499.54 | L19: 64852.39 | M19: 18574.43 | N19: 50075.89 | S19: 293426.78 | U19: 146713.39 | V19: 146713.39 | W19: =LOOKUP(A19,'DOE - FIPStoPayeeCodeConvTable'!$A$3:$A$213,'DOE - FIPStoPayeeCodeConvTable'!$E$3:$E$213) -> 0.3156 | X19: 0.3945 | Y19: 57878.43 | Z19: 88834.96
A20: 29 | B20: =LOOKUP(A20,'DOE - FIPStoPayeeCodeConvTable'!$A$3:$A$213,'DOE - FIPStoPayeeCodeConvTable'!$B$3:$B$213) -> Buckingham Co | C20: 31641.36 | D20: 4386.6 | E20: 16352.96 | F20: 4386.6 | G20: 3801.72 | H20: 4532.82 | I20: 4362.92 | J20: 20068.5 | K20: 12064.67 | L20: 10628.9 | M20: 0 | N20: 0 | S20: 112227.05 | U20: 56113.53 | V20: 56113.52 | W20: =LOOKUP(A20,'DOE - FIPStoPayeeCodeConvTable'!$A$3:$A$213,'DOE - FIPStoPayeeCodeConvTable'!$E$3:$E$213) -> 0.2023 | X20: 0.252875 | Y20: 14189.71 | Z20: 41923.81
A21: 31 | B21: =LOOKUP(A21,'DOE - FIPStoPayeeCodeConvTable'!$A$3:$A$213,'DOE - FIPStoPayeeCodeConvTable'!$B$3:$B$213) -> Campbell Co | C21: 165123.75 | D21: 53315.5 | E21: 36466.2 | F21: 32109.75 | G21: 31275.65 | H21: 19733.1 | I21: 48912.56 | J21: 92113.42 | K21: 87750.5 | L21: 372854.23 | M21: 51155 | N21: 212038.31 | S21: 1202847.97 | U21: 601423.99 | V21: 601423.98 | W21: =LOOKUP(A21,'DOE - FIPStoPayeeCodeConvTable'!$A$3:$A$213,'DOE - FIPStoPayeeCodeConvTable'!$E$3:$E$213) -> 0.3107 | X21: 0.388375 | Y21: 233578.04 | Z21: 367845.94
A22: 33 | B22: =LOOKUP(A22,'DOE - FIPStoPayeeCodeConvTable'!$A$3:$A$213,'DOE - FIPStoPayeeCodeConvTable'!$B$3:$B$213) -> Caroline Co | C22: 40586.32 | D22: 47792.1 | E22: 29969.82 | F22: 25219 | G22: 26034.82 | H22: 29458.56 | I22: 4979 | J22: 22819 | K22: 7729.5 | L22: 51190.23 | M22: 12066 | N22: 22823 | S22: 320667.35 | U22: 160333.68 | V22: 160333.67 | W22: =LOOKUP(A22,'DOE - FIPStoPayeeCodeConvTable'!$A$3:$A$213,'DOE - FIPStoPayeeCodeConvTable'!$E$3:$E$213) -> 0.3308 | X22: 0.4135 | Y22: 66297.97 | Z22: 94035.7
A23: 35 | B23: =LOOKUP(A23,'DOE - FIPStoPayeeCodeConvTable'!$A$3:$A$213,'DOE - FIPStoPayeeCodeConvTable'!$B$3:$B$213) -> Carroll Co | C23: 157391.85 | D23: 127057.91 | E23: 104754.98 | F23: 125159.09 | G23: 44084.94 | H23: 41145.74 | I23: 28099.7 | J23: 105614.92 | K23: 66876.87 | L23: 156616.81 | M23: 27422.46 | N23: 115672.62 | S23: 1099897.89 | U23: 549948.95 | V23: 549948.94 | W23: =LOOKUP(A23,'DOE - FIPStoPayeeCodeConvTable'!$A$3:$A$213,'DOE - FIPStoPayeeCodeConvTable'!$E$3:$E$213) -> 0.291 | X23: 0.36375 | Y23: 200043.93 | Z23: 349905.01
A24: 36 | B24: =LOOKUP(A24,'DOE - FIPStoPayeeCodeConvTable'!$A$3:$A$213,'DOE - FIPStoPayeeCodeConvTable'!$B$3:$B$213) -> Charles City Co | C24: 24003.5 | D24: 0 | E24: 12198.5 | F24: 12198.5 | G24: 0 | H24: 0 | I24: 0 | J24: 0 | K24: 0 | L24: 0 | M24: 0 | N24: 0 | S24: 48400.5 | U24: 24200.25 | V24: 24200.25 | W24: =LOOKUP(A24,'DOE - FIPStoPayeeCodeConvTable'!$A$3:$A$213,'DOE - FIPStoPayeeCodeConvTable'!$E$3:$E$213) -> 0.3131 | X24: 0.391375 | Y24: 9471.37 | Z24: 14728.88
A25: 37 | B25: =LOOKUP(A25,'DOE - FIPStoPayeeCodeConvTable'!$A$3:$A$213,'DOE - FIPStoPayeeCodeConvTable'!$B$3:$B$213) -> Charlotte Co | C25: 20294.3 | D25: 12198.5 | E25: 5902.5 | F25: 22487.6 | G25: 19146.46 | H25: 3932.76 | I25: 10026.02 | J25: -1517.58 | K25: 8626.98 | L25: 0 | M25: 4532.82 | N25: 8919.42 | S25: 114549.78 | U25: 57274.89 | V25: 57274.89 | W25: =LOOKUP(A25,'DOE - FIPStoPayeeCodeConvTable'!$A$3:$A$213,'DOE - FIPStoPayeeCodeConvTable'!$E$3:$E$213) -> 0.2204 | X25: 0.2755 | Y25: 15779.23 | Z25: 41495.66
A26: 41 | B26: =LOOKUP(A26,'DOE - FIPStoPayeeCodeConvTable'!$A$3:$A$213,'DOE - FIPStoPayeeCodeConvTable'!$B$3:$B$213) -> Chesterfield Co | C26: 358482.25 | D26: 152742.82 | E26: 192845.2 | F26: 336889.45 | G26: 219110.34 | H26: 141941.7 | I26: 176227.58 | J26: 278276.57 | K26: 285888.86 | L26: 514832.22 | M26: 132276.1 | N26: 372250.11 | S26: 3161763.2 | U26: 1580881.6 | V26: 1580881.6 | W26: =LOOKUP(A26,'DOE - FIPStoPayeeCodeConvTable'!$A$3:$A$213,'DOE - FIPStoPayeeCodeConvTable'!$E$3:$E$213) -> 0.3853 | X26: 0.481625 | Y26: 761392.1 | Z26: 819489.5
A27: 43 | B27: =LOOKUP(A27,'DOE - FIPStoPayeeCodeConvTable'!$A$3:$A$213,'DOE - FIPStoPayeeCodeConvTable'!$B$3:$B$213) -> Clarke Co | C27: 0 | D27: 0 | E27: 0 | F27: 0 | G27: 0 | H27: 0 | I27: 0 | J27: 0 | K27: 0 | L27: 0 | M27: 0 | N27: 0 | S27: 0 | U27: 0 | V27: 0 | W27: =LOOKUP(A27,'DOE - FIPStoPayeeCodeConvTable'!$A$3:$A$213,'DOE - FIPStoPayeeCodeConvTable'!$E$3:$E$213) -> 0.4797 | X27: 0.599625 | Y27: 0 | Z27: 0
A28: 45 | B28: =LOOKUP(A28,'DOE - FIPStoPayeeCodeConvTable'!$A$3:$A$213,'DOE - FIPStoPayeeCodeConvTable'!$B$3:$B$213) -> Craig Co | C28: 5449.82 | D28: -3070.48 | E28: 0 | F28: 4094.16 | G28: 0 | H28: 292.44 | I28: 14559.5 | J28: 3541.5 | K28: 0 | L28: 10231 | M28: 0 | N28: 24003.5 | S28: 59101.44 | U28: 29550.72 | V28: 29550.72 | W28: =LOOKUP(A28,'DOE - FIPStoPayeeCodeConvTable'!$A$3:$A$213,'DOE - FIPStoPayeeCodeConvTable'!$E$3:$E$213) -> 0.2901 | X28: 0.362625 | Y28: 10715.83 | Z28: 18834.89
A29: 47 | B29: =LOOKUP(A29,'DOE - FIPStoPayeeCodeConvTable'!$A$3:$A$213,'DOE - FIPStoPayeeCodeConvTable'!$B$3:$B$213) -> Culpeper Co | C29: 77666.76 | D29: 52812.52 | E29: 26568.82 | F29: 83422 | G29: 80142.92 | H29: 42498 | I29: 48308.6 | J29: 40296.16 | K29: 30256.08 | L29: 19002 | M29: 18791.34 | N29: 9472.08 | S29: 529237.28 | U29: 264618.64 | V29: 264618.64 | W29: =LOOKUP(A29,'DOE - FIPStoPayeeCodeConvTable'!$A$3:$A$213,'DOE - FIPStoPayeeCodeConvTable'!$E$3:$E$213) -> 0.3767 | X29: 0.470875 | Y29: 124602.3 | Z29: 140016.34
A30: 49 | B30: =LOOKUP(A30,'DOE - FIPStoPayeeCodeConvTable'!$A$3:$A$213,'DOE - FIPStoPayeeCodeConvTable'!$B$3:$B$213) -> Cumberland Co | C30: 23123.28 | D30: 26433.52 | E30: 33978.58 | F30: 31919.5 | G30: 7356.34 | H30: 20531.02 | I30: 14331.06 | J30: 21571.64 | K30: 22625.46 | L30: 36078.76 | M30: 6504.24 | N30: 28536.32 | S30: 272989.72 | U30: 136494.86 | V30: 136494.86 | W30: =LOOKUP(A30,'DOE - FIPStoPayeeCodeConvTable'!$A$3:$A$213,'DOE - FIPStoPayeeCodeConvTable'!$E$3:$E$213) -> 0.304 | X30: 0.38 | Y30: 51868.05 | Z30: 84626.81
A31: 51 | B31: =LOOKUP(A31,'DOE - FIPStoPayeeCodeConvTable'!$A$3:$A$213,'DOE - FIPStoPayeeCodeConvTable'!$B$3:$B$213) -> Dickenson Co | C31: 103828.46 | D31: 32660.5 | E31: 35808.5 | F31: 55877 | G31: 45646 | H31: 38169.5 | I31: 39350 | J31: 57844.5 | K31: 63353.5 | L31: 33054 | M31: 7476.5 | N31: 7476.5 | S31: 520544.96 | U31: 260272.48 | V31: 260272.48 | W31: =LOOKUP(A31,'DOE - FIPStoPayeeCodeConvTable'!$A$3:$A$213,'DOE - FIPStoPayeeCodeConvTable'!$E$3:$E$213) -> 0.3042 | X31: 0.38025 | Y31: 98968.61 | Z31: 161303.87
A32: 53 | B32: =LOOKUP(A32,'DOE - FIPStoPayeeCodeConvTable'!$A$3:$A$213,'DOE - FIPStoPayeeCodeConvTable'!$B$3:$B$213) -> Dinwiddie Co | C32: 59173.18 | D32: 16551 | E32: 38642.38 | F32: 32489.04 | G32: 24699.16 | H32: 29693.44 | I32: 19743.34 | J32: 34490.94 | K32: 26622 | L32: 59418.5 | M32: 17707.5 | N32: 105458 | S32: 464688.48 | U32: 232344.24 | V32: 232344.24 | W32: =LOOKUP(A32,'DOE - FIPStoPayeeCodeConvTable'!$A$3:$A$213,'DOE - FIPStoPayeeCodeConvTable'!$E$3:$E$213) -> 0.3358 | X32: 0.41975 | Y32: 97526.49 | Z32: 134817.75
A33: 57 | B33: =LOOKUP(A33,'DOE - FIPStoPayeeCodeConvTable'!$A$3:$A$213,'DOE - FIPStoPayeeCodeConvTable'!$B$3:$B$213) -> Essex Co | C33: 10163.87 | D33: 5836.41 | E33: 2823.52 | F33: 6836.15 | G33: 0 | H33: 3012.89 | I33: 0 | J33: 10807.23 | K33: 4094.16 | L33: 6342.09 | M33: 6916.1 | N33: 4532.82 | S33: 61365.24 | U33: 30682.62 | V33: 30682.62 | W33: =LOOKUP(A33,'DOE - FIPStoPayeeCodeConvTable'!$A$3:$A$213,'DOE - FIPStoPayeeCodeConvTable'!$E$3:$E$213) -> 0.3853 | X33: 0.481625 | Y33: 14777.52 | Z33: 15905.1
A34: 59 | B34: =LOOKUP(A34,'DOE - FIPStoPayeeCodeConvTable'!$A$3:$A$213,'DOE - FIPStoPayeeCodeConvTable'!$B$3:$B$213) -> Fairfax Co | C34: 123966.92 | D34: 70034.34 | E34: 101616.14 | F34: 129306.96 | G34: 181601.66 | H34: 142291.84 | I34: 122961.4 | J34: 183511.72 | K34: 173107.59 | L34: 227054.18 | M34: 91503.66 | N34: 154278.36 | S34: 1701234.77 | U34: 850617.39 | V34: 850617.38 | W34: =LOOKUP(A34,'DOE - FIPStoPayeeCodeConvTable'!$A$3:$A$213,'DOE - FIPStoPayeeCodeConvTable'!$E$3:$E$213) -> 0.4611 | X34: 0.576375 | Y34: 490274.59 | Z34: 360342.79
A35: 61 | B35: =LOOKUP(A35,'DOE - FIPStoPayeeCodeConvTable'!$A$3:$A$213,'DOE - FIPStoPayeeCodeConvTable'!$B$3:$B$213) -> Fauquier Co | C35: 81287.88 | D35: 45971.32 | E35: 86447.82 | F35: 56517.04 | G35: 52748.74 | H35: 33248.8 | I35: 51440.32 | J35: 124653.7 | K35: 52989.5 | L35: 128866.78 | M35: 45266.14 | N35: 120348.3 | S35: 879786.34 | U35: 439893.17 | V35: 439893.17 | W35: =LOOKUP(A35,'DOE - FIPStoPayeeCodeConvTable'!$A$3:$A$213,'DOE - FIPStoPayeeCodeConvTable'!$E$3:$E$213) -> 0.4584 | X35: 0.573 | Y35: 252058.79 | Z35: 187834.38
A36: 63 | B36: =LOOKUP(A36,'DOE - FIPStoPayeeCodeConvTable'!$A$3:$A$213,'DOE - FIPStoPayeeCodeConvTable'!$B$3:$B$213) -> Floyd Co | C36: 42543.16 | D36: 21263.48 | E36: 30719.06 | F36: 45692 | G36: 18619.88 | H36: 46254.54 | I36: 9473.58 | J36: 22742.28 | K36: 22468.5 | L36: 34141.28 | M36: 26718.96 | N36: 39442.3 | S36: 360079.02 | U36: 180039.51 | V36: 180039.51 | W36: =LOOKUP(A36,'DOE - FIPStoPayeeCodeConvTable'!$A$3:$A$213,'DOE - FIPStoPayeeCodeConvTable'!$E$3:$E$213) -> 0.2324 | X36: 0.2905 | Y36: 52301.48 | Z36: 127738.03
A37: 65 | B37: =LOOKUP(A37,'DOE - FIPStoPayeeCodeConvTable'!$A$3:$A$213,'DOE - FIPStoPayeeCodeConvTable'!$B$3:$B$213) -> Fluvanna Co | C37: 15899.97 | D37: 44276.32 | E37: 21395.22 | F37: 19362.73 | G37: 9768.92 | H37: 23027.32 | I37: 19339.6 | J37: 43949.46 | K37: 46433 | L37: 38169.5 | M37: 0 | N37: 23216.5 | S37: =SUM(C37:R37) -> 304838.54 | U37: 152419.27 | V37: 152419.27 | W37: =LOOKUP(A37,'DOE - FIPStoPayeeCodeConvTable'!$A$3:$A$213,'DOE - FIPStoPayeeCodeConvTable'!$E$3:$E$213) -> 0.3811 | X37: 0.476375 | Y37: 72608.73 | Z37: 79810.54
A38: 67 | B38: =LOOKUP(A38,'DOE - FIPStoPayeeCodeConvTable'!$A$3:$A$213,'DOE - FIPStoPayeeCodeConvTable'!$B$3:$B$213) -> Franklin Co | C38: 230781.46 | D38: 248754.56 | E38: 167836.55 | F38: 176051.72 | G38: 134340.72 | H38: 89941.86 | I38: 81570.7 | J38: 108008.44 | K38: 165215.88 | L38: 309897.58 | M38: 131674.6 | N38: 257493.12 | S38: 2101567.19 | U38: =ROUND($U$1*S38,2) -> 1050783.6 | V38: =SUM(S38)-SUM(U38) -> 1050783.59 | W38: =LOOKUP(A38,'DOE - FIPStoPayeeCodeConvTable'!$A$3:$A$213,'DOE - FIPStoPayeeCodeConvTable'!$E$3:$E$213) -> 0.283 | X38: 0.35375 | Y38: 371714.69 | Z38: 679068.9
A39: 69 | B39: =LOOKUP(A39,'DOE - FIPStoPayeeCodeConvTable'!$A$3:$A$213,'DOE - FIPStoPayeeCodeConvTable'!$B$3:$B$213) -> Frederick Co | C39: 59158.54 | D39: 30181.36 | E39: 90240.64 | F39: 25552.36 | G39: 24145.34 | H39: 18552.78 | I39: 6718.72 | J39: 56916.46 | K39: 114130.14 | L39: 64216.72 | M39: 19739.46 | N39: 71492.52 | S39: 581045.04 | U39: 290522.52 | V39: 290522.52 | W39: =LOOKUP(A39,'DOE - FIPStoPayeeCodeConvTable'!$A$3:$A$213,'DOE - FIPStoPayeeCodeConvTable'!$E$3:$E$213) -> 0.4348 | X39: 0.5435 | Y39: 157898.99 | Z39: 132623.53
A40: 71 | B40: =LOOKUP(A40,'DOE - FIPStoPayeeCodeConvTable'!$A$3:$A$213,'DOE - FIPStoPayeeCodeConvTable'!$B$3:$B$213) -> Giles Co | C40: 2631.96 | D40: -621.32 | E40: 13415.44 | F40: 0 | G40: 32660.5 | H40: 12198.5 | I40: 0 | J40: 0 | K40: 0 | L40: 13772.5 | M40: 4094.16 | N40: 68135.8 | S40: 146287.54 | U40: 73143.77 | V40: 73143.77 | W40: =LOOKUP(A40,'DOE - FIPStoPayeeCodeConvTable'!$A$3:$A$213,'DOE - FIPStoPayeeCodeConvTable'!$E$3:$E$213) -> 0.2898 | X40: 0.36225 | Y40: 26496.33 | Z40: 46647.44
A41: 73 | B41: =LOOKUP(A41,'DOE - FIPStoPayeeCodeConvTable'!$A$3:$A$213,'DOE - FIPStoPayeeCodeConvTable'!$B$3:$B$213) -> Gloucester Co | C41: 52366.04 | D41: 37382.5 | E41: 34428.58 | F41: 37776 | G41: 18451.34 | H41: 11411.5 | I41: 15740 | J41: 42498 | K41: 61386 | L41: 16527 | M41: 10242.54 | N41: 14512.96 | S41: 352722.46 | U41: 176361.23 | V41: 176361.23 | W41: =LOOKUP(A41,'DOE - FIPStoPayeeCodeConvTable'!$A$3:$A$213,'DOE - FIPStoPayeeCodeConvTable'!$E$3:$E$213) -> 0.3687 | X41: 0.460875 | Y41: 81280.48 | Z41: 95080.75
A42: 75 | B42: =LOOKUP(A42,'DOE - FIPStoPayeeCodeConvTable'!$A$3:$A$213,'DOE - FIPStoPayeeCodeConvTable'!$B$3:$B$213) -> Goochland Co | C42: 14953 | D42: 34922.64 | E42: 29906 | F42: 67288.5 | G42: 25577.5 | H42: 42891.5 | I42: 52335.5 | J42: 80667.5 | K42: 41317.5 | L42: 38563 | M42: 11411.5 | N42: 44465.5 | S42: 484299.64 | U42: 242149.82 | V42: 242149.82 | W42: =LOOKUP(A42,'DOE - FIPStoPayeeCodeConvTable'!$A$3:$A$213,'DOE - FIPStoPayeeCodeConvTable'!$E$3:$E$213) -> 0.4871 | X42: 0.608875 | Y42: 147438.97 | Z42: 94710.85
A43: 77 | B43: =LOOKUP(A43,'DOE - FIPStoPayeeCodeConvTable'!$A$3:$A$213,'DOE - FIPStoPayeeCodeConvTable'!$B$3:$B$213) -> Grayson Co | C43: 28308.65 | D43: 29673.69 | E43: 31300.13 | F43: 30573.98 | G43: 19503.16 | H43: 16585.1 | I43: 16191.6 | J43: 21264.14 | K43: 31308.16 | L43: 23216.5 | M43: 17985.06 | N43: 14622 | S43: 280532.17 | U43: 140266.09 | V43: 140266.08 | W43: =LOOKUP(A43,'DOE - FIPStoPayeeCodeConvTable'!$A$3:$A$213,'DOE - FIPStoPayeeCodeConvTable'!$E$3:$E$213) -> 0.2109 | X43: 0.263625 | Y43: 36977.65 | Z43: 103288.43
A44: 79 | B44: =LOOKUP(A44,'DOE - FIPStoPayeeCodeConvTable'!$A$3:$A$213,'DOE - FIPStoPayeeCodeConvTable'!$B$3:$B$213) -> Greene Co | C44: 16527 | D44: 11018 | E44: 14953 | F44: 29119 | G44: 8263.5 | H44: 28725.5 | I44: 16133.5 | J44: 31480 | K44: 27545 | L44: 30564.54 | M44: 30583.4 | N44: 20386.82 | S44: 265299.26 | U44: 132649.63 | V44: 132649.63 | W44: =LOOKUP(A44,'DOE - FIPStoPayeeCodeConvTable'!$A$3:$A$213,'DOE - FIPStoPayeeCodeConvTable'!$E$3:$E$213) -> 0.3471 | X44: 0.433875 | Y44: 57553.36 | Z44: 75096.27
A45: 81 | B45: =LOOKUP(A45,'DOE - FIPStoPayeeCodeConvTable'!$A$3:$A$213,'DOE - FIPStoPayeeCodeConvTable'!$B$3:$B$213) -> Greensville Co | C45: 41128.32 | D45: 34886.48 | E45: 30346.86 | F45: 16133.5 | G45: 0 | H45: 193.12 | I45: 6689.5 | J45: 0 | K45: 0 | L45: 0 | M45: 0 | N45: 7457.22 | S45: 136835 | U45: 68417.5 | V45: 68417.5 | W45: =LOOKUP(A45,'DOE - FIPStoPayeeCodeConvTable'!$A$3:$A$213,'DOE - FIPStoPayeeCodeConvTable'!$E$3:$E$213) -> 0.2266 | X45: 0.28325 | Y45: 19379.26 | Z45: 49038.24
A46: 83 | B46: =LOOKUP(A46,'DOE - FIPStoPayeeCodeConvTable'!$A$3:$A$213,'DOE - FIPStoPayeeCodeConvTable'!$B$3:$B$213) -> Halifax Co | C46: 107767.5 | D46: 64774.94 | E46: 113485.22 | F46: 92984.4 | G46: 146457.44 | H46: 151781.4 | I46: 97919.26 | J46: 110545.68 | K46: 116172.92 | L46: 195150.38 | M46: 68899.12 | N46: 124167.82 | S46: 1390106.08 | U46: 695053.04 | V46: 695053.04 | W46: =LOOKUP(A46,'DOE - FIPStoPayeeCodeConvTable'!$A$3:$A$213,'DOE - FIPStoPayeeCodeConvTable'!$E$3:$E$213) -> 0.2335 | X46: 0.291875 | Y46: 202868.61 | Z46: 492184.43
A47: 85 | B47: =LOOKUP(A47,'DOE - FIPStoPayeeCodeConvTable'!$A$3:$A$213,'DOE - FIPStoPayeeCodeConvTable'!$B$3:$B$213) -> Hanover Co | C47: 147391.77 | D47: 83910.88 | E47: 124515.38 | F47: 134412 | G47: 178325.46 | H47: 180001 | I47: 53101 | J47: 169741.5 | K47: 142447 | L47: 219179.5 | M47: 33449.5 | N47: 184394.24 | S47: 1650869.23 | U47: 825434.62 | V47: 825434.61 | W47: =LOOKUP(A47,'DOE - FIPStoPayeeCodeConvTable'!$A$3:$A$213,'DOE - FIPStoPayeeCodeConvTable'!$E$3:$E$213) -> 0.4444 | X47: 0.5555 | Y47: 458528.93 | Z47: 366905.68
A48: 87 | B48: =LOOKUP(A48,'DOE - FIPStoPayeeCodeConvTable'!$A$3:$A$213,'DOE - FIPStoPayeeCodeConvTable'!$B$3:$B$213) -> Henrico Co | C48: 318773.36 | D48: 145678.08 | E48: 161415.8 | F48: 224571.84 | G48: 199668.2 | H48: 225196.76 | I48: 130770.53 | J48: 214202.42 | K48: 249774.47 | L48: 344720.37 | M48: 103894.1 | N48: 253755.85 | S48: 2572421.78 | U48: 1286210.89 | V48: 1286210.89 | W48: =LOOKUP(A48,'DOE - FIPStoPayeeCodeConvTable'!$A$3:$A$213,'DOE - FIPStoPayeeCodeConvTable'!$E$3:$E$213) -> 0.3755 | X48: 0.469375 | Y48: 603715.24 | Z48: 682495.65
A49: 89 | B49: =LOOKUP(A49,'DOE - FIPStoPayeeCodeConvTable'!$A$3:$A$213,'DOE - FIPStoPayeeCodeConvTable'!$B$3:$B$213) -> Henry Co | C49: 43186.14 | D49: 11951.22 | E49: 88946.14 | F49: 91552.22 | G49: 21154.58 | H49: 28811.92 | I49: 59582.39 | J49: 46405.01 | K49: 88574.25 | L49: 52778.56 | M49: 30009.26 | N49: 68931.34 | S49: 631883.03 | U49: 315941.52 | V49: 315941.51 | W49: =LOOKUP(A49,'DOE - FIPStoPayeeCodeConvTable'!$A$3:$A$213,'DOE - FIPStoPayeeCodeConvTable'!$E$3:$E$213) -> 0.2786 | X49: 0.34825 | Y49: 110026.63 | Z49: 205914.88
A50: 91 | B50: =LOOKUP(A50,'DOE - FIPStoPayeeCodeConvTable'!$A$3:$A$213,'DOE - FIPStoPayeeCodeConvTable'!$B$3:$B$213) -> Highland Co | C50: 0 | D50: 0 | E50: 0 | F50: 0 | G50: 0 | H50: 0 | I50: 0 | J50: 0 | K50: 0 | L50: 0 | M50: 0 | N50: 0 | S50: 0 | U50: 0 | V50: 0 | W50: =LOOKUP(A50,'DOE - FIPStoPayeeCodeConvTable'!$A$3:$A$213,'DOE - FIPStoPayeeCodeConvTable'!$E$3:$E$213) -> 0.3822 | X50: 0.47775 | Y50: 0 | Z50: 0
A51: 93 | B51: =LOOKUP(A51,'DOE - FIPStoPayeeCodeConvTable'!$A$3:$A$213,'DOE - FIPStoPayeeCodeConvTable'!$B$3:$B$213) -> Isle Of Wight Co | C51: 4970.7 | D51: 2463.44 | E51: 4585 | F51: 5502 | G51: 2751 | H51: 2882 | I51: 2489 | J51: 5633 | K51: 4323 | L51: 3537 | M51: 0 | N51: 0 | S51: 39136.14 | U51: 19568.07 | V51: 19568.07 | W51: =LOOKUP(A51,'DOE - FIPStoPayeeCodeConvTable'!$A$3:$A$213,'DOE - FIPStoPayeeCodeConvTable'!$E$3:$E$213) -> 0.3613 | X51: 0.451625 | Y51: 8837.43 | Z51: 10730.64
A52: 95 | B52: =LOOKUP(A52,'DOE - FIPStoPayeeCodeConvTable'!$A$3:$A$213,'DOE - FIPStoPayeeCodeConvTable'!$B$3:$B$213) -> James City Co | C52: 5509 | D52: 9050.5 | E52: 22429.5 | F52: 49581 | G52: 35415 | H52: 22036 | I52: 5115.5 | J52: 26758 | K52: 16731.32 | L52: 56823.16 | M52: 14495.06 | N52: 88931 | S52: 352875.04 | U52: 176437.52 | V52: 176437.52 | W52: =LOOKUP(A52,'DOE - FIPStoPayeeCodeConvTable'!$A$3:$A$213,'DOE - FIPStoPayeeCodeConvTable'!$E$3:$E$213) -> 0.4483 | X52: 0.560375 | Y52: 98871.18 | Z52: 77566.34
A53: 97 | B53: =LOOKUP(A53,'DOE - FIPStoPayeeCodeConvTable'!$A$3:$A$213,'DOE - FIPStoPayeeCodeConvTable'!$B$3:$B$213) -> King And Queen Co | C53: 0 | D53: 0 | E53: 0 | F53: 0 | G53: 0 | H53: 0 | I53: 0 | J53: 0 | K53: 0 | L53: 0 | M53: 0 | N53: 0 | S53: 0 | U53: 0 | V53: 0 | W53: =LOOKUP(A53,'DOE - FIPStoPayeeCodeConvTable'!$A$3:$A$213,'DOE - FIPStoPayeeCodeConvTable'!$E$3:$E$213) -> 0.3144 | X53: 0.393 | Y53: 0 | Z53: 0
A54: 99 | B54: =LOOKUP(A54,'DOE - FIPStoPayeeCodeConvTable'!$A$3:$A$213,'DOE - FIPStoPayeeCodeConvTable'!$B$3:$B$213) -> King George Co | C54: 25635.6 | D54: 35954.72 | E54: 16920.5 | F54: 49187.5 | G54: 8975.32 | H54: 4386.6 | I54: 4722 | J54: 4532.82 | K54: 65525.32 | L54: 52698.98 | M54: 140931.1 | N54: 66652.12 | S54: 476122.58 | U54: 238061.29 | V54: 238061.29 | W54: =LOOKUP(A54,'DOE - FIPStoPayeeCodeConvTable'!$A$3:$A$213,'DOE - FIPStoPayeeCodeConvTable'!$E$3:$E$213) -> 0.3627 | X54: 0.453375 | Y54: 107931.04 | Z54: 130130.25
A55: 101 | B55: =LOOKUP(A55,'DOE - FIPStoPayeeCodeConvTable'!$A$3:$A$213,'DOE - FIPStoPayeeCodeConvTable'!$B$3:$B$213) -> King William Co | C55: 0 | D55: 0 | E55: 0 | F55: 0 | G55: 0 | H55: 16718.38 | I55: 11411.5 | J55: 37382.5 | K55: 2754.5 | L55: 24397 | M55: -22429.5 | N55: 0 | S55: 70234.38 | U55: 35117.19 | V55: 35117.19 | W55: =LOOKUP(A55,'DOE - FIPStoPayeeCodeConvTable'!$A$3:$A$213,'DOE - FIPStoPayeeCodeConvTable'!$E$3:$E$213) -> 0.3853 | X55: 0.481625 | Y55: 16913.32 | Z55: 18203.87
A56: 103 | B56: =LOOKUP(A56,'DOE - FIPStoPayeeCodeConvTable'!$A$3:$A$213,'DOE - FIPStoPayeeCodeConvTable'!$B$3:$B$213) -> Lancaster Co | C56: 20324.58 | D56: 3655.5 | E56: 10527.84 | F56: 787 | G56: 10089.18 | H56: 2047.08 | I56: 0 | J56: 18494.5 | K56: 12592 | L56: 15346.5 | M56: 8657 | N56: 21702.8 | S56: 124223.98 | U56: 62111.99 | V56: 62111.99 | W56: =LOOKUP(A56,'DOE - FIPStoPayeeCodeConvTable'!$A$3:$A$213,'DOE - FIPStoPayeeCodeConvTable'!$E$3:$E$213) -> 0.4391 | X56: 0.548875 | Y56: 34091.72 | Z56: 28020.27
A57: 105 | B57: =LOOKUP(A57,'DOE - FIPStoPayeeCodeConvTable'!$A$3:$A$213,'DOE - FIPStoPayeeCodeConvTable'!$B$3:$B$213) -> Lee Co | C57: 19076.32 | D57: 9050.5 | E57: 22180.26 | F57: 25063.4 | G57: 14631.63 | H57: 6423.19 | I57: 2163.8 | J57: 5355.63 | K57: 26693.04 | L57: 40533.96 | M57: 35110.25 | N57: 64752.34 | S57: 271034.32 | U57: 135517.16 | V57: 135517.16 | W57: =LOOKUP(A57,'DOE - FIPStoPayeeCodeConvTable'!$A$3:$A$213,'DOE - FIPStoPayeeCodeConvTable'!$E$3:$E$213) -> 0.2245 | X57: 0.280625 | Y57: 38029.5 | Z57: 97487.66
A58: 107 | B58: =LOOKUP(A58,'DOE - FIPStoPayeeCodeConvTable'!$A$3:$A$213,'DOE - FIPStoPayeeCodeConvTable'!$B$3:$B$213) -> Loudoun Co | C58: 155826 | D58: 45039.64 | E58: 88982.3 | F58: 112955.5 | G58: 103082.24 | H58: 104106.7 | I58: 87390.52 | J58: 154032.37 | K58: 52898.09 | L58: 16337.82 | M58: 22390.51 | N58: 45562.16 | S58: 988603.85 | U58: 494301.93 | V58: 494301.92 | W58: =LOOKUP(A58,'DOE - FIPStoPayeeCodeConvTable'!$A$3:$A$213,'DOE - FIPStoPayeeCodeConvTable'!$E$3:$E$213) -> 0.4764 | X58: 0.5955 | Y58: 294356.79 | Z58: 199945.13
A59: 109 | B59: =LOOKUP(A59,'DOE - FIPStoPayeeCodeConvTable'!$A$3:$A$213,'DOE - FIPStoPayeeCodeConvTable'!$B$3:$B$213) -> Louisa Co | C59: 83658.1 | D59: 121247.56 | E59: 38950.16 | F59: 116985.7 | G59: 66763.92 | H59: 49989.64 | I59: 53971.99 | J59: 86585.14 | K59: 47849.09 | L59: 46639.78 | M59: 19814.66 | N59: -4596.5 | S59: 727859.24 | U59: 363929.62 | V59: 363929.62 | W59: =LOOKUP(A59,'DOE - FIPStoPayeeCodeConvTable'!$A$3:$A$213,'DOE - FIPStoPayeeCodeConvTable'!$E$3:$E$213) -> 0.4401 | X59: 0.550125 | Y59: 200206.78 | Z59: 163722.84
A60: 111 | B60: =LOOKUP(A60,'DOE - FIPStoPayeeCodeConvTable'!$A$3:$A$213,'DOE - FIPStoPayeeCodeConvTable'!$B$3:$B$213) -> Lunenburg Co | C60: 56664 | D60: 11828.68 | E60: 12796.32 | F60: 20889.92 | G60: 12198.5 | H60: 0 | I60: 11805 | J60: 16527 | K60: 12198.5 | L60: 23216.5 | M60: 0 | N60: 24003.5 | S60: 202127.92 | U60: 101063.96 | V60: 101063.96 | W60: =LOOKUP(A60,'DOE - FIPStoPayeeCodeConvTable'!$A$3:$A$213,'DOE - FIPStoPayeeCodeConvTable'!$E$3:$E$213) -> 0.1698 | X60: 0.21225 | Y60: 21450.83 | Z60: 79613.13
A61: 113 | B61: =LOOKUP(A61,'DOE - FIPStoPayeeCodeConvTable'!$A$3:$A$213,'DOE - FIPStoPayeeCodeConvTable'!$B$3:$B$213) -> Madison Co | C61: 0 | D61: 4532.82 | E61: 17473.18 | F61: 0 | G61: 8626.98 | H61: 8188.32 | I61: 0 | J61: 0 | K61: 0 | L61: 0 | M61: 0 | N61: 0 | S61: 38821.3 | U61: 19410.65 | V61: 19410.65 | W61: =LOOKUP(A61,'DOE - FIPStoPayeeCodeConvTable'!$A$3:$A$213,'DOE - FIPStoPayeeCodeConvTable'!$E$3:$E$213) -> 0.3355 | X61: 0.419375 | Y61: 8140.34 | Z61: 11270.31
A62: 115 | B62: =LOOKUP(A62,'DOE - FIPStoPayeeCodeConvTable'!$A$3:$A$213,'DOE - FIPStoPayeeCodeConvTable'!$B$3:$B$213) -> Mathews Co | C62: 40530.5 | D62: 10231 | E62: 52335.5 | F62: 40137 | G62: 0 | H62: 49581 | I62: 22823 | J62: 5115.5 | K62: 22823 | L62: 15740 | M62: 0 | N62: 7476.5 | S62: 266793 | U62: 133396.5 | V62: 133396.5 | W62: =LOOKUP(A62,'DOE - FIPStoPayeeCodeConvTable'!$A$3:$A$213,'DOE - FIPStoPayeeCodeConvTable'!$E$3:$E$213) -> 0.4271 | X62: 0.533875 | Y62: 71217.06 | Z62: 62179.44
A63: 117 | B63: =LOOKUP(A63,'DOE - FIPStoPayeeCodeConvTable'!$A$3:$A$213,'DOE - FIPStoPayeeCodeConvTable'!$B$3:$B$213) -> Mecklenburg Co | C63: 76779.28 | D63: 29923.89 | E63: 30897.32 | F63: 31480 | G63: 14821.92 | H63: 72797.5 | I63: 19339.6 | J63: 30897.32 | K63: 12402.82 | L63: 70833.27 | M63: 5902.5 | N63: 89024.3 | S63: 485099.72 | U63: 242549.86 | V63: 242549.86 | W63: =LOOKUP(A63,'DOE - FIPStoPayeeCodeConvTable'!$A$3:$A$213,'DOE - FIPStoPayeeCodeConvTable'!$E$3:$E$213) -> 0.2286 | X63: 0.28575 | Y63: 69308.62 | Z63: 173241.24
A64: 119 | B64: =LOOKUP(A64,'DOE - FIPStoPayeeCodeConvTable'!$A$3:$A$213,'DOE - FIPStoPayeeCodeConvTable'!$B$3:$B$213) -> Middlesex Co | C64: 0 | D64: 0 | E64: 0 | F64: 0 | G64: 0 | H64: 0 | I64: 0 | J64: 0 | K64: 0 | L64: 0 | M64: 0 | N64: 0 | S64: 0 | U64: 0 | V64: 0 | W64: =LOOKUP(A64,'DOE - FIPStoPayeeCodeConvTable'!$A$3:$A$213,'DOE - FIPStoPayeeCodeConvTable'!$E$3:$E$213) -> 0.4333 | X64: 0.541625 | Y64: 0 | Z64: 0
A65: 121 | B65: =LOOKUP(A65,'DOE - FIPStoPayeeCodeConvTable'!$A$3:$A$213,'DOE - FIPStoPayeeCodeConvTable'!$B$3:$B$213) -> Montgomery Co | C65: 24162.66 | D65: 21934.94 | E65: 31819.72 | F65: 15550.82 | G65: 4386.6 | H65: 32146.66 | I65: 5115.5 | J65: 20272.82 | K65: 77882.98 | L65: 29211.52 | M65: 53384.92 | N65: 67527.24 | S65: 383396.38 | U65: 191698.19 | V65: 191698.19 | W65: =LOOKUP(A65,'DOE - FIPStoPayeeCodeConvTable'!$A$3:$A$213,'DOE - FIPStoPayeeCodeConvTable'!$E$3:$E$213) -> 0.2834 | X65: 0.35425 | Y65: 67909.08 | Z65: 123789.11
A66: 125 | B66: =LOOKUP(A66,'DOE - FIPStoPayeeCodeConvTable'!$A$3:$A$213,'DOE - FIPStoPayeeCodeConvTable'!$B$3:$B$213) -> Nelson Co | C66: 10815.59 | D66: 10466.7 | E66: 0 | F66: 0 | G66: 0 | H66: 0 | I66: 0 | J66: 0 | K66: 48844.6 | L66: 29306.76 | M66: 6390.17 | N66: 56484.11 | S66: 162307.93 | U66: 81153.97 | V66: 81153.96 | W66: =LOOKUP(A66,'DOE - FIPStoPayeeCodeConvTable'!$A$3:$A$213,'DOE - FIPStoPayeeCodeConvTable'!$E$3:$E$213) -> 0.3132 | X66: 0.3915 | Y66: 31771.78 | Z66: 49382.18
A67: 127 | B67: =LOOKUP(A67,'DOE - FIPStoPayeeCodeConvTable'!$A$3:$A$213,'DOE - FIPStoPayeeCodeConvTable'!$B$3:$B$213) -> New Kent Co | C67: 584.88 | D67: 0 | E67: 0 | F67: 0 | G67: 438.66 | H67: 0 | I67: 0 | J67: 0 | K67: 0 | L67: 0 | M67: 0 | N67: 0 | S67: 1023.54 | U67: 511.77 | V67: 511.77 | W67: =LOOKUP(A67,'DOE - FIPStoPayeeCodeConvTable'!$A$3:$A$213,'DOE - FIPStoPayeeCodeConvTable'!$E$3:$E$213) -> 0.4329 | X67: 0.541125 | Y67: 276.93 | Z67: 234.84
A68: 131 | B68: =LOOKUP(A68,'DOE - FIPStoPayeeCodeConvTable'!$A$3:$A$213,'DOE - FIPStoPayeeCodeConvTable'!$B$3:$B$213) -> Northampton Co | C68: 39388.3 | D68: 8577.42 | E68: 1315.98 | F68: 0 | G68: 19827.82 | H68: 15404.6 | I68: 25459.36 | J68: 34438.82 | K68: 32630.48 | L68: 40530.5 | M68: 13088.76 | N68: 18464.48 | S68: 249126.52 | U68: 124563.26 | V68: 124563.26 | W68: =LOOKUP(A68,'DOE - FIPStoPayeeCodeConvTable'!$A$3:$A$213,'DOE - FIPStoPayeeCodeConvTable'!$E$3:$E$213) -> 0.1971 | X68: 0.246375 | Y68: 30689.27 | Z68: 93873.99
A69: 133 | B69: =LOOKUP(A69,'DOE - FIPStoPayeeCodeConvTable'!$A$3:$A$213,'DOE - FIPStoPayeeCodeConvTable'!$B$3:$B$213) -> Northumberland Co | C69: 54303 | D69: 33054 | E69: -2754.5 | F69: 0 | G69: 44859 | H69: 22823 | I69: 3541.5 | J69: 18888 | K69: 3541.5 | L69: 11411.5 | M69: 0 | N69: 0 | S69: =SUM(C69:R69) -> 189667 | U69: 94833.5 | V69: 94833.5 | W69: =LOOKUP(A69,'DOE - FIPStoPayeeCodeConvTable'!$A$3:$A$213,'DOE - FIPStoPayeeCodeConvTable'!$E$3:$E$213) -> 0.3304 | X69: 0.413 | Y69: 39166.24 | Z69: 55667.26
A70: 135 | B70: =LOOKUP(A70,'DOE - FIPStoPayeeCodeConvTable'!$A$3:$A$213,'DOE - FIPStoPayeeCodeConvTable'!$B$3:$B$213) -> Nottoway Co | C70: 60205.5 | D70: 38059.9 | E70: 72251.44 | F70: 57960.7 | G70: 42513.14 | H70: 40924 | I70: 23332.7 | J70: 29921.14 | K70: 28271.96 | L70: 54696.5 | M70: 15574.5 | N70: 58945.68 | S70: 522657.16 | U70: =ROUND($U$1*S70,2) -> 261328.58 | V70: =SUM(S70)-SUM(U70) -> 261328.58 | W70: =LOOKUP(A70,'DOE - FIPStoPayeeCodeConvTable'!$A$3:$A$213,'DOE - FIPStoPayeeCodeConvTable'!$E$3:$E$213) -> 0.2686 | X70: 0.33575 | Y70: 87741.07 | Z70: 173587.51
A71: 137 | B71: =LOOKUP(A71,'DOE - FIPStoPayeeCodeConvTable'!$A$3:$A$213,'DOE - FIPStoPayeeCodeConvTable'!$B$3:$B$213) -> Orange Co | C71: 44299.3 | D71: 36344.26 | E71: 37768.08 | F71: 72666.42 | G71: 60713 | H71: 46039.5 | I71: 13030.66 | J71: 25401.26 | K71: 23412.28 | L71: 7870 | M71: 41050.94 | N71: 3509.28 | S71: 412104.98 | U71: 206052.49 | V71: 206052.49 | W71: =LOOKUP(A71,'DOE - FIPStoPayeeCodeConvTable'!$A$3:$A$213,'DOE - FIPStoPayeeCodeConvTable'!$E$3:$E$213) -> 0.4083 | X71: =$X$1*W71 -> 0.510375 | Y71: =ROUND(X71*V71,2) -> 105164.04 | Z71: =SUM(V71)-SUM(Y71) -> 100888.45
A72: 139 | B72: =LOOKUP(A72,'DOE - FIPStoPayeeCodeConvTable'!$A$3:$A$213,'DOE - FIPStoPayeeCodeConvTable'!$B$3:$B$213) -> Page Co | C72: 91081.34 | D72: 37294.38 | E72: 87357 | F72: 51228.24 | G72: 25409.8 | H72: 11018 | I72: 26108.68 | J72: 20068.5 | K72: 31873.5 | L72: 51548.5 | M72: 9704.22 | N72: 42104.5 | S72: 484796.66 | U72: 242398.33 | V72: 242398.33 | W72: =LOOKUP(A72,'DOE - FIPStoPayeeCodeConvTable'!$A$3:$A$213,'DOE - FIPStoPayeeCodeConvTable'!$E$3:$E$213) -> 0.2865 | X72: 0.358125 | Y72: 86808.9 | Z72: 155589.43
A73: 141 | B73: =LOOKUP(A73,'DOE - FIPStoPayeeCodeConvTable'!$A$3:$A$213,'DOE - FIPStoPayeeCodeConvTable'!$B$3:$B$213) -> Patrick Co | C73: 0 | D73: 0 | E73: 0 | F73: 0 | G73: 0 | H73: 146.22 | I73: 0 | J73: 0 | K73: 5902.5 | L73: 23216.5 | M73: 0 | N73: 24003.5 | S73: 53268.72 | U73: 26634.36 | V73: 26634.36 | W73: =LOOKUP(A73,'DOE - FIPStoPayeeCodeConvTable'!$A$3:$A$213,'DOE - FIPStoPayeeCodeConvTable'!$E$3:$E$213) -> 0.2539 | X73: 0.317375 | Y73: 8453.08 | Z73: 18181.28
A74: 143 | B74: =LOOKUP(A74,'DOE - FIPStoPayeeCodeConvTable'!$A$3:$A$213,'DOE - FIPStoPayeeCodeConvTable'!$B$3:$B$213) -> Pittsylvania Co | C74: 114823.32 | D74: 65682.37 | E74: 92514.42 | F74: 78284.7 | G74: 125716 | H74: 99108.25 | I74: 67515.39 | J74: 127492.82 | K74: 100562.48 | L74: 144139.5 | M74: 82415.58 | N74: 136351.89 | S74: 1234606.72 | U74: 617303.36 | V74: 617303.36 | W74: =LOOKUP(A74,'DOE - FIPStoPayeeCodeConvTable'!$A$3:$A$213,'DOE - FIPStoPayeeCodeConvTable'!$E$3:$E$213) -> 0.2355 | X74: 0.294375 | Y74: 181718.68 | Z74: 435584.68
A75: 145 | B75: =LOOKUP(A75,'DOE - FIPStoPayeeCodeConvTable'!$A$3:$A$213,'DOE - FIPStoPayeeCodeConvTable'!$B$3:$B$213) -> Powhatan Co | C75: 22268.47 | D75: 0 | E75: 30693 | F75: 59791.85 | G75: 20855.5 | H75: 9837.5 | I75: 35270.98 | J75: 10624.5 | K75: 10435.32 | L75: 27310.66 | M75: 71485.92 | N75: 43074.34 | S75: 341648.04 | U75: 170824.02 | V75: 170824.02 | W75: =LOOKUP(A75,'DOE - FIPStoPayeeCodeConvTable'!$A$3:$A$213,'DOE - FIPStoPayeeCodeConvTable'!$E$3:$E$213) -> 0.4342 | X75: 0.54275 | Y75: 92714.74 | Z75: 78109.28
A76: 147 | B76: =LOOKUP(A76,'DOE - FIPStoPayeeCodeConvTable'!$A$3:$A$213,'DOE - FIPStoPayeeCodeConvTable'!$B$3:$B$213) -> Prince Edward Co | C76: 0 | D76: 0 | E76: 0 | F76: 11018 | G76: 0 | H76: 0 | I76: 18494.5 | J76: 0 | K76: 0 | L76: 0 | M76: 25577.5 | N76: 0 | S76: 55090 | U76: 27545 | V76: 27545 | W76: =LOOKUP(A76,'DOE - FIPStoPayeeCodeConvTable'!$A$3:$A$213,'DOE - FIPStoPayeeCodeConvTable'!$E$3:$E$213) -> 0.2232 | X76: 0.279 | Y76: 7685.06 | Z76: 19859.94
A77: 149 | B77: =LOOKUP(A77,'DOE - FIPStoPayeeCodeConvTable'!$A$3:$A$213,'DOE - FIPStoPayeeCodeConvTable'!$B$3:$B$213) -> Prince George Co | C77: 24919.64 | D77: 3947.94 | E77: 22352.12 | F77: 0 | G77: 36060.18 | H77: 1608.42 | I77: 10381.62 | J77: 33832.46 | K77: 23242.38 | L77: 65149.16 | M77: 11267.48 | N77: 36559.14 | S77: 269320.54 | U77: 134660.27 | V77: 134660.27 | W77: =LOOKUP(A77,'DOE - FIPStoPayeeCodeConvTable'!$A$3:$A$213,'DOE - FIPStoPayeeCodeConvTable'!$E$3:$E$213) -> 0.3716 | X77: 0.4645 | Y77: 62549.7 | Z77: 72110.57
A78: 153 | B78: =LOOKUP(A78,'DOE - FIPStoPayeeCodeConvTable'!$A$3:$A$213,'DOE - FIPStoPayeeCodeConvTable'!$B$3:$B$213) -> Prince William Co | C78: 373464.53 | D78: 205664.02 | E78: 266344.05 | F78: 760902.32 | G78: 227862.64 | H78: 156503.38 | I78: 180436.12 | J78: 484392.38 | K78: 227279.96 | L78: 454869.82 | M78: 191301.24 | N78: 405260.02 | S78: 3934280.48 | U78: 1967140.24 | V78: 1967140.24 | W78: =LOOKUP(A78,'DOE - FIPStoPayeeCodeConvTable'!$A$3:$A$213,'DOE - FIPStoPayeeCodeConvTable'!$E$3:$E$213) -> 0.3414 | X78: 0.42675 | Y78: 839477.1 | Z78: 1127663.14
A79: 155 | B79: =LOOKUP(A79,'DOE - FIPStoPayeeCodeConvTable'!$A$3:$A$213,'DOE - FIPStoPayeeCodeConvTable'!$B$3:$B$213) -> Pulaski Co | C79: 8335.06 | D79: 28396.2 | E79: 4532.82 | F79: 88381.76 | G79: 82703.84 | H79: 0 | I79: 28562.22 | J79: 28344.94 | K79: 44861.2 | L79: 48953.16 | M79: 13306.02 | N79: 94502.91 | S79: 470880.13 | U79: 235440.07 | V79: 235440.06 | W79: =LOOKUP(A79,'DOE - FIPStoPayeeCodeConvTable'!$A$3:$A$213,'DOE - FIPStoPayeeCodeConvTable'!$E$3:$E$213) -> 0.2923 | X79: 0.365375 | Y79: 86023.91 | Z79: 149416.15
A80: 157 | B80: =LOOKUP(A80,'DOE - FIPStoPayeeCodeConvTable'!$A$3:$A$213,'DOE - FIPStoPayeeCodeConvTable'!$B$3:$B$213) -> Rappahannock Co | C80: 72068.6 | D80: 53326.82 | E80: 37754.52 | F80: 78377.54 | G80: 31873.5 | H80: 61009.8 | I80: 60075.26 | J80: 42879.4 | K80: 77835.36 | L80: 64677.76 | M80: 25727.64 | N80: 54615.38 | S80: 660221.58 | U80: 330110.79 | V80: 330110.79 | W80: =LOOKUP(A80,'DOE - FIPStoPayeeCodeConvTable'!$A$3:$A$213,'DOE - FIPStoPayeeCodeConvTable'!$E$3:$E$213) -> 0.4199 | X80: 0.524875 | Y80: 173266.9 | Z80: 156843.89
A81: 159 | B81: =LOOKUP(A81,'DOE - FIPStoPayeeCodeConvTable'!$A$3:$A$213,'DOE - FIPStoPayeeCodeConvTable'!$B$3:$B$213) -> Richmond Co | C81: 0 | D81: 5359.9 | E81: 0 | F81: 1484.28 | G81: 0 | H81: 0 | I81: 16961.52 | J81: 7594.92 | K81: 3265.66 | L81: 0 | M81: 0 | N81: 0 | S81: 34666.28 | U81: 17333.14 | V81: 17333.14 | W81: =LOOKUP(A81,'DOE - FIPStoPayeeCodeConvTable'!$A$3:$A$213,'DOE - FIPStoPayeeCodeConvTable'!$E$3:$E$213) -> 0.3227 | X81: 0.403375 | Y81: 6991.76 | Z81: 10341.38
A82: 161 | B82: =LOOKUP(A82,'DOE - FIPStoPayeeCodeConvTable'!$A$3:$A$213,'DOE - FIPStoPayeeCodeConvTable'!$B$3:$B$213) -> Roanoke Co | C82: 145603.26 | D82: 78717.62 | E82: 56595.32 | F82: 72455.76 | G82: 47479.66 | H82: 40154.34 | I82: 44876.1 | J82: 70374.26 | K82: 60445.42 | L82: 76412.5 | M82: -11149.08 | N82: 126135 | S82: 808100.16 | U82: 404050.08 | V82: 404050.08 | W82: =LOOKUP(A82,'DOE - FIPStoPayeeCodeConvTable'!$A$3:$A$213,'DOE - FIPStoPayeeCodeConvTable'!$E$3:$E$213) -> 0.4397 | X82: 0.549625 | Y82: 222076.03 | Z82: 181974.05
A83: 163 | B83: =LOOKUP(A83,'DOE - FIPStoPayeeCodeConvTable'!$A$3:$A$213,'DOE - FIPStoPayeeCodeConvTable'!$B$3:$B$213) -> Rockbridge Co | C83: 86087 | D83: 64212.49 | E83: 51860.48 | F83: 86990.74 | G83: 42476.78 | H83: 41156.4 | I83: 19879.32 | J83: 98224.64 | K83: 65936.3 | L83: 45741.27 | M83: 28674 | N83: 78860.49 | S83: 710099.91 | U83: 355049.96 | V83: 355049.95 | W83: =LOOKUP(A83,'DOE - FIPStoPayeeCodeConvTable'!$A$3:$A$213,'DOE - FIPStoPayeeCodeConvTable'!$E$3:$E$213) -> 0.2336 | X83: 0.292 | Y83: 103674.59 | Z83: 251375.36
A84: 165 | B84: =LOOKUP(A84,'DOE - FIPStoPayeeCodeConvTable'!$A$3:$A$213,'DOE - FIPStoPayeeCodeConvTable'!$B$3:$B$213) -> Rockingham Co | C84: 86184.26 | D84: 44174.34 | E84: 57000.24 | F84: 52069.2 | G84: 41885.96 | H84: 31312.6 | I84: 39366.3 | J84: 40136.5 | K84: 870305.78 | L84: 98962 | M84: 87089.74 | N84: 175856.22 | S84: 1624343.14 | U84: 812171.57 | V84: 812171.57 | W84: =LOOKUP(A84,'DOE - FIPStoPayeeCodeConvTable'!$A$3:$A$213,'DOE - FIPStoPayeeCodeConvTable'!$E$3:$E$213) -> 0.3445 | X84: 0.430625 | Y84: 349741.38 | Z84: 462430.19
A85: 167 | B85: =LOOKUP(A85,'DOE - FIPStoPayeeCodeConvTable'!$A$3:$A$213,'DOE - FIPStoPayeeCodeConvTable'!$B$3:$B$213) -> Russell Co | C85: 41816.74 | D85: 6903.72 | E85: 7766.92 | F85: 11357.5 | G85: 1963.5 | H85: 6369 | I85: 5333.54 | J85: 5571.5 | K85: 18536.19 | L85: 27937.03 | M85: 8678.03 | N85: 42894.72 | S85: 185128.39 | U85: 92564.2 | V85: 92564.19 | W85: =LOOKUP(A85,'DOE - FIPStoPayeeCodeConvTable'!$A$3:$A$213,'DOE - FIPStoPayeeCodeConvTable'!$E$3:$E$213) -> 0.1894 | X85: 0.23675 | Y85: 21914.57 | Z85: 70649.62
A86: 169 | B86: =LOOKUP(A86,'DOE - FIPStoPayeeCodeConvTable'!$A$3:$A$213,'DOE - FIPStoPayeeCodeConvTable'!$B$3:$B$213) -> Scott Co | C86: 6579.9 | D86: 12448.98 | E86: 2556.26 | F86: 0 | G86: 0 | H86: 0 | I86: 0 | J86: 0 | K86: 0 | L86: 0 | M86: 0 | N86: 0 | S86: 21585.14 | U86: 10792.57 | V86: 10792.57 | W86: =LOOKUP(A86,'DOE - FIPStoPayeeCodeConvTable'!$A$3:$A$213,'DOE - FIPStoPayeeCodeConvTable'!$E$3:$E$213) -> 0.3154 | X86: 0.39425 | Y86: 4254.97 | Z86: 6537.6
A87: 171 | B87: =LOOKUP(A87,'DOE - FIPStoPayeeCodeConvTable'!$A$3:$A$213,'DOE - FIPStoPayeeCodeConvTable'!$B$3:$B$213) -> Shenandoah Co | C87: 129826.83 | D87: 38869.64 | E87: 104707.56 | F87: 147242.2 | G87: 52840.65 | H87: 55714 | I87: 51716.04 | J87: 153384.87 | K87: 125493.25 | L87: 159261.58 | M87: 53514.74 | N87: 81719.12 | S87: 1154290.48 | U87: 577145.24 | V87: 577145.24 | W87: =LOOKUP(A87,'DOE - FIPStoPayeeCodeConvTable'!$A$3:$A$213,'DOE - FIPStoPayeeCodeConvTable'!$E$3:$E$213) -> 0.3517 | X87: 0.439625 | Y87: 253727.48 | Z87: 323417.76
A88: 173 | B88: =LOOKUP(A88,'DOE - FIPStoPayeeCodeConvTable'!$A$3:$A$213,'DOE - FIPStoPayeeCodeConvTable'!$B$3:$B$213) -> Smyth Co | C88: 91350.1 | D88: 61590.32 | E88: 70247.32 | F88: 98850.28 | G88: 54711.64 | H88: 34415.14 | I88: 25971 | J88: 44072 | K88: 72797.5 | L88: 67288.5 | M88: 16527 | N88: 60992.5 | S88: 698813.3 | U88: 349406.65 | V88: 349406.65 | W88: =LOOKUP(A88,'DOE - FIPStoPayeeCodeConvTable'!$A$3:$A$213,'DOE - FIPStoPayeeCodeConvTable'!$E$3:$E$213) -> 0.2337 | X88: 0.292125 | Y88: 102070.42 | Z88: 247336.23
A89: 175 | B89: =LOOKUP(A89,'DOE - FIPStoPayeeCodeConvTable'!$A$3:$A$213,'DOE - FIPStoPayeeCodeConvTable'!$B$3:$B$213) -> Southampton Co | C89: 39743.5 | D89: 11018 | E89: 23216.5 | F89: 37776 | G89: 23216.5 | H89: 11608.5 | I89: 23216.5 | J89: 25971 | K89: 18494.5 | L89: 14953 | M89: 0 | N89: 0 | S89: 229214 | U89: 114607 | V89: 114607 | W89: =LOOKUP(A89,'DOE - FIPStoPayeeCodeConvTable'!$A$3:$A$213,'DOE - FIPStoPayeeCodeConvTable'!$E$3:$E$213) -> 0.323 | X89: 0.40375 | Y89: 46272.58 | Z89: 68334.42
A90: 177 | B90: =LOOKUP(A90,'DOE - FIPStoPayeeCodeConvTable'!$A$3:$A$213,'DOE - FIPStoPayeeCodeConvTable'!$B$3:$B$213) -> Spotsylvania Co | C90: 123242.74 | D90: -5128.26 | E90: 83439.56 | F90: 125199 | G90: 98893.02 | H90: 101240.52 | I90: 118641.69 | J90: 175937.98 | K90: 122817.72 | L90: 114258.27 | M90: 107794.84 | N90: 138440.54 | S90: 1304777.62 | U90: 652388.81 | V90: 652388.81 | W90: =LOOKUP(A90,'DOE - FIPStoPayeeCodeConvTable'!$A$3:$A$213,'DOE - FIPStoPayeeCodeConvTable'!$E$3:$E$213) -> 0.4588 | X90: 0.5735 | Y90: 374144.98 | Z90: 278243.83
A91: 179 | B91: =LOOKUP(A91,'DOE - FIPStoPayeeCodeConvTable'!$A$3:$A$213,'DOE - FIPStoPayeeCodeConvTable'!$B$3:$B$213) -> Stafford Co | C91: 50236.92 | D91: 9050.5 | E91: 19543.92 | F91: 67290.7 | G91: 59667.98 | H91: 62063.4 | I91: 31123.71 | J91: 73203.94 | K91: 16337.82 | L91: 24576.54 | M91: 21642.5 | N91: 111048.78 | S91: 545786.71 | U91: 272893.36 | V91: 272893.35 | W91: =LOOKUP(A91,'DOE - FIPStoPayeeCodeConvTable'!$A$3:$A$213,'DOE - FIPStoPayeeCodeConvTable'!$E$3:$E$213) -> 0.4439 | X91: 0.554875 | Y91: 151421.7 | Z91: 121471.65
A92: 181 | B92: =LOOKUP(A92,'DOE - FIPStoPayeeCodeConvTable'!$A$3:$A$213,'DOE - FIPStoPayeeCodeConvTable'!$B$3:$B$213) -> Surry Co | C92: 0 | D92: 0 | E92: 0 | F92: 0 | G92: 0 | H92: 0 | I92: 0 | J92: 0 | K92: 0 | L92: 0 | M92: 20933.4 | N92: 0 | S92: 20933.4 | U92: 10466.7 | V92: 10466.7 | W92: =LOOKUP(A92,'DOE - FIPStoPayeeCodeConvTable'!$A$3:$A$213,'DOE - FIPStoPayeeCodeConvTable'!$E$3:$E$213) -> 0.3979 | X92: 0.497375 | Y92: 5205.87 | Z92: 5260.83
A93: 183 | B93: =LOOKUP(A93,'DOE - FIPStoPayeeCodeConvTable'!$A$3:$A$213,'DOE - FIPStoPayeeCodeConvTable'!$B$3:$B$213) -> Sussex Co | C93: 0 | D93: 0 | E93: 0 | F93: 0 | G93: 0 | H93: 0 | I93: 0 | J93: 0 | K93: 0 | L93: 0 | M93: 2485.74 | N93: 4679.04 | S93: 7164.78 | U93: 3582.39 | V93: 3582.39 | W93: =LOOKUP(A93,'DOE - FIPStoPayeeCodeConvTable'!$A$3:$A$213,'DOE - FIPStoPayeeCodeConvTable'!$E$3:$E$213) -> 0.2387 | X93: 0.298375 | Y93: 1068.9 | Z93: 2513.49
A94: 185 | B94: =LOOKUP(A94,'DOE - FIPStoPayeeCodeConvTable'!$A$3:$A$213,'DOE - FIPStoPayeeCodeConvTable'!$B$3:$B$213) -> Tazewell Co | C94: 103947.6 | D94: 1180.5 | E94: 65226.9 | F94: 18541.41 | G94: 34890.42 | H94: 6430.22 | I94: 4386.6 | J94: 18357.4 | K94: 0 | L94: 11077.75 | M94: 14547 | N94: 38183.75 | S94: 316769.55 | U94: 158384.78 | V94: 158384.77 | W94: =LOOKUP(A94,'DOE - FIPStoPayeeCodeConvTable'!$A$3:$A$213,'DOE - FIPStoPayeeCodeConvTable'!$E$3:$E$213) -> 0.2455 | X94: 0.306875 | Y94: 48604.33 | Z94: 109780.44
A95: 187 | B95: =LOOKUP(A95,'DOE - FIPStoPayeeCodeConvTable'!$A$3:$A$213,'DOE - FIPStoPayeeCodeConvTable'!$B$3:$B$213) -> Warren Co | C95: 16527 | D95: 0 | E95: 0 | F95: 0 | G95: 0 | H95: 0 | I95: 0 | J95: 0 | K95: 0 | L95: 131 | M95: 3013 | N95: 10355.5 | S95: 30026.5 | U95: 15013.25 | V95: 15013.25 | W95: =LOOKUP(A95,'DOE - FIPStoPayeeCodeConvTable'!$A$3:$A$213,'DOE - FIPStoPayeeCodeConvTable'!$E$3:$E$213) -> 0.3853 | X95: 0.481625 | Y95: 7230.76 | Z95: 7782.49
A96: 191 | B96: =LOOKUP(A96,'DOE - FIPStoPayeeCodeConvTable'!$A$3:$A$213,'DOE - FIPStoPayeeCodeConvTable'!$B$3:$B$213) -> Washington Co | C96: 2754.5 | D96: 3761.98 | E96: 47920.74 | F96: 2243.1 | G96: 2317.87 | H96: 972.01 | I96: 0 | J96: 0 | K96: 0 | L96: 2429.75 | M96: 4532.82 | N96: 16017.77 | S96: 82950.54 | U96: 41475.27 | V96: 41475.27 | W96: =LOOKUP(A96,'DOE - FIPStoPayeeCodeConvTable'!$A$3:$A$213,'DOE - FIPStoPayeeCodeConvTable'!$E$3:$E$213) -> 0.276 | X96: 0.345 | Y96: 14308.97 | Z96: 27166.3
A97: 193 | B97: =LOOKUP(A97,'DOE - FIPStoPayeeCodeConvTable'!$A$3:$A$213,'DOE - FIPStoPayeeCodeConvTable'!$B$3:$B$213) -> Westmoreland Co | C97: 46360.02 | D97: 22036 | E97: 22909.18 | F97: 4240.38 | G97: 19937.42 | H97: 0 | I97: 10682.6 | J97: 16731.32 | K97: 22240.32 | L97: 12187.76 | M97: 6296 | N97: 27788.14 | S97: 211409.14 | U97: 105704.57 | V97: 105704.57 | W97: =LOOKUP(A97,'DOE - FIPStoPayeeCodeConvTable'!$A$3:$A$213,'DOE - FIPStoPayeeCodeConvTable'!$E$3:$E$213) -> 0.3025 | X97: 0.378125 | Y97: 39969.54 | Z97: 65735.03
A98: 195 | B98: =LOOKUP(A98,'DOE - FIPStoPayeeCodeConvTable'!$A$3:$A$213,'DOE - FIPStoPayeeCodeConvTable'!$B$3:$B$213) -> Wise Co | C98: 27545 | D98: 0 | E98: 38128.42 | F98: 21557.06 | G98: 4328.5 | H98: 2556.26 | I98: 11130.8 | J98: 8769.8 | K98: 28921.28 | L98: 25375.38 | M98: 23027.32 | N98: 54958.92 | S98: 246298.74 | U98: 123149.37 | V98: 123149.37 | W98: =LOOKUP(A98,'DOE - FIPStoPayeeCodeConvTable'!$A$3:$A$213,'DOE - FIPStoPayeeCodeConvTable'!$E$3:$E$213) -> 0.2755 | X98: 0.344375 | Y98: 42409.56 | Z98: 80739.81
A99: 197 | B99: =LOOKUP(A99,'DOE - FIPStoPayeeCodeConvTable'!$A$3:$A$213,'DOE - FIPStoPayeeCodeConvTable'!$B$3:$B$213) -> Wythe Co | C99: 97951.5 | D99: 19675 | E99: 43196.88 | F99: 77635.85 | G99: 33258.32 | H99: 19892.26 | I99: 32731.54 | J99: 24207.82 | K99: 28260.79 | L99: 67301.44 | M99: 12985.5 | N99: 48400.5 | S99: 505497.4 | U99: 252748.7 | V99: 252748.7 | W99: =LOOKUP(A99,'DOE - FIPStoPayeeCodeConvTable'!$A$3:$A$213,'DOE - FIPStoPayeeCodeConvTable'!$E$3:$E$213) -> 0.2708 | X99: 0.3385 | Y99: 85555.43 | Z99: 167193.27
A100: 199 | B100: =LOOKUP(A100,'DOE - FIPStoPayeeCodeConvTable'!$A$3:$A$213,'DOE - FIPStoPayeeCodeConvTable'!$B$3:$B$213) -> York Co | C100: 42790.44 | D100: 24455.1 | E100: 50368 | F100: 8861.32 | G100: 30620.02 | H100: 14864.88 | I100: 32660.5 | J100: 17314 | K100: 12985.5 | L100: 14559.5 | M100: 9444 | N100: 0 | S100: 258923.26 | U100: 129461.63 | V100: 129461.63 | W100: =LOOKUP(A100,'DOE - FIPStoPayeeCodeConvTable'!$A$3:$A$213,'DOE - FIPStoPayeeCodeConvTable'!$E$3:$E$213) -> 0.3888 | X100: 0.486 | Y100: 62918.35 | Z100: 66543.28
A101: 510 | B101: =LOOKUP(A101,'DOE - FIPStoPayeeCodeConvTable'!$A$3:$A$213,'DOE - FIPStoPayeeCodeConvTable'!$B$3:$B$213) -> Alexandria City | C101: 92338 | D101: 20598.5 | E101: 52504.5 | F101: 73043.42 | G101: 32073.64 | H101: 16373.2 | I101: 7197.34 | J101: 28626.98 | K101: 9065.64 | L101: 16036.9 | M101: 15517.7 | N101: 12594.2 | S101: =SUM(C101:R101) -> 375970.02 | U101: 187985.01 | V101: 187985.01 | W101: =LOOKUP(A101,'DOE - FIPStoPayeeCodeConvTable'!$A$3:$A$213,'DOE - FIPStoPayeeCodeConvTable'!$E$3:$E$213) -> 0.5309 | X101: 0.663625 | Y101: 124751.55 | Z101: 63233.46
A102: 520 | B102: =LOOKUP(A102,'DOE - FIPStoPayeeCodeConvTable'!$A$3:$A$213,'DOE - FIPStoPayeeCodeConvTable'!$B$3:$B$213) -> Bristol City | C102: 36989 | D102: 12198.5 | E102: 2556.26 | F102: 29033.56 | G102: 0 | H102: 2556.26 | I102: 30805.8 | J102: 36159.28 | K102: 39013.9 | L102: 38667 | M102: 18169.2 | N102: 37682.52 | S102: 283831.28 | U102: =ROUND($U$1*S102,2) -> 141915.64 | V102: =SUM(S102)-SUM(U102) -> 141915.64 | W102: =LOOKUP(A102,'DOE - FIPStoPayeeCodeConvTable'!$A$3:$A$213,'DOE - FIPStoPayeeCodeConvTable'!$E$3:$E$213) -> 0.2547 | X102: 0.318375 | Y102: 45182.39 | Z102: 96733.25
A103: 530 | B103: =LOOKUP(A103,'DOE - FIPStoPayeeCodeConvTable'!$A$3:$A$213,'DOE - FIPStoPayeeCodeConvTable'!$B$3:$B$213) -> Buena Vista City | C103: 35415 | D103: 19675 | E103: 3935 | F103: 0 | G103: 0 | H103: 33447.5 | I103: 19301.1 | J103: 12210.9 | K103: 0 | L103: 393.5 | M103: 6689.5 | N103: 11805 | S103: 142872.5 | U103: 71436.25 | V103: 71436.25 | W103: =LOOKUP(A103,'DOE - FIPStoPayeeCodeConvTable'!$A$3:$A$213,'DOE - FIPStoPayeeCodeConvTable'!$E$3:$E$213) -> 0.2329 | X103: 0.291125 | Y103: 20796.88 | Z103: 50639.37
A104: 540 | B104: =LOOKUP(A104,'DOE - FIPStoPayeeCodeConvTable'!$A$3:$A$213,'DOE - FIPStoPayeeCodeConvTable'!$B$3:$B$213) -> Charlottesville City | C104: 37951.9 | D104: 23541.82 | E104: 49996.24 | F104: 15133.48 | G104: 981.68 | H104: 7655.7 | I104: 20984.64 | J104: 32199.36 | K104: 33057.8 | L104: 57809.16 | M104: 8901.84 | N104: 57172.92 | S104: 345386.54 | U104: 172693.27 | V104: 172693.27 | W104: =LOOKUP(A104,'DOE - FIPStoPayeeCodeConvTable'!$A$3:$A$213,'DOE - FIPStoPayeeCodeConvTable'!$E$3:$E$213) -> 0.3068 | X104: 0.3835 | Y104: 66227.87 | Z104: 106465.4
A105: 550 | B105: =LOOKUP(A105,'DOE - FIPStoPayeeCodeConvTable'!$A$3:$A$213,'DOE - FIPStoPayeeCodeConvTable'!$B$3:$B$213) -> Chesapeake City | C105: 107481.52 | D105: 9701.28 | E105: 48423.76 | F105: 96863.76 | G105: 44971.92 | H105: 53684.32 | I105: 51892.6 | J105: 89220.82 | K105: 101294.35 | L105: 184564.44 | M105: 70190.77 | N105: 71266.79 | S105: 929556.33 | U105: 464778.17 | V105: 464778.16 | W105: =LOOKUP(A105,'DOE - FIPStoPayeeCodeConvTable'!$A$3:$A$213,'DOE - FIPStoPayeeCodeConvTable'!$E$3:$E$213) -> 0.3715 | X105: 0.464375 | Y105: 215831.36 | Z105: 248946.8
A106: 570 | B106: =LOOKUP(A106,'DOE - FIPStoPayeeCodeConvTable'!$A$3:$A$213,'DOE - FIPStoPayeeCodeConvTable'!$B$3:$B$213) -> Colonial Heights City | C106: 24003.5 | D106: 0 | E106: 12198.5 | F106: 24003.5 | G106: 12198.5 | H106: 0 | I106: 13379 | J106: 0 | K106: -61779.5 | L106: 0 | M106: 0 | N106: 23184 | S106: 47187.5 | U106: 23593.75 | V106: 23593.75 | W106: =LOOKUP(A106,'DOE - FIPStoPayeeCodeConvTable'!$A$3:$A$213,'DOE - FIPStoPayeeCodeConvTable'!$E$3:$E$213) -> 0.4027 | X106: 0.503375 | Y106: 11876.5 | Z106: 11717.25
A107: 580 | B107: =LOOKUP(A107,'DOE - FIPStoPayeeCodeConvTable'!$A$3:$A$213,'DOE - FIPStoPayeeCodeConvTable'!$B$3:$B$213) -> Covington City | C107: 0 | D107: 1180.5 | E107: 0 | F107: 0 | G107: 0 | H107: 0 | I107: 0 | J107: 0 | K107: 0 | L107: 47220 | M107: 12198.5 | N107: 22823 | S107: 83422 | U107: 41711 | V107: 41711 | W107: =LOOKUP(A107,'DOE - FIPStoPayeeCodeConvTable'!$A$3:$A$213,'DOE - FIPStoPayeeCodeConvTable'!$E$3:$E$213) -> 0.2496 | X107: 0.312 | Y107: 13013.83 | Z107: 28697.17
A108: 590 | B108: =LOOKUP(A108,'DOE - FIPStoPayeeCodeConvTable'!$A$3:$A$213,'DOE - FIPStoPayeeCodeConvTable'!$B$3:$B$213) -> Danville City | C108: 136081.03 | D108: 39034.14 | E108: 87002.87 | F108: 99615.35 | G108: 51444.73 | H108: 85811.18 | I108: 68610.9 | J108: 52976.52 | K108: 97659.33 | L108: 115561.24 | M108: 28597.06 | N108: 150747.81 | S108: 1013142.16 | U108: 506571.08 | V108: 506571.08 | W108: =LOOKUP(A108,'DOE - FIPStoPayeeCodeConvTable'!$A$3:$A$213,'DOE - FIPStoPayeeCodeConvTable'!$E$3:$E$213) -> 0.2223 | X108: 0.277875 | Y108: 140763.44 | Z108: 365807.64
A109: 620 | B109: =LOOKUP(A109,'DOE - FIPStoPayeeCodeConvTable'!$A$3:$A$213,'DOE - FIPStoPayeeCodeConvTable'!$B$3:$B$213) -> Franklin City | C109: 0 | D109: 0 | E109: 0 | F109: 0 | G109: 0 | H109: 0 | I109: 0 | J109: 0 | K109: 0 | L109: 0 | M109: 5320.12 | N109: 15452.21 | S109: 20772.33 | U109: 10386.17 | V109: 10386.16 | W109: =LOOKUP(A109,'DOE - FIPStoPayeeCodeConvTable'!$A$3:$A$213,'DOE - FIPStoPayeeCodeConvTable'!$E$3:$E$213) -> 0.371 | X109: 0.46375 | Y109: 4816.58 | Z109: 5569.58
A110: 630 | B110: =LOOKUP(A110,'DOE - FIPStoPayeeCodeConvTable'!$A$3:$A$213,'DOE - FIPStoPayeeCodeConvTable'!$B$3:$B$213) -> Fredericksburg City | C110: 99671.7 | D110: 47291.04 | E110: 38386.38 | F110: 75377.82 | G110: 16920.5 | H110: 1574 | I110: 20068.5 | J110: -44649.51 | K110: -18557.28 | L110: 39643.78 | M110: 67670.36 | N110: 38904.09 | S110: 382301.38 | U110: 191150.69 | V110: 191150.69 | W110: =LOOKUP(A110,'DOE - FIPStoPayeeCodeConvTable'!$A$3:$A$213,'DOE - FIPStoPayeeCodeConvTable'!$E$3:$E$213) -> 0.3441 | X110: 0.430125 | Y110: 82218.69 | Z110: 108932
A111: 640 | B111: =LOOKUP(A111,'DOE - FIPStoPayeeCodeConvTable'!$A$3:$A$213,'DOE - FIPStoPayeeCodeConvTable'!$B$3:$B$213) -> Galax City | C111: 8919.42 | D111: 0 | E111: 9065.64 | F111: 4386.6 | G111: 28536.32 | H111: 26364.5 | I111: 21700.6 | J111: 9467.68 | K111: 7476.5 | L111: 0 | M111: 0 | N111: 0 | S111: 115917.26 | U111: 57958.63 | V111: 57958.63 | W111: =LOOKUP(A111,'DOE - FIPStoPayeeCodeConvTable'!$A$3:$A$213,'DOE - FIPStoPayeeCodeConvTable'!$E$3:$E$213) -> 0.3146 | X111: 0.39325 | Y111: 22792.23 | Z111: 35166.4
A112: 650 | B112: =LOOKUP(A112,'DOE - FIPStoPayeeCodeConvTable'!$A$3:$A$213,'DOE - FIPStoPayeeCodeConvTable'!$B$3:$B$213) -> Hampton City | C112: 0 | D112: 0 | E112: 0 | F112: 0 | G112: 0 | H112: 0 | I112: 0 | J112: 4825.26 | K112: 0 | L112: 0 | M112: 0 | N112: 0 | S112: 4825.26 | U112: 2412.63 | V112: 2412.63 | W112: =LOOKUP(A112,'DOE - FIPStoPayeeCodeConvTable'!$A$3:$A$213,'DOE - FIPStoPayeeCodeConvTable'!$E$3:$E$213) -> 0.3223 | X112: 0.402875 | Y112: 971.99 | Z112: 1440.64
A113: 660 | B113: =LOOKUP(A113,'DOE - FIPStoPayeeCodeConvTable'!$A$3:$A$213,'DOE - FIPStoPayeeCodeConvTable'!$B$3:$B$213) -> Harrisonburg City | C113: 191156.96 | D113: 69427.2 | E113: 131002.14 | F113: 240423.94 | G113: 187301.11 | H113: 97789.68 | I113: 132408.24 | J113: 154765.4 | K113: -593299.64 | L113: 334074.9 | M113: 100471.62 | N113: 371924.54 | S113: 1417446.09 | U113: 708723.05 | V113: 708723.04 | W113: =LOOKUP(A113,'DOE - FIPStoPayeeCodeConvTable'!$A$3:$A$213,'DOE - FIPStoPayeeCodeConvTable'!$E$3:$E$213) -> 0.3808 | X113: 0.476 | Y113: 337352.17 | Z113: 371370.87
A114: 670 | B114: =LOOKUP(A114,'DOE - FIPStoPayeeCodeConvTable'!$A$3:$A$213,'DOE - FIPStoPayeeCodeConvTable'!$B$3:$B$213) -> Hopewell City | C114: 17707.5 | D114: 9050.5 | E114: 8263.5 | F114: 21249 | G114: 8657 | H114: 8657 | I114: 1180.5 | J114: 1180.5 | K114: 0 | L114: 0 | M114: 0 | N114: 0 | S114: 75945.5 | U114: 37972.75 | V114: 37972.75 | W114: =LOOKUP(A114,'DOE - FIPStoPayeeCodeConvTable'!$A$3:$A$213,'DOE - FIPStoPayeeCodeConvTable'!$E$3:$E$213) -> 0.2667 | X114: 0.333375 | Y114: 12659.17 | Z114: 25313.58
A115: 678 | B115: =LOOKUP(A115,'DOE - FIPStoPayeeCodeConvTable'!$A$3:$A$213,'DOE - FIPStoPayeeCodeConvTable'!$B$3:$B$213) -> Lexington City | C115: 4386.6 | D115: -11697.6 | E115: 0 | F115: 0 | G115: 0 | H115: 0 | I115: 0 | J115: 0 | K115: 0 | L115: 0 | M115: 0 | N115: 0 | S115: -7311 | U115: -3655.5 | V115: -3655.5 | W115: =LOOKUP(A115,'DOE - FIPStoPayeeCodeConvTable'!$A$3:$A$213,'DOE - FIPStoPayeeCodeConvTable'!$E$3:$E$213) -> 0.3302 | X115: 0.41275 | Y115: -1508.81 | Z115: -2146.69
A116: 680 | B116: =LOOKUP(A116,'DOE - FIPStoPayeeCodeConvTable'!$A$3:$A$213,'DOE - FIPStoPayeeCodeConvTable'!$B$3:$B$213) -> Lynchburg City | C116: 148401.96 | D116: 109802.29 | E116: 110648.6 | F116: 110648.71 | G116: 64805.98 | H116: 35968.7 | I116: 82594.4 | J116: 175229.71 | K116: 154390.78 | L116: 255696.24 | M116: 69805.93 | N116: 298976.57 | S116: 1616969.87 | U116: 808484.94 | V116: 808484.93 | W116: =LOOKUP(A116,'DOE - FIPStoPayeeCodeConvTable'!$A$3:$A$213,'DOE - FIPStoPayeeCodeConvTable'!$E$3:$E$213) -> 0.2736 | X116: 0.342 | Y116: 276501.85 | Z116: 531983.08
A117: 683 | B117: =LOOKUP(A117,'DOE - FIPStoPayeeCodeConvTable'!$A$3:$A$213,'DOE - FIPStoPayeeCodeConvTable'!$B$3:$B$213) -> Manassas City | C117: 38502.74 | D117: 7249.62 | E117: 11805 | F117: 23655.16 | G117: 4532.82 | H117: 4386.6 | I117: 0 | J117: 8334.54 | K117: 91724.32 | L117: 17253.96 | M117: 6433.68 | N117: 58048.82 | S117: 271927.26 | U117: 135963.63 | V117: 135963.63 | W117: =LOOKUP(A117,'DOE - FIPStoPayeeCodeConvTable'!$A$3:$A$213,'DOE - FIPStoPayeeCodeConvTable'!$E$3:$E$213) -> 0.4168 | X117: 0.521 | Y117: 70837.05 | Z117: 65126.58
A118: 685 | B118: =LOOKUP(A118,'DOE - FIPStoPayeeCodeConvTable'!$A$3:$A$213,'DOE - FIPStoPayeeCodeConvTable'!$B$3:$B$213) -> Manassas Park City | C118: 0 | D118: 0 | E118: 0 | F118: 0 | G118: 5702.58 | H118: 0 | I118: 0 | J118: 0 | K118: -82658.68 | L118: 0 | M118: 0 | N118: 0 | S118: -76956.1 | U118: -38478.05 | V118: -38478.05 | W118: =LOOKUP(A118,'DOE - FIPStoPayeeCodeConvTable'!$A$3:$A$213,'DOE - FIPStoPayeeCodeConvTable'!$E$3:$E$213) -> 0.4273 | X118: 0.534125 | Y118: -20552.09 | Z118: -17925.96
A119: 690 | B119: =LOOKUP(A119,'DOE - FIPStoPayeeCodeConvTable'!$A$3:$A$213,'DOE - FIPStoPayeeCodeConvTable'!$B$3:$B$213) -> Martinsville City | C119: 55064.38 | D119: 5911.04 | E119: 14875.62 | F119: 23610 | G119: 50413.16 | H119: 13976.82 | I119: 70419.42 | J119: 28332 | K119: -2885.58 | L119: 22020.02 | M119: 26665.74 | N119: 18101 | S119: 326503.62 | U119: 163251.81 | V119: 163251.81 | W119: =LOOKUP(A119,'DOE - FIPStoPayeeCodeConvTable'!$A$3:$A$213,'DOE - FIPStoPayeeCodeConvTable'!$E$3:$E$213) -> 0.3321 | X119: 0.415125 | Y119: 67769.91 | Z119: 95481.9
A120: 700 | B120: =LOOKUP(A120,'DOE - FIPStoPayeeCodeConvTable'!$A$3:$A$213,'DOE - FIPStoPayeeCodeConvTable'!$B$3:$B$213) -> Newport News City | C120: 49053.82 | D120: 2958.82 | E120: 54016.76 | F120: 38956.5 | G120: 49295.16 | H120: 19341.8 | I120: 27785.96 | J120: 16206.74 | K120: 41435.9 | L120: 47551.42 | M120: -42788.16 | N120: -72751.13 | S120: 231063.59 | U120: 115531.8 | V120: 115531.79 | W120: =LOOKUP(A120,'DOE - FIPStoPayeeCodeConvTable'!$A$3:$A$213,'DOE - FIPStoPayeeCodeConvTable'!$E$3:$E$213) -> 0.2773 | X120: 0.346625 | Y120: 40046.21 | Z120: 75485.58
A121: 710 | B121: =LOOKUP(A121,'DOE - FIPStoPayeeCodeConvTable'!$A$3:$A$213,'DOE - FIPStoPayeeCodeConvTable'!$B$3:$B$213) -> Norfolk City | C121: 132268.84 | D121: 107755.51 | E121: 57363.05 | F121: 141110.85 | G121: 139968.42 | H121: 73616.82 | I121: 225587.32 | J121: 182413.16 | K121: 188776.35 | L121: 245678.69 | M121: 92108.76 | N121: 374010.81 | S121: 1960658.58 | U121: 980329.29 | V121: 980329.29 | W121: =LOOKUP(A121,'DOE - FIPStoPayeeCodeConvTable'!$A$3:$A$213,'DOE - FIPStoPayeeCodeConvTable'!$E$3:$E$213) -> 0.2455 | X121: 0.306875 | Y121: 300838.55 | Z121: 679490.74
A122: 720 | B122: =LOOKUP(A122,'DOE - FIPStoPayeeCodeConvTable'!$A$3:$A$213,'DOE - FIPStoPayeeCodeConvTable'!$B$3:$B$213) -> Norton City | C122: 0 | D122: 2803.64 | E122: 2391.34 | F122: 0 | G122: 0 | H122: 0 | I122: 0 | J122: 0 | K122: 0 | L122: 0 | M122: 0 | N122: 0 | S122: 5194.98 | U122: 2597.49 | V122: 2597.49 | W122: =LOOKUP(A122,'DOE - FIPStoPayeeCodeConvTable'!$A$3:$A$213,'DOE - FIPStoPayeeCodeConvTable'!$E$3:$E$213) -> 0.3254 | X122: 0.40675 | Y122: 1056.53 | Z122: 1540.96
A123: 730 | B123: =LOOKUP(A123,'DOE - FIPStoPayeeCodeConvTable'!$A$3:$A$213,'DOE - FIPStoPayeeCodeConvTable'!$B$3:$B$213) -> Petersburg City | C123: 45503.92 | D123: 40340.38 | E123: 58306.74 | F123: 52577.9 | G123: 38034.92 | H123: 15288.3 | I123: 7752.92 | J123: 18954.82 | K123: 24992.32 | L123: 40610.08 | M123: 0 | N123: 9368.14 | S123: 351730.44 | U123: 175865.22 | V123: 175865.22 | W123: =LOOKUP(A123,'DOE - FIPStoPayeeCodeConvTable'!$A$3:$A$213,'DOE - FIPStoPayeeCodeConvTable'!$E$3:$E$213) -> 0.3535 | X123: 0.441875 | Y123: 77710.44 | Z123: 98154.78
A124: 735 | B124: =LOOKUP(A124,'DOE - FIPStoPayeeCodeConvTable'!$A$3:$A$213,'DOE - FIPStoPayeeCodeConvTable'!$B$3:$B$213) -> Poquoson City | C124: 0 | D124: 0 | E124: 0 | F124: 0 | G124: 0 | H124: 0 | I124: 0 | J124: 0 | K124: 0 | L124: 0 | M124: 0 | N124: 0 | S124: 0 | U124: 0 | V124: 0 | W124: =LOOKUP(A124,'DOE - FIPStoPayeeCodeConvTable'!$A$3:$A$213,'DOE - FIPStoPayeeCodeConvTable'!$E$3:$E$213) -> 0.2787 | X124: 0.348375 | Y124: 0 | Z124: 0
A125: 740 | B125: =LOOKUP(A125,'DOE - FIPStoPayeeCodeConvTable'!$A$3:$A$213,'DOE - FIPStoPayeeCodeConvTable'!$B$3:$B$213) -> Portsmouth City | C125: 32868.78 | D125: 7457.22 | E125: 36081.66 | F125: 30693 | G125: 18473.02 | H125: 30267.54 | I125: 21937.14 | J125: 48226.46 | K125: 92244.76 | L125: 38778.06 | M125: 27149.56 | N125: 11258.72 | S125: 395435.92 | U125: 197717.96 | V125: 197717.96 | W125: =LOOKUP(A125,'DOE - FIPStoPayeeCodeConvTable'!$A$3:$A$213,'DOE - FIPStoPayeeCodeConvTable'!$E$3:$E$213) -> 0.2605 | X125: 0.325625 | Y125: 64381.91 | Z125: 133336.05
A126: 750 | B126: =LOOKUP(A126,'DOE - FIPStoPayeeCodeConvTable'!$A$3:$A$213,'DOE - FIPStoPayeeCodeConvTable'!$B$3:$B$213) -> Radford City | C126: 36158.64 | D126: 30770.26 | E126: 1104.4 | F126: 32461.74 | G126: 273.84 | H126: 0 | I126: 11805 | J126: 24397 | K126: 12198.5 | L126: 22823 | M126: 0 | N126: 4129.5 | S126: 176121.88 | U126: 88060.94 | V126: 88060.94 | W126: =LOOKUP(A126,'DOE - FIPStoPayeeCodeConvTable'!$A$3:$A$213,'DOE - FIPStoPayeeCodeConvTable'!$E$3:$E$213) -> 0.2035 | X126: 0.254375 | Y126: 22400.5 | Z126: 65660.44
A127: 760 | B127: =LOOKUP(A127,'DOE - FIPStoPayeeCodeConvTable'!$A$3:$A$213,'DOE - FIPStoPayeeCodeConvTable'!$B$3:$B$213) -> Richmond City | C127: 479060.4 | D127: 352297.88 | E127: 290132.44 | F127: 408544.3 | G127: 324090.53 | H127: 187675.14 | I127: 230660.49 | J127: 294570.06 | K127: 316455.79 | L127: 436813.86 | M127: 164779.07 | N127: 433260.76 | S127: 3918340.72 | U127: 1959170.36 | V127: 1959170.36 | W127: =LOOKUP(A127,'DOE - FIPStoPayeeCodeConvTable'!$A$3:$A$213,'DOE - FIPStoPayeeCodeConvTable'!$E$3:$E$213) -> 0.3691 | X127: 0.461375 | Y127: 903912.22 | Z127: 1055258.14
A128: 770 | B128: =LOOKUP(A128,'DOE - FIPStoPayeeCodeConvTable'!$A$3:$A$213,'DOE - FIPStoPayeeCodeConvTable'!$B$3:$B$213) -> Roanoke City | C128: 168638.96 | D128: 133178.05 | E128: 163251.68 | F128: 192830.6 | G128: 242667.1 | H128: 196178.63 | I128: 137296.62 | J128: 235248.91 | K128: 161645.71 | L128: 195262.18 | M128: 182848.78 | N128: 300750.73 | S128: 2309797.95 | U128: 1154898.98 | V128: 1154898.97 | W128: =LOOKUP(A128,'DOE - FIPStoPayeeCodeConvTable'!$A$3:$A$213,'DOE - FIPStoPayeeCodeConvTable'!$E$3:$E$213) -> 0.3072 | X128: 0.384 | Y128: 443481.2 | Z128: 711417.77
A129: 775 | B129: =LOOKUP(A129,'DOE - FIPStoPayeeCodeConvTable'!$A$3:$A$213,'DOE - FIPStoPayeeCodeConvTable'!$B$3:$B$213) -> Salem City | C129: 14475.05 | D129: -1102.98 | E129: 0 | F129: 13538.16 | G129: 55189.12 | H129: 4094.16 | I129: -5117.7 | J129: 0 | K129: -584.88 | L129: 27752.57 | M129: 4386.6 | N129: 49702.7 | S129: 162332.8 | U129: 81166.4 | V129: 81166.4 | W129: =LOOKUP(A129,'DOE - FIPStoPayeeCodeConvTable'!$A$3:$A$213,'DOE - FIPStoPayeeCodeConvTable'!$E$3:$E$213) -> 0.3513 | X129: 0.439125 | Y129: 35642.2 | Z129: 45524.2
A130: 790 | B130: =LOOKUP(A130,'DOE - FIPStoPayeeCodeConvTable'!$A$3:$A$213,'DOE - FIPStoPayeeCodeConvTable'!$B$3:$B$213) -> Staunton City | C130: 47380 | D130: 22293 | E130: 23290.5 | F130: 16133.5 | G130: 25402 | H130: 35680.9 | I130: 4196 | J130: 21767 | K130: 15599.5 | L130: 19145 | M130: 36043.94 | N130: 4063.5 | S130: 270994.84 | U130: 135497.42 | V130: 135497.42 | W130: =LOOKUP(A130,'DOE - FIPStoPayeeCodeConvTable'!$A$3:$A$213,'DOE - FIPStoPayeeCodeConvTable'!$E$3:$E$213) -> 0.2699 | X130: 0.337375 | Y130: 45713.44 | Z130: 89783.98
A131: 800 | B131: =LOOKUP(A131,'DOE - FIPStoPayeeCodeConvTable'!$A$3:$A$213,'DOE - FIPStoPayeeCodeConvTable'!$B$3:$B$213) -> Suffolk City | C131: 66705.82 | D131: 82112.5 | E131: 3610.34 | F131: 118838.82 | G131: 35303.2 | H131: 15346.5 | I131: 11805 | J131: 33841 | K131: 60814.06 | L131: 54768.04 | M131: 5645 | N131: 89167.54 | S131: 577957.82 | U131: 288978.91 | V131: 288978.91 | W131: =LOOKUP(A131,'DOE - FIPStoPayeeCodeConvTable'!$A$3:$A$213,'DOE - FIPStoPayeeCodeConvTable'!$E$3:$E$213) -> 0.2432 | X131: 0.304 | Y131: 87849.59 | Z131: 201129.32
A132: 810 | B132: =LOOKUP(A132,'DOE - FIPStoPayeeCodeConvTable'!$A$3:$A$213,'DOE - FIPStoPayeeCodeConvTable'!$B$3:$B$213) -> Virginia Beach City | C132: 477501.27 | D132: 255938.81 | E132: 314597.95 | F132: 400864.98 | G132: 467999.57 | H132: 183895.32 | I132: 223130.42 | J132: 291604.85 | K132: 361233.16 | L132: 449895.62 | M132: 167654.1 | N132: 304632.01 | S132: 3898948.06 | U132: 1949474.03 | V132: 1949474.03 | W132: =LOOKUP(A132,'DOE - FIPStoPayeeCodeConvTable'!$A$3:$A$213,'DOE - FIPStoPayeeCodeConvTable'!$E$3:$E$213) -> 0.3569 | X132: 0.446125 | Y132: 869709.1 | Z132: 1079764.93
A133: 820 | B133: =LOOKUP(A133,'DOE - FIPStoPayeeCodeConvTable'!$A$3:$A$213,'DOE - FIPStoPayeeCodeConvTable'!$B$3:$B$213) -> Waynesboro City | C133: 34527.39 | D133: 18137.39 | E133: 26421.5 | F133: 64861.21 | G133: 23610 | H133: 39959.18 | I133: 26136.03 | J133: 53983.45 | K133: 80157.54 | L133: 55315.21 | M133: 8657 | N133: 117529.51 | S133: =SUM(C133:R133) -> 549295.41 | U133: 274647.71 | V133: =SUM(S133)-SUM(U133) -> 274647.7 | W133: =LOOKUP(A133,'DOE - FIPStoPayeeCodeConvTable'!$A$3:$A$213,'DOE - FIPStoPayeeCodeConvTable'!$E$3:$E$213) -> 0.3843 | X133: 0.480375 | Y133: 131933.89 | Z133: 142713.81
A134: 830 | B134: =LOOKUP(A134,'DOE - FIPStoPayeeCodeConvTable'!$A$3:$A$213,'DOE - FIPStoPayeeCodeConvTable'!$B$3:$B$213) -> Williamsburg City | C134: 10820.28 | D134: 0 | E134: 0 | F134: 0 | G134: 0 | H134: 0 | I134: 6.82 | J134: 0 | K134: 0 | L134: 0 | M134: 0 | N134: 0 | S134: 10827.1 | U134: 5413.55 | V134: 5413.55 | W134: =LOOKUP(A134,'DOE - FIPStoPayeeCodeConvTable'!$A$3:$A$213,'DOE - FIPStoPayeeCodeConvTable'!$E$3:$E$213) -> 0.4553 | X134: =$X$1*W134 -> 0.569125 | Y134: =ROUND(X134*V134,2) -> 3080.99 | Z134: =SUM(V134)-SUM(Y134) -> 2332.56
A135: 840 | B135: =LOOKUP(A135,'DOE - FIPStoPayeeCodeConvTable'!$A$3:$A$213,'DOE - FIPStoPayeeCodeConvTable'!$B$3:$B$213) -> Winchester City | C135: 76828.7 | D135: 47334 | E135: 56722.1 | F135: 86404.5 | G135: 119467.04 | H135: 52303.28 | I135: 51942 | J135: 50761.5 | K135: -7083 | L135: 33841 | M135: 3148 | N135: 85783 | S135: 657452.12 | U135: 328726.06 | V135: 328726.06 | W135: =LOOKUP(A135,'DOE - FIPStoPayeeCodeConvTable'!$A$3:$A$213,'DOE - FIPStoPayeeCodeConvTable'!$E$3:$E$213) -> 0.4587 | X135: 0.573375 | Y135: 188483.3 | Z135: 140242.76

Sheet TFC (hidden)
A1: FY | B1: ='DOE - FIPStoPayeeCodeConvTable'!G1 -> 2019 | C1: MEDICAID ADJUSTMENTS--TFC PAYMENTS TO PROVIDERS | O1: ="Extended to be paided in this SFY = " & A1 -> Extended to be paided in this SFY = FY | T1: xx | U1: 0.5 | V1: 0.5 | W1: (POOL) | X1: 1
U2: FEDERAL | V2: STATE/ | W2: (RATE) | X2: Factor
A3: FIPS | S3: Grand | U3: MEDICAID | V3: LOCAL | W3: LOCAL | Y3: LOCAL | Z3: STATE
A4: CODE | B4: LOCALITY | C4: =TEXT("7/1/" & $B$1-1,"mmm-yyyy") -> Jul-2018 | D4: =TEXT("8/1/" & $B$1-1,"mmm-yyyy") -> Aug-2018 | E4: =TEXT("9/1/" & $B$1-1,"mmm-yyyy") -> Sep-2018 | F4: =TEXT("10/1/" & $B$1-1,"mmm-yyyy") -> Oct-2018 | G4: =TEXT("11/1/" & $B$1-1,"mmm-yyyy") -> Nov-2018 | H4: =TEXT("12/1/" & $B$1-1,"mmm-yyyy") -> Dec-2018 | I4: =TEXT("1/1/" & $B$1,"mmm-yyyy") -> Jan-2019 | J4: =TEXT("2/1/" & $B$1,"mmm-yyyy") -> Feb-2019 | K4: =TEXT("3/1/" & $B$1,"mmm-yyyy") -> Mar-2019 | L4: =TEXT("4/1/" & $B$1,"mmm-yyyy") -> Apr-2019 | M4: =TEXT("5/1/" & $B$1,"mmm-yyyy") -> May-2019 | N4: =TEXT("6/1/" & $B$1,"mmm-yyyy") -> Jun-2019 | O4: =TEXT("7/1/" & $B$1,"mmm-yyyy") -> Jul-2019 | P4: =TEXT("8/1/" & $B$1,"mmm-yyyy") -> Aug-2019 | Q4: =TEXT("9/1/" & $B$1,"mmm-yyyy") -> Sep-2019 | R4: =TEXT("10/1/" & $B$1,"mmm-yyyy") -> Oct-2019 | S4: Total | U4: RATE/Share | V4: SHARE | W4: MATCH Rate | Y4: MATCH | Z4: SHARE
A5: Totals | C5: =SUM(C6:C1201) -> 335116.11 | D5: 252391.27 | E5: =SUM(E6:E1201) -> 230035.21 | F5: =SUM(F6:F1201) -> 224253.91 | G5: =SUM(G6:G1201) -> 358834.26 | H5: =SUM(H6:H1201) -> 302747.75 | I5: 361516.43 | J5: =SUM(J6:J1200) -> 215557.24 | K5: =SUM(K6:K1200) -> 396867.61 | L5: =SUM(L6:L1200) -> 394641.75 | M5: =SUM(M6:M1200) -> 270509.74 | N5: =SUM(N6:N1200) -> 237084.65 | O5: =SUM(O6:O1200) -> 0 | P5: 0 | Q5: 0 | R5: 0 | S5: =SUM(C5:R5) -> 3579555.93 | T5: = | U5: =SUM(U6:U399) -> 1789778.11 | V5: =SUM(V6:V399) -> 1789777.82 | W5: = | Y5: =SUM(Y6:Y399) -> 608390.34 | Z5: =SUM(Z6:Z399) -> 1181387.48
A6: 1 | B6: =LOOKUP(A6,'DOE - FIPStoPayeeCodeConvTable'!$A$3:$A$213,'DOE - FIPStoPayeeCodeConvTable'!$B$3:$B$213) -> Accomack Co | C6: 0 | D6: 0 | E6: 0 | F6: 0 | G6: 653 | H6: 326.5 | I6: 326.5 | J6: 326.5 | K6: 326.5 | L6: 326.5 | M6: 326.5 | N6: 0 | S6: 2612 | U6: =ROUND($U$1*S6,2) -> 1306 | V6: =SUM(S6)-SUM(U6) -> 1306 | W6: =LOOKUP(A6,'DOE - FIPStoPayeeCodeConvTable'!$A$3:$A$213,'DOE - FIPStoPayeeCodeConvTable'!$E$3:$E$213) -> 0.2332 | X6: =$X$1*W6 -> 0.2332 | Y6: =ROUND(X6*V6,2) -> 304.56 | Z6: =SUM(V6)-SUM(Y6) -> 1001.44
A7: 3 | B7: =LOOKUP(A7,'DOE - FIPStoPayeeCodeConvTable'!$A$3:$A$213,'DOE - FIPStoPayeeCodeConvTable'!$B$3:$B$213) -> Albemarle Co | C7: 2285.5 | D7: 2566.71 | E7: 1632.5 | F7: 2459.48 | G7: -15040.13 | H7: 1306 | I7: 1306 | J7: 2390.81 | K7: 2612 | L7: 3265 | M7: 2285.5 | N7: 3918 | S7: 10987.37 | U7: 5493.69 | V7: 5493.68 | W7: =LOOKUP(A7,'DOE - FIPStoPayeeCodeConvTable'!$A$3:$A$213,'DOE - FIPStoPayeeCodeConvTable'!$E$3:$E$213) -> 0.4474 | X7: =$X$1*W7 -> 0.4474 | Y7: =ROUND(X7*V7,2) -> 2457.87 | Z7: =SUM(V7)-SUM(Y7) -> 3035.81
A8: 5 | B8: =LOOKUP(A8,'DOE - FIPStoPayeeCodeConvTable'!$A$3:$A$213,'DOE - FIPStoPayeeCodeConvTable'!$B$3:$B$213) -> Alleghany Co | C8: 326.5 | D8: 653 | E8: 979.5 | F8: 653 | G8: 653 | H8: 979.5 | I8: 653 | J8: 653 | K8: 326.5 | L8: 3265 | M8: 0 | N8: 326.5 | S8: 9468.5 | U8: 4734.25 | V8: 4734.25 | W8: =LOOKUP(A8,'DOE - FIPStoPayeeCodeConvTable'!$A$3:$A$213,'DOE - FIPStoPayeeCodeConvTable'!$E$3:$E$213) -> 0.1924 | X8: 0.1924 | Y8: 910.87 | Z8: 3823.38
A9: 7 | B9: =LOOKUP(A9,'DOE - FIPStoPayeeCodeConvTable'!$A$3:$A$213,'DOE - FIPStoPayeeCodeConvTable'!$B$3:$B$213) -> Amelia Co | C9: 0 | D9: 0 | E9: 0 | F9: 0 | G9: 0 | H9: 0 | I9: 0 | J9: 0 | K9: 0 | L9: 0 | M9: 0 | N9: 0 | S9: 0 | U9: 0 | V9: 0 | W9: =LOOKUP(A9,'DOE - FIPStoPayeeCodeConvTable'!$A$3:$A$213,'DOE - FIPStoPayeeCodeConvTable'!$E$3:$E$213) -> 0.3268 | X9: 0.3268 | Y9: 0 | Z9: 0
A10: 9 | B10: =LOOKUP(A10,'DOE - FIPStoPayeeCodeConvTable'!$A$3:$A$213,'DOE - FIPStoPayeeCodeConvTable'!$B$3:$B$213) -> Amherst Co | C10: 653 | D10: 653 | E10: 0 | F10: 1306 | G10: 653 | H10: 653 | I10: 1632.5 | J10: 979.5 | K10: 979.5 | L10: 2285.5 | M10: 1959 | N10: 1306 | S10: 13060 | U10: 6530 | V10: 6530 | W10: =LOOKUP(A10,'DOE - FIPStoPayeeCodeConvTable'!$A$3:$A$213,'DOE - FIPStoPayeeCodeConvTable'!$E$3:$E$213) -> 0.2722 | X10: 0.2722 | Y10: 1777.47 | Z10: 4752.53
A11: 11 | B11: =LOOKUP(A11,'DOE - FIPStoPayeeCodeConvTable'!$A$3:$A$213,'DOE - FIPStoPayeeCodeConvTable'!$B$3:$B$213) -> Appomattox Co | C11: 2612 | D11: 1306 | E11: 0 | F11: 3265 | G11: 0 | H11: 1632.5 | I11: 2285.5 | J11: 1306 | K11: 1306 | L11: 1306 | M11: 1959 | N11: 979.5 | S11: 17957.5 | U11: 8978.75 | V11: 8978.75 | W11: =LOOKUP(A11,'DOE - FIPStoPayeeCodeConvTable'!$A$3:$A$213,'DOE - FIPStoPayeeCodeConvTable'!$E$3:$E$213) -> 0.2639 | X11: 0.2639 | Y11: 2369.49 | Z11: 6609.26
A12: 13 | B12: =LOOKUP(A12,'DOE - FIPStoPayeeCodeConvTable'!$A$3:$A$213,'DOE - FIPStoPayeeCodeConvTable'!$B$3:$B$213) -> Arlington Co | C12: 1959 | D12: 326.5 | E12: 653 | F12: 1959 | G12: 2109.28 | H12: 653 | I12: 2435.78 | J12: 2938.5 | K12: -1011.1 | L12: 653 | M12: 653 | N12: 653 | S12: 13981.96 | U12: 6990.98 | V12: 6990.98 | W12: =LOOKUP(A12,'DOE - FIPStoPayeeCodeConvTable'!$A$3:$A$213,'DOE - FIPStoPayeeCodeConvTable'!$E$3:$E$213) -> 0.4602 | X12: 0.4602 | Y12: 3217.25 | Z12: 3773.73
A13: 15 | B13: =LOOKUP(A13,'DOE - FIPStoPayeeCodeConvTable'!$A$3:$A$213,'DOE - FIPStoPayeeCodeConvTable'!$B$3:$B$213) -> Augusta Co | C13: 8815.5 | D13: 6593.19 | E13: 6668.33 | F13: 5645.27 | G13: -816.2 | H13: 5300.16 | I13: 8845.47 | J13: 4560.45 | K13: 1877.38 | L13: 7132.23 | M13: 4897.5 | N13: 3602.03 | S13: 63121.31 | U13: 31560.66 | V13: 31560.65 | W13: =LOOKUP(A13,'DOE - FIPStoPayeeCodeConvTable'!$A$3:$A$213,'DOE - FIPStoPayeeCodeConvTable'!$E$3:$E$213) -> 0.3302 | X13: 0.3302 | Y13: 10421.33 | Z13: 21139.32
A14: 17 | B14: =LOOKUP(A14,'DOE - FIPStoPayeeCodeConvTable'!$A$3:$A$213,'DOE - FIPStoPayeeCodeConvTable'!$B$3:$B$213) -> Bath Co | C14: 0 | D14: 0 | E14: 0 | F14: 0 | G14: 0 | H14: 0 | I14: 0 | J14: 0 | K14: 0 | L14: 0 | M14: 0 | N14: 0 | S14: 0 | U14: 0 | V14: 0 | W14: =LOOKUP(A14,'DOE - FIPStoPayeeCodeConvTable'!$A$3:$A$213,'DOE - FIPStoPayeeCodeConvTable'!$E$3:$E$213) -> 0.4278 | X14: 0.4278 | Y14: 0 | Z14: 0
A15: 19 | B15: =LOOKUP(A15,'DOE - FIPStoPayeeCodeConvTable'!$A$3:$A$213,'DOE - FIPStoPayeeCodeConvTable'!$B$3:$B$213) -> Bedford Co | C15: 4897.5 | D15: 2077.08 | E15: 4106.74 | F15: 2285.5 | G15: 1959 | H15: 7836 | I15: 5224 | J15: 653 | K15: 2612 | L15: 3591.5 | M15: 1306 | N15: 3265 | S15: 39813.32 | U15: 19906.66 | V15: 19906.66 | W15: =LOOKUP(A15,'DOE - FIPStoPayeeCodeConvTable'!$A$3:$A$213,'DOE - FIPStoPayeeCodeConvTable'!$E$3:$E$213) -> 0.31112 | X15: 0.31112 | Y15: 6193.36 | Z15: 13713.3
A16: 21 | B16: =LOOKUP(A16,'DOE - FIPStoPayeeCodeConvTable'!$A$3:$A$213,'DOE - FIPStoPayeeCodeConvTable'!$B$3:$B$213) -> Bland Co | C16: 653 | D16: 1371.28 | E16: 1632.5 | F16: 1306 | G16: 1306 | H16: 1632.5 | I16: 979.5 | J16: 1306 | K16: 1632.5 | L16: 1632.5 | M16: 1632.5 | N16: 1306 | S16: 16390.28 | U16: 8195.14 | V16: 8195.14 | W16: =LOOKUP(A16,'DOE - FIPStoPayeeCodeConvTable'!$A$3:$A$213,'DOE - FIPStoPayeeCodeConvTable'!$E$3:$E$213) -> 0.2109 | X16: 0.2109 | Y16: 1728.36 | Z16: 6466.78
A17: 23 | B17: =LOOKUP(A17,'DOE - FIPStoPayeeCodeConvTable'!$A$3:$A$213,'DOE - FIPStoPayeeCodeConvTable'!$B$3:$B$213) -> Botetourt Co | C17: 0 | D17: 0 | E17: 0 | F17: 0 | G17: 0 | H17: 0 | I17: 0 | J17: 0 | K17: 0 | L17: 979.5 | M17: 0 | N17: 0 | S17: 979.5 | U17: 489.75 | V17: 489.75 | W17: =LOOKUP(A17,'DOE - FIPStoPayeeCodeConvTable'!$A$3:$A$213,'DOE - FIPStoPayeeCodeConvTable'!$E$3:$E$213) -> 0.3602 | X17: 0.3602 | Y17: 176.41 | Z17: 313.34
A18: 25 | B18: =LOOKUP(A18,'DOE - FIPStoPayeeCodeConvTable'!$A$3:$A$213,'DOE - FIPStoPayeeCodeConvTable'!$B$3:$B$213) -> Brunswick Co | C18: 653 | D18: 653 | E18: 653 | F18: 0 | G18: 1306 | H18: 653 | I18: 653 | J18: 653 | K18: 653 | L18: 653 | M18: 653 | N18: 653 | S18: 7836 | U18: 3918 | V18: 3918 | W18: =LOOKUP(A18,'DOE - FIPStoPayeeCodeConvTable'!$A$3:$A$213,'DOE - FIPStoPayeeCodeConvTable'!$E$3:$E$213) -> 0.2439 | X18: 0.2439 | Y18: 955.6 | Z18: 2962.4
A19: 27 | B19: =LOOKUP(A19,'DOE - FIPStoPayeeCodeConvTable'!$A$3:$A$213,'DOE - FIPStoPayeeCodeConvTable'!$B$3:$B$213) -> Buchanan Co | C19: 979.5 | D19: 653 | E19: 653 | F19: 1959 | G19: 2938.5 | H19: 1959 | I19: 1959 | J19: 326.5 | K19: 1959 | L19: 3265 | M19: 326.5 | N19: 1959 | S19: 18937 | U19: 9468.5 | V19: 9468.5 | W19: =LOOKUP(A19,'DOE - FIPStoPayeeCodeConvTable'!$A$3:$A$213,'DOE - FIPStoPayeeCodeConvTable'!$E$3:$E$213) -> 0.3156 | X19: 0.3156 | Y19: 2988.26 | Z19: 6480.24
A20: 29 | B20: =LOOKUP(A20,'DOE - FIPStoPayeeCodeConvTable'!$A$3:$A$213,'DOE - FIPStoPayeeCodeConvTable'!$B$3:$B$213) -> Buckingham Co | C20: 326.5 | D20: 326.5 | E20: 326.5 | F20: 326.5 | G20: 42.13 | H20: 0 | I20: 0 | J20: 0 | K20: 0 | L20: 0 | M20: 0 | N20: 0 | S20: 1348.13 | U20: 674.07 | V20: 674.06 | W20: =LOOKUP(A20,'DOE - FIPStoPayeeCodeConvTable'!$A$3:$A$213,'DOE - FIPStoPayeeCodeConvTable'!$E$3:$E$213) -> 0.2023 | X20: 0.2023 | Y20: 136.36 | Z20: 537.7
A21: 31 | B21: =LOOKUP(A21,'DOE - FIPStoPayeeCodeConvTable'!$A$3:$A$213,'DOE - FIPStoPayeeCodeConvTable'!$B$3:$B$213) -> Campbell Co | C21: 4244.5 | D21: 653 | E21: 2285.5 | F21: 2285.5 | G21: 326.5 | H21: 1959 | I21: 653 | J21: 2612 | K21: 326.5 | L21: 1306 | M21: 326.5 | N21: 326.5 | S21: 17304.5 | U21: 8652.25 | V21: 8652.25 | W21: =LOOKUP(A21,'DOE - FIPStoPayeeCodeConvTable'!$A$3:$A$213,'DOE - FIPStoPayeeCodeConvTable'!$E$3:$E$213) -> 0.3107 | X21: 0.3107 | Y21: 2688.25 | Z21: 5964
A22: 33 | B22: =LOOKUP(A22,'DOE - FIPStoPayeeCodeConvTable'!$A$3:$A$213,'DOE - FIPStoPayeeCodeConvTable'!$B$3:$B$213) -> Caroline Co | C22: 2285.5 | D22: 979.5 | E22: 389.68 | F22: 326.5 | G22: 1306 | H22: 0 | I22: 979.5 | J22: 326.5 | K22: 3265 | L22: 0 | M22: 1959 | N22: 326.5 | S22: 12143.68 | U22: 6071.84 | V22: 6071.84 | W22: =LOOKUP(A22,'DOE - FIPStoPayeeCodeConvTable'!$A$3:$A$213,'DOE - FIPStoPayeeCodeConvTable'!$E$3:$E$213) -> 0.3308 | X22: 0.3308 | Y22: 2008.56 | Z22: 4063.28
A23: 35 | B23: =LOOKUP(A23,'DOE - FIPStoPayeeCodeConvTable'!$A$3:$A$213,'DOE - FIPStoPayeeCodeConvTable'!$B$3:$B$213) -> Carroll Co | C23: 1306 | D23: 653 | E23: 1306 | F23: 2612 | G23: 3591.5 | H23: 4244.5 | I23: 2938.5 | J23: 1632.5 | K23: 2612 | L23: 7183 | M23: 1632.5 | N23: 7509.5 | S23: 37221 | U23: 18610.5 | V23: 18610.5 | W23: =LOOKUP(A23,'DOE - FIPStoPayeeCodeConvTable'!$A$3:$A$213,'DOE - FIPStoPayeeCodeConvTable'!$E$3:$E$213) -> 0.291 | X23: 0.291 | Y23: 5415.66 | Z23: 13194.84
A24: 36 | B24: =LOOKUP(A24,'DOE - FIPStoPayeeCodeConvTable'!$A$3:$A$213,'DOE - FIPStoPayeeCodeConvTable'!$B$3:$B$213) -> Charles City Co | C24: 0 | D24: 0 | E24: 0 | F24: 0 | G24: 0 | H24: 0 | I24: 0 | J24: 0 | K24: 0 | L24: 0 | M24: 0 | N24: 326.5 | S24: 326.5 | U24: 163.25 | V24: 163.25 | W24: =LOOKUP(A24,'DOE - FIPStoPayeeCodeConvTable'!$A$3:$A$213,'DOE - FIPStoPayeeCodeConvTable'!$E$3:$E$213) -> 0.3131 | X24: 0.3131 | Y24: 51.11 | Z24: 112.14
A25: 37 | B25: =LOOKUP(A25,'DOE - FIPStoPayeeCodeConvTable'!$A$3:$A$213,'DOE - FIPStoPayeeCodeConvTable'!$B$3:$B$213) -> Charlotte Co | C25: 653 | D25: 653 | E25: 0 | F25: 653 | G25: 0 | H25: 326.5 | I25: 653 | J25: 326.5 | K25: 326.5 | L25: 326.5 | M25: 0 | N25: 326.5 | S25: 4244.5 | U25: 2122.25 | V25: 2122.25 | W25: =LOOKUP(A25,'DOE - FIPStoPayeeCodeConvTable'!$A$3:$A$213,'DOE - FIPStoPayeeCodeConvTable'!$E$3:$E$213) -> 0.2204 | X25: 0.2204 | Y25: 467.74 | Z25: 1654.51
A26: 41 | B26: =LOOKUP(A26,'DOE - FIPStoPayeeCodeConvTable'!$A$3:$A$213,'DOE - FIPStoPayeeCodeConvTable'!$B$3:$B$213) -> Chesterfield Co | C26: 8920.8 | D26: 6530 | E26: 6856.5 | F26: 653 | G26: 16325 | H26: 6856.5 | I26: 7183 | J26: 7836 | K26: 6530 | L26: 10627.05 | M26: 4897.5 | N26: 5224 | S26: 88439.35 | U26: 44219.68 | V26: 44219.67 | W26: =LOOKUP(A26,'DOE - FIPStoPayeeCodeConvTable'!$A$3:$A$213,'DOE - FIPStoPayeeCodeConvTable'!$E$3:$E$213) -> 0.3853 | X26: 0.3853 | Y26: 17037.84 | Z26: 27181.83
A27: 43 | B27: =LOOKUP(A27,'DOE - FIPStoPayeeCodeConvTable'!$A$3:$A$213,'DOE - FIPStoPayeeCodeConvTable'!$B$3:$B$213) -> Clarke Co | C27: 0 | D27: 0 | E27: 0 | F27: 0 | G27: 0 | H27: 0 | I27: 0 | J27: 0 | K27: 0 | L27: 0 | M27: 0 | N27: 0 | S27: 0 | U27: 0 | V27: 0 | W27: =LOOKUP(A27,'DOE - FIPStoPayeeCodeConvTable'!$A$3:$A$213,'DOE - FIPStoPayeeCodeConvTable'!$E$3:$E$213) -> 0.4797 | X27: 0.4797 | Y27: 0 | Z27: 0
A28: 45 | B28: =LOOKUP(A28,'DOE - FIPStoPayeeCodeConvTable'!$A$3:$A$213,'DOE - FIPStoPayeeCodeConvTable'!$B$3:$B$213) -> Craig Co | C28: 0 | D28: 0 | E28: 0 | F28: 0 | G28: 0 | H28: 0 | I28: 0 | J28: 326.5 | K28: 0 | L28: 0 | M28: 0 | N28: 0 | S28: 326.5 | U28: 163.25 | V28: 163.25 | W28: =LOOKUP(A28,'DOE - FIPStoPayeeCodeConvTable'!$A$3:$A$213,'DOE - FIPStoPayeeCodeConvTable'!$E$3:$E$213) -> 0.2901 | X28: 0.2901 | Y28: 47.36 | Z28: 115.89
A29: 47 | B29: =LOOKUP(A29,'DOE - FIPStoPayeeCodeConvTable'!$A$3:$A$213,'DOE - FIPStoPayeeCodeConvTable'!$B$3:$B$213) -> Culpeper Co | C29: 5441.7 | D29: 3849.12 | E29: 3591.5 | F29: 2612 | G29: 4244.5 | H29: 4961.91 | I29: 2612 | J29: 1632.5 | K29: 5224 | L29: 2285.5 | M29: 979.5 | N29: 1632.5 | S29: 39066.73 | U29: 19533.37 | V29: 19533.36 | W29: =LOOKUP(A29,'DOE - FIPStoPayeeCodeConvTable'!$A$3:$A$213,'DOE - FIPStoPayeeCodeConvTable'!$E$3:$E$213) -> 0.3767 | X29: 0.3767 | Y29: 7358.22 | Z29: 12175.14
A30: 49 | B30: =LOOKUP(A30,'DOE - FIPStoPayeeCodeConvTable'!$A$3:$A$213,'DOE - FIPStoPayeeCodeConvTable'!$B$3:$B$213) -> Cumberland Co | C30: 2285.5 | D30: 1959 | E30: 326.5 | F30: 2285.5 | G30: 1632.5 | H30: 653 | I30: 653 | J30: 1632.5 | K30: 1959 | L30: 7183 | M30: 979.5 | N30: 2285.5 | S30: 23834.5 | U30: 11917.25 | V30: 11917.25 | W30: =LOOKUP(A30,'DOE - FIPStoPayeeCodeConvTable'!$A$3:$A$213,'DOE - FIPStoPayeeCodeConvTable'!$E$3:$E$213) -> 0.304 | X30: 0.304 | Y30: 3622.84 | Z30: 8294.41
A31: 51 | B31: =LOOKUP(A31,'DOE - FIPStoPayeeCodeConvTable'!$A$3:$A$213,'DOE - FIPStoPayeeCodeConvTable'!$B$3:$B$213) -> Dickenson Co | C31: 653 | D31: 326.5 | E31: 979.5 | F31: 653 | G31: 326.5 | H31: 326.5 | I31: 1306 | J31: 1959 | K31: 1959 | L31: 2285.5 | M31: 2285.5 | N31: 2285.5 | S31: 15345.5 | U31: 7672.75 | V31: 7672.75 | W31: =LOOKUP(A31,'DOE - FIPStoPayeeCodeConvTable'!$A$3:$A$213,'DOE - FIPStoPayeeCodeConvTable'!$E$3:$E$213) -> 0.3042 | X31: 0.3042 | Y31: 2334.05 | Z31: 5338.7
A32: 53 | B32: =LOOKUP(A32,'DOE - FIPStoPayeeCodeConvTable'!$A$3:$A$213,'DOE - FIPStoPayeeCodeConvTable'!$B$3:$B$213) -> Dinwiddie Co | C32: 653 | D32: 653 | E32: 0 | F32: 0 | G32: 326.5 | H32: 0 | I32: 653 | J32: 0 | K32: 653 | L32: 979.5 | M32: 0 | N32: 326.5 | S32: 4244.5 | U32: 2122.25 | V32: 2122.25 | W32: =LOOKUP(A32,'DOE - FIPStoPayeeCodeConvTable'!$A$3:$A$213,'DOE - FIPStoPayeeCodeConvTable'!$E$3:$E$213) -> 0.3358 | X32: 0.3358 | Y32: 712.65 | Z32: 1409.6
A33: 57 | B33: =LOOKUP(A33,'DOE - FIPStoPayeeCodeConvTable'!$A$3:$A$213,'DOE - FIPStoPayeeCodeConvTable'!$B$3:$B$213) -> Essex Co | C33: 653 | D33: 979.5 | E33: 326.5 | F33: 0 | G33: 979.5 | H33: 979.5 | I33: 653 | J33: 653 | K33: 653 | L33: 326.5 | M33: 0 | N33: 326.5 | S33: 6530 | U33: 3265 | V33: 3265 | W33: =LOOKUP(A33,'DOE - FIPStoPayeeCodeConvTable'!$A$3:$A$213,'DOE - FIPStoPayeeCodeConvTable'!$E$3:$E$213) -> 0.3853 | X33: 0.3853 | Y33: 1258 | Z33: 2007
A34: 59 | B34: =LOOKUP(A34,'DOE - FIPStoPayeeCodeConvTable'!$A$3:$A$213,'DOE - FIPStoPayeeCodeConvTable'!$B$3:$B$213) -> Fairfax Co | C34: 10121.5 | D34: 8845.02 | E34: 7049.72 | F34: 9795 | G34: 11101 | H34: 10448 | I34: 9902.34 | J34: 11427.5 | K34: 6493.32 | L34: 8162.5 | M34: 9468.5 | N34: 5877 | S34: 108691.4 | U34: 54345.7 | V34: 54345.7 | W34: =LOOKUP(A34,'DOE - FIPStoPayeeCodeConvTable'!$A$3:$A$213,'DOE - FIPStoPayeeCodeConvTable'!$E$3:$E$213) -> 0.4611 | X34: 0.4611 | Y34: 25058.8 | Z34: 29286.9
A35: 61 | B35: =LOOKUP(A35,'DOE - FIPStoPayeeCodeConvTable'!$A$3:$A$213,'DOE - FIPStoPayeeCodeConvTable'!$B$3:$B$213) -> Fauquier Co | C35: 979.5 | D35: 1306 | E35: 1306 | F35: 1959 | G35: 1959 | H35: 1306 | I35: 979.5 | J35: 0 | K35: 0 | L35: 1306 | M35: 0 | N35: 326.5 | S35: 11427.5 | U35: 5713.75 | V35: 5713.75 | W35: =LOOKUP(A35,'DOE - FIPStoPayeeCodeConvTable'!$A$3:$A$213,'DOE - FIPStoPayeeCodeConvTable'!$E$3:$E$213) -> 0.4584 | X35: 0.4584 | Y35: 2619.18 | Z35: 3094.57
A36: 63 | B36: =LOOKUP(A36,'DOE - FIPStoPayeeCodeConvTable'!$A$3:$A$213,'DOE - FIPStoPayeeCodeConvTable'!$B$3:$B$213) -> Floyd Co | C36: 1959 | D36: 1959 | E36: 1306 | F36: 653 | G36: 326.5 | H36: 326.5 | I36: 326.5 | J36: 0 | K36: 3265 | L36: 653 | M36: 0 | N36: 0 | S36: 10774.5 | U36: 5387.25 | V36: 5387.25 | W36: =LOOKUP(A36,'DOE - FIPStoPayeeCodeConvTable'!$A$3:$A$213,'DOE - FIPStoPayeeCodeConvTable'!$E$3:$E$213) -> 0.2324 | X36: 0.2324 | Y36: 1252 | Z36: 4135.25
A37: 65 | B37: =LOOKUP(A37,'DOE - FIPStoPayeeCodeConvTable'!$A$3:$A$213,'DOE - FIPStoPayeeCodeConvTable'!$B$3:$B$213) -> Fluvanna Co | C37: 1632.5 | D37: 1400.79 | E37: 979.5 | F37: 957.74 | G37: 326.5 | H37: 326.5 | I37: 326.5 | J37: 326.5 | K37: 326.5 | L37: 326.5 | M37: 326.5 | N37: 326.5 | S37: =SUM(C37:R37) -> 7582.53 | U37: 3791.27 | V37: 3791.26 | W37: =LOOKUP(A37,'DOE - FIPStoPayeeCodeConvTable'!$A$3:$A$213,'DOE - FIPStoPayeeCodeConvTable'!$E$3:$E$213) -> 0.3811 | X37: 0.3811 | Y37: 1444.85 | Z37: 2346.41
A38: 67 | B38: =LOOKUP(A38,'DOE - FIPStoPayeeCodeConvTable'!$A$3:$A$213,'DOE - FIPStoPayeeCodeConvTable'!$B$3:$B$213) -> Franklin Co | C38: 7836 | D38: 4897.5 | E38: 5877 | F38: 4244.5 | G38: 3918 | H38: 4244 | I38: 3918 | J38: 1306 | K38: 8162.5 | L38: 3591.5 | M38: 1959 | N38: 3591.5 | S38: 53545.5 | U38: =ROUND($U$1*S38,2) -> 26772.75 | V38: =SUM(S38)-SUM(U38) -> 26772.75 | W38: =LOOKUP(A38,'DOE - FIPStoPayeeCodeConvTable'!$A$3:$A$213,'DOE - FIPStoPayeeCodeConvTable'!$E$3:$E$213) -> 0.283 | X38: 0.283 | Y38: 7576.69 | Z38: 19196.06
A39: 69 | B39: =LOOKUP(A39,'DOE - FIPStoPayeeCodeConvTable'!$A$3:$A$213,'DOE - FIPStoPayeeCodeConvTable'!$B$3:$B$213) -> Frederick Co | C39: 2938.5 | D39: 979.5 | E39: 1632.5 | F39: 4897.5 | G39: 979.5 | H39: 3918 | I39: 3265 | J39: 2285.5 | K39: 4897.5 | L39: 2796.96 | M39: 4244.5 | N39: 979.5 | S39: 33814.46 | U39: 16907.23 | V39: 16907.23 | W39: =LOOKUP(A39,'DOE - FIPStoPayeeCodeConvTable'!$A$3:$A$213,'DOE - FIPStoPayeeCodeConvTable'!$E$3:$E$213) -> 0.4348 | X39: 0.4348 | Y39: 7351.26 | Z39: 9555.97
A40: 71 | B40: =LOOKUP(A40,'DOE - FIPStoPayeeCodeConvTable'!$A$3:$A$213,'DOE - FIPStoPayeeCodeConvTable'!$B$3:$B$213) -> Giles Co | C40: 1959 | D40: 1306 | E40: 1632.5 | F40: 979.5 | G40: 2612 | H40: 1959 | I40: 1306 | J40: 1306 | K40: 1632.5 | L40: 3265 | M40: 1306 | N40: 2285.5 | S40: 21549 | U40: 10774.5 | V40: 10774.5 | W40: =LOOKUP(A40,'DOE - FIPStoPayeeCodeConvTable'!$A$3:$A$213,'DOE - FIPStoPayeeCodeConvTable'!$E$3:$E$213) -> 0.2898 | X40: 0.2898 | Y40: 3122.45 | Z40: 7652.05
A41: 73 | B41: =LOOKUP(A41,'DOE - FIPStoPayeeCodeConvTable'!$A$3:$A$213,'DOE - FIPStoPayeeCodeConvTable'!$B$3:$B$213) -> Gloucester Co | C41: 979.5 | D41: 1306 | E41: 653 | F41: 326.5 | G41: 1959 | H41: 1306 | I41: 979.5 | J41: 653 | K41: 1306 | L41: 979.5 | M41: 979.5 | N41: 979.5 | S41: 12407 | U41: 6203.5 | V41: 6203.5 | W41: =LOOKUP(A41,'DOE - FIPStoPayeeCodeConvTable'!$A$3:$A$213,'DOE - FIPStoPayeeCodeConvTable'!$E$3:$E$213) -> 0.3687 | X41: 0.3687 | Y41: 2287.23 | Z41: 3916.27
A42: 75 | B42: =LOOKUP(A42,'DOE - FIPStoPayeeCodeConvTable'!$A$3:$A$213,'DOE - FIPStoPayeeCodeConvTable'!$B$3:$B$213) -> Goochland Co | C42: 326.5 | D42: 326.5 | E42: 326.5 | F42: 326.5 | G42: 0 | H42: 653 | I42: 326.5 | J42: 326.5 | K42: 653 | L42: 326.5 | M42: 653 | N42: 326.5 | S42: 4571 | U42: 2285.5 | V42: 2285.5 | W42: =LOOKUP(A42,'DOE - FIPStoPayeeCodeConvTable'!$A$3:$A$213,'DOE - FIPStoPayeeCodeConvTable'!$E$3:$E$213) -> 0.4871 | X42: 0.4871 | Y42: 1113.27 | Z42: 1172.23
A43: 77 | B43: =LOOKUP(A43,'DOE - FIPStoPayeeCodeConvTable'!$A$3:$A$213,'DOE - FIPStoPayeeCodeConvTable'!$B$3:$B$213) -> Grayson Co | C43: 1306 | D43: 979.5 | E43: 653 | F43: 1632.5 | G43: 979.5 | H43: 1306 | I43: 3591.5 | J43: 326.5 | K43: 1306 | L43: 1959 | M43: 0 | N43: 979.5 | S43: 15019 | U43: 7509.5 | V43: 7509.5 | W43: =LOOKUP(A43,'DOE - FIPStoPayeeCodeConvTable'!$A$3:$A$213,'DOE - FIPStoPayeeCodeConvTable'!$E$3:$E$213) -> 0.2109 | X43: 0.2109 | Y43: 1583.75 | Z43: 5925.75
A44: 79 | B44: =LOOKUP(A44,'DOE - FIPStoPayeeCodeConvTable'!$A$3:$A$213,'DOE - FIPStoPayeeCodeConvTable'!$B$3:$B$213) -> Greene Co | C44: 0 | D44: 0 | E44: 0 | F44: 326.5 | G44: 0 | H44: 0 | I44: 1306 | J44: 653 | K44: 326.5 | L44: 326.5 | M44: 0 | N44: 653 | S44: 3591.5 | U44: 1795.75 | V44: 1795.75 | W44: =LOOKUP(A44,'DOE - FIPStoPayeeCodeConvTable'!$A$3:$A$213,'DOE - FIPStoPayeeCodeConvTable'!$E$3:$E$213) -> 0.3471 | X44: 0.3471 | Y44: 623.3 | Z44: 1172.45
A45: 81 | B45: =LOOKUP(A45,'DOE - FIPStoPayeeCodeConvTable'!$A$3:$A$213,'DOE - FIPStoPayeeCodeConvTable'!$B$3:$B$213) -> Greensville Co | C45: 1306 | D45: 979.5 | E45: 653 | F45: 0 | G45: 1306 | H45: 1632.5 | I45: 2612 | J45: 2285.5 | K45: 2285.5 | L45: 5877 | M45: 2612 | N45: 2612 | S45: 24161 | U45: 12080.5 | V45: 12080.5 | W45: =LOOKUP(A45,'DOE - FIPStoPayeeCodeConvTable'!$A$3:$A$213,'DOE - FIPStoPayeeCodeConvTable'!$E$3:$E$213) -> 0.2266 | X45: 0.2266 | Y45: 2737.44 | Z45: 9343.06
A46: 83 | B46: =LOOKUP(A46,'DOE - FIPStoPayeeCodeConvTable'!$A$3:$A$213,'DOE - FIPStoPayeeCodeConvTable'!$B$3:$B$213) -> Halifax Co | C46: 7836 | D46: 2938.5 | E46: 1632.5 | F46: 5877 | G46: 979.5 | H46: 6013.89 | I46: 3591.5 | J46: 3591.5 | K46: 3265 | L46: 5877 | M46: 3591.5 | N46: 4571 | S46: 49764.89 | U46: 24882.45 | V46: 24882.44 | W46: =LOOKUP(A46,'DOE - FIPStoPayeeCodeConvTable'!$A$3:$A$213,'DOE - FIPStoPayeeCodeConvTable'!$E$3:$E$213) -> 0.2335 | X46: 0.2335 | Y46: 5810.05 | Z46: 19072.39
A47: 85 | B47: =LOOKUP(A47,'DOE - FIPStoPayeeCodeConvTable'!$A$3:$A$213,'DOE - FIPStoPayeeCodeConvTable'!$B$3:$B$213) -> Hanover Co | C47: 979.5 | D47: 1306 | E47: 1959 | F47: 653 | G47: 1306 | H47: 1959 | I47: 1632.5 | J47: 1632.5 | K47: 3591.5 | L47: 5224 | M47: 653 | N47: 979.5 | S47: 21875.5 | U47: 10937.75 | V47: 10937.75 | W47: =LOOKUP(A47,'DOE - FIPStoPayeeCodeConvTable'!$A$3:$A$213,'DOE - FIPStoPayeeCodeConvTable'!$E$3:$E$213) -> 0.4444 | X47: 0.4444 | Y47: 4860.74 | Z47: 6077.01
A48: 87 | B48: =LOOKUP(A48,'DOE - FIPStoPayeeCodeConvTable'!$A$3:$A$213,'DOE - FIPStoPayeeCodeConvTable'!$B$3:$B$213) -> Henrico Co | C48: 3918 | D48: 3265 | E48: 2285.5 | F48: 1391.87 | G48: 4244.5 | H48: 3731.05 | I48: 5309.87 | J48: 4710.54 | K48: 8162.5 | L48: 5877 | M48: 5224 | N48: 4244.5 | S48: 52364.33 | U48: 26182.17 | V48: 26182.16 | W48: =LOOKUP(A48,'DOE - FIPStoPayeeCodeConvTable'!$A$3:$A$213,'DOE - FIPStoPayeeCodeConvTable'!$E$3:$E$213) -> 0.3755 | X48: 0.3755 | Y48: 9831.4 | Z48: 16350.76
A49: 89 | B49: =LOOKUP(A49,'DOE - FIPStoPayeeCodeConvTable'!$A$3:$A$213,'DOE - FIPStoPayeeCodeConvTable'!$B$3:$B$213) -> Henry Co | C49: 979.5 | D49: 0 | E49: 2285.5 | F49: 979.5 | G49: 1306 | H49: 653 | I49: 979.5 | J49: 653 | K49: 11427.5 | L49: 2285.5 | M49: 2285.5 | N49: 2285.5 | S49: 26120 | U49: 13060 | V49: 13060 | W49: =LOOKUP(A49,'DOE - FIPStoPayeeCodeConvTable'!$A$3:$A$213,'DOE - FIPStoPayeeCodeConvTable'!$E$3:$E$213) -> 0.2786 | X49: 0.2786 | Y49: 3638.52 | Z49: 9421.48
A50: 91 | B50: =LOOKUP(A50,'DOE - FIPStoPayeeCodeConvTable'!$A$3:$A$213,'DOE - FIPStoPayeeCodeConvTable'!$B$3:$B$213) -> Highland Co | C50: 653 | D50: 653 | E50: 653 | F50: 653 | G50: 0 | H50: 653 | I50: 1306 | J50: 653 | K50: 653 | L50: 653 | M50: 653 | N50: 653 | S50: 7836 | U50: 3918 | V50: 3918 | W50: =LOOKUP(A50,'DOE - FIPStoPayeeCodeConvTable'!$A$3:$A$213,'DOE - FIPStoPayeeCodeConvTable'!$E$3:$E$213) -> 0.3822 | X50: 0.3822 | Y50: 1497.46 | Z50: 2420.54
A51: 93 | B51: =LOOKUP(A51,'DOE - FIPStoPayeeCodeConvTable'!$A$3:$A$213,'DOE - FIPStoPayeeCodeConvTable'!$B$3:$B$213) -> Isle Of Wight Co | C51: 0 | D51: 3479.68 | E51: 0 | F51: 0 | G51: 1280.06 | H51: 979.5 | I51: 979.5 | J51: 979.5 | K51: 979.5 | L51: 979.5 | M51: 1306 | N51: 2285.5 | S51: 13248.74 | U51: 6624.37 | V51: 6624.37 | W51: =LOOKUP(A51,'DOE - FIPStoPayeeCodeConvTable'!$A$3:$A$213,'DOE - FIPStoPayeeCodeConvTable'!$E$3:$E$213) -> 0.3613 | X51: 0.3613 | Y51: 2393.38 | Z51: 4230.99
A52: 95 | B52: =LOOKUP(A52,'DOE - FIPStoPayeeCodeConvTable'!$A$3:$A$213,'DOE - FIPStoPayeeCodeConvTable'!$B$3:$B$213) -> James City Co | C52: 0 | D52: 0 | E52: 0 | F52: 0 | G52: 0 | H52: 0 | I52: 0 | J52: 0 | K52: 0 | L52: 0 | M52: 0 | N52: 0 | S52: 0 | U52: 0 | V52: 0 | W52: =LOOKUP(A52,'DOE - FIPStoPayeeCodeConvTable'!$A$3:$A$213,'DOE - FIPStoPayeeCodeConvTable'!$E$3:$E$213) -> 0.4483 | X52: 0.4483 | Y52: 0 | Z52: 0
A53: 97 | B53: =LOOKUP(A53,'DOE - FIPStoPayeeCodeConvTable'!$A$3:$A$213,'DOE - FIPStoPayeeCodeConvTable'!$B$3:$B$213) -> King And Queen Co | C53: 653 | D53: 653 | E53: 653 | F53: 0 | G53: 1306 | H53: 0 | I53: 653 | J53: 0 | K53: 0 | L53: 4244.5 | M53: 0 | N53: 979.5 | S53: 9142 | U53: 4571 | V53: 4571 | W53: =LOOKUP(A53,'DOE - FIPStoPayeeCodeConvTable'!$A$3:$A$213,'DOE - FIPStoPayeeCodeConvTable'!$E$3:$E$213) -> 0.3144 | X53: 0.3144 | Y53: 1437.12 | Z53: 3133.88
A54: 99 | B54: =LOOKUP(A54,'DOE - FIPStoPayeeCodeConvTable'!$A$3:$A$213,'DOE - FIPStoPayeeCodeConvTable'!$B$3:$B$213) -> King George Co | C54: 2612 | D54: 1959 | E54: 1306 | F54: 1959 | G54: 979.5 | H54: 2285.5 | I54: 653 | J54: 979.5 | K54: 925 | L54: 1959 | M54: 979.5 | N54: 979.5 | S54: 17576.5 | U54: 8788.25 | V54: 8788.25 | W54: =LOOKUP(A54,'DOE - FIPStoPayeeCodeConvTable'!$A$3:$A$213,'DOE - FIPStoPayeeCodeConvTable'!$E$3:$E$213) -> 0.3627 | X54: 0.3627 | Y54: 3187.5 | Z54: 5600.75
A55: 101 | B55: =LOOKUP(A55,'DOE - FIPStoPayeeCodeConvTable'!$A$3:$A$213,'DOE - FIPStoPayeeCodeConvTable'!$B$3:$B$213) -> King William Co | C55: 326.5 | D55: 326.5 | E55: 326.5 | F55: 0 | G55: 0 | H55: 0 | I55: 0 | J55: 0 | K55: 0 | L55: 0 | M55: 0 | N55: 0 | S55: 979.5 | U55: 489.75 | V55: 489.75 | W55: =LOOKUP(A55,'DOE - FIPStoPayeeCodeConvTable'!$A$3:$A$213,'DOE - FIPStoPayeeCodeConvTable'!$E$3:$E$213) -> 0.3853 | X55: 0.3853 | Y55: 188.7 | Z55: 301.05
A56: 103 | B56: =LOOKUP(A56,'DOE - FIPStoPayeeCodeConvTable'!$A$3:$A$213,'DOE - FIPStoPayeeCodeConvTable'!$B$3:$B$213) -> Lancaster Co | C56: 979.5 | D56: 653 | E56: 653 | F56: 326.5 | G56: 3265 | H56: 979.5 | I56: 979.5 | J56: 653 | K56: 1306 | L56: 979.5 | M56: 1306 | N56: 653 | S56: 12733.5 | U56: 6366.75 | V56: 6366.75 | W56: =LOOKUP(A56,'DOE - FIPStoPayeeCodeConvTable'!$A$3:$A$213,'DOE - FIPStoPayeeCodeConvTable'!$E$3:$E$213) -> 0.4391 | X56: 0.4391 | Y56: 2795.64 | Z56: 3571.11
A57: 105 | B57: =LOOKUP(A57,'DOE - FIPStoPayeeCodeConvTable'!$A$3:$A$213,'DOE - FIPStoPayeeCodeConvTable'!$B$3:$B$213) -> Lee Co | C57: 4244.5 | D57: 0 | E57: 3918 | F57: 2612 | G57: 979.5 | H57: 8489 | I57: 4571 | J57: 2938.5 | K57: 4897.5 | L57: 3918 | M57: 2612 | N57: 4571 | S57: 43751 | U57: 21875.5 | V57: 21875.5 | W57: =LOOKUP(A57,'DOE - FIPStoPayeeCodeConvTable'!$A$3:$A$213,'DOE - FIPStoPayeeCodeConvTable'!$E$3:$E$213) -> 0.2245 | X57: 0.2245 | Y57: 4911.05 | Z57: 16964.45
A58: 107 | B58: =LOOKUP(A58,'DOE - FIPStoPayeeCodeConvTable'!$A$3:$A$213,'DOE - FIPStoPayeeCodeConvTable'!$B$3:$B$213) -> Loudoun Co | C58: 3265 | D58: 1959 | E58: 1632.5 | F58: 3591.5 | G58: 1306 | H58: 1959 | I58: 1959 | J58: 979.5 | K58: 10121.5 | L58: 2285.5 | M58: 2612 | N58: 653 | S58: 32323.5 | U58: 16161.75 | V58: 16161.75 | W58: =LOOKUP(A58,'DOE - FIPStoPayeeCodeConvTable'!$A$3:$A$213,'DOE - FIPStoPayeeCodeConvTable'!$E$3:$E$213) -> 0.4764 | X58: 0.4764 | Y58: 7699.46 | Z58: 8462.29
A59: 109 | B59: =LOOKUP(A59,'DOE - FIPStoPayeeCodeConvTable'!$A$3:$A$213,'DOE - FIPStoPayeeCodeConvTable'!$B$3:$B$213) -> Louisa Co | C59: 326.5 | D59: 326.5 | E59: 326.5 | F59: 979.5 | G59: 2285.5 | H59: 653 | I59: 8489 | J59: 0 | K59: 326.5 | L59: -326.5 | M59: 326.5 | N59: 979.5 | S59: 14692.5 | U59: 7346.25 | V59: 7346.25 | W59: =LOOKUP(A59,'DOE - FIPStoPayeeCodeConvTable'!$A$3:$A$213,'DOE - FIPStoPayeeCodeConvTable'!$E$3:$E$213) -> 0.4401 | X59: 0.4401 | Y59: 3233.08 | Z59: 4113.17
A60: 111 | B60: =LOOKUP(A60,'DOE - FIPStoPayeeCodeConvTable'!$A$3:$A$213,'DOE - FIPStoPayeeCodeConvTable'!$B$3:$B$213) -> Lunenburg Co | C60: 0 | D60: 0 | E60: 0 | F60: 0 | G60: 0 | H60: 0 | I60: 0 | J60: 0 | K60: 0 | L60: 0 | M60: 0 | N60: 0 | S60: 0 | U60: 0 | V60: 0 | W60: =LOOKUP(A60,'DOE - FIPStoPayeeCodeConvTable'!$A$3:$A$213,'DOE - FIPStoPayeeCodeConvTable'!$E$3:$E$213) -> 0.1698 | X60: 0.1698 | Y60: 0 | Z60: 0
A61: 113 | B61: =LOOKUP(A61,'DOE - FIPStoPayeeCodeConvTable'!$A$3:$A$213,'DOE - FIPStoPayeeCodeConvTable'!$B$3:$B$213) -> Madison Co | C61: 1632.5 | D61: 1306 | E61: 979.5 | F61: 3265 | G61: 979.5 | H61: 1306 | I61: 2938.5 | J61: 2938.5 | K61: 2285.5 | L61: 2285.5 | M61: 2633.76 | N61: 3170.21 | S61: 25720.47 | U61: 12860.24 | V61: 12860.23 | W61: =LOOKUP(A61,'DOE - FIPStoPayeeCodeConvTable'!$A$3:$A$213,'DOE - FIPStoPayeeCodeConvTable'!$E$3:$E$213) -> 0.3355 | X61: 0.3355 | Y61: 4314.61 | Z61: 8545.62
A62: 115 | B62: =LOOKUP(A62,'DOE - FIPStoPayeeCodeConvTable'!$A$3:$A$213,'DOE - FIPStoPayeeCodeConvTable'!$B$3:$B$213) -> Mathews Co | C62: 326.5 | D62: 326.5 | E62: 326.5 | F62: 0 | G62: 653 | H62: 2285.5 | I62: 979.5 | J62: 653 | K62: 653 | L62: 979.5 | M62: 979.5 | N62: 1306 | S62: 9468.5 | U62: 4734.25 | V62: 4734.25 | W62: =LOOKUP(A62,'DOE - FIPStoPayeeCodeConvTable'!$A$3:$A$213,'DOE - FIPStoPayeeCodeConvTable'!$E$3:$E$213) -> 0.4271 | X62: 0.4271 | Y62: 2022 | Z62: 2712.25
A63: 117 | B63: =LOOKUP(A63,'DOE - FIPStoPayeeCodeConvTable'!$A$3:$A$213,'DOE - FIPStoPayeeCodeConvTable'!$B$3:$B$213) -> Mecklenburg Co | C63: 1632.5 | D63: 2285.5 | E63: 0 | F63: 653 | G63: 979.5 | H63: 1959 | I63: 979.5 | J63: 979.5 | K63: 979.5 | L63: 979.5 | M63: 653 | N63: 979.5 | S63: 13060 | U63: 6530 | V63: 6530 | W63: =LOOKUP(A63,'DOE - FIPStoPayeeCodeConvTable'!$A$3:$A$213,'DOE - FIPStoPayeeCodeConvTable'!$E$3:$E$213) -> 0.2286 | X63: 0.2286 | Y63: 1492.76 | Z63: 5037.24
A64: 119 | B64: =LOOKUP(A64,'DOE - FIPStoPayeeCodeConvTable'!$A$3:$A$213,'DOE - FIPStoPayeeCodeConvTable'!$B$3:$B$213) -> Middlesex Co | C64: 0 | D64: 0 | E64: 0 | F64: 0 | G64: 0 | H64: 0 | I64: 1306 | J64: 653 | K64: 326.5 | L64: 326.5 | M64: 326.5 | N64: 326.5 | S64: 3265 | U64: 1632.5 | V64: 1632.5 | W64: =LOOKUP(A64,'DOE - FIPStoPayeeCodeConvTable'!$A$3:$A$213,'DOE - FIPStoPayeeCodeConvTable'!$E$3:$E$213) -> 0.4333 | X64: 0.4333 | Y64: 707.36 | Z64: 925.14
A65: 121 | B65: =LOOKUP(A65,'DOE - FIPStoPayeeCodeConvTable'!$A$3:$A$213,'DOE - FIPStoPayeeCodeConvTable'!$B$3:$B$213) -> Montgomery Co | C65: 653 | D65: 0 | E65: 653 | F65: 653 | G65: 326.5 | H65: 326.5 | I65: 979.5 | J65: 326.5 | K65: 326.5 | L65: 326.5 | M65: 326.5 | N65: 326.5 | S65: 5224 | U65: 2612 | V65: 2612 | W65: =LOOKUP(A65,'DOE - FIPStoPayeeCodeConvTable'!$A$3:$A$213,'DOE - FIPStoPayeeCodeConvTable'!$E$3:$E$213) -> 0.2834 | X65: 0.2834 | Y65: 740.24 | Z65: 1871.76
A66: 125 | B66: =LOOKUP(A66,'DOE - FIPStoPayeeCodeConvTable'!$A$3:$A$213,'DOE - FIPStoPayeeCodeConvTable'!$B$3:$B$213) -> Nelson Co | C66: 2285.5 | D66: 1632.5 | E66: 189.58 | F66: 2612 | G66: 2285.5 | H66: 653 | I66: 1632.5 | J66: 653 | K66: 1632.5 | L66: 1959 | M66: 326.5 | N66: 2938.5 | S66: 18800.08 | U66: 9400.04 | V66: 9400.04 | W66: =LOOKUP(A66,'DOE - FIPStoPayeeCodeConvTable'!$A$3:$A$213,'DOE - FIPStoPayeeCodeConvTable'!$E$3:$E$213) -> 0.3132 | X66: 0.3132 | Y66: 2944.09 | Z66: 6455.95
A67: 127 | B67: =LOOKUP(A67,'DOE - FIPStoPayeeCodeConvTable'!$A$3:$A$213,'DOE - FIPStoPayeeCodeConvTable'!$B$3:$B$213) -> New Kent Co | C67: 653 | D67: 0 | E67: 326.5 | F67: 979.5 | G67: 326.5 | H67: 0 | I67: 0 | J67: 0 | K67: 0 | L67: 1306 | M67: 653 | N67: 94.92 | S67: 4339.42 | U67: 2169.71 | V67: 2169.71 | W67: =LOOKUP(A67,'DOE - FIPStoPayeeCodeConvTable'!$A$3:$A$213,'DOE - FIPStoPayeeCodeConvTable'!$E$3:$E$213) -> 0.4329 | X67: 0.4329 | Y67: 939.27 | Z67: 1230.44
A68: 131 | B68: =LOOKUP(A68,'DOE - FIPStoPayeeCodeConvTable'!$A$3:$A$213,'DOE - FIPStoPayeeCodeConvTable'!$B$3:$B$213) -> Northampton Co | C68: 0 | D68: 0 | E68: 0 | F68: 0 | G68: 326.5 | H68: 326.5 | I68: 0 | J68: 0 | K68: 0 | L68: 0 | M68: 0 | N68: 0 | S68: 653 | U68: 326.5 | V68: 326.5 | W68: =LOOKUP(A68,'DOE - FIPStoPayeeCodeConvTable'!$A$3:$A$213,'DOE - FIPStoPayeeCodeConvTable'!$E$3:$E$213) -> 0.1971 | X68: 0.1971 | Y68: 64.35 | Z68: 262.15
A69: 133 | B69: =LOOKUP(A69,'DOE - FIPStoPayeeCodeConvTable'!$A$3:$A$213,'DOE - FIPStoPayeeCodeConvTable'!$B$3:$B$213) -> Northumberland Co | C69: 0 | D69: 0 | E69: 0 | F69: 0 | G69: 0 | H69: 0 | I69: 0 | J69: 0 | K69: 0 | L69: 0 | M69: 0 | N69: 0 | S69: =SUM(C69:R69) -> 0 | U69: 0 | V69: 0 | W69: =LOOKUP(A69,'DOE - FIPStoPayeeCodeConvTable'!$A$3:$A$213,'DOE - FIPStoPayeeCodeConvTable'!$E$3:$E$213) -> 0.3304 | X69: 0.3304 | Y69: 0 | Z69: 0
A70: 135 | B70: =LOOKUP(A70,'DOE - FIPStoPayeeCodeConvTable'!$A$3:$A$213,'DOE - FIPStoPayeeCodeConvTable'!$B$3:$B$213) -> Nottoway Co | C70: 326.5 | D70: 326.5 | E70: 326.5 | F70: 0 | G70: 0 | H70: 0 | I70: 0 | J70: 0 | K70: 0 | L70: 0 | M70: 326.5 | N70: 326.5 | S70: 1632.5 | U70: =ROUND($U$1*S70,2) -> 816.25 | V70: =SUM(S70)-SUM(U70) -> 816.25 | W70: =LOOKUP(A70,'DOE - FIPStoPayeeCodeConvTable'!$A$3:$A$213,'DOE - FIPStoPayeeCodeConvTable'!$E$3:$E$213) -> 0.2686 | X70: 0.2686 | Y70: 219.24 | Z70: 597.01
A71: 137 | B71: =LOOKUP(A71,'DOE - FIPStoPayeeCodeConvTable'!$A$3:$A$213,'DOE - FIPStoPayeeCodeConvTable'!$B$3:$B$213) -> Orange Co | C71: 1632.5 | D71: 1959 | E71: 979.5 | F71: 326.5 | G71: 1959 | H71: 653 | I71: 653 | J71: 653 | K71: 653 | L71: 0 | M71: 653 | N71: 326.5 | S71: 10448 | U71: 5224 | V71: 5224 | W71: =LOOKUP(A71,'DOE - FIPStoPayeeCodeConvTable'!$A$3:$A$213,'DOE - FIPStoPayeeCodeConvTable'!$E$3:$E$213) -> 0.4083 | X71: =$X$1*W71 -> 0.4083 | Y71: =ROUND(X71*V71,2) -> 2132.96 | Z71: =SUM(V71)-SUM(Y71) -> 3091.04
A72: 139 | B72: =LOOKUP(A72,'DOE - FIPStoPayeeCodeConvTable'!$A$3:$A$213,'DOE - FIPStoPayeeCodeConvTable'!$B$3:$B$213) -> Page Co | C72: 653 | D72: 979.5 | E72: 326.5 | F72: 979.5 | G72: 326.5 | H72: 979.5 | I72: 326.5 | J72: 326.5 | K72: 1306 | L72: 653 | M72: 653 | N72: 653 | S72: 8162.5 | U72: 4081.25 | V72: 4081.25 | W72: =LOOKUP(A72,'DOE - FIPStoPayeeCodeConvTable'!$A$3:$A$213,'DOE - FIPStoPayeeCodeConvTable'!$E$3:$E$213) -> 0.2865 | X72: 0.2865 | Y72: 1169.28 | Z72: 2911.97
A73: 141 | B73: =LOOKUP(A73,'DOE - FIPStoPayeeCodeConvTable'!$A$3:$A$213,'DOE - FIPStoPayeeCodeConvTable'!$B$3:$B$213) -> Patrick Co | C73: 3265 | D73: 326.5 | E73: 1959 | F73: 979.5 | G73: 979.5 | H73: 979.5 | I73: 979.5 | J73: 1632.5 | K73: 979.5 | L73: 979.5 | M73: 3265 | N73: 1306 | S73: 17631 | U73: 8815.5 | V73: 8815.5 | W73: =LOOKUP(A73,'DOE - FIPStoPayeeCodeConvTable'!$A$3:$A$213,'DOE - FIPStoPayeeCodeConvTable'!$E$3:$E$213) -> 0.2539 | X73: 0.2539 | Y73: 2238.26 | Z73: 6577.24
A74: 143 | B74: =LOOKUP(A74,'DOE - FIPStoPayeeCodeConvTable'!$A$3:$A$213,'DOE - FIPStoPayeeCodeConvTable'!$B$3:$B$213) -> Pittsylvania Co | C74: 326.5 | D74: 326.5 | E74: 10.53 | F74: 0 | G74: 0 | H74: 979.5 | I74: 653 | J74: 0 | K74: 326.5 | L74: 2612 | M74: 0 | N74: 1632.5 | S74: 6867.03 | U74: 3433.52 | V74: 3433.51 | W74: =LOOKUP(A74,'DOE - FIPStoPayeeCodeConvTable'!$A$3:$A$213,'DOE - FIPStoPayeeCodeConvTable'!$E$3:$E$213) -> 0.2355 | X74: 0.2355 | Y74: 808.59 | Z74: 2624.92
A75: 145 | B75: =LOOKUP(A75,'DOE - FIPStoPayeeCodeConvTable'!$A$3:$A$213,'DOE - FIPStoPayeeCodeConvTable'!$B$3:$B$213) -> Powhatan Co | C75: 0 | D75: 0 | E75: 0 | F75: 0 | G75: 0 | H75: 0 | I75: 835.48 | J75: 0 | K75: 0 | L75: 0 | M75: 0 | N75: 0 | S75: 835.48 | U75: 417.74 | V75: 417.74 | W75: =LOOKUP(A75,'DOE - FIPStoPayeeCodeConvTable'!$A$3:$A$213,'DOE - FIPStoPayeeCodeConvTable'!$E$3:$E$213) -> 0.4342 | X75: 0.4342 | Y75: 181.38 | Z75: 236.36
A76: 147 | B76: =LOOKUP(A76,'DOE - FIPStoPayeeCodeConvTable'!$A$3:$A$213,'DOE - FIPStoPayeeCodeConvTable'!$B$3:$B$213) -> Prince Edward Co | C76: 0 | D76: 0 | E76: 0 | F76: 0 | G76: 0 | H76: 0 | I76: 0 | J76: 0 | K76: 0 | L76: 0 | M76: 0 | N76: 0 | S76: 0 | U76: 0 | V76: 0 | W76: =LOOKUP(A76,'DOE - FIPStoPayeeCodeConvTable'!$A$3:$A$213,'DOE - FIPStoPayeeCodeConvTable'!$E$3:$E$213) -> 0.2232 | X76: 0.2232 | Y76: 0 | Z76: 0
A77: 149 | B77: =LOOKUP(A77,'DOE - FIPStoPayeeCodeConvTable'!$A$3:$A$213,'DOE - FIPStoPayeeCodeConvTable'!$B$3:$B$213) -> Prince George Co | C77: 1912.34 | D77: 326.5 | E77: 326.5 | F77: 326.5 | G77: 3740.49 | H77: 2285.5 | I77: 2285.5 | J77: 2938.5 | K77: 2516.94 | L77: 2612 | M77: 1959 | N77: 3265 | S77: 24494.77 | U77: 12247.39 | V77: 12247.38 | W77: =LOOKUP(A77,'DOE - FIPStoPayeeCodeConvTable'!$A$3:$A$213,'DOE - FIPStoPayeeCodeConvTable'!$E$3:$E$213) -> 0.3716 | X77: 0.3716 | Y77: 4551.13 | Z77: 7696.25
A78: 153 | B78: =LOOKUP(A78,'DOE - FIPStoPayeeCodeConvTable'!$A$3:$A$213,'DOE - FIPStoPayeeCodeConvTable'!$B$3:$B$213) -> Prince William Co | C78: 401.64 | D78: 326.5 | E78: 856.95 | F78: 0 | G78: 979.5 | H78: 0 | I78: 0 | J78: 0 | K78: 2285.5 | L78: 0 | M78: 0 | N78: 0 | S78: 4850.09 | U78: 2425.05 | V78: 2425.04 | W78: =LOOKUP(A78,'DOE - FIPStoPayeeCodeConvTable'!$A$3:$A$213,'DOE - FIPStoPayeeCodeConvTable'!$E$3:$E$213) -> 0.3414 | X78: 0.3414 | Y78: 827.91 | Z78: 1597.13
A79: 155 | B79: =LOOKUP(A79,'DOE - FIPStoPayeeCodeConvTable'!$A$3:$A$213,'DOE - FIPStoPayeeCodeConvTable'!$B$3:$B$213) -> Pulaski Co | C79: 4908.03 | D79: 979.5 | E79: 2938.5 | F79: 1959 | G79: 236.16 | H79: 0 | I79: 0 | J79: 653 | K79: 2285.5 | L79: 326.5 | M79: 0 | N79: 0 | S79: 14286.19 | U79: 7143.1 | V79: 7143.09 | W79: =LOOKUP(A79,'DOE - FIPStoPayeeCodeConvTable'!$A$3:$A$213,'DOE - FIPStoPayeeCodeConvTable'!$E$3:$E$213) -> 0.2923 | X79: 0.2923 | Y79: 2087.93 | Z79: 5055.16
A80: 157 | B80: =LOOKUP(A80,'DOE - FIPStoPayeeCodeConvTable'!$A$3:$A$213,'DOE - FIPStoPayeeCodeConvTable'!$B$3:$B$213) -> Rappahannock Co | C80: 1306 | D80: 1306 | E80: 653 | F80: 1306 | G80: 2432.95 | H80: 1306 | I80: 1959 | J80: 979.5 | K80: 4244.5 | L80: 1306 | M80: 979.5 | N80: 2285.5 | S80: 20063.95 | U80: 10031.98 | V80: 10031.97 | W80: =LOOKUP(A80,'DOE - FIPStoPayeeCodeConvTable'!$A$3:$A$213,'DOE - FIPStoPayeeCodeConvTable'!$E$3:$E$213) -> 0.4199 | X80: 0.4199 | Y80: 4212.42 | Z80: 5819.55
A81: 159 | B81: =LOOKUP(A81,'DOE - FIPStoPayeeCodeConvTable'!$A$3:$A$213,'DOE - FIPStoPayeeCodeConvTable'!$B$3:$B$213) -> Richmond Co | C81: 0 | D81: 0 | E81: 0 | F81: 0 | G81: 0 | H81: 0 | I81: 653 | J81: 326.5 | K81: 326.5 | L81: 326.5 | M81: 326.5 | N81: 0 | S81: 1959 | U81: 979.5 | V81: 979.5 | W81: =LOOKUP(A81,'DOE - FIPStoPayeeCodeConvTable'!$A$3:$A$213,'DOE - FIPStoPayeeCodeConvTable'!$E$3:$E$213) -> 0.3227 | X81: 0.3227 | Y81: 316.08 | Z81: 663.42
A82: 161 | B82: =LOOKUP(A82,'DOE - FIPStoPayeeCodeConvTable'!$A$3:$A$213,'DOE - FIPStoPayeeCodeConvTable'!$B$3:$B$213) -> Roanoke Co | C82: 3918 | D82: 3591.5 | E82: 4940.44 | F82: 4212.84 | G82: 2612 | H82: 4571 | I82: 2938.5 | J82: 2285.5 | K82: 4571 | L82: 4571 | M82: 1822.24 | N82: 1306 | S82: 41340.02 | U82: 20670.01 | V82: 20670.01 | W82: =LOOKUP(A82,'DOE - FIPStoPayeeCodeConvTable'!$A$3:$A$213,'DOE - FIPStoPayeeCodeConvTable'!$E$3:$E$213) -> 0.4397 | X82: 0.4397 | Y82: 9088.6 | Z82: 11581.41
A83: 163 | B83: =LOOKUP(A83,'DOE - FIPStoPayeeCodeConvTable'!$A$3:$A$213,'DOE - FIPStoPayeeCodeConvTable'!$B$3:$B$213) -> Rockbridge Co | C83: 653 | D83: 326.5 | E83: 1306 | F83: -1450.02 | G83: 979.5 | H83: 1306 | I83: 1965.26 | J83: 1306 | K83: 1632.5 | L83: 1306 | M83: 1306 | N83: 1632.5 | S83: 12269.24 | U83: 6134.62 | V83: 6134.62 | W83: =LOOKUP(A83,'DOE - FIPStoPayeeCodeConvTable'!$A$3:$A$213,'DOE - FIPStoPayeeCodeConvTable'!$E$3:$E$213) -> 0.2336 | X83: 0.2336 | Y83: 1433.05 | Z83: 4701.57
A84: 165 | B84: =LOOKUP(A84,'DOE - FIPStoPayeeCodeConvTable'!$A$3:$A$213,'DOE - FIPStoPayeeCodeConvTable'!$B$3:$B$213) -> Rockingham Co | C84: 6530 | D84: 4255.02 | E84: 5413.58 | F84: 5506.87 | G84: 1959 | H84: 8531.13 | I84: 17035.31 | J84: 2801.58 | K84: 20196.36 | L84: 7183 | M84: 6856.5 | N84: 4571 | S84: 90839.35 | U84: 45419.68 | V84: 45419.67 | W84: =LOOKUP(A84,'DOE - FIPStoPayeeCodeConvTable'!$A$3:$A$213,'DOE - FIPStoPayeeCodeConvTable'!$E$3:$E$213) -> 0.3445 | X84: 0.3445 | Y84: 15647.08 | Z84: 29772.59
A85: 167 | B85: =LOOKUP(A85,'DOE - FIPStoPayeeCodeConvTable'!$A$3:$A$213,'DOE - FIPStoPayeeCodeConvTable'!$B$3:$B$213) -> Russell Co | C85: 2285.5 | D85: 326.5 | E85: 1306 | F85: 1306 | G85: 1306 | H85: 979.5 | I85: 1306 | J85: 1632.5 | K85: 1632.5 | L85: 1959 | M85: 1306 | N85: 1959 | S85: 17304.5 | U85: 8652.25 | V85: 8652.25 | W85: =LOOKUP(A85,'DOE - FIPStoPayeeCodeConvTable'!$A$3:$A$213,'DOE - FIPStoPayeeCodeConvTable'!$E$3:$E$213) -> 0.1894 | X85: 0.1894 | Y85: 1638.74 | Z85: 7013.51
A86: 169 | B86: =LOOKUP(A86,'DOE - FIPStoPayeeCodeConvTable'!$A$3:$A$213,'DOE - FIPStoPayeeCodeConvTable'!$B$3:$B$213) -> Scott Co | C86: 653 | D86: 1632.5 | E86: 0 | F86: 653 | G86: 326.5 | H86: 2285.5 | I86: 326.5 | J86: 0 | K86: 653 | L86: 1632.5 | M86: 0 | N86: 653 | S86: 8815.5 | U86: 4407.75 | V86: 4407.75 | W86: =LOOKUP(A86,'DOE - FIPStoPayeeCodeConvTable'!$A$3:$A$213,'DOE - FIPStoPayeeCodeConvTable'!$E$3:$E$213) -> 0.3154 | X86: 0.3154 | Y86: 1390.2 | Z86: 3017.55
A87: 171 | B87: =LOOKUP(A87,'DOE - FIPStoPayeeCodeConvTable'!$A$3:$A$213,'DOE - FIPStoPayeeCodeConvTable'!$B$3:$B$213) -> Shenandoah Co | C87: 2612 | D87: 1258.59 | E87: 1306 | F87: 1959 | G87: 1959 | H87: 2285.5 | I87: 1632.5 | J87: 326.5 | K87: 1306 | L87: 1632.5 | M87: 2938.5 | N87: 979.5 | S87: 20195.59 | U87: 10097.8 | V87: 10097.79 | W87: =LOOKUP(A87,'DOE - FIPStoPayeeCodeConvTable'!$A$3:$A$213,'DOE - FIPStoPayeeCodeConvTable'!$E$3:$E$213) -> 0.3517 | X87: 0.3517 | Y87: 3551.39 | Z87: 6546.4
A88: 173 | B88: =LOOKUP(A88,'DOE - FIPStoPayeeCodeConvTable'!$A$3:$A$213,'DOE - FIPStoPayeeCodeConvTable'!$B$3:$B$213) -> Smyth Co | C88: 2285.5 | D88: 1632.5 | E88: 979.5 | F88: 2285.5 | G88: 1632.5 | H88: 653 | I88: 653 | J88: 0 | K88: 653 | L88: 1306 | M88: 0 | N88: 653 | S88: 12733.5 | U88: 6366.75 | V88: 6366.75 | W88: =LOOKUP(A88,'DOE - FIPStoPayeeCodeConvTable'!$A$3:$A$213,'DOE - FIPStoPayeeCodeConvTable'!$E$3:$E$213) -> 0.2337 | X88: 0.2337 | Y88: 1487.91 | Z88: 4878.84
A89: 175 | B89: =LOOKUP(A89,'DOE - FIPStoPayeeCodeConvTable'!$A$3:$A$213,'DOE - FIPStoPayeeCodeConvTable'!$B$3:$B$213) -> Southampton Co | C89: 0 | D89: 0 | E89: 0 | F89: 0 | G89: 0 | H89: 0 | I89: 0 | J89: 0 | K89: 0 | L89: 0 | M89: 0 | N89: 0 | S89: 0 | U89: 0 | V89: 0 | W89: =LOOKUP(A89,'DOE - FIPStoPayeeCodeConvTable'!$A$3:$A$213,'DOE - FIPStoPayeeCodeConvTable'!$E$3:$E$213) -> 0.323 | X89: 0.323 | Y89: 0 | Z89: 0
A90: 177 | B90: =LOOKUP(A90,'DOE - FIPStoPayeeCodeConvTable'!$A$3:$A$213,'DOE - FIPStoPayeeCodeConvTable'!$B$3:$B$213) -> Spotsylvania Co | C90: 8815.5 | D90: 12834.27 | E90: 9142 | F90: 5746.24 | G90: 19976.04 | H90: 11427.5 | I90: 7836 | J90: 4244.5 | K90: 33302.4 | L90: 24333.94 | M90: 8815.5 | N90: 7509.5 | S90: 153983.39 | U90: 76991.7 | V90: 76991.69 | W90: =LOOKUP(A90,'DOE - FIPStoPayeeCodeConvTable'!$A$3:$A$213,'DOE - FIPStoPayeeCodeConvTable'!$E$3:$E$213) -> 0.4588 | X90: 0.4588 | Y90: 35323.79 | Z90: 41667.9
A91: 179 | B91: =LOOKUP(A91,'DOE - FIPStoPayeeCodeConvTable'!$A$3:$A$213,'DOE - FIPStoPayeeCodeConvTable'!$B$3:$B$213) -> Stafford Co | C91: 979.5 | D91: 326.5 | E91: 0 | F91: 0 | G91: 979.5 | H91: 326.5 | I91: 326.5 | J91: 326.5 | K91: 326.5 | L91: 0 | M91: -326.5 | N91: 0 | S91: 3265 | U91: 1632.5 | V91: 1632.5 | W91: =LOOKUP(A91,'DOE - FIPStoPayeeCodeConvTable'!$A$3:$A$213,'DOE - FIPStoPayeeCodeConvTable'!$E$3:$E$213) -> 0.4439 | X91: 0.4439 | Y91: 724.67 | Z91: 907.83
A92: 181 | B92: =LOOKUP(A92,'DOE - FIPStoPayeeCodeConvTable'!$A$3:$A$213,'DOE - FIPStoPayeeCodeConvTable'!$B$3:$B$213) -> Surry Co | C92: 0 | D92: 0 | E92: 0 | F92: 0 | G92: 0 | H92: 0 | I92: 0 | J92: 0 | K92: 0 | L92: 0 | M92: 0 | N92: 0 | S92: 0 | U92: 0 | V92: 0 | W92: =LOOKUP(A92,'DOE - FIPStoPayeeCodeConvTable'!$A$3:$A$213,'DOE - FIPStoPayeeCodeConvTable'!$E$3:$E$213) -> 0.3979 | X92: 0.3979 | Y92: 0 | Z92: 0
A93: 183 | B93: =LOOKUP(A93,'DOE - FIPStoPayeeCodeConvTable'!$A$3:$A$213,'DOE - FIPStoPayeeCodeConvTable'!$B$3:$B$213) -> Sussex Co | C93: 653 | D93: 653 | E93: 979.5 | F93: 653 | G93: 0 | H93: 653 | I93: 1632.5 | J93: 0 | K93: 1306 | L93: 3265 | M93: 0 | N93: 1959 | S93: 11754 | U93: 5877 | V93: 5877 | W93: =LOOKUP(A93,'DOE - FIPStoPayeeCodeConvTable'!$A$3:$A$213,'DOE - FIPStoPayeeCodeConvTable'!$E$3:$E$213) -> 0.2387 | X93: 0.2387 | Y93: 1402.84 | Z93: 4474.16
A94: 185 | B94: =LOOKUP(A94,'DOE - FIPStoPayeeCodeConvTable'!$A$3:$A$213,'DOE - FIPStoPayeeCodeConvTable'!$B$3:$B$213) -> Tazewell Co | C94: 1959 | D94: 979.5 | E94: 2285.5 | F94: 3591.5 | G94: 2612 | H94: 1959 | I94: 1959 | J94: 653 | K94: 1959 | L94: 2938.5 | M94: 979.5 | N94: 2612 | S94: 24487.5 | U94: 12243.75 | V94: 12243.75 | W94: =LOOKUP(A94,'DOE - FIPStoPayeeCodeConvTable'!$A$3:$A$213,'DOE - FIPStoPayeeCodeConvTable'!$E$3:$E$213) -> 0.2455 | X94: 0.2455 | Y94: 3005.84 | Z94: 9237.91
A95: 187 | B95: =LOOKUP(A95,'DOE - FIPStoPayeeCodeConvTable'!$A$3:$A$213,'DOE - FIPStoPayeeCodeConvTable'!$B$3:$B$213) -> Warren Co | C95: 3482.6 | D95: 2285.5 | E95: 3329.41 | F95: 6137.92 | G95: 2285.5 | H95: 2553.86 | I95: 2612 | J95: 2938.5 | K95: 5038.94 | L95: 3591.5 | M95: 2285.5 | N95: 1306 | S95: 37847.23 | U95: 18923.62 | V95: 18923.61 | W95: =LOOKUP(A95,'DOE - FIPStoPayeeCodeConvTable'!$A$3:$A$213,'DOE - FIPStoPayeeCodeConvTable'!$E$3:$E$213) -> 0.3853 | X95: 0.3853 | Y95: 7291.27 | Z95: 11632.34
A96: 191 | B96: =LOOKUP(A96,'DOE - FIPStoPayeeCodeConvTable'!$A$3:$A$213,'DOE - FIPStoPayeeCodeConvTable'!$B$3:$B$213) -> Washington Co | C96: 2285.5 | D96: 326.5 | E96: 0 | F96: 653 | G96: 653 | H96: 2612 | I96: 653 | J96: 326.5 | K96: 653 | L96: 979.5 | M96: 326.5 | N96: 979.5 | S96: 10448 | U96: 5224 | V96: 5224 | W96: =LOOKUP(A96,'DOE - FIPStoPayeeCodeConvTable'!$A$3:$A$213,'DOE - FIPStoPayeeCodeConvTable'!$E$3:$E$213) -> 0.276 | X96: 0.276 | Y96: 1441.82 | Z96: 3782.18
A97: 193 | B97: =LOOKUP(A97,'DOE - FIPStoPayeeCodeConvTable'!$A$3:$A$213,'DOE - FIPStoPayeeCodeConvTable'!$B$3:$B$213) -> Westmoreland Co | C97: 0 | D97: 0 | E97: 0 | F97: 0 | G97: 326.5 | H97: 0 | I97: 0 | J97: 0 | K97: 2285.5 | L97: 1306 | M97: 1306 | N97: 1306 | S97: 6530 | U97: 3265 | V97: 3265 | W97: =LOOKUP(A97,'DOE - FIPStoPayeeCodeConvTable'!$A$3:$A$213,'DOE - FIPStoPayeeCodeConvTable'!$E$3:$E$213) -> 0.3025 | X97: 0.3025 | Y97: 987.66 | Z97: 2277.34
A98: 195 | B98: =LOOKUP(A98,'DOE - FIPStoPayeeCodeConvTable'!$A$3:$A$213,'DOE - FIPStoPayeeCodeConvTable'!$B$3:$B$213) -> Wise Co | C98: 2285.5 | D98: 326.5 | E98: 1632.5 | F98: 1306 | G98: 1632.5 | H98: 1306 | I98: 653 | J98: 653 | K98: 326.5 | L98: 326.5 | M98: 4244.5 | N98: 979.5 | S98: 15672 | U98: 7836 | V98: 7836 | W98: =LOOKUP(A98,'DOE - FIPStoPayeeCodeConvTable'!$A$3:$A$213,'DOE - FIPStoPayeeCodeConvTable'!$E$3:$E$213) -> 0.2755 | X98: 0.2755 | Y98: 2158.82 | Z98: 5677.18
A99: 197 | B99: =LOOKUP(A99,'DOE - FIPStoPayeeCodeConvTable'!$A$3:$A$213,'DOE - FIPStoPayeeCodeConvTable'!$B$3:$B$213) -> Wythe Co | C99: 326.5 | D99: 326.5 | E99: 326.5 | F99: 1611.37 | G99: 653 | H99: 750.92 | I99: 2285.5 | J99: 1959 | K99: 979.5 | L99: 1306 | M99: 979.5 | N99: 2285.5 | S99: 13789.79 | U99: 6894.9 | V99: 6894.89 | W99: =LOOKUP(A99,'DOE - FIPStoPayeeCodeConvTable'!$A$3:$A$213,'DOE - FIPStoPayeeCodeConvTable'!$E$3:$E$213) -> 0.2708 | X99: 0.2708 | Y99: 1867.14 | Z99: 5027.75
A100: 199 | B100: =LOOKUP(A100,'DOE - FIPStoPayeeCodeConvTable'!$A$3:$A$213,'DOE - FIPStoPayeeCodeConvTable'!$B$3:$B$213) -> York Co | C100: 0 | D100: 0 | E100: 0 | F100: 0 | G100: 0 | H100: 0 | I100: 0 | J100: 0 | K100: 0 | L100: 0 | M100: 0 | N100: 0 | S100: 0 | U100: 0 | V100: 0 | W100: =LOOKUP(A100,'DOE - FIPStoPayeeCodeConvTable'!$A$3:$A$213,'DOE - FIPStoPayeeCodeConvTable'!$E$3:$E$213) -> 0.3888 | X100: 0.3888 | Y100: 0 | Z100: 0
A101: 510 | B101: =LOOKUP(A101,'DOE - FIPStoPayeeCodeConvTable'!$A$3:$A$213,'DOE - FIPStoPayeeCodeConvTable'!$B$3:$B$213) -> Alexandria City | C101: 3196.12 | D101: 2285.5 | E101: 2938.5 | F101: 3918 | G101: 3591.5 | H101: 3265 | I101: 13585.97 | J101: 3902.79 | K101: 6203.5 | L101: 4897.5 | M101: 4828.62 | N101: 2800.74 | S101: =SUM(C101:R101) -> 55413.74 | U101: 27706.87 | V101: 27706.87 | W101: =LOOKUP(A101,'DOE - FIPStoPayeeCodeConvTable'!$A$3:$A$213,'DOE - FIPStoPayeeCodeConvTable'!$E$3:$E$213) -> 0.5309 | X101: 0.5309 | Y101: 14709.58 | Z101: 12997.29
A102: 520 | B102: =LOOKUP(A102,'DOE - FIPStoPayeeCodeConvTable'!$A$3:$A$213,'DOE - FIPStoPayeeCodeConvTable'!$B$3:$B$213) -> Bristol City | C102: 2612 | D102: 979.5 | E102: 1959 | F102: 1632.5 | G102: 1306 | H102: 1306 | I102: 979.5 | J102: 1306 | K102: 1306 | L102: 1306 | M102: 979.5 | N102: 653 | S102: 16325 | U102: =ROUND($U$1*S102,2) -> 8162.5 | V102: =SUM(S102)-SUM(U102) -> 8162.5 | W102: =LOOKUP(A102,'DOE - FIPStoPayeeCodeConvTable'!$A$3:$A$213,'DOE - FIPStoPayeeCodeConvTable'!$E$3:$E$213) -> 0.2547 | X102: 0.2547 | Y102: 2078.99 | Z102: 6083.51
A103: 530 | B103: =LOOKUP(A103,'DOE - FIPStoPayeeCodeConvTable'!$A$3:$A$213,'DOE - FIPStoPayeeCodeConvTable'!$B$3:$B$213) -> Buena Vista City | C103: 326.5 | D103: 0 | E103: 326.5 | F103: 2938.5 | G103: 653 | H103: 979.5 | I103: 653 | J103: 653 | K103: 5165.86 | L103: 1306 | M103: 1959 | N103: 979.5 | S103: 15940.36 | U103: 7970.18 | V103: 7970.18 | W103: =LOOKUP(A103,'DOE - FIPStoPayeeCodeConvTable'!$A$3:$A$213,'DOE - FIPStoPayeeCodeConvTable'!$E$3:$E$213) -> 0.2329 | X103: 0.2329 | Y103: 1856.25 | Z103: 6113.93
A104: 540 | B104: =LOOKUP(A104,'DOE - FIPStoPayeeCodeConvTable'!$A$3:$A$213,'DOE - FIPStoPayeeCodeConvTable'!$B$3:$B$213) -> Charlottesville City | C104: 6319.32 | D104: 3172.37 | E104: 3918 | F104: 5877 | G104: 23118.31 | H104: 6106.38 | I104: 4571 | J104: 5877 | K104: 5224 | L104: 4839.18 | M104: 4897.5 | N104: 4897.5 | S104: 78817.56 | U104: 39408.78 | V104: 39408.78 | W104: =LOOKUP(A104,'DOE - FIPStoPayeeCodeConvTable'!$A$3:$A$213,'DOE - FIPStoPayeeCodeConvTable'!$E$3:$E$213) -> 0.3068 | X104: 0.3068 | Y104: 12090.61 | Z104: 27318.17
A105: 550 | B105: =LOOKUP(A105,'DOE - FIPStoPayeeCodeConvTable'!$A$3:$A$213,'DOE - FIPStoPayeeCodeConvTable'!$B$3:$B$213) -> Chesapeake City | C105: 653 | D105: 1306 | E105: 653 | F105: 326.5 | G105: 3591.5 | H105: 653 | I105: 2938.5 | J105: 326.5 | K105: 1306 | L105: 979.5 | M105: 979.5 | N105: 326.5 | S105: 14039.5 | U105: 7019.75 | V105: 7019.75 | W105: =LOOKUP(A105,'DOE - FIPStoPayeeCodeConvTable'!$A$3:$A$213,'DOE - FIPStoPayeeCodeConvTable'!$E$3:$E$213) -> 0.3715 | X105: 0.3715 | Y105: 2607.84 | Z105: 4411.91
A106: 570 | B106: =LOOKUP(A106,'DOE - FIPStoPayeeCodeConvTable'!$A$3:$A$213,'DOE - FIPStoPayeeCodeConvTable'!$B$3:$B$213) -> Colonial Heights City | C106: 326.5 | D106: 326.5 | E106: 326.5 | F106: 0 | G106: 653 | H106: 326.5 | I106: 326.5 | J106: 0 | K106: 0 | L106: 0 | M106: 0 | N106: 0 | S106: 2285.5 | U106: 1142.75 | V106: 1142.75 | W106: =LOOKUP(A106,'DOE - FIPStoPayeeCodeConvTable'!$A$3:$A$213,'DOE - FIPStoPayeeCodeConvTable'!$E$3:$E$213) -> 0.4027 | X106: 0.4027 | Y106: 460.19 | Z106: 682.56
A107: 580 | B107: =LOOKUP(A107,'DOE - FIPStoPayeeCodeConvTable'!$A$3:$A$213,'DOE - FIPStoPayeeCodeConvTable'!$B$3:$B$213) -> Covington City | C107: 0 | D107: 326.5 | E107: 0 | F107: 653 | G107: 326.5 | H107: 326.5 | I107: 326.5 | J107: 0 | K107: 326.5 | L107: 653 | M107: 0 | N107: 326.5 | S107: 3265 | U107: 1632.5 | V107: 1632.5 | W107: =LOOKUP(A107,'DOE - FIPStoPayeeCodeConvTable'!$A$3:$A$213,'DOE - FIPStoPayeeCodeConvTable'!$E$3:$E$213) -> 0.2496 | X107: 0.2496 | Y107: 407.47 | Z107: 1225.03
A108: 590 | B108: =LOOKUP(A108,'DOE - FIPStoPayeeCodeConvTable'!$A$3:$A$213,'DOE - FIPStoPayeeCodeConvTable'!$B$3:$B$213) -> Danville City | C108: 1306 | D108: 326.5 | E108: 326.5 | F108: 242.19 | G108: 0 | H108: 5550.5 | I108: 1959 | J108: 0 | K108: 1959 | L108: 2612 | M108: 0 | N108: 2285.5 | S108: 16567.19 | U108: 8283.6 | V108: 8283.59 | W108: =LOOKUP(A108,'DOE - FIPStoPayeeCodeConvTable'!$A$3:$A$213,'DOE - FIPStoPayeeCodeConvTable'!$E$3:$E$213) -> 0.2223 | X108: 0.2223 | Y108: 1841.44 | Z108: 6442.15
A109: 620 | B109: =LOOKUP(A109,'DOE - FIPStoPayeeCodeConvTable'!$A$3:$A$213,'DOE - FIPStoPayeeCodeConvTable'!$B$3:$B$213) -> Franklin City | C109: 326.5 | D109: 0 | E109: 653 | F109: 0 | G109: 653 | H109: 979.5 | I109: 326.5 | J109: 326.5 | K109: 0 | L109: 0 | M109: 0 | N109: 0 | S109: 3265 | U109: 1632.5 | V109: 1632.5 | W109: =LOOKUP(A109,'DOE - FIPStoPayeeCodeConvTable'!$A$3:$A$213,'DOE - FIPStoPayeeCodeConvTable'!$E$3:$E$213) -> 0.371 | X109: 0.371 | Y109: 605.66 | Z109: 1026.84
A110: 630 | B110: =LOOKUP(A110,'DOE - FIPStoPayeeCodeConvTable'!$A$3:$A$213,'DOE - FIPStoPayeeCodeConvTable'!$B$3:$B$213) -> Fredericksburg City | C110: 653 | D110: 1306 | E110: 0 | F110: 326.5 | G110: 0 | H110: 0 | I110: 0 | J110: 0 | K110: 326.5 | L110: 1959 | M110: 326.5 | N110: 326.5 | S110: 5224 | U110: 2612 | V110: 2612 | W110: =LOOKUP(A110,'DOE - FIPStoPayeeCodeConvTable'!$A$3:$A$213,'DOE - FIPStoPayeeCodeConvTable'!$E$3:$E$213) -> 0.3441 | X110: 0.3441 | Y110: 898.79 | Z110: 1713.21
A111: 640 | B111: =LOOKUP(A111,'DOE - FIPStoPayeeCodeConvTable'!$A$3:$A$213,'DOE - FIPStoPayeeCodeConvTable'!$B$3:$B$213) -> Galax City | C111: 0 | D111: 0 | E111: 0 | F111: 0 | G111: 0 | H111: 0 | I111: 653 | J111: 979.5 | K111: 653 | L111: 1306 | M111: 4571 | N111: 1632.5 | S111: 9795 | U111: 4897.5 | V111: 4897.5 | W111: =LOOKUP(A111,'DOE - FIPStoPayeeCodeConvTable'!$A$3:$A$213,'DOE - FIPStoPayeeCodeConvTable'!$E$3:$E$213) -> 0.3146 | X111: 0.3146 | Y111: 1540.75 | Z111: 3356.75
A112: 650 | B112: =LOOKUP(A112,'DOE - FIPStoPayeeCodeConvTable'!$A$3:$A$213,'DOE - FIPStoPayeeCodeConvTable'!$B$3:$B$213) -> Hampton City | C112: 0 | D112: 0 | E112: 0 | F112: 0 | G112: 0 | H112: 0 | I112: 0 | J112: 0 | K112: 0 | L112: 0 | M112: 0 | N112: 0 | S112: 0 | U112: 0 | V112: 0 | W112: =LOOKUP(A112,'DOE - FIPStoPayeeCodeConvTable'!$A$3:$A$213,'DOE - FIPStoPayeeCodeConvTable'!$E$3:$E$213) -> 0.3223 | X112: 0.3223 | Y112: 0 | Z112: 0
A113: 660 | B113: =LOOKUP(A113,'DOE - FIPStoPayeeCodeConvTable'!$A$3:$A$213,'DOE - FIPStoPayeeCodeConvTable'!$B$3:$B$213) -> Harrisonburg City | C113: 13060 | D113: 10345.5 | E113: 9984.58 | F113: 26619.31 | G113: 6776.89 | H113: 12696.82 | I113: 9548.11 | J113: 15261.24 | K113: 326.5 | L113: 12236.4 | M113: 10066.87 | N113: 7888.65 | S113: 134810.87 | U113: 67405.44 | V113: 67405.43 | W113: =LOOKUP(A113,'DOE - FIPStoPayeeCodeConvTable'!$A$3:$A$213,'DOE - FIPStoPayeeCodeConvTable'!$E$3:$E$213) -> 0.3808 | X113: 0.3808 | Y113: 25667.99 | Z113: 41737.44
A114: 670 | B114: =LOOKUP(A114,'DOE - FIPStoPayeeCodeConvTable'!$A$3:$A$213,'DOE - FIPStoPayeeCodeConvTable'!$B$3:$B$213) -> Hopewell City | C114: 1632.5 | D114: 1382.06 | E114: 2612 | F114: 1959 | G114: 1186.28 | H114: 6530 | I114: 2612 | J114: 3591.5 | K114: 4244.5 | L114: 13377.56 | M114: 2285.5 | N114: 1959 | S114: 43371.9 | U114: 21685.95 | V114: 21685.95 | W114: =LOOKUP(A114,'DOE - FIPStoPayeeCodeConvTable'!$A$3:$A$213,'DOE - FIPStoPayeeCodeConvTable'!$E$3:$E$213) -> 0.2667 | X114: 0.2667 | Y114: 5783.64 | Z114: 15902.31
A115: 678 | B115: =LOOKUP(A115,'DOE - FIPStoPayeeCodeConvTable'!$A$3:$A$213,'DOE - FIPStoPayeeCodeConvTable'!$B$3:$B$213) -> Lexington City | C115: 0 | D115: 0 | E115: 0 | F115: 0 | G115: 0 | H115: 0 | I115: 0 | J115: 0 | K115: 0 | L115: 653 | M115: 326.5 | N115: 326.5 | S115: 1306 | U115: 653 | V115: 653 | W115: =LOOKUP(A115,'DOE - FIPStoPayeeCodeConvTable'!$A$3:$A$213,'DOE - FIPStoPayeeCodeConvTable'!$E$3:$E$213) -> 0.3302 | X115: 0.3302 | Y115: 215.62 | Z115: 437.38
A116: 680 | B116: =LOOKUP(A116,'DOE - FIPStoPayeeCodeConvTable'!$A$3:$A$213,'DOE - FIPStoPayeeCodeConvTable'!$B$3:$B$213) -> Lynchburg City | C116: 2285.5 | D116: 1033.17 | E116: 979.5 | F116: 4244.5 | G116: 2938.5 | H116: 653 | I116: 4571 | J116: 979.5 | K116: 1632.5 | L116: 2145.56 | M116: 2612 | N116: 1306 | S116: 25380.73 | U116: 12690.37 | V116: 12690.36 | W116: =LOOKUP(A116,'DOE - FIPStoPayeeCodeConvTable'!$A$3:$A$213,'DOE - FIPStoPayeeCodeConvTable'!$E$3:$E$213) -> 0.2736 | X116: 0.2736 | Y116: 3472.08 | Z116: 9218.28
A117: 683 | B117: =LOOKUP(A117,'DOE - FIPStoPayeeCodeConvTable'!$A$3:$A$213,'DOE - FIPStoPayeeCodeConvTable'!$B$3:$B$213) -> Manassas City | C117: 1632.5 | D117: 979.5 | E117: 1632.5 | F117: 1306 | G117: 1632.5 | H117: 1632.5 | I117: 1306 | J117: 1306 | K117: 1306 | L117: 326.5 | M117: 979.5 | N117: 326.5 | S117: 14366 | U117: 7183 | V117: 7183 | W117: =LOOKUP(A117,'DOE - FIPStoPayeeCodeConvTable'!$A$3:$A$213,'DOE - FIPStoPayeeCodeConvTable'!$E$3:$E$213) -> 0.4168 | X117: 0.4168 | Y117: 2993.87 | Z117: 4189.13
A118: 685 | B118: =LOOKUP(A118,'DOE - FIPStoPayeeCodeConvTable'!$A$3:$A$213,'DOE - FIPStoPayeeCodeConvTable'!$B$3:$B$213) -> Manassas Park City | C118: 0 | D118: 0 | E118: 0 | F118: 0 | G118: 0 | H118: 0 | I118: 0 | J118: 326.5 | K118: 4244.5 | L118: 979.5 | M118: 2612 | N118: 1632.5 | S118: 9795 | U118: 4897.5 | V118: 4897.5 | W118: =LOOKUP(A118,'DOE - FIPStoPayeeCodeConvTable'!$A$3:$A$213,'DOE - FIPStoPayeeCodeConvTable'!$E$3:$E$213) -> 0.4273 | X118: 0.4273 | Y118: 2092.7 | Z118: 2804.8
A119: 690 | B119: =LOOKUP(A119,'DOE - FIPStoPayeeCodeConvTable'!$A$3:$A$213,'DOE - FIPStoPayeeCodeConvTable'!$B$3:$B$213) -> Martinsville City | C119: 1959 | D119: 1306 | E119: 979.5 | F119: 1632.5 | G119: 979.5 | H119: 1632.5 | I119: 2317.7 | J119: 1306 | K119: -8489 | L119: 326.5 | M119: 326.5 | N119: 326.5 | S119: 4603.2 | U119: 2301.6 | V119: 2301.6 | W119: =LOOKUP(A119,'DOE - FIPStoPayeeCodeConvTable'!$A$3:$A$213,'DOE - FIPStoPayeeCodeConvTable'!$E$3:$E$213) -> 0.3321 | X119: 0.3321 | Y119: 764.36 | Z119: 1537.24
A120: 700 | B120: =LOOKUP(A120,'DOE - FIPStoPayeeCodeConvTable'!$A$3:$A$213,'DOE - FIPStoPayeeCodeConvTable'!$B$3:$B$213) -> Newport News City | C120: 14366 | D120: 10806.09 | E120: 3265 | F120: 0 | G120: 30038 | H120: 11101 | I120: 14666.56 | J120: 9142 | K120: 14692.5 | L120: 13386.5 | M120: 13060 | N120: 7836 | S120: 142359.65 | U120: 71179.83 | V120: 71179.82 | W120: =LOOKUP(A120,'DOE - FIPStoPayeeCodeConvTable'!$A$3:$A$213,'DOE - FIPStoPayeeCodeConvTable'!$E$3:$E$213) -> 0.2773 | X120: 0.2773 | Y120: 19738.16 | Z120: 51441.66
A121: 710 | B121: =LOOKUP(A121,'DOE - FIPStoPayeeCodeConvTable'!$A$3:$A$213,'DOE - FIPStoPayeeCodeConvTable'!$B$3:$B$213) -> Norfolk City | C121: 13558.25 | D121: 12986.65 | E121: 4721.28 | F121: 2685.7 | G121: 35461.47 | H121: 10336.18 | I121: 24810.44 | J121: 5877 | K121: 17257.09 | L121: 14885.72 | M121: 14039.5 | N121: 5550.5 | S121: 162169.78 | U121: 81084.89 | V121: 81084.89 | W121: =LOOKUP(A121,'DOE - FIPStoPayeeCodeConvTable'!$A$3:$A$213,'DOE - FIPStoPayeeCodeConvTable'!$E$3:$E$213) -> 0.2455 | X121: 0.2455 | Y121: 19906.34 | Z121: 61178.55
A122: 720 | B122: =LOOKUP(A122,'DOE - FIPStoPayeeCodeConvTable'!$A$3:$A$213,'DOE - FIPStoPayeeCodeConvTable'!$B$3:$B$213) -> Norton City | C122: 326.5 | D122: 0 | E122: 653 | F122: 653 | G122: 653 | H122: 653 | I122: 653 | J122: 979.5 | K122: 326.5 | L122: 653 | M122: 326.5 | N122: 326.5 | S122: 6203.5 | U122: 3101.75 | V122: 3101.75 | W122: =LOOKUP(A122,'DOE - FIPStoPayeeCodeConvTable'!$A$3:$A$213,'DOE - FIPStoPayeeCodeConvTable'!$E$3:$E$213) -> 0.3254 | X122: 0.3254 | Y122: 1009.31 | Z122: 2092.44
A123: 730 | B123: =LOOKUP(A123,'DOE - FIPStoPayeeCodeConvTable'!$A$3:$A$213,'DOE - FIPStoPayeeCodeConvTable'!$B$3:$B$213) -> Petersburg City | C123: 4897.5 | D123: 4240.02 | E123: 5550.5 | F123: 653 | G123: 9142 | H123: 4244.5 | I123: 7103.39 | J123: 5877 | K123: 7509.5 | L123: 8489 | M123: 3591.5 | N123: 4897.5 | S123: 66195.41 | U123: 33097.71 | V123: 33097.7 | W123: =LOOKUP(A123,'DOE - FIPStoPayeeCodeConvTable'!$A$3:$A$213,'DOE - FIPStoPayeeCodeConvTable'!$E$3:$E$213) -> 0.3535 | X123: 0.3535 | Y123: 11700.04 | Z123: 21397.66
A124: 735 | B124: =LOOKUP(A124,'DOE - FIPStoPayeeCodeConvTable'!$A$3:$A$213,'DOE - FIPStoPayeeCodeConvTable'!$B$3:$B$213) -> Poquoson City | C124: 0 | D124: 0 | E124: 0 | F124: 0 | G124: 0 | H124: 0 | I124: 0 | J124: 0 | K124: 0 | L124: 0 | M124: 0 | N124: 0 | S124: 0 | U124: 0 | V124: 0 | W124: =LOOKUP(A124,'DOE - FIPStoPayeeCodeConvTable'!$A$3:$A$213,'DOE - FIPStoPayeeCodeConvTable'!$E$3:$E$213) -> 0.2787 | X124: 0.2787 | Y124: 0 | Z124: 0
A125: 740 | B125: =LOOKUP(A125,'DOE - FIPStoPayeeCodeConvTable'!$A$3:$A$213,'DOE - FIPStoPayeeCodeConvTable'!$B$3:$B$213) -> Portsmouth City | C125: 3798.22 | D125: 3752.27 | E125: 3918 | F125: 0 | G125: -5292.87 | H125: 1632.5 | I125: 1959 | J125: 326.5 | K125: 4336.63 | L125: 5224 | M125: 3265 | N125: 1632.5 | S125: 24551.75 | U125: 12275.88 | V125: 12275.87 | W125: =LOOKUP(A125,'DOE - FIPStoPayeeCodeConvTable'!$A$3:$A$213,'DOE - FIPStoPayeeCodeConvTable'!$E$3:$E$213) -> 0.2605 | X125: 0.2605 | Y125: 3197.86 | Z125: 9078.01
A126: 750 | B126: =LOOKUP(A126,'DOE - FIPStoPayeeCodeConvTable'!$A$3:$A$213,'DOE - FIPStoPayeeCodeConvTable'!$B$3:$B$213) -> Radford City | C126: 0 | D126: 0 | E126: 0 | F126: 0 | G126: 0 | H126: 0 | I126: 1632.5 | J126: 326.5 | K126: 0 | L126: 653 | M126: 0 | N126: 326.5 | S126: 2938.5 | U126: 1469.25 | V126: 1469.25 | W126: =LOOKUP(A126,'DOE - FIPStoPayeeCodeConvTable'!$A$3:$A$213,'DOE - FIPStoPayeeCodeConvTable'!$E$3:$E$213) -> 0.2035 | X126: 0.2035 | Y126: 298.99 | Z126: 1170.26
A127: 760 | B127: =LOOKUP(A127,'DOE - FIPStoPayeeCodeConvTable'!$A$3:$A$213,'DOE - FIPStoPayeeCodeConvTable'!$B$3:$B$213) -> Richmond City | C127: 27043.14 | D127: 22312.92 | E127: 27795.98 | F127: 11227.36 | G127: 30133.78 | H127: 18584.56 | I127: 21239.49 | J127: 19697.34 | K127: 28910.89 | L127: 29944.68 | M127: 18118.51 | N127: 18937 | S127: 273945.65 | U127: 136972.83 | V127: 136972.82 | W127: =LOOKUP(A127,'DOE - FIPStoPayeeCodeConvTable'!$A$3:$A$213,'DOE - FIPStoPayeeCodeConvTable'!$E$3:$E$213) -> 0.3691 | X127: 0.3691 | Y127: 50556.67 | Z127: 86416.15
A128: 770 | B128: =LOOKUP(A128,'DOE - FIPStoPayeeCodeConvTable'!$A$3:$A$213,'DOE - FIPStoPayeeCodeConvTable'!$B$3:$B$213) -> Roanoke City | C128: 31344 | D128: 15523.51 | E128: 7863.73 | F128: 13713 | G128: 19400.36 | H128: 28513.66 | I128: 25237.11 | J128: 8067.66 | K128: 30364.5 | L128: 25467 | M128: 13386.5 | N128: 15672 | S128: 234553.03 | U128: 117276.52 | V128: 117276.51 | W128: =LOOKUP(A128,'DOE - FIPStoPayeeCodeConvTable'!$A$3:$A$213,'DOE - FIPStoPayeeCodeConvTable'!$E$3:$E$213) -> 0.3072 | X128: 0.3072 | Y128: 36027.34 | Z128: 81249.17
A129: 775 | B129: =LOOKUP(A129,'DOE - FIPStoPayeeCodeConvTable'!$A$3:$A$213,'DOE - FIPStoPayeeCodeConvTable'!$B$3:$B$213) -> Salem City | C129: 2116.95 | D129: 5224 | E129: 1632.5 | F129: 3591.5 | G129: 1509.95 | H129: 653 | I129: 6530 | J129: 2938.5 | K129: 11101 | L129: 3918 | M129: 7183 | N129: 1959 | S129: 48357.4 | U129: 24178.7 | V129: 24178.7 | W129: =LOOKUP(A129,'DOE - FIPStoPayeeCodeConvTable'!$A$3:$A$213,'DOE - FIPStoPayeeCodeConvTable'!$E$3:$E$213) -> 0.3513 | X129: 0.3513 | Y129: 8493.98 | Z129: 15684.72
A130: 790 | B130: =LOOKUP(A130,'DOE - FIPStoPayeeCodeConvTable'!$A$3:$A$213,'DOE - FIPStoPayeeCodeConvTable'!$B$3:$B$213) -> Staunton City | C130: 5877 | D130: 8489 | E130: 8248.37 | F130: 3918 | G130: 10937.7 | H130: 4571 | I130: 6203.5 | J130: 4823.77 | K130: 10401.36 | L130: 9795 | M130: 6005.81 | N130: 3159.68 | S130: 82430.19 | U130: 41215.1 | V130: 41215.09 | W130: =LOOKUP(A130,'DOE - FIPStoPayeeCodeConvTable'!$A$3:$A$213,'DOE - FIPStoPayeeCodeConvTable'!$E$3:$E$213) -> 0.2699 | X130: 0.2699 | Y130: 11123.95 | Z130: 30091.14
A131: 800 | B131: =LOOKUP(A131,'DOE - FIPStoPayeeCodeConvTable'!$A$3:$A$213,'DOE - FIPStoPayeeCodeConvTable'!$B$3:$B$213) -> Suffolk City | C131: 326.5 | D131: 1632.5 | E131: 2500.18 | F131: 326.5 | G131: 3591.5 | H131: 979.5 | I131: 4351.84 | J131: 653 | K131: 6530 | L131: 2938.5 | M131: 3918 | N131: 1306 | S131: 29054.02 | U131: 14527.01 | V131: 14527.01 | W131: =LOOKUP(A131,'DOE - FIPStoPayeeCodeConvTable'!$A$3:$A$213,'DOE - FIPStoPayeeCodeConvTable'!$E$3:$E$213) -> 0.2432 | X131: 0.2432 | Y131: 3532.97 | Z131: 10994.04
A132: 810 | B132: =LOOKUP(A132,'DOE - FIPStoPayeeCodeConvTable'!$A$3:$A$213,'DOE - FIPStoPayeeCodeConvTable'!$B$3:$B$213) -> Virginia Beach City | C132: 15672 | D132: 17291.07 | E132: 9747.59 | F132: 653 | G132: 44025.61 | H132: 14039.5 | I132: 17342.97 | J132: 6856.5 | K132: 21875.5 | L132: 25161.97 | M132: 21699.28 | N132: 8061.42 | S132: 202426.41 | U132: 101213.21 | V132: 101213.2 | W132: =LOOKUP(A132,'DOE - FIPStoPayeeCodeConvTable'!$A$3:$A$213,'DOE - FIPStoPayeeCodeConvTable'!$E$3:$E$213) -> 0.3569 | X132: 0.3569 | Y132: 36122.99 | Z132: 65090.21
A133: 820 | B133: =LOOKUP(A133,'DOE - FIPStoPayeeCodeConvTable'!$A$3:$A$213,'DOE - FIPStoPayeeCodeConvTable'!$B$3:$B$213) -> Waynesboro City | C133: 3918 | D133: 2738.39 | E133: 5413.54 | F133: 3812.63 | G133: 1959 | H133: 4644.73 | I133: 10808.34 | J133: 3722.06 | K133: 3521.54 | L133: 2938.5 | M133: 4537.15 | N133: 6530 | S133: =SUM(C133:R133) -> 54543.88 | U133: 27271.94 | V133: =SUM(S133)-SUM(U133) -> 27271.94 | W133: =LOOKUP(A133,'DOE - FIPStoPayeeCodeConvTable'!$A$3:$A$213,'DOE - FIPStoPayeeCodeConvTable'!$E$3:$E$213) -> 0.3843 | X133: 0.3843 | Y133: 10480.61 | Z133: 16791.33
A134: 830 | B134: =LOOKUP(A134,'DOE - FIPStoPayeeCodeConvTable'!$A$3:$A$213,'DOE - FIPStoPayeeCodeConvTable'!$B$3:$B$213) -> Williamsburg City | C134: 326.5 | D134: 326.5 | E134: 0 | F134: 0 | G134: 979.5 | H134: 326.5 | I134: 326.5 | J134: 326.5 | K134: 326.5 | L134: 326.5 | M134: 326.5 | N134: 326.5 | S134: 3918 | U134: 1959 | V134: 1959 | W134: =LOOKUP(A134,'DOE - FIPStoPayeeCodeConvTable'!$A$3:$A$213,'DOE - FIPStoPayeeCodeConvTable'!$E$3:$E$213) -> 0.4553 | X134: =$X$1*W134 -> 0.4553 | Y134: =ROUND(X134*V134,2) -> 891.93 | Z134: =SUM(V134)-SUM(Y134) -> 1067.07
A135: 840 | B135: =LOOKUP(A135,'DOE - FIPStoPayeeCodeConvTable'!$A$3:$A$213,'DOE - FIPStoPayeeCodeConvTable'!$B$3:$B$213) -> Winchester City | C135: 4244.5 | D135: 2285.5 | E135: 4571 | F135: 4766.64 | G135: 2938.5 | H135: 4571 | I135: 6475.5 | J135: 2938.5 | K135: 2938.5 | L135: 1959 | M135: 4244.5 | N135: 1306 | S135: 43239.14 | U135: 21619.57 | V135: 21619.57 | W135: =LOOKUP(A135,'DOE - FIPStoPayeeCodeConvTable'!$A$3:$A$213,'DOE - FIPStoPayeeCodeConvTable'!$E$3:$E$213) -> 0.4587 | X135: 0.4587 | Y135: 9916.9 | Z135: 11702.67

Sheet TFC-EXT & FAMIS (hidden)
A1: FY | B1: ='DOE - FIPStoPayeeCodeConvTable'!G1 -> 2019 | C1: MEDICAID ADJUSTMENTS--TFC-EXT & FAMIS PAYMENTS TO PROVIDERS | O1: ="Extended to be paided in this SFY = " & B1 -> Extended to be paided in this SFY = 2019 | T1: xx | U1: 0.88 | V1: 0.12 | W1: (POOL) | X1: 1
U2: FEDERAL | V2: STATE/ | W2: (RATE) | X2: Factor
A3: FIPS | S3: Grand | U3: MEDICAID | V3: LOCAL | W3: LOCAL | Y3: LOCAL | Z3: STATE
A4: CODE | B4: LOCALITY | C4: =TEXT("7/1/" & $B$1-1,"mmm-yyyy") -> Jul-2018 | D4: =TEXT("8/1/" & $B$1-1,"mmm-yyyy") -> Aug-2018 | E4: =TEXT("9/1/" & $B$1-1,"mmm-yyyy") -> Sep-2018 | F4: =TEXT("10/1/" & $B$1-1,"mmm-yyyy") -> Oct-2018 | G4: =TEXT("11/1/" & $B$1-1,"mmm-yyyy") -> Nov-2018 | H4: =TEXT("12/1/" & $B$1-1,"mmm-yyyy") -> Dec-2018 | I4: =TEXT("1/1/" & $B$1,"mmm-yyyy") -> Jan-2019 | J4: =TEXT("2/1/" & $B$1,"mmm-yyyy") -> Feb-2019 | K4: =TEXT("3/1/" & $B$1,"mmm-yyyy") -> Mar-2019 | L4: =TEXT("4/1/" & $B$1,"mmm-yyyy") -> Apr-2019 | M4: =TEXT("5/1/" & $B$1,"mmm-yyyy") -> May-2019 | N4: =TEXT("6/1/" & $B$1,"mmm-yyyy") -> Jun-2019 | O4: =TEXT("7/1/" & $B$1,"mmm-yyyy") -> Jul-2019 | P4: =TEXT("8/1/" & $B$1,"mmm-yyyy") -> Aug-2019 | Q4: =TEXT("9/1/" & $B$1,"mmm-yyyy") -> Sep-2019 | R4: =TEXT("10/1/" & $B$1,"mmm-yyyy") -> Oct-2019 | S4: Total | U4: RATE/Share | V4: SHARE | W4: MATCH Rate | Y4: MATCH | Z4: SHARE
A5: Totals | C5: =SUM(C6:C1200) -> 1131.87 | D5: 1649.5 | E5: =SUM(E6:E1200) -> 653 | F5: =SUM(F6:F1200) -> 326.5 | G5: =SUM(G6:G1200) -> 0 | H5: 0 | I5: 0 | J5: 0 | K5: 326.5 | L5: 965.95 | M5: 653 | N5: 1632.5 | O5: 0 | P5: 0 | Q5: 0 | R5: 0 | S5: =SUM(C5:R5) -> 7338.82 | T5: = | U5: =SUM(U6:U399) -> 6458.16 | V5: =SUM(V6:V399) -> 880.66 | W5: = | Y5: =SUM(Y6:Y399) -> 283.46 | Z5: =SUM(Z6:Z399) -> 597.2
A6: 1 | B6: =LOOKUP(A6,'DOE - FIPStoPayeeCodeConvTable'!$A$3:$A$213,'DOE - FIPStoPayeeCodeConvTable'!$B$3:$B$213) -> Accomack Co | C6: 0 | D6: 0 | E6: 0 | F6: 0 | G6: 0 | K6: 0 | L6: 0 | M6: 0 | N6: 0 | S6: 0 | U6: =ROUND($U$1*S6,2) -> 0 | V6: =SUM(S6)-SUM(U6) -> 0 | W6: =LOOKUP(A6,'DOE - FIPStoPayeeCodeConvTable'!$A$3:$A$213,'DOE - FIPStoPayeeCodeConvTable'!$E$3:$E$213) -> 0.2332 | X6: =$X$1*W6 -> 0.2332 | Y6: =ROUND(X6*V6,2) -> 0 | Z6: =SUM(V6)-SUM(Y6) -> 0
A7: 3 | B7: =LOOKUP(A7,'DOE - FIPStoPayeeCodeConvTable'!$A$3:$A$213,'DOE - FIPStoPayeeCodeConvTable'!$B$3:$B$213) -> Albemarle Co | C7: 0 | D7: 0 | E7: 0 | F7: 0 | G7: 0 | K7: 0 | L7: 0 | M7: 0 | N7: 0 | S7: 0 | U7: 0 | V7: 0 | W7: =LOOKUP(A7,'DOE - FIPStoPayeeCodeConvTable'!$A$3:$A$213,'DOE - FIPStoPayeeCodeConvTable'!$E$3:$E$213) -> 0.4474 | X7: =$X$1*W7 -> 0.4474 | Y7: =ROUND(X7*V7,2) -> 0 | Z7: =SUM(V7)-SUM(Y7) -> 0
A8: 5 | B8: =LOOKUP(A8,'DOE - FIPStoPayeeCodeConvTable'!$A$3:$A$213,'DOE - FIPStoPayeeCodeConvTable'!$B$3:$B$213) -> Alleghany Co | C8: 0 | D8: 0 | E8: 0 | F8: 0 | G8: 0 | K8: 0 | L8: 0 | M8: 0 | N8: 0 | S8: 0 | U8: 0 | V8: 0 | W8: =LOOKUP(A8,'DOE - FIPStoPayeeCodeConvTable'!$A$3:$A$213,'DOE - FIPStoPayeeCodeConvTable'!$E$3:$E$213) -> 0.1924 | X8: 0.1924 | Y8: 0 | Z8: 0
A9: 7 | B9: =LOOKUP(A9,'DOE - FIPStoPayeeCodeConvTable'!$A$3:$A$213,'DOE - FIPStoPayeeCodeConvTable'!$B$3:$B$213) -> Amelia Co | C9: 0 | D9: 0 | E9: 0 | F9: 0 | G9: 0 | K9: 0 | L9: 0 | M9: 0 | N9: 0 | S9: 0 | U9: 0 | V9: 0 | W9: =LOOKUP(A9,'DOE - FIPStoPayeeCodeConvTable'!$A$3:$A$213,'DOE - FIPStoPayeeCodeConvTable'!$E$3:$E$213) -> 0.3268 | X9: 0.3268 | Y9: 0 | Z9: 0
A10: 9 | B10: =LOOKUP(A10,'DOE - FIPStoPayeeCodeConvTable'!$A$3:$A$213,'DOE - FIPStoPayeeCodeConvTable'!$B$3:$B$213) -> Amherst Co | C10: 0 | D10: 0 | E10: 0 | F10: 0 | G10: 0 | K10: 0 | L10: 653 | M10: 326.5 | N10: 0 | S10: 979.5 | U10: 861.96 | V10: 117.54 | W10: =LOOKUP(A10,'DOE - FIPStoPayeeCodeConvTable'!$A$3:$A$213,'DOE - FIPStoPayeeCodeConvTable'!$E$3:$E$213) -> 0.2722 | X10: 0.2722 | Y10: 31.99 | Z10: 85.55
A11: 11 | B11: =LOOKUP(A11,'DOE - FIPStoPayeeCodeConvTable'!$A$3:$A$213,'DOE - FIPStoPayeeCodeConvTable'!$B$3:$B$213) -> Appomattox Co | C11: 0 | D11: 0 | E11: 0 | F11: 0 | G11: 0 | K11: 0 | L11: 0 | M11: 0 | N11: 0 | S11: 0 | U11: 0 | V11: 0 | W11: =LOOKUP(A11,'DOE - FIPStoPayeeCodeConvTable'!$A$3:$A$213,'DOE - FIPStoPayeeCodeConvTable'!$E$3:$E$213) -> 0.2639 | X11: 0.2639 | Y11: 0 | Z11: 0
A12: 13 | B12: =LOOKUP(A12,'DOE - FIPStoPayeeCodeConvTable'!$A$3:$A$213,'DOE - FIPStoPayeeCodeConvTable'!$B$3:$B$213) -> Arlington Co | C12: 0 | D12: 0 | E12: 0 | F12: 0 | G12: 0 | K12: 0 | L12: 0 | M12: 0 | N12: 0 | S12: 0 | U12: 0 | V12: 0 | W12: =LOOKUP(A12,'DOE - FIPStoPayeeCodeConvTable'!$A$3:$A$213,'DOE - FIPStoPayeeCodeConvTable'!$E$3:$E$213) -> 0.4602 | X12: 0.4602 | Y12: 0 | Z12: 0
A13: 15 | B13: =LOOKUP(A13,'DOE - FIPStoPayeeCodeConvTable'!$A$3:$A$213,'DOE - FIPStoPayeeCodeConvTable'!$B$3:$B$213) -> Augusta Co | C13: 0 | D13: 0 | E13: 0 | F13: 0 | G13: 0 | K13: 0 | L13: 0 | M13: 0 | N13: 0 | S13: 0 | U13: 0 | V13: 0 | W13: =LOOKUP(A13,'DOE - FIPStoPayeeCodeConvTable'!$A$3:$A$213,'DOE - FIPStoPayeeCodeConvTable'!$E$3:$E$213) -> 0.3302 | X13: 0.3302 | Y13: 0 | Z13: 0
A14: 17 | B14: =LOOKUP(A14,'DOE - FIPStoPayeeCodeConvTable'!$A$3:$A$213,'DOE - FIPStoPayeeCodeConvTable'!$B$3:$B$213) -> Bath Co | C14: 0 | D14: 0 | E14: 0 | F14: 0 | G14: 0 | K14: 0 | L14: 0 | M14: 0 | N14: 0 | S14: 0 | U14: 0 | V14: 0 | W14: =LOOKUP(A14,'DOE - FIPStoPayeeCodeConvTable'!$A$3:$A$213,'DOE - FIPStoPayeeCodeConvTable'!$E$3:$E$213) -> 0.4278 | X14: 0.4278 | Y14: 0 | Z14: 0
A15: 19 | B15: =LOOKUP(A15,'DOE - FIPStoPayeeCodeConvTable'!$A$3:$A$213,'DOE - FIPStoPayeeCodeConvTable'!$B$3:$B$213) -> Bedford Co | C15: 0 | D15: 0 | E15: 0 | F15: 0 | G15: 0 | K15: 0 | L15: 0 | M15: 0 | N15: 0 | S15: 0 | U15: 0 | V15: 0 | W15: =LOOKUP(A15,'DOE - FIPStoPayeeCodeConvTable'!$A$3:$A$213,'DOE - FIPStoPayeeCodeConvTable'!$E$3:$E$213) -> 0.31112 | X15: 0.31112 | Y15: 0 | Z15: 0
A16: 21 | B16: =LOOKUP(A16,'DOE - FIPStoPayeeCodeConvTable'!$A$3:$A$213,'DOE - FIPStoPayeeCodeConvTable'!$B$3:$B$213) -> Bland Co | C16: 0 | D16: 0 | E16: 0 | F16: 0 | G16: 0 | K16: 0 | L16: 0 | M16: 0 | N16: 0 | S16: 0 | U16: 0 | V16: 0 | W16: =LOOKUP(A16,'DOE - FIPStoPayeeCodeConvTable'!$A$3:$A$213,'DOE - FIPStoPayeeCodeConvTable'!$E$3:$E$213) -> 0.2109 | X16: 0.2109 | Y16: 0 | Z16: 0
A17: 23 | B17: =LOOKUP(A17,'DOE - FIPStoPayeeCodeConvTable'!$A$3:$A$213,'DOE - FIPStoPayeeCodeConvTable'!$B$3:$B$213) -> Botetourt Co | C17: 0 | D17: 0 | E17: 0 | F17: 0 | G17: 0 | K17: 0 | L17: 0 | M17: 0 | N17: 0 | S17: 0 | U17: 0 | V17: 0 | W17: =LOOKUP(A17,'DOE - FIPStoPayeeCodeConvTable'!$A$3:$A$213,'DOE - FIPStoPayeeCodeConvTable'!$E$3:$E$213) -> 0.3602 | X17: 0.3602 | Y17: 0 | Z17: 0
A18: 25 | B18: =LOOKUP(A18,'DOE - FIPStoPayeeCodeConvTable'!$A$3:$A$213,'DOE - FIPStoPayeeCodeConvTable'!$B$3:$B$213) -> Brunswick Co | C18: 0 | D18: 0 | E18: 0 | F18: 0 | G18: 0 | K18: 0 | L18: 0 | M18: 0 | N18: 0 | S18: 0 | U18: 0 | V18: 0 | W18: =LOOKUP(A18,'DOE - FIPStoPayeeCodeConvTable'!$A$3:$A$213,'DOE - FIPStoPayeeCodeConvTable'!$E$3:$E$213) -> 0.2439 | X18: 0.2439 | Y18: 0 | Z18: 0
A19: 27 | B19: =LOOKUP(A19,'DOE - FIPStoPayeeCodeConvTable'!$A$3:$A$213,'DOE - FIPStoPayeeCodeConvTable'!$B$3:$B$213) -> Buchanan Co | C19: 0 | D19: 0 | E19: 0 | F19: 0 | G19: 0 | K19: 0 | L19: 0 | M19: 0 | N19: 0 | S19: 0 | U19: 0 | V19: 0 | W19: =LOOKUP(A19,'DOE - FIPStoPayeeCodeConvTable'!$A$3:$A$213,'DOE - FIPStoPayeeCodeConvTable'!$E$3:$E$213) -> 0.3156 | X19: 0.3156 | Y19: 0 | Z19: 0
A20: 29 | B20: =LOOKUP(A20,'DOE - FIPStoPayeeCodeConvTable'!$A$3:$A$213,'DOE - FIPStoPayeeCodeConvTable'!$B$3:$B$213) -> Buckingham Co | C20: 0 | D20: 0 | E20: 0 | F20: 0 | G20: 0 | K20: 0 | L20: 0 | M20: 0 | N20: 0 | S20: 0 | U20: 0 | V20: 0 | W20: =LOOKUP(A20,'DOE - FIPStoPayeeCodeConvTable'!$A$3:$A$213,'DOE - FIPStoPayeeCodeConvTable'!$E$3:$E$213) -> 0.2023 | X20: 0.2023 | Y20: 0 | Z20: 0
A21: 31 | B21: =LOOKUP(A21,'DOE - FIPStoPayeeCodeConvTable'!$A$3:$A$213,'DOE - FIPStoPayeeCodeConvTable'!$B$3:$B$213) -> Campbell Co | C21: 0 | D21: 326.5 | E21: 0 | F21: 326.5 | G21: 0 | K21: 0 | L21: 0 | M21: 0 | N21: 0 | S21: 653 | U21: 574.64 | V21: 78.36 | W21: =LOOKUP(A21,'DOE - FIPStoPayeeCodeConvTable'!$A$3:$A$213,'DOE - FIPStoPayeeCodeConvTable'!$E$3:$E$213) -> 0.3107 | X21: 0.3107 | Y21: 24.35 | Z21: 54.01
A22: 33 | B22: =LOOKUP(A22,'DOE - FIPStoPayeeCodeConvTable'!$A$3:$A$213,'DOE - FIPStoPayeeCodeConvTable'!$B$3:$B$213) -> Caroline Co | C22: 0 | D22: 0 | E22: 0 | F22: 0 | G22: 0 | K22: 0 | L22: 0 | M22: 0 | N22: 0 | S22: 0 | U22: 0 | V22: 0 | W22: =LOOKUP(A22,'DOE - FIPStoPayeeCodeConvTable'!$A$3:$A$213,'DOE - FIPStoPayeeCodeConvTable'!$E$3:$E$213) -> 0.3308 | X22: 0.3308 | Y22: 0 | Z22: 0
A23: 35 | B23: =LOOKUP(A23,'DOE - FIPStoPayeeCodeConvTable'!$A$3:$A$213,'DOE - FIPStoPayeeCodeConvTable'!$B$3:$B$213) -> Carroll Co | C23: 0 | D23: 0 | E23: 0 | F23: 0 | G23: 0 | K23: 0 | L23: 0 | M23: 0 | N23: 0 | S23: 0 | U23: 0 | V23: 0 | W23: =LOOKUP(A23,'DOE - FIPStoPayeeCodeConvTable'!$A$3:$A$213,'DOE - FIPStoPayeeCodeConvTable'!$E$3:$E$213) -> 0.291 | X23: 0.291 | Y23: 0 | Z23: 0
A24: 36 | B24: =LOOKUP(A24,'DOE - FIPStoPayeeCodeConvTable'!$A$3:$A$213,'DOE - FIPStoPayeeCodeConvTable'!$B$3:$B$213) -> Charles City Co | C24: 0 | D24: 0 | E24: 0 | F24: 0 | G24: 0 | K24: 0 | L24: 0 | M24: 0 | N24: 0 | S24: 0 | U24: 0 | V24: 0 | W24: =LOOKUP(A24,'DOE - FIPStoPayeeCodeConvTable'!$A$3:$A$213,'DOE - FIPStoPayeeCodeConvTable'!$E$3:$E$213) -> 0.3131 | X24: 0.3131 | Y24: 0 | Z24: 0
A25: 37 | B25: =LOOKUP(A25,'DOE - FIPStoPayeeCodeConvTable'!$A$3:$A$213,'DOE - FIPStoPayeeCodeConvTable'!$B$3:$B$213) -> Charlotte Co | C25: 0 | D25: 0 | E25: 0 | F25: 0 | G25: 0 | K25: 0 | L25: 0 | M25: 0 | N25: 0 | S25: 0 | U25: 0 | V25: 0 | W25: =LOOKUP(A25,'DOE - FIPStoPayeeCodeConvTable'!$A$3:$A$213,'DOE - FIPStoPayeeCodeConvTable'!$E$3:$E$213) -> 0.2204 | X25: 0.2204 | Y25: 0 | Z25: 0
A26: 41 | B26: =LOOKUP(A26,'DOE - FIPStoPayeeCodeConvTable'!$A$3:$A$213,'DOE - FIPStoPayeeCodeConvTable'!$B$3:$B$213) -> Chesterfield Co | C26: 0 | D26: 0 | E26: 0 | F26: 0 | G26: 0 | K26: 0 | L26: 0 | M26: 0 | N26: 979.5 | S26: 979.5 | U26: 861.96 | V26: 117.54 | W26: =LOOKUP(A26,'DOE - FIPStoPayeeCodeConvTable'!$A$3:$A$213,'DOE - FIPStoPayeeCodeConvTable'!$E$3:$E$213) -> 0.3853 | X26: 0.3853 | Y26: 45.29 | Z26: 72.25
A27: 43 | B27: =LOOKUP(A27,'DOE - FIPStoPayeeCodeConvTable'!$A$3:$A$213,'DOE - FIPStoPayeeCodeConvTable'!$B$3:$B$213) -> Clarke Co | C27: 0 | D27: 0 | E27: 0 | F27: 0 | G27: 0 | K27: 0 | L27: 0 | M27: 0 | N27: 0 | S27: 0 | U27: 0 | V27: 0 | W27: =LOOKUP(A27,'DOE - FIPStoPayeeCodeConvTable'!$A$3:$A$213,'DOE - FIPStoPayeeCodeConvTable'!$E$3:$E$213) -> 0.4797 | X27: 0.4797 | Y27: 0 | Z27: 0
A28: 45 | B28: =LOOKUP(A28,'DOE - FIPStoPayeeCodeConvTable'!$A$3:$A$213,'DOE - FIPStoPayeeCodeConvTable'!$B$3:$B$213) -> Craig Co | C28: 0 | D28: 0 | E28: 0 | F28: 0 | G28: 0 | K28: 0 | L28: 0 | M28: 0 | N28: 0 | S28: 0 | U28: 0 | V28: 0 | W28: =LOOKUP(A28,'DOE - FIPStoPayeeCodeConvTable'!$A$3:$A$213,'DOE - FIPStoPayeeCodeConvTable'!$E$3:$E$213) -> 0.2901 | X28: 0.2901 | Y28: 0 | Z28: 0
A29: 47 | B29: =LOOKUP(A29,'DOE - FIPStoPayeeCodeConvTable'!$A$3:$A$213,'DOE - FIPStoPayeeCodeConvTable'!$B$3:$B$213) -> Culpeper Co | C29: 0 | D29: 0 | E29: 0 | F29: 0 | G29: 0 | K29: 0 | L29: 0 | M29: 0 | N29: 0 | S29: 0 | U29: 0 | V29: 0 | W29: =LOOKUP(A29,'DOE - FIPStoPayeeCodeConvTable'!$A$3:$A$213,'DOE - FIPStoPayeeCodeConvTable'!$E$3:$E$213) -> 0.3767 | X29: 0.3767 | Y29: 0 | Z29: 0
A30: 49 | B30: =LOOKUP(A30,'DOE - FIPStoPayeeCodeConvTable'!$A$3:$A$213,'DOE - FIPStoPayeeCodeConvTable'!$B$3:$B$213) -> Cumberland Co | C30: 0 | D30: 0 | E30: 0 | F30: 0 | G30: 0 | K30: 0 | L30: 0 | M30: 0 | N30: 0 | S30: 0 | U30: 0 | V30: 0 | W30: =LOOKUP(A30,'DOE - FIPStoPayeeCodeConvTable'!$A$3:$A$213,'DOE - FIPStoPayeeCodeConvTable'!$E$3:$E$213) -> 0.304 | X30: 0.304 | Y30: 0 | Z30: 0
A31: 51 | B31: =LOOKUP(A31,'DOE - FIPStoPayeeCodeConvTable'!$A$3:$A$213,'DOE - FIPStoPayeeCodeConvTable'!$B$3:$B$213) -> Dickenson Co | C31: 0 | D31: 0 | E31: 0 | F31: 0 | G31: 0 | K31: 0 | L31: 0 | M31: 0 | N31: 0 | S31: 0 | U31: 0 | V31: 0 | W31: =LOOKUP(A31,'DOE - FIPStoPayeeCodeConvTable'!$A$3:$A$213,'DOE - FIPStoPayeeCodeConvTable'!$E$3:$E$213) -> 0.3042 | X31: 0.3042 | Y31: 0 | Z31: 0
A32: 53 | B32: =LOOKUP(A32,'DOE - FIPStoPayeeCodeConvTable'!$A$3:$A$213,'DOE - FIPStoPayeeCodeConvTable'!$B$3:$B$213) -> Dinwiddie Co | C32: 0 | D32: 0 | E32: 0 | F32: 0 | G32: 0 | K32: 0 | L32: 0 | M32: 0 | N32: 0 | S32: 0 | U32: 0 | V32: 0 | W32: =LOOKUP(A32,'DOE - FIPStoPayeeCodeConvTable'!$A$3:$A$213,'DOE - FIPStoPayeeCodeConvTable'!$E$3:$E$213) -> 0.3358 | X32: 0.3358 | Y32: 0 | Z32: 0
A33: 57 | B33: =LOOKUP(A33,'DOE - FIPStoPayeeCodeConvTable'!$A$3:$A$213,'DOE - FIPStoPayeeCodeConvTable'!$B$3:$B$213) -> Essex Co | C33: 0 | D33: 0 | E33: 0 | F33: 0 | G33: 0 | K33: 0 | L33: 0 | M33: 0 | N33: 0 | S33: 0 | U33: 0 | V33: 0 | W33: =LOOKUP(A33,'DOE - FIPStoPayeeCodeConvTable'!$A$3:$A$213,'DOE - FIPStoPayeeCodeConvTable'!$E$3:$E$213) -> 0.3853 | X33: 0.3853 | Y33: 0 | Z33: 0
A34: 59 | B34: =LOOKUP(A34,'DOE - FIPStoPayeeCodeConvTable'!$A$3:$A$213,'DOE - FIPStoPayeeCodeConvTable'!$B$3:$B$213) -> Fairfax Co | C34: 0 | D34: 0 | E34: 0 | F34: 0 | G34: 0 | K34: 0 | L34: 0 | M34: 0 | N34: 0 | S34: 0 | U34: 0 | V34: 0 | W34: =LOOKUP(A34,'DOE - FIPStoPayeeCodeConvTable'!$A$3:$A$213,'DOE - FIPStoPayeeCodeConvTable'!$E$3:$E$213) -> 0.4611 | X34: 0.4611 | Y34: 0 | Z34: 0
A35: 61 | B35: =LOOKUP(A35,'DOE - FIPStoPayeeCodeConvTable'!$A$3:$A$213,'DOE - FIPStoPayeeCodeConvTable'!$B$3:$B$213) -> Fauquier Co | C35: 0 | D35: 0 | E35: 0 | F35: 0 | G35: 0 | K35: 0 | L35: 0 | M35: 0 | N35: 0 | S35: 0 | U35: 0 | V35: 0 | W35: =LOOKUP(A35,'DOE - FIPStoPayeeCodeConvTable'!$A$3:$A$213,'DOE - FIPStoPayeeCodeConvTable'!$E$3:$E$213) -> 0.4584 | X35: 0.4584 | Y35: 0 | Z35: 0
A36: 63 | B36: =LOOKUP(A36,'DOE - FIPStoPayeeCodeConvTable'!$A$3:$A$213,'DOE - FIPStoPayeeCodeConvTable'!$B$3:$B$213) -> Floyd Co | C36: 0 | D36: 0 | E36: 0 | F36: 0 | G36: 0 | K36: 0 | L36: 0 | M36: 0 | N36: 0 | S36: 0 | U36: 0 | V36: 0 | W36: =LOOKUP(A36,'DOE - FIPStoPayeeCodeConvTable'!$A$3:$A$213,'DOE - FIPStoPayeeCodeConvTable'!$E$3:$E$213) -> 0.2324 | X36: 0.2324 | Y36: 0 | Z36: 0
A37: 65 | B37: =LOOKUP(A37,'DOE - FIPStoPayeeCodeConvTable'!$A$3:$A$213,'DOE - FIPStoPayeeCodeConvTable'!$B$3:$B$213) -> Fluvanna Co | C37: 0 | D37: 0 | E37: 0 | F37: 0 | G37: 0 | K37: 0 | L37: 0 | M37: 0 | N37: 0 | S37: =SUM(C37:R37) -> 0 | U37: 0 | V37: 0 | W37: =LOOKUP(A37,'DOE - FIPStoPayeeCodeConvTable'!$A$3:$A$213,'DOE - FIPStoPayeeCodeConvTable'!$E$3:$E$213) -> 0.3811 | X37: 0.3811 | Y37: 0 | Z37: 0
A38: 67 | B38: =LOOKUP(A38,'DOE - FIPStoPayeeCodeConvTable'!$A$3:$A$213,'DOE - FIPStoPayeeCodeConvTable'!$B$3:$B$213) -> Franklin Co | C38: 0 | D38: 0 | E38: 0 | F38: 0 | G38: 0 | K38: 0 | L38: 0 | M38: 0 | N38: 0 | S38: 0 | U38: =ROUND($U$1*S38,2) -> 0 | V38: =SUM(S38)-SUM(U38) -> 0 | W38: =LOOKUP(A38,'DOE - FIPStoPayeeCodeConvTable'!$A$3:$A$213,'DOE - FIPStoPayeeCodeConvTable'!$E$3:$E$213) -> 0.283 | X38: 0.283 | Y38: 0 | Z38: 0
A39: 69 | B39: =LOOKUP(A39,'DOE - FIPStoPayeeCodeConvTable'!$A$3:$A$213,'DOE - FIPStoPayeeCodeConvTable'!$B$3:$B$213) -> Frederick Co | C39: 0 | D39: 0 | E39: 0 | F39: 0 | G39: 0 | K39: 0 | L39: 0 | M39: 0 | N39: 0 | S39: 0 | U39: 0 | V39: 0 | W39: =LOOKUP(A39,'DOE - FIPStoPayeeCodeConvTable'!$A$3:$A$213,'DOE - FIPStoPayeeCodeConvTable'!$E$3:$E$213) -> 0.4348 | X39: 0.4348 | Y39: 0 | Z39: 0
A40: 71 | B40: =LOOKUP(A40,'DOE - FIPStoPayeeCodeConvTable'!$A$3:$A$213,'DOE - FIPStoPayeeCodeConvTable'!$B$3:$B$213) -> Giles Co | C40: 0 | D40: 0 | E40: 0 | F40: 0 | G40: 0 | K40: 0 | L40: 0 | M40: 0 | N40: 0 | S40: 0 | U40: 0 | V40: 0 | W40: =LOOKUP(A40,'DOE - FIPStoPayeeCodeConvTable'!$A$3:$A$213,'DOE - FIPStoPayeeCodeConvTable'!$E$3:$E$213) -> 0.2898 | X40: 0.2898 | Y40: 0 | Z40: 0
A41: 73 | B41: =LOOKUP(A41,'DOE - FIPStoPayeeCodeConvTable'!$A$3:$A$213,'DOE - FIPStoPayeeCodeConvTable'!$B$3:$B$213) -> Gloucester Co | C41: 0 | D41: 0 | E41: 0 | F41: 0 | G41: 0 | K41: 0 | L41: 0 | M41: 0 | N41: 0 | S41: 0 | U41: 0 | V41: 0 | W41: =LOOKUP(A41,'DOE - FIPStoPayeeCodeConvTable'!$A$3:$A$213,'DOE - FIPStoPayeeCodeConvTable'!$E$3:$E$213) -> 0.3687 | X41: 0.3687 | Y41: 0 | Z41: 0
A42: 75 | B42: =LOOKUP(A42,'DOE - FIPStoPayeeCodeConvTable'!$A$3:$A$213,'DOE - FIPStoPayeeCodeConvTable'!$B$3:$B$213) -> Goochland Co | C42: 0 | D42: 0 | E42: 0 | F42: 0 | G42: 0 | K42: 0 | L42: 0 | M42: 0 | N42: 0 | S42: 0 | U42: 0 | V42: 0 | W42: =LOOKUP(A42,'DOE - FIPStoPayeeCodeConvTable'!$A$3:$A$213,'DOE - FIPStoPayeeCodeConvTable'!$E$3:$E$213) -> 0.4871 | X42: 0.4871 | Y42: 0 | Z42: 0
A43: 77 | B43: =LOOKUP(A43,'DOE - FIPStoPayeeCodeConvTable'!$A$3:$A$213,'DOE - FIPStoPayeeCodeConvTable'!$B$3:$B$213) -> Grayson Co | C43: 0 | D43: 0 | E43: 0 | F43: 0 | G43: 0 | K43: 0 | L43: 0 | M43: 0 | N43: 0 | S43: 0 | U43: 0 | V43: 0 | W43: =LOOKUP(A43,'DOE - FIPStoPayeeCodeConvTable'!$A$3:$A$213,'DOE - FIPStoPayeeCodeConvTable'!$E$3:$E$213) -> 0.2109 | X43: 0.2109 | Y43: 0 | Z43: 0
A44: 79 | B44: =LOOKUP(A44,'DOE - FIPStoPayeeCodeConvTable'!$A$3:$A$213,'DOE - FIPStoPayeeCodeConvTable'!$B$3:$B$213) -> Greene Co | C44: 0 | D44: 0 | E44: 0 | F44: 0 | G44: 0 | K44: 0 | L44: 0 | M44: 0 | N44: 0 | S44: 0 | U44: 0 | V44: 0 | W44: =LOOKUP(A44,'DOE - FIPStoPayeeCodeConvTable'!$A$3:$A$213,'DOE - FIPStoPayeeCodeConvTable'!$E$3:$E$213) -> 0.3471 | X44: 0.3471 | Y44: 0 | Z44: 0
A45: 81 | B45: =LOOKUP(A45,'DOE - FIPStoPayeeCodeConvTable'!$A$3:$A$213,'DOE - FIPStoPayeeCodeConvTable'!$B$3:$B$213) -> Greensville Co | C45: 0 | D45: 0 | E45: 0 | F45: 0 | G45: 0 | K45: 0 | L45: 0 | M45: 326.5 | N45: 326.5 | S45: 653 | U45: 574.64 | V45: 78.36 | W45: =LOOKUP(A45,'DOE - FIPStoPayeeCodeConvTable'!$A$3:$A$213,'DOE - FIPStoPayeeCodeConvTable'!$E$3:$E$213) -> 0.2266 | X45: 0.2266 | Y45: 17.76 | Z45: 60.6
A46: 83 | B46: =LOOKUP(A46,'DOE - FIPStoPayeeCodeConvTable'!$A$3:$A$213,'DOE - FIPStoPayeeCodeConvTable'!$B$3:$B$213) -> Halifax Co | C46: 0 | D46: 0 | E46: 0 | F46: 0 | G46: 0 | K46: 0 | L46: 0 | M46: 0 | N46: 0 | S46: 0 | U46: 0 | V46: 0 | W46: =LOOKUP(A46,'DOE - FIPStoPayeeCodeConvTable'!$A$3:$A$213,'DOE - FIPStoPayeeCodeConvTable'!$E$3:$E$213) -> 0.2335 | X46: 0.2335 | Y46: 0 | Z46: 0
A47: 85 | B47: =LOOKUP(A47,'DOE - FIPStoPayeeCodeConvTable'!$A$3:$A$213,'DOE - FIPStoPayeeCodeConvTable'!$B$3:$B$213) -> Hanover Co | C47: 0 | D47: 0 | E47: 0 | F47: 0 | G47: 0 | K47: 326.5 | L47: 0 | M47: 0 | N47: 0 | S47: 326.5 | U47: 287.32 | V47: 39.18 | W47: =LOOKUP(A47,'DOE - FIPStoPayeeCodeConvTable'!$A$3:$A$213,'DOE - FIPStoPayeeCodeConvTable'!$E$3:$E$213) -> 0.4444 | X47: 0.4444 | Y47: 17.41 | Z47: 21.77
A48: 87 | B48: =LOOKUP(A48,'DOE - FIPStoPayeeCodeConvTable'!$A$3:$A$213,'DOE - FIPStoPayeeCodeConvTable'!$B$3:$B$213) -> Henrico Co | C48: 0 | D48: 0 | E48: 0 | F48: 0 | G48: 0 | K48: 0 | L48: 0 | M48: 0 | N48: 0 | S48: 0 | U48: 0 | V48: 0 | W48: =LOOKUP(A48,'DOE - FIPStoPayeeCodeConvTable'!$A$3:$A$213,'DOE - FIPStoPayeeCodeConvTable'!$E$3:$E$213) -> 0.3755 | X48: 0.3755 | Y48: 0 | Z48: 0
A49: 89 | B49: =LOOKUP(A49,'DOE - FIPStoPayeeCodeConvTable'!$A$3:$A$213,'DOE - FIPStoPayeeCodeConvTable'!$B$3:$B$213) -> Henry Co | C49: 0 | D49: 0 | E49: 0 | F49: 0 | G49: 0 | K49: 0 | L49: 0 | M49: 0 | N49: 0 | S49: 0 | U49: 0 | V49: 0 | W49: =LOOKUP(A49,'DOE - FIPStoPayeeCodeConvTable'!$A$3:$A$213,'DOE - FIPStoPayeeCodeConvTable'!$E$3:$E$213) -> 0.2786 | X49: 0.2786 | Y49: 0 | Z49: 0
A50: 91 | B50: =LOOKUP(A50,'DOE - FIPStoPayeeCodeConvTable'!$A$3:$A$213,'DOE - FIPStoPayeeCodeConvTable'!$B$3:$B$213) -> Highland Co | C50: 0 | D50: 0 | E50: 0 | F50: 0 | G50: 0 | K50: 0 | L50: 0 | M50: 0 | N50: 0 | S50: 0 | U50: 0 | V50: 0 | W50: =LOOKUP(A50,'DOE - FIPStoPayeeCodeConvTable'!$A$3:$A$213,'DOE - FIPStoPayeeCodeConvTable'!$E$3:$E$213) -> 0.3822 | X50: 0.3822 | Y50: 0 | Z50: 0
A51: 93 | B51: =LOOKUP(A51,'DOE - FIPStoPayeeCodeConvTable'!$A$3:$A$213,'DOE - FIPStoPayeeCodeConvTable'!$B$3:$B$213) -> Isle Of Wight Co | C51: 0 | D51: 0 | E51: 0 | F51: 0 | G51: 0 | K51: 0 | L51: 0 | M51: 0 | N51: 0 | S51: 0 | U51: 0 | V51: 0 | W51: =LOOKUP(A51,'DOE - FIPStoPayeeCodeConvTable'!$A$3:$A$213,'DOE - FIPStoPayeeCodeConvTable'!$E$3:$E$213) -> 0.3613 | X51: 0.3613 | Y51: 0 | Z51: 0
A52: 95 | B52: =LOOKUP(A52,'DOE - FIPStoPayeeCodeConvTable'!$A$3:$A$213,'DOE - FIPStoPayeeCodeConvTable'!$B$3:$B$213) -> James City Co | C52: 0 | D52: 0 | E52: 0 | F52: 0 | G52: 0 | K52: 0 | L52: 0 | M52: 0 | N52: 0 | S52: 0 | U52: 0 | V52: 0 | W52: =LOOKUP(A52,'DOE - FIPStoPayeeCodeConvTable'!$A$3:$A$213,'DOE - FIPStoPayeeCodeConvTable'!$E$3:$E$213) -> 0.4483 | X52: 0.4483 | Y52: 0 | Z52: 0
A53: 97 | B53: =LOOKUP(A53,'DOE - FIPStoPayeeCodeConvTable'!$A$3:$A$213,'DOE - FIPStoPayeeCodeConvTable'!$B$3:$B$213) -> King And Queen Co | C53: 0 | D53: 0 | E53: 0 | F53: 0 | G53: 0 | K53: 0 | L53: 0 | M53: 0 | N53: 0 | S53: 0 | U53: 0 | V53: 0 | W53: =LOOKUP(A53,'DOE - FIPStoPayeeCodeConvTable'!$A$3:$A$213,'DOE - FIPStoPayeeCodeConvTable'!$E$3:$E$213) -> 0.3144 | X53: 0.3144 | Y53: 0 | Z53: 0
A54: 99 | B54: =LOOKUP(A54,'DOE - FIPStoPayeeCodeConvTable'!$A$3:$A$213,'DOE - FIPStoPayeeCodeConvTable'!$B$3:$B$213) -> King George Co | C54: 0 | D54: 0 | E54: 0 | F54: 0 | G54: 0 | K54: 0 | L54: 0 | M54: 0 | N54: 0 | S54: 0 | U54: 0 | V54: 0 | W54: =LOOKUP(A54,'DOE - FIPStoPayeeCodeConvTable'!$A$3:$A$213,'DOE - FIPStoPayeeCodeConvTable'!$E$3:$E$213) -> 0.3627 | X54: 0.3627 | Y54: 0 | Z54: 0
A55: 101 | B55: =LOOKUP(A55,'DOE - FIPStoPayeeCodeConvTable'!$A$3:$A$213,'DOE - FIPStoPayeeCodeConvTable'!$B$3:$B$213) -> King William Co | C55: 0 | D55: 0 | E55: 0 | F55: 0 | G55: 0 | K55: 0 | L55: 0 | M55: 0 | N55: 0 | S55: 0 | U55: 0 | V55: 0 | W55: =LOOKUP(A55,'DOE - FIPStoPayeeCodeConvTable'!$A$3:$A$213,'DOE - FIPStoPayeeCodeConvTable'!$E$3:$E$213) -> 0.3853 | X55: 0.3853 | Y55: 0 | Z55: 0
A56: 103 | B56: =LOOKUP(A56,'DOE - FIPStoPayeeCodeConvTable'!$A$3:$A$213,'DOE - FIPStoPayeeCodeConvTable'!$B$3:$B$213) -> Lancaster Co | C56: 0 | D56: 0 | E56: 0 | F56: 0 | G56: 0 | K56: 0 | L56: 0 | M56: 0 | N56: 0 | S56: 0 | U56: 0 | V56: 0 | W56: =LOOKUP(A56,'DOE - FIPStoPayeeCodeConvTable'!$A$3:$A$213,'DOE - FIPStoPayeeCodeConvTable'!$E$3:$E$213) -> 0.4391 | X56: 0.4391 | Y56: 0 | Z56: 0
A57: 105 | B57: =LOOKUP(A57,'DOE - FIPStoPayeeCodeConvTable'!$A$3:$A$213,'DOE - FIPStoPayeeCodeConvTable'!$B$3:$B$213) -> Lee Co | C57: 0 | D57: 0 | E57: 0 | F57: 0 | G57: 0 | K57: 0 | L57: 0 | M57: 0 | N57: 0 | S57: 0 | U57: 0 | V57: 0 | W57: =LOOKUP(A57,'DOE - FIPStoPayeeCodeConvTable'!$A$3:$A$213,'DOE - FIPStoPayeeCodeConvTable'!$E$3:$E$213) -> 0.2245 | X57: 0.2245 | Y57: 0 | Z57: 0
A58: 107 | B58: =LOOKUP(A58,'DOE - FIPStoPayeeCodeConvTable'!$A$3:$A$213,'DOE - FIPStoPayeeCodeConvTable'!$B$3:$B$213) -> Loudoun Co | C58: 0 | D58: 0 | E58: 0 | F58: 0 | G58: 0 | K58: 0 | L58: 0 | M58: 0 | N58: 0 | S58: 0 | U58: 0 | V58: 0 | W58: =LOOKUP(A58,'DOE - FIPStoPayeeCodeConvTable'!$A$3:$A$213,'DOE - FIPStoPayeeCodeConvTable'!$E$3:$E$213) -> 0.4764 | X58: 0.4764 | Y58: 0 | Z58: 0
A59: 109 | B59: =LOOKUP(A59,'DOE - FIPStoPayeeCodeConvTable'!$A$3:$A$213,'DOE - FIPStoPayeeCodeConvTable'!$B$3:$B$213) -> Louisa Co | C59: 0 | D59: 0 | E59: 0 | F59: 0 | G59: 0 | K59: 0 | L59: 0 | M59: 0 | N59: 0 | S59: 0 | U59: 0 | V59: 0 | W59: =LOOKUP(A59,'DOE - FIPStoPayeeCodeConvTable'!$A$3:$A$213,'DOE - FIPStoPayeeCodeConvTable'!$E$3:$E$213) -> 0.4401 | X59: 0.4401 | Y59: 0 | Z59: 0
A60: 111 | B60: =LOOKUP(A60,'DOE - FIPStoPayeeCodeConvTable'!$A$3:$A$213,'DOE - FIPStoPayeeCodeConvTable'!$B$3:$B$213) -> Lunenburg Co | C60: 0 | D60: 0 | E60: 0 | F60: 0 | G60: 0 | K60: 0 | L60: 0 | M60: 0 | N60: 0 | S60: 0 | U60: 0 | V60: 0 | W60: =LOOKUP(A60,'DOE - FIPStoPayeeCodeConvTable'!$A$3:$A$213,'DOE - FIPStoPayeeCodeConvTable'!$E$3:$E$213) -> 0.1698 | X60: 0.1698 | Y60: 0 | Z60: 0
A61: 113 | B61: =LOOKUP(A61,'DOE - FIPStoPayeeCodeConvTable'!$A$3:$A$213,'DOE - FIPStoPayeeCodeConvTable'!$B$3:$B$213) -> Madison Co | C61: 0 | D61: 0 | E61: 0 | F61: 0 | G61: 0 | K61: 0 | L61: 0 | M61: 0 | N61: 0 | S61: 0 | U61: 0 | V61: 0 | W61: =LOOKUP(A61,'DOE - FIPStoPayeeCodeConvTable'!$A$3:$A$213,'DOE - FIPStoPayeeCodeConvTable'!$E$3:$E$213) -> 0.3355 | X61: 0.3355 | Y61: 0 | Z61: 0
A62: 115 | B62: =LOOKUP(A62,'DOE - FIPStoPayeeCodeConvTable'!$A$3:$A$213,'DOE - FIPStoPayeeCodeConvTable'!$B$3:$B$213) -> Mathews Co | C62: 0 | D62: 0 | E62: 0 | F62: 0 | G62: 0 | K62: 0 | L62: 0 | M62: 0 | N62: 0 | S62: 0 | U62: 0 | V62: 0 | W62: =LOOKUP(A62,'DOE - FIPStoPayeeCodeConvTable'!$A$3:$A$213,'DOE - FIPStoPayeeCodeConvTable'!$E$3:$E$213) -> 0.4271 | X62: 0.4271 | Y62: 0 | Z62: 0
A63: 117 | B63: =LOOKUP(A63,'DOE - FIPStoPayeeCodeConvTable'!$A$3:$A$213,'DOE - FIPStoPayeeCodeConvTable'!$B$3:$B$213) -> Mecklenburg Co | C63: 0 | D63: 0 | E63: 0 | F63: 0 | G63: 0 | K63: 0 | L63: 0 | M63: 0 | N63: 0 | S63: 0 | U63: 0 | V63: 0 | W63: =LOOKUP(A63,'DOE - FIPStoPayeeCodeConvTable'!$A$3:$A$213,'DOE - FIPStoPayeeCodeConvTable'!$E$3:$E$213) -> 0.2286 | X63: 0.2286 | Y63: 0 | Z63: 0
A64: 119 | B64: =LOOKUP(A64,'DOE - FIPStoPayeeCodeConvTable'!$A$3:$A$213,'DOE - FIPStoPayeeCodeConvTable'!$B$3:$B$213) -> Middlesex Co | C64: 0 | D64: 0 | E64: 0 | F64: 0 | G64: 0 | K64: 0 | L64: 0 | M64: 0 | N64: 0 | S64: 0 | U64: 0 | V64: 0 | W64: =LOOKUP(A64,'DOE - FIPStoPayeeCodeConvTable'!$A$3:$A$213,'DOE - FIPStoPayeeCodeConvTable'!$E$3:$E$213) -> 0.4333 | X64: 0.4333 | Y64: 0 | Z64: 0
A65: 121 | B65: =LOOKUP(A65,'DOE - FIPStoPayeeCodeConvTable'!$A$3:$A$213,'DOE - FIPStoPayeeCodeConvTable'!$B$3:$B$213) -> Montgomery Co | C65: 0 | D65: 0 | E65: 0 | F65: 0 | G65: 0 | K65: 0 | L65: 0 | M65: 0 | N65: 0 | S65: 0 | U65: 0 | V65: 0 | W65: =LOOKUP(A65,'DOE - FIPStoPayeeCodeConvTable'!$A$3:$A$213,'DOE - FIPStoPayeeCodeConvTable'!$E$3:$E$213) -> 0.2834 | X65: 0.2834 | Y65: 0 | Z65: 0
A66: 125 | B66: =LOOKUP(A66,'DOE - FIPStoPayeeCodeConvTable'!$A$3:$A$213,'DOE - FIPStoPayeeCodeConvTable'!$B$3:$B$213) -> Nelson Co | C66: 0 | D66: 0 | E66: 0 | F66: 0 | G66: 0 | K66: 0 | L66: 0 | M66: 0 | N66: 0 | S66: 0 | U66: 0 | V66: 0 | W66: =LOOKUP(A66,'DOE - FIPStoPayeeCodeConvTable'!$A$3:$A$213,'DOE - FIPStoPayeeCodeConvTable'!$E$3:$E$213) -> 0.3132 | X66: 0.3132 | Y66: 0 | Z66: 0
A67: 127 | B67: =LOOKUP(A67,'DOE - FIPStoPayeeCodeConvTable'!$A$3:$A$213,'DOE - FIPStoPayeeCodeConvTable'!$B$3:$B$213) -> New Kent Co | C67: 0 | D67: 0 | E67: 0 | F67: 0 | G67: 0 | K67: 0 | L67: 0 | M67: 0 | N67: 0 | S67: 0 | U67: 0 | V67: 0 | W67: =LOOKUP(A67,'DOE - FIPStoPayeeCodeConvTable'!$A$3:$A$213,'DOE - FIPStoPayeeCodeConvTable'!$E$3:$E$213) -> 0.4329 | X67: 0.4329 | Y67: 0 | Z67: 0
A68: 131 | B68: =LOOKUP(A68,'DOE - FIPStoPayeeCodeConvTable'!$A$3:$A$213,'DOE - FIPStoPayeeCodeConvTable'!$B$3:$B$213) -> Northampton Co | C68: 0 | D68: 0 | E68: 0 | F68: 0 | G68: 0 | K68: 0 | L68: 0 | M68: 0 | N68: 0 | S68: 0 | U68: 0 | V68: 0 | W68: =LOOKUP(A68,'DOE - FIPStoPayeeCodeConvTable'!$A$3:$A$213,'DOE - FIPStoPayeeCodeConvTable'!$E$3:$E$213) -> 0.1971 | X68: 0.1971 | Y68: 0 | Z68: 0
A69: 133 | B69: =LOOKUP(A69,'DOE - FIPStoPayeeCodeConvTable'!$A$3:$A$213,'DOE - FIPStoPayeeCodeConvTable'!$B$3:$B$213) -> Northumberland Co | C69: 0 | D69: 0 | E69: 0 | F69: 0 | G69: 0 | K69: 0 | L69: 0 | M69: 0 | N69: 0 | S69: =SUM(C69:R69) -> 0 | U69: 0 | V69: 0 | W69: =LOOKUP(A69,'DOE - FIPStoPayeeCodeConvTable'!$A$3:$A$213,'DOE - FIPStoPayeeCodeConvTable'!$E$3:$E$213) -> 0.3304 | X69: 0.3304 | Y69: 0 | Z69: 0
A70: 135 | B70: =LOOKUP(A70,'DOE - FIPStoPayeeCodeConvTable'!$A$3:$A$213,'DOE - FIPStoPayeeCodeConvTable'!$B$3:$B$213) -> Nottoway Co | C70: 0 | D70: 0 | E70: 0 | F70: 0 | G70: 0 | K70: 0 | L70: 0 | M70: 0 | N70: 0 | S70: 0 | U70: =ROUND($U$1*S70,2) -> 0 | V70: =SUM(S70)-SUM(U70) -> 0 | W70: =LOOKUP(A70,'DOE - FIPStoPayeeCodeConvTable'!$A$3:$A$213,'DOE - FIPStoPayeeCodeConvTable'!$E$3:$E$213) -> 0.2686 | X70: 0.2686 | Y70: 0 | Z70: 0
A71: 137 | B71: =LOOKUP(A71,'DOE - FIPStoPayeeCodeConvTable'!$A$3:$A$213,'DOE - FIPStoPayeeCodeConvTable'!$B$3:$B$213) -> Orange Co | C71: 0 | D71: 0 | E71: 0 | F71: 0 | G71: 0 | K71: 0 | L71: 0 | M71: 0 | N71: 0 | S71: 0 | U71: 0 | V71: 0 | W71: =LOOKUP(A71,'DOE - FIPStoPayeeCodeConvTable'!$A$3:$A$213,'DOE - FIPStoPayeeCodeConvTable'!$E$3:$E$213) -> 0.4083 | X71: =$X$1*W71 -> 0.4083 | Y71: =ROUND(X71*V71,2) -> 0 | Z71: =SUM(V71)-SUM(Y71) -> 0
A72: 139 | B72: =LOOKUP(A72,'DOE - FIPStoPayeeCodeConvTable'!$A$3:$A$213,'DOE - FIPStoPayeeCodeConvTable'!$B$3:$B$213) -> Page Co | C72: 653 | D72: 0 | E72: 326.5 | F72: 0 | G72: 0 | K72: 0 | L72: 0 | M72: 0 | N72: 0 | S72: 979.5 | U72: 861.96 | V72: 117.54 | W72: =LOOKUP(A72,'DOE - FIPStoPayeeCodeConvTable'!$A$3:$A$213,'DOE - FIPStoPayeeCodeConvTable'!$E$3:$E$213) -> 0.2865 | X72: 0.2865 | Y72: 33.68 | Z72: 83.86
A73: 141 | B73: =LOOKUP(A73,'DOE - FIPStoPayeeCodeConvTable'!$A$3:$A$213,'DOE - FIPStoPayeeCodeConvTable'!$B$3:$B$213) -> Patrick Co | C73: 0 | D73: 0 | E73: 0 | F73: 0 | G73: 0 | K73: 0 | L73: 0 | M73: 0 | N73: 0 | S73: 0 | U73: 0 | V73: 0 | W73: =LOOKUP(A73,'DOE - FIPStoPayeeCodeConvTable'!$A$3:$A$213,'DOE - FIPStoPayeeCodeConvTable'!$E$3:$E$213) -> 0.2539 | X73: 0.2539 | Y73: 0 | Z73: 0
A74: 143 | B74: =LOOKUP(A74,'DOE - FIPStoPayeeCodeConvTable'!$A$3:$A$213,'DOE - FIPStoPayeeCodeConvTable'!$B$3:$B$213) -> Pittsylvania Co | C74: 0 | D74: 0 | E74: 0 | F74: 0 | G74: 0 | K74: 0 | L74: 0 | M74: 0 | N74: 0 | S74: 0 | U74: 0 | V74: 0 | W74: =LOOKUP(A74,'DOE - FIPStoPayeeCodeConvTable'!$A$3:$A$213,'DOE - FIPStoPayeeCodeConvTable'!$E$3:$E$213) -> 0.2355 | X74: 0.2355 | Y74: 0 | Z74: 0
A75: 145 | B75: =LOOKUP(A75,'DOE - FIPStoPayeeCodeConvTable'!$A$3:$A$213,'DOE - FIPStoPayeeCodeConvTable'!$B$3:$B$213) -> Powhatan Co | C75: 0 | D75: 0 | E75: 0 | F75: 0 | G75: 0 | K75: 0 | L75: 0 | M75: 0 | N75: 0 | S75: 0 | U75: 0 | V75: 0 | W75: =LOOKUP(A75,'DOE - FIPStoPayeeCodeConvTable'!$A$3:$A$213,'DOE - FIPStoPayeeCodeConvTable'!$E$3:$E$213) -> 0.4342 | X75: 0.4342 | Y75: 0 | Z75: 0
A76: 147 | B76: =LOOKUP(A76,'DOE - FIPStoPayeeCodeConvTable'!$A$3:$A$213,'DOE - FIPStoPayeeCodeConvTable'!$B$3:$B$213) -> Prince Edward Co | C76: 0 | D76: 0 | E76: 0 | F76: 0 | G76: 0 | K76: 0 | L76: 0 | M76: 0 | N76: 0 | S76: 0 | U76: 0 | V76: 0 | W76: =LOOKUP(A76,'DOE - FIPStoPayeeCodeConvTable'!$A$3:$A$213,'DOE - FIPStoPayeeCodeConvTable'!$E$3:$E$213) -> 0.2232 | X76: 0.2232 | Y76: 0 | Z76: 0
A77: 149 | B77: =LOOKUP(A77,'DOE - FIPStoPayeeCodeConvTable'!$A$3:$A$213,'DOE - FIPStoPayeeCodeConvTable'!$B$3:$B$213) -> Prince George Co | C77: 0 | D77: 0 | E77: 0 | F77: 0 | G77: 0 | K77: 0 | L77: 0 | M77: 0 | N77: 0 | S77: 0 | U77: 0 | V77: 0 | W77: =LOOKUP(A77,'DOE - FIPStoPayeeCodeConvTable'!$A$3:$A$213,'DOE - FIPStoPayeeCodeConvTable'!$E$3:$E$213) -> 0.3716 | X77: 0.3716 | Y77: 0 | Z77: 0
A78: 153 | B78: =LOOKUP(A78,'DOE - FIPStoPayeeCodeConvTable'!$A$3:$A$213,'DOE - FIPStoPayeeCodeConvTable'!$B$3:$B$213) -> Prince William Co | C78: 0 | D78: 0 | E78: 0 | F78: 0 | G78: 0 | K78: 0 | L78: 0 | M78: 0 | N78: 0 | S78: 0 | U78: 0 | V78: 0 | W78: =LOOKUP(A78,'DOE - FIPStoPayeeCodeConvTable'!$A$3:$A$213,'DOE - FIPStoPayeeCodeConvTable'!$E$3:$E$213) -> 0.3414 | X78: 0.3414 | Y78: 0 | Z78: 0
A79: 155 | B79: =LOOKUP(A79,'DOE - FIPStoPayeeCodeConvTable'!$A$3:$A$213,'DOE - FIPStoPayeeCodeConvTable'!$B$3:$B$213) -> Pulaski Co | C79: 0 | D79: 0 | E79: 326.5 | F79: 0 | G79: 0 | K79: 0 | L79: 0 | M79: 0 | N79: 0 | S79: 326.5 | U79: 287.32 | V79: 39.18 | W79: =LOOKUP(A79,'DOE - FIPStoPayeeCodeConvTable'!$A$3:$A$213,'DOE - FIPStoPayeeCodeConvTable'!$E$3:$E$213) -> 0.2923 | X79: 0.2923 | Y79: 11.45 | Z79: 27.73
A80: 157 | B80: =LOOKUP(A80,'DOE - FIPStoPayeeCodeConvTable'!$A$3:$A$213,'DOE - FIPStoPayeeCodeConvTable'!$B$3:$B$213) -> Rappahannock Co | C80: 0 | D80: 0 | E80: 0 | F80: 0 | G80: 0 | K80: 0 | L80: 0 | M80: 0 | N80: 0 | S80: 0 | U80: 0 | V80: 0 | W80: =LOOKUP(A80,'DOE - FIPStoPayeeCodeConvTable'!$A$3:$A$213,'DOE - FIPStoPayeeCodeConvTable'!$E$3:$E$213) -> 0.4199 | X80: 0.4199 | Y80: 0 | Z80: 0
A81: 159 | B81: =LOOKUP(A81,'DOE - FIPStoPayeeCodeConvTable'!$A$3:$A$213,'DOE - FIPStoPayeeCodeConvTable'!$B$3:$B$213) -> Richmond Co | C81: 0 | D81: 0 | E81: 0 | F81: 0 | G81: 0 | K81: 0 | L81: 0 | M81: 0 | N81: 0 | S81: 0 | U81: 0 | V81: 0 | W81: =LOOKUP(A81,'DOE - FIPStoPayeeCodeConvTable'!$A$3:$A$213,'DOE - FIPStoPayeeCodeConvTable'!$E$3:$E$213) -> 0.3227 | X81: 0.3227 | Y81: 0 | Z81: 0
A82: 161 | B82: =LOOKUP(A82,'DOE - FIPStoPayeeCodeConvTable'!$A$3:$A$213,'DOE - FIPStoPayeeCodeConvTable'!$B$3:$B$213) -> Roanoke Co | C82: 0 | D82: 0 | E82: 0 | F82: 0 | G82: 0 | K82: 0 | L82: 0 | M82: 0 | N82: 0 | S82: 0 | U82: 0 | V82: 0 | W82: =LOOKUP(A82,'DOE - FIPStoPayeeCodeConvTable'!$A$3:$A$213,'DOE - FIPStoPayeeCodeConvTable'!$E$3:$E$213) -> 0.4397 | X82: 0.4397 | Y82: 0 | Z82: 0
A83: 163 | B83: =LOOKUP(A83,'DOE - FIPStoPayeeCodeConvTable'!$A$3:$A$213,'DOE - FIPStoPayeeCodeConvTable'!$B$3:$B$213) -> Rockbridge Co | C83: 0 | D83: 0 | E83: 0 | F83: 0 | G83: 0 | K83: 0 | L83: 0 | M83: 0 | N83: 0 | S83: 0 | U83: 0 | V83: 0 | W83: =LOOKUP(A83,'DOE - FIPStoPayeeCodeConvTable'!$A$3:$A$213,'DOE - FIPStoPayeeCodeConvTable'!$E$3:$E$213) -> 0.2336 | X83: 0.2336 | Y83: 0 | Z83: 0
A84: 165 | B84: =LOOKUP(A84,'DOE - FIPStoPayeeCodeConvTable'!$A$3:$A$213,'DOE - FIPStoPayeeCodeConvTable'!$B$3:$B$213) -> Rockingham Co | C84: 152.37 | D84: 326.5 | E84: 0 | F84: 0 | G84: 0 | K84: 0 | L84: 0 | M84: 0 | N84: 0 | S84: 478.87 | U84: 421.41 | V84: 57.46 | W84: =LOOKUP(A84,'DOE - FIPStoPayeeCodeConvTable'!$A$3:$A$213,'DOE - FIPStoPayeeCodeConvTable'!$E$3:$E$213) -> 0.3445 | X84: 0.3445 | Y84: 19.79 | Z84: 37.67
A85: 167 | B85: =LOOKUP(A85,'DOE - FIPStoPayeeCodeConvTable'!$A$3:$A$213,'DOE - FIPStoPayeeCodeConvTable'!$B$3:$B$213) -> Russell Co | C85: 0 | D85: 0 | E85: 0 | F85: 0 | G85: 0 | K85: 0 | L85: 0 | M85: 0 | N85: 0 | S85: 0 | U85: 0 | V85: 0 | W85: =LOOKUP(A85,'DOE - FIPStoPayeeCodeConvTable'!$A$3:$A$213,'DOE - FIPStoPayeeCodeConvTable'!$E$3:$E$213) -> 0.1894 | X85: 0.1894 | Y85: 0 | Z85: 0
A86: 169 | B86: =LOOKUP(A86,'DOE - FIPStoPayeeCodeConvTable'!$A$3:$A$213,'DOE - FIPStoPayeeCodeConvTable'!$B$3:$B$213) -> Scott Co | C86: 0 | D86: 0 | E86: 0 | F86: 0 | G86: 0 | K86: 0 | L86: 0 | M86: 0 | N86: 0 | S86: 0 | U86: 0 | V86: 0 | W86: =LOOKUP(A86,'DOE - FIPStoPayeeCodeConvTable'!$A$3:$A$213,'DOE - FIPStoPayeeCodeConvTable'!$E$3:$E$213) -> 0.3154 | X86: 0.3154 | Y86: 0 | Z86: 0
A87: 171 | B87: =LOOKUP(A87,'DOE - FIPStoPayeeCodeConvTable'!$A$3:$A$213,'DOE - FIPStoPayeeCodeConvTable'!$B$3:$B$213) -> Shenandoah Co | C87: 0 | D87: 0 | E87: 0 | F87: 0 | G87: 0 | K87: 0 | L87: 0 | M87: 0 | N87: 0 | S87: 0 | U87: 0 | V87: 0 | W87: =LOOKUP(A87,'DOE - FIPStoPayeeCodeConvTable'!$A$3:$A$213,'DOE - FIPStoPayeeCodeConvTable'!$E$3:$E$213) -> 0.3517 | X87: 0.3517 | Y87: 0 | Z87: 0
A88: 173 | B88: =LOOKUP(A88,'DOE - FIPStoPayeeCodeConvTable'!$A$3:$A$213,'DOE - FIPStoPayeeCodeConvTable'!$B$3:$B$213) -> Smyth Co | C88: 0 | D88: 0 | E88: 0 | F88: 0 | G88: 0 | K88: 0 | L88: 0 | M88: 0 | N88: 0 | S88: 0 | U88: 0 | V88: 0 | W88: =LOOKUP(A88,'DOE - FIPStoPayeeCodeConvTable'!$A$3:$A$213,'DOE - FIPStoPayeeCodeConvTable'!$E$3:$E$213) -> 0.2337 | X88: 0.2337 | Y88: 0 | Z88: 0
A89: 175 | B89: =LOOKUP(A89,'DOE - FIPStoPayeeCodeConvTable'!$A$3:$A$213,'DOE - FIPStoPayeeCodeConvTable'!$B$3:$B$213) -> Southampton Co | C89: 0 | D89: 0 | E89: 0 | F89: 0 | G89: 0 | K89: 0 | L89: 0 | M89: 0 | N89: 0 | S89: 0 | U89: 0 | V89: 0 | W89: =LOOKUP(A89,'DOE - FIPStoPayeeCodeConvTable'!$A$3:$A$213,'DOE - FIPStoPayeeCodeConvTable'!$E$3:$E$213) -> 0.323 | X89: 0.323 | Y89: 0 | Z89: 0
A90: 177 | B90: =LOOKUP(A90,'DOE - FIPStoPayeeCodeConvTable'!$A$3:$A$213,'DOE - FIPStoPayeeCodeConvTable'!$B$3:$B$213) -> Spotsylvania Co | C90: 0 | D90: 0 | E90: 0 | F90: 0 | G90: 0 | K90: 0 | L90: 0 | M90: 0 | N90: 0 | S90: 0 | U90: 0 | V90: 0 | W90: =LOOKUP(A90,'DOE - FIPStoPayeeCodeConvTable'!$A$3:$A$213,'DOE - FIPStoPayeeCodeConvTable'!$E$3:$E$213) -> 0.4588 | X90: 0.4588 | Y90: 0 | Z90: 0
A91: 179 | B91: =LOOKUP(A91,'DOE - FIPStoPayeeCodeConvTable'!$A$3:$A$213,'DOE - FIPStoPayeeCodeConvTable'!$B$3:$B$213) -> Stafford Co | C91: 0 | D91: 0 | E91: 0 | F91: 0 | G91: 0 | K91: 0 | L91: 0 | M91: 0 | N91: 0 | S91: 0 | U91: 0 | V91: 0 | W91: =LOOKUP(A91,'DOE - FIPStoPayeeCodeConvTable'!$A$3:$A$213,'DOE - FIPStoPayeeCodeConvTable'!$E$3:$E$213) -> 0.4439 | X91: 0.4439 | Y91: 0 | Z91: 0
A92: 181 | B92: =LOOKUP(A92,'DOE - FIPStoPayeeCodeConvTable'!$A$3:$A$213,'DOE - FIPStoPayeeCodeConvTable'!$B$3:$B$213) -> Surry Co | C92: 0 | D92: 0 | E92: 0 | F92: 0 | G92: 0 | K92: 0 | L92: 0 | M92: 0 | N92: 0 | S92: 0 | U92: 0 | V92: 0 | W92: =LOOKUP(A92,'DOE - FIPStoPayeeCodeConvTable'!$A$3:$A$213,'DOE - FIPStoPayeeCodeConvTable'!$E$3:$E$213) -> 0.3979 | X92: 0.3979 | Y92: 0 | Z92: 0
A93: 183 | B93: =LOOKUP(A93,'DOE - FIPStoPayeeCodeConvTable'!$A$3:$A$213,'DOE - FIPStoPayeeCodeConvTable'!$B$3:$B$213) -> Sussex Co | C93: 0 | D93: 0 | E93: 0 | F93: 0 | G93: 0 | K93: 0 | L93: 0 | M93: 0 | N93: 0 | S93: 0 | U93: 0 | V93: 0 | W93: =LOOKUP(A93,'DOE - FIPStoPayeeCodeConvTable'!$A$3:$A$213,'DOE - FIPStoPayeeCodeConvTable'!$E$3:$E$213) -> 0.2387 | X93: 0.2387 | Y93: 0 | Z93: 0
A94: 185 | B94: =LOOKUP(A94,'DOE - FIPStoPayeeCodeConvTable'!$A$3:$A$213,'DOE - FIPStoPayeeCodeConvTable'!$B$3:$B$213) -> Tazewell Co | C94: 0 | D94: 0 | E94: 0 | F94: 0 | G94: 0 | K94: 0 | L94: 0 | M94: 0 | N94: 0 | S94: 0 | U94: 0 | V94: 0 | W94: =LOOKUP(A94,'DOE - FIPStoPayeeCodeConvTable'!$A$3:$A$213,'DOE - FIPStoPayeeCodeConvTable'!$E$3:$E$213) -> 0.2455 | X94: 0.2455 | Y94: 0 | Z94: 0
A95: 187 | B95: =LOOKUP(A95,'DOE - FIPStoPayeeCodeConvTable'!$A$3:$A$213,'DOE - FIPStoPayeeCodeConvTable'!$B$3:$B$213) -> Warren Co | C95: 0 | D95: 0 | E95: 0 | F95: 0 | G95: 0 | K95: 0 | L95: 0 | M95: 0 | N95: 0 | S95: 0 | U95: 0 | V95: 0 | W95: =LOOKUP(A95,'DOE - FIPStoPayeeCodeConvTable'!$A$3:$A$213,'DOE - FIPStoPayeeCodeConvTable'!$E$3:$E$213) -> 0.3853 | X95: 0.3853 | Y95: 0 | Z95: 0
A96: 191 | B96: =LOOKUP(A96,'DOE - FIPStoPayeeCodeConvTable'!$A$3:$A$213,'DOE - FIPStoPayeeCodeConvTable'!$B$3:$B$213) -> Washington Co | C96: 0 | D96: 0 | E96: 0 | F96: 0 | G96: 0 | K96: 0 | L96: 0 | M96: 0 | N96: 0 | S96: 0 | U96: 0 | V96: 0 | W96: =LOOKUP(A96,'DOE - FIPStoPayeeCodeConvTable'!$A$3:$A$213,'DOE - FIPStoPayeeCodeConvTable'!$E$3:$E$213) -> 0.276 | X96: 0.276 | Y96: 0 | Z96: 0
A97: 193 | B97: =LOOKUP(A97,'DOE - FIPStoPayeeCodeConvTable'!$A$3:$A$213,'DOE - FIPStoPayeeCodeConvTable'!$B$3:$B$213) -> Westmoreland Co | C97: 0 | D97: 0 | E97: 0 | F97: 0 | G97: 0 | K97: 0 | L97: 0 | M97: 0 | N97: 0 | S97: 0 | U97: 0 | V97: 0 | W97: =LOOKUP(A97,'DOE - FIPStoPayeeCodeConvTable'!$A$3:$A$213,'DOE - FIPStoPayeeCodeConvTable'!$E$3:$E$213) -> 0.3025 | X97: 0.3025 | Y97: 0 | Z97: 0
A98: 195 | B98: =LOOKUP(A98,'DOE - FIPStoPayeeCodeConvTable'!$A$3:$A$213,'DOE - FIPStoPayeeCodeConvTable'!$B$3:$B$213) -> Wise Co | C98: 0 | D98: 0 | E98: 0 | F98: 0 | G98: 0 | K98: 0 | L98: 0 | M98: 0 | N98: 0 | S98: 0 | U98: 0 | V98: 0 | W98: =LOOKUP(A98,'DOE - FIPStoPayeeCodeConvTable'!$A$3:$A$213,'DOE - FIPStoPayeeCodeConvTable'!$E$3:$E$213) -> 0.2755 | X98: 0.2755 | Y98: 0 | Z98: 0
A99: 197 | B99: =LOOKUP(A99,'DOE - FIPStoPayeeCodeConvTable'!$A$3:$A$213,'DOE - FIPStoPayeeCodeConvTable'!$B$3:$B$213) -> Wythe Co | C99: 0 | D99: 0 | E99: 0 | F99: 0 | G99: 0 | K99: 0 | L99: 0 | M99: 0 | N99: 0 | S99: 0 | U99: 0 | V99: 0 | W99: =LOOKUP(A99,'DOE - FIPStoPayeeCodeConvTable'!$A$3:$A$213,'DOE - FIPStoPayeeCodeConvTable'!$E$3:$E$213) -> 0.2708 | X99: 0.2708 | Y99: 0 | Z99: 0
A100: 199 | B100: =LOOKUP(A100,'DOE - FIPStoPayeeCodeConvTable'!$A$3:$A$213,'DOE - FIPStoPayeeCodeConvTable'!$B$3:$B$213) -> York Co | C100: 0 | D100: 0 | E100: 0 | F100: 0 | G100: 0 | K100: 0 | L100: 0 | M100: 0 | N100: 0 | S100: 0 | U100: 0 | V100: 0 | W100: =LOOKUP(A100,'DOE - FIPStoPayeeCodeConvTable'!$A$3:$A$213,'DOE - FIPStoPayeeCodeConvTable'!$E$3:$E$213) -> 0.3888 | X100: 0.3888 | Y100: 0 | Z100: 0
A101: 510 | B101: =LOOKUP(A101,'DOE - FIPStoPayeeCodeConvTable'!$A$3:$A$213,'DOE - FIPStoPayeeCodeConvTable'!$B$3:$B$213) -> Alexandria City | C101: 0 | D101: 0 | E101: 0 | F101: 0 | G101: 0 | K101: 0 | L101: 0 | M101: 0 | N101: 0 | S101: =SUM(C101:R101) -> 0 | U101: 0 | V101: 0 | W101: =LOOKUP(A101,'DOE - FIPStoPayeeCodeConvTable'!$A$3:$A$213,'DOE - FIPStoPayeeCodeConvTable'!$E$3:$E$213) -> 0.5309 | X101: 0.5309 | Y101: 0 | Z101: 0
A102: 520 | B102: =LOOKUP(A102,'DOE - FIPStoPayeeCodeConvTable'!$A$3:$A$213,'DOE - FIPStoPayeeCodeConvTable'!$B$3:$B$213) -> Bristol City | C102: 0 | D102: 0 | E102: 0 | F102: 0 | G102: 0 | K102: 0 | L102: 0 | M102: 0 | N102: 0 | S102: 0 | U102: =ROUND($U$1*S102,2) -> 0 | V102: =SUM(S102)-SUM(U102) -> 0 | W102: =LOOKUP(A102,'DOE - FIPStoPayeeCodeConvTable'!$A$3:$A$213,'DOE - FIPStoPayeeCodeConvTable'!$E$3:$E$213) -> 0.2547 | X102: 0.2547 | Y102: 0 | Z102: 0
A103: 530 | B103: =LOOKUP(A103,'DOE - FIPStoPayeeCodeConvTable'!$A$3:$A$213,'DOE - FIPStoPayeeCodeConvTable'!$B$3:$B$213) -> Buena Vista City | C103: 0 | D103: 0 | E103: 0 | F103: 0 | G103: 0 | K103: 0 | L103: 0 | M103: 0 | N103: 0 | S103: 0 | U103: 0 | V103: 0 | W103: =LOOKUP(A103,'DOE - FIPStoPayeeCodeConvTable'!$A$3:$A$213,'DOE - FIPStoPayeeCodeConvTable'!$E$3:$E$213) -> 0.2329 | X103: 0.2329 | Y103: 0 | Z103: 0
A104: 540 | B104: =LOOKUP(A104,'DOE - FIPStoPayeeCodeConvTable'!$A$3:$A$213,'DOE - FIPStoPayeeCodeConvTable'!$B$3:$B$213) -> Charlottesville City | C104: 0 | D104: 0 | E104: 0 | F104: 0 | G104: 0 | K104: 0 | L104: 0 | M104: 0 | N104: 0 | S104: 0 | U104: 0 | V104: 0 | W104: =LOOKUP(A104,'DOE - FIPStoPayeeCodeConvTable'!$A$3:$A$213,'DOE - FIPStoPayeeCodeConvTable'!$E$3:$E$213) -> 0.3068 | X104: 0.3068 | Y104: 0 | Z104: 0
A105: 550 | B105: =LOOKUP(A105,'DOE - FIPStoPayeeCodeConvTable'!$A$3:$A$213,'DOE - FIPStoPayeeCodeConvTable'!$B$3:$B$213) -> Chesapeake City | C105: 0 | D105: 0 | E105: 0 | F105: 0 | G105: 0 | K105: 0 | L105: 0 | M105: 0 | N105: 0 | S105: 0 | U105: 0 | V105: 0 | W105: =LOOKUP(A105,'DOE - FIPStoPayeeCodeConvTable'!$A$3:$A$213,'DOE - FIPStoPayeeCodeConvTable'!$E$3:$E$213) -> 0.3715 | X105: 0.3715 | Y105: 0 | Z105: 0
A106: 570 | B106: =LOOKUP(A106,'DOE - FIPStoPayeeCodeConvTable'!$A$3:$A$213,'DOE - FIPStoPayeeCodeConvTable'!$B$3:$B$213) -> Colonial Heights City | C106: 0 | D106: 0 | E106: 0 | F106: 0 | G106: 0 | K106: 0 | L106: 0 | M106: 0 | N106: 0 | S106: 0 | U106: 0 | V106: 0 | W106: =LOOKUP(A106,'DOE - FIPStoPayeeCodeConvTable'!$A$3:$A$213,'DOE - FIPStoPayeeCodeConvTable'!$E$3:$E$213) -> 0.4027 | X106: 0.4027 | Y106: 0 | Z106: 0
A107: 580 | B107: =LOOKUP(A107,'DOE - FIPStoPayeeCodeConvTable'!$A$3:$A$213,'DOE - FIPStoPayeeCodeConvTable'!$B$3:$B$213) -> Covington City | C107: 0 | D107: 0 | E107: 0 | F107: 0 | G107: 0 | K107: 0 | L107: 0 | M107: 0 | N107: 0 | S107: 0 | U107: 0 | V107: 0 | W107: =LOOKUP(A107,'DOE - FIPStoPayeeCodeConvTable'!$A$3:$A$213,'DOE - FIPStoPayeeCodeConvTable'!$E$3:$E$213) -> 0.2496 | X107: 0.2496 | Y107: 0 | Z107: 0
A108: 590 | B108: =LOOKUP(A108,'DOE - FIPStoPayeeCodeConvTable'!$A$3:$A$213,'DOE - FIPStoPayeeCodeConvTable'!$B$3:$B$213) -> Danville City | C108: 0 | D108: 0 | E108: 0 | F108: 0 | G108: 0 | K108: 0 | L108: 0 | M108: 0 | N108: 0 | S108: 0 | U108: 0 | V108: 0 | W108: =LOOKUP(A108,'DOE - FIPStoPayeeCodeConvTable'!$A$3:$A$213,'DOE - FIPStoPayeeCodeConvTable'!$E$3:$E$213) -> 0.2223 | X108: 0.2223 | Y108: 0 | Z108: 0
A109: 620 | B109: =LOOKUP(A109,'DOE - FIPStoPayeeCodeConvTable'!$A$3:$A$213,'DOE - FIPStoPayeeCodeConvTable'!$B$3:$B$213) -> Franklin City | C109: 0 | D109: 0 | E109: 0 | F109: 0 | G109: 0 | K109: 0 | L109: 0 | M109: 0 | N109: 0 | S109: 0 | U109: 0 | V109: 0 | W109: =LOOKUP(A109,'DOE - FIPStoPayeeCodeConvTable'!$A$3:$A$213,'DOE - FIPStoPayeeCodeConvTable'!$E$3:$E$213) -> 0.371 | X109: 0.371 | Y109: 0 | Z109: 0
A110: 630 | B110: =LOOKUP(A110,'DOE - FIPStoPayeeCodeConvTable'!$A$3:$A$213,'DOE - FIPStoPayeeCodeConvTable'!$B$3:$B$213) -> Fredericksburg City | C110: 0 | D110: 0 | E110: 0 | F110: 0 | G110: 0 | K110: 0 | L110: 0 | M110: 0 | N110: 0 | S110: 0 | U110: 0 | V110: 0 | W110: =LOOKUP(A110,'DOE - FIPStoPayeeCodeConvTable'!$A$3:$A$213,'DOE - FIPStoPayeeCodeConvTable'!$E$3:$E$213) -> 0.3441 | X110: 0.3441 | Y110: 0 | Z110: 0
A111: 640 | B111: =LOOKUP(A111,'DOE - FIPStoPayeeCodeConvTable'!$A$3:$A$213,'DOE - FIPStoPayeeCodeConvTable'!$B$3:$B$213) -> Galax City | C111: 0 | D111: 0 | E111: 0 | F111: 0 | G111: 0 | K111: 0 | L111: 0 | M111: 0 | N111: 0 | S111: 0 | U111: 0 | V111: 0 | W111: =LOOKUP(A111,'DOE - FIPStoPayeeCodeConvTable'!$A$3:$A$213,'DOE - FIPStoPayeeCodeConvTable'!$E$3:$E$213) -> 0.3146 | X111: 0.3146 | Y111: 0 | Z111: 0
A112: 650 | B112: =LOOKUP(A112,'DOE - FIPStoPayeeCodeConvTable'!$A$3:$A$213,'DOE - FIPStoPayeeCodeConvTable'!$B$3:$B$213) -> Hampton City | C112: 0 | D112: 0 | E112: 0 | F112: 0 | G112: 0 | K112: 0 | L112: 0 | M112: 0 | N112: 0 | S112: 0 | U112: 0 | V112: 0 | W112: =LOOKUP(A112,'DOE - FIPStoPayeeCodeConvTable'!$A$3:$A$213,'DOE - FIPStoPayeeCodeConvTable'!$E$3:$E$213) -> 0.3223 | X112: 0.3223 | Y112: 0 | Z112: 0
A113: 660 | B113: =LOOKUP(A113,'DOE - FIPStoPayeeCodeConvTable'!$A$3:$A$213,'DOE - FIPStoPayeeCodeConvTable'!$B$3:$B$213) -> Harrisonburg City | C113: 0 | D113: 0 | E113: 0 | F113: 0 | G113: 0 | K113: 0 | L113: 0 | M113: 0 | N113: 0 | S113: 0 | U113: 0 | V113: 0 | W113: =LOOKUP(A113,'DOE - FIPStoPayeeCodeConvTable'!$A$3:$A$213,'DOE - FIPStoPayeeCodeConvTable'!$E$3:$E$213) -> 0.3808 | X113: 0.3808 | Y113: 0 | Z113: 0
A114: 670 | B114: =LOOKUP(A114,'DOE - FIPStoPayeeCodeConvTable'!$A$3:$A$213,'DOE - FIPStoPayeeCodeConvTable'!$B$3:$B$213) -> Hopewell City | C114: 0 | D114: 0 | E114: 0 | F114: 0 | G114: 0 | K114: 0 | L114: 0 | M114: 0 | N114: 0 | S114: 0 | U114: 0 | V114: 0 | W114: =LOOKUP(A114,'DOE - FIPStoPayeeCodeConvTable'!$A$3:$A$213,'DOE - FIPStoPayeeCodeConvTable'!$E$3:$E$213) -> 0.2667 | X114: 0.2667 | Y114: 0 | Z114: 0
A115: 678 | B115: =LOOKUP(A115,'DOE - FIPStoPayeeCodeConvTable'!$A$3:$A$213,'DOE - FIPStoPayeeCodeConvTable'!$B$3:$B$213) -> Lexington City | C115: 0 | D115: 0 | E115: 0 | F115: 0 | G115: 0 | K115: 0 | L115: 0 | M115: 0 | N115: 0 | S115: 0 | U115: 0 | V115: 0 | W115: =LOOKUP(A115,'DOE - FIPStoPayeeCodeConvTable'!$A$3:$A$213,'DOE - FIPStoPayeeCodeConvTable'!$E$3:$E$213) -> 0.3302 | X115: 0.3302 | Y115: 0 | Z115: 0
A116: 680 | B116: =LOOKUP(A116,'DOE - FIPStoPayeeCodeConvTable'!$A$3:$A$213,'DOE - FIPStoPayeeCodeConvTable'!$B$3:$B$213) -> Lynchburg City | C116: 0 | D116: 0 | E116: 0 | F116: 0 | G116: 0 | K116: 0 | L116: 186.56 | M116: 0 | N116: 0 | S116: 186.56 | U116: 164.17 | V116: 22.39 | W116: =LOOKUP(A116,'DOE - FIPStoPayeeCodeConvTable'!$A$3:$A$213,'DOE - FIPStoPayeeCodeConvTable'!$E$3:$E$213) -> 0.2736 | X116: 0.2736 | Y116: 6.13 | Z116: 16.26
A117: 683 | B117: =LOOKUP(A117,'DOE - FIPStoPayeeCodeConvTable'!$A$3:$A$213,'DOE - FIPStoPayeeCodeConvTable'!$B$3:$B$213) -> Manassas City | C117: 0 | D117: 0 | E117: 0 | F117: 0 | G117: 0 | K117: 0 | L117: 0 | M117: 0 | N117: 0 | S117: 0 | U117: 0 | V117: 0 | W117: =LOOKUP(A117,'DOE - FIPStoPayeeCodeConvTable'!$A$3:$A$213,'DOE - FIPStoPayeeCodeConvTable'!$E$3:$E$213) -> 0.4168 | X117: 0.4168 | Y117: 0 | Z117: 0
A118: 685 | B118: =LOOKUP(A118,'DOE - FIPStoPayeeCodeConvTable'!$A$3:$A$213,'DOE - FIPStoPayeeCodeConvTable'!$B$3:$B$213) -> Manassas Park City | C118: 0 | D118: 0 | E118: 0 | F118: 0 | G118: 0 | K118: 0 | L118: 0 | M118: 0 | N118: 0 | S118: 0 | U118: 0 | V118: 0 | W118: =LOOKUP(A118,'DOE - FIPStoPayeeCodeConvTable'!$A$3:$A$213,'DOE - FIPStoPayeeCodeConvTable'!$E$3:$E$213) -> 0.4273 | X118: 0.4273 | Y118: 0 | Z118: 0
A119: 690 | B119: =LOOKUP(A119,'DOE - FIPStoPayeeCodeConvTable'!$A$3:$A$213,'DOE - FIPStoPayeeCodeConvTable'!$B$3:$B$213) -> Martinsville City | C119: 0 | D119: 0 | E119: 0 | F119: 0 | G119: 0 | K119: 0 | L119: 0 | M119: 0 | N119: 0 | S119: 0 | U119: 0 | V119: 0 | W119: =LOOKUP(A119,'DOE - FIPStoPayeeCodeConvTable'!$A$3:$A$213,'DOE - FIPStoPayeeCodeConvTable'!$E$3:$E$213) -> 0.3321 | X119: 0.3321 | Y119: 0 | Z119: 0
A120: 700 | B120: =LOOKUP(A120,'DOE - FIPStoPayeeCodeConvTable'!$A$3:$A$213,'DOE - FIPStoPayeeCodeConvTable'!$B$3:$B$213) -> Newport News City | C120: 0 | D120: 0 | E120: 0 | F120: 0 | G120: 0 | K120: 0 | L120: 0 | M120: 0 | N120: 0 | S120: 0 | U120: 0 | V120: 0 | W120: =LOOKUP(A120,'DOE - FIPStoPayeeCodeConvTable'!$A$3:$A$213,'DOE - FIPStoPayeeCodeConvTable'!$E$3:$E$213) -> 0.2773 | X120: 0.2773 | Y120: 0 | Z120: 0
